Workbook

Sheet Selection
A3: Factor | B3: 2
A4: Language | B4: GB

Sheet Master
A1: Style | B1: Beskrivelse | C1: EUR Forhandler 1 stk | D1: EUR Forhandler 50 stk | E1: Str. | F1: EUR Forhandler overstr.
A2: a | B2: a | C2: 0 | F2: 0
A3: NO. | B3: =IF(Selection!$B$4="DK","PRODUKTNAVN",IF(Selection!$B$4="DE","PRODUKTNAME",IF(Selection!$B$4="GB","PRODUCT NAME",IF(Selection!$B$4="SE","PRODUKTNAMN",IF(Selection!$B$4="NO","PRODUKTNAVN",IF(Selection!$B$4="PL","NAZWA PRODUKTU")))))) -> PRODUCT NAME | C3: PREIS
A4: - | C4: EUR | E4: SIZE ADD-ON EUR
C5: 1 pcs | D5: 100 pcs | E5: 1 pcs
A7: =IF(Selection!$B$4="PL","T-SHIRTY",IF(Selection!$B$4="NO","T-SKJORTER","T-SHIRTS")) -> T-SHIRTS
A8: 0500 | B8: =IF(Selection!$B$4="DK",VLOOKUP($A8,'Style navne sprog'!$A:$I,6,FALSE),IF(Selection!$B$4="DE",VLOOKUP($A8,'Style navne sprog'!$A:$I,2,FALSE),IF(Selection!$B$4="GB",VLOOKUP($A8,'Style navne sprog'!$A:$I,4,FALSE),IF(Selection!$B$4="SE",VLOOKUP($A8,'Style navne sprog'!$A:$I,3,FALSE),IF(Selection!$B$4="NO",VLOOKUP($A8,'Style navne sprog'!$A:$I,5,FALSE),IF(Selection!$B$4="PL",VLOOKUP($A8,'Style navne sprog'!$A:$I,7,FALSE))))))) -> GAME® T-shirt | C8: 8.45 | D8: 7.8 | E8: 3XL | F8: 1.4
A9: 0502 | B9: =IF(Selection!$B$4="DK",VLOOKUP($A9,'Style navne sprog'!$A:$I,6,FALSE),IF(Selection!$B$4="DE",VLOOKUP($A9,'Style navne sprog'!$A:$I,2,FALSE),IF(Selection!$B$4="GB",VLOOKUP($A9,'Style navne sprog'!$A:$I,4,FALSE),IF(Selection!$B$4="SE",VLOOKUP($A9,'Style navne sprog'!$A:$I,3,FALSE),IF(Selection!$B$4="NO",VLOOKUP($A9,'Style navne sprog'!$A:$I,5,FALSE),IF(Selection!$B$4="PL",VLOOKUP($A9,'Style navne sprog'!$A:$I,7,FALSE))))))) -> T-TIME® T-shirt | tight | C9: 10.55 | D9: 9.85 | E9: 3XL | F9: 1.4
A10: 0506 | B10: =IF(Selection!$B$4="DK",VLOOKUP($A10,'Style navne sprog'!$A:$I,6,FALSE),IF(Selection!$B$4="DE",VLOOKUP($A10,'Style navne sprog'!$A:$I,2,FALSE),IF(Selection!$B$4="GB",VLOOKUP($A10,'Style navne sprog'!$A:$I,4,FALSE),IF(Selection!$B$4="SE",VLOOKUP($A10,'Style navne sprog'!$A:$I,3,FALSE),IF(Selection!$B$4="NO",VLOOKUP($A10,'Style navne sprog'!$A:$I,5,FALSE),IF(Selection!$B$4="PL",VLOOKUP($A10,'Style navne sprog'!$A:$I,7,FALSE))))))) -> Interlock T-shirt | v-neck | women | C10: 14.75 | D10: 14.1 | E10: 3XL-4XL | F10: 1.4
A11: 0508 | B11: =IF(Selection!$B$4="DK",VLOOKUP($A11,'Style navne sprog'!$A:$I,6,FALSE),IF(Selection!$B$4="DE",VLOOKUP($A11,'Style navne sprog'!$A:$I,2,FALSE),IF(Selection!$B$4="GB",VLOOKUP($A11,'Style navne sprog'!$A:$I,4,FALSE),IF(Selection!$B$4="SE",VLOOKUP($A11,'Style navne sprog'!$A:$I,3,FALSE),IF(Selection!$B$4="NO",VLOOKUP($A11,'Style navne sprog'!$A:$I,5,FALSE),IF(Selection!$B$4="PL",VLOOKUP($A11,'Style navne sprog'!$A:$I,7,FALSE))))))) -> Interlock T-shirt | women | C11: 14.75 | D11: 14.1 | E11: 3XL-4XL | F11: 1.4
A12: 0509 | B12: =IF(Selection!$B$4="DK",VLOOKUP($A12,'Style navne sprog'!$A:$I,6,FALSE),IF(Selection!$B$4="DE",VLOOKUP($A12,'Style navne sprog'!$A:$I,2,FALSE),IF(Selection!$B$4="GB",VLOOKUP($A12,'Style navne sprog'!$A:$I,4,FALSE),IF(Selection!$B$4="SE",VLOOKUP($A12,'Style navne sprog'!$A:$I,3,FALSE),IF(Selection!$B$4="NO",VLOOKUP($A12,'Style navne sprog'!$A:$I,5,FALSE),IF(Selection!$B$4="PL",VLOOKUP($A12,'Style navne sprog'!$A:$I,7,FALSE))))))) -> Interlock T-shirt | long-sleeved | women | C12: 18.7 | D12: 18.05 | E12: 3XL-4XL | F12: 1.4
A13: 0510 | B13: =IF(Selection!$B$4="DK",VLOOKUP($A13,'Style navne sprog'!$A:$I,6,FALSE),IF(Selection!$B$4="DE",VLOOKUP($A13,'Style navne sprog'!$A:$I,2,FALSE),IF(Selection!$B$4="GB",VLOOKUP($A13,'Style navne sprog'!$A:$I,4,FALSE),IF(Selection!$B$4="SE",VLOOKUP($A13,'Style navne sprog'!$A:$I,3,FALSE),IF(Selection!$B$4="NO",VLOOKUP($A13,'Style navne sprog'!$A:$I,5,FALSE),IF(Selection!$B$4="PL",VLOOKUP($A13,'Style navne sprog'!$A:$I,7,FALSE))))))) -> T-TIME® T-shirt | C13: 10.55 | D13: 9.85 | E13: 3XL-6XL | F13: 1.4
A14: 0511 | B14: =IF(Selection!$B$4="DK",VLOOKUP($A14,'Style navne sprog'!$A:$I,6,FALSE),IF(Selection!$B$4="DE",VLOOKUP($A14,'Style navne sprog'!$A:$I,2,FALSE),IF(Selection!$B$4="GB",VLOOKUP($A14,'Style navne sprog'!$A:$I,4,FALSE),IF(Selection!$B$4="SE",VLOOKUP($A14,'Style navne sprog'!$A:$I,3,FALSE),IF(Selection!$B$4="NO",VLOOKUP($A14,'Style navne sprog'!$A:$I,5,FALSE),IF(Selection!$B$4="PL",VLOOKUP($A14,'Style navne sprog'!$A:$I,7,FALSE))))))) -> T-TIME® T-shirt | women | C14: 10.55 | D14: 9.85 | E14: 3XL-6XL | F14: 1.4
A15: 0514 | B15: =IF(Selection!$B$4="DK",VLOOKUP($A15,'Style navne sprog'!$A:$I,6,FALSE),IF(Selection!$B$4="DE",VLOOKUP($A15,'Style navne sprog'!$A:$I,2,FALSE),IF(Selection!$B$4="GB",VLOOKUP($A15,'Style navne sprog'!$A:$I,4,FALSE),IF(Selection!$B$4="SE",VLOOKUP($A15,'Style navne sprog'!$A:$I,3,FALSE),IF(Selection!$B$4="NO",VLOOKUP($A15,'Style navne sprog'!$A:$I,5,FALSE),IF(Selection!$B$4="PL",VLOOKUP($A15,'Style navne sprog'!$A:$I,7,FALSE))))))) -> T-TIME® T-shirt | v-neck | C15: 10.55 | D15: 9.85
A16: 0517 | B16: =IF(Selection!$B$4="DK",VLOOKUP($A16,'Style navne sprog'!$A:$I,6,FALSE),IF(Selection!$B$4="DE",VLOOKUP($A16,'Style navne sprog'!$A:$I,2,FALSE),IF(Selection!$B$4="GB",VLOOKUP($A16,'Style navne sprog'!$A:$I,4,FALSE),IF(Selection!$B$4="SE",VLOOKUP($A16,'Style navne sprog'!$A:$I,3,FALSE),IF(Selection!$B$4="NO",VLOOKUP($A16,'Style navne sprog'!$A:$I,5,FALSE),IF(Selection!$B$4="PL",VLOOKUP($A16,'Style navne sprog'!$A:$I,7,FALSE))))))) -> Interlock T-shirt | C16: 14.75 | D16: 14.1 | E16: 3XL | F16: 1.4
A17: 0518 | B17: =IF(Selection!$B$4="DK",VLOOKUP($A17,'Style navne sprog'!$A:$I,6,FALSE),IF(Selection!$B$4="DE",VLOOKUP($A17,'Style navne sprog'!$A:$I,2,FALSE),IF(Selection!$B$4="GB",VLOOKUP($A17,'Style navne sprog'!$A:$I,4,FALSE),IF(Selection!$B$4="SE",VLOOKUP($A17,'Style navne sprog'!$A:$I,3,FALSE),IF(Selection!$B$4="NO",VLOOKUP($A17,'Style navne sprog'!$A:$I,5,FALSE),IF(Selection!$B$4="PL",VLOOKUP($A17,'Style navne sprog'!$A:$I,7,FALSE))))))) -> Interlock T-shirt | long-sleeved | C17: 18.7 | D17: 18.05 | E17: 3XL | F17: 1.4
A18: 0524 | B18: =IF(Selection!$B$4="DK",VLOOKUP($A18,'Style navne sprog'!$A:$I,6,FALSE),IF(Selection!$B$4="DE",VLOOKUP($A18,'Style navne sprog'!$A:$I,2,FALSE),IF(Selection!$B$4="GB",VLOOKUP($A18,'Style navne sprog'!$A:$I,4,FALSE),IF(Selection!$B$4="SE",VLOOKUP($A18,'Style navne sprog'!$A:$I,3,FALSE),IF(Selection!$B$4="NO",VLOOKUP($A18,'Style navne sprog'!$A:$I,5,FALSE),IF(Selection!$B$4="PL",VLOOKUP($A18,'Style navne sprog'!$A:$I,7,FALSE))))))) -> RE-CARE T-shirt | unisex | C18: 21.35 | D18: 20.65 | E18: 3XL-4XL | F18: 1.4
A19: 0528 | B19: =IF(Selection!$B$4="DK",VLOOKUP($A19,'Style navne sprog'!$A:$I,6,FALSE),IF(Selection!$B$4="DE",VLOOKUP($A19,'Style navne sprog'!$A:$I,2,FALSE),IF(Selection!$B$4="GB",VLOOKUP($A19,'Style navne sprog'!$A:$I,4,FALSE),IF(Selection!$B$4="SE",VLOOKUP($A19,'Style navne sprog'!$A:$I,3,FALSE),IF(Selection!$B$4="NO",VLOOKUP($A19,'Style navne sprog'!$A:$I,5,FALSE),IF(Selection!$B$4="PL",VLOOKUP($A19,'Style navne sprog'!$A:$I,7,FALSE))))))) -> T-shirt Lyocell | C19: 19.6 | D19: 18.95 | E19: 3XL-6XL | F19: 1.4
A20: 0529 | B20: =IF(Selection!$B$4="DK",VLOOKUP($A20,'Style navne sprog'!$A:$I,6,FALSE),IF(Selection!$B$4="DE",VLOOKUP($A20,'Style navne sprog'!$A:$I,2,FALSE),IF(Selection!$B$4="GB",VLOOKUP($A20,'Style navne sprog'!$A:$I,4,FALSE),IF(Selection!$B$4="SE",VLOOKUP($A20,'Style navne sprog'!$A:$I,3,FALSE),IF(Selection!$B$4="NO",VLOOKUP($A20,'Style navne sprog'!$A:$I,5,FALSE),IF(Selection!$B$4="PL",VLOOKUP($A20,'Style navne sprog'!$A:$I,7,FALSE))))))) -> T-shirt Lyocell | women | C20: 19.6 | D20: 18.95 | E20: 3XL-6XL | F20: 1.4
A21: 0546 | B21: =IF(Selection!$B$4="DK",VLOOKUP($A21,'Style navne sprog'!$A:$I,6,FALSE),IF(Selection!$B$4="DE",VLOOKUP($A21,'Style navne sprog'!$A:$I,2,FALSE),IF(Selection!$B$4="GB",VLOOKUP($A21,'Style navne sprog'!$A:$I,4,FALSE),IF(Selection!$B$4="SE",VLOOKUP($A21,'Style navne sprog'!$A:$I,3,FALSE),IF(Selection!$B$4="NO",VLOOKUP($A21,'Style navne sprog'!$A:$I,5,FALSE),IF(Selection!$B$4="PL",VLOOKUP($A21,'Style navne sprog'!$A:$I,7,FALSE))))))) -> T-TIME® T-shirt | turtleneck | C21: 23.85 | D21: 23.15
A22: 0550 | B22: =IF(Selection!$B$4="DK",VLOOKUP($A22,'Style navne sprog'!$A:$I,6,FALSE),IF(Selection!$B$4="DE",VLOOKUP($A22,'Style navne sprog'!$A:$I,2,FALSE),IF(Selection!$B$4="GB",VLOOKUP($A22,'Style navne sprog'!$A:$I,4,FALSE),IF(Selection!$B$4="SE",VLOOKUP($A22,'Style navne sprog'!$A:$I,3,FALSE),IF(Selection!$B$4="NO",VLOOKUP($A22,'Style navne sprog'!$A:$I,5,FALSE),IF(Selection!$B$4="PL",VLOOKUP($A22,'Style navne sprog'!$A:$I,7,FALSE))))))) -> T-TIME® T-shirt | chest pocket | C22: 12.6 | D22: 11.95 | E22: 3XL | F22: 1.4
A23: 0552 | B23: =IF(Selection!$B$4="DK",VLOOKUP($A23,'Style navne sprog'!$A:$I,6,FALSE),IF(Selection!$B$4="DE",VLOOKUP($A23,'Style navne sprog'!$A:$I,2,FALSE),IF(Selection!$B$4="GB",VLOOKUP($A23,'Style navne sprog'!$A:$I,4,FALSE),IF(Selection!$B$4="SE",VLOOKUP($A23,'Style navne sprog'!$A:$I,3,FALSE),IF(Selection!$B$4="NO",VLOOKUP($A23,'Style navne sprog'!$A:$I,5,FALSE),IF(Selection!$B$4="PL",VLOOKUP($A23,'Style navne sprog'!$A:$I,7,FALSE))))))) -> T-shirt | organic | C23: 12 | D23: 11.35 | E23: 3XL-4XL | F23: 1.4
A24: 0553 | B24: =IF(Selection!$B$4="DK",VLOOKUP($A24,'Style navne sprog'!$A:$I,6,FALSE),IF(Selection!$B$4="DE",VLOOKUP($A24,'Style navne sprog'!$A:$I,2,FALSE),IF(Selection!$B$4="GB",VLOOKUP($A24,'Style navne sprog'!$A:$I,4,FALSE),IF(Selection!$B$4="SE",VLOOKUP($A24,'Style navne sprog'!$A:$I,3,FALSE),IF(Selection!$B$4="NO",VLOOKUP($A24,'Style navne sprog'!$A:$I,5,FALSE),IF(Selection!$B$4="PL",VLOOKUP($A24,'Style navne sprog'!$A:$I,7,FALSE))))))) -> T-shirt | organic | women | C24: 12 | D24: 11.35 | E24: 3XL | F24: 1.4
A25: 0594 | B25: =IF(Selection!$B$4="DK",VLOOKUP($A25,'Style navne sprog'!$A:$I,6,FALSE),IF(Selection!$B$4="DE",VLOOKUP($A25,'Style navne sprog'!$A:$I,2,FALSE),IF(Selection!$B$4="GB",VLOOKUP($A25,'Style navne sprog'!$A:$I,4,FALSE),IF(Selection!$B$4="SE",VLOOKUP($A25,'Style navne sprog'!$A:$I,3,FALSE),IF(Selection!$B$4="NO",VLOOKUP($A25,'Style navne sprog'!$A:$I,5,FALSE),IF(Selection!$B$4="PL",VLOOKUP($A25,'Style navne sprog'!$A:$I,7,FALSE))))))) -> Stretch T-shirt | comfort | C25: 14.05 | D25: 13.35 | E25: 3XL | F25: 1.4
A26: 0595 | B26: =IF(Selection!$B$4="DK",VLOOKUP($A26,'Style navne sprog'!$A:$I,6,FALSE),IF(Selection!$B$4="DE",VLOOKUP($A26,'Style navne sprog'!$A:$I,2,FALSE),IF(Selection!$B$4="GB",VLOOKUP($A26,'Style navne sprog'!$A:$I,4,FALSE),IF(Selection!$B$4="SE",VLOOKUP($A26,'Style navne sprog'!$A:$I,3,FALSE),IF(Selection!$B$4="NO",VLOOKUP($A26,'Style navne sprog'!$A:$I,5,FALSE),IF(Selection!$B$4="PL",VLOOKUP($A26,'Style navne sprog'!$A:$I,7,FALSE))))))) -> Stretch T-shirt | comfort | women | C26: 14.05 | D26: 13.35 | E26: 3XL | F26: 1.4
A27: 0597 | B27: =IF(Selection!$B$4="DK",VLOOKUP($A27,'Style navne sprog'!$A:$I,6,FALSE),IF(Selection!$B$4="DE",VLOOKUP($A27,'Style navne sprog'!$A:$I,2,FALSE),IF(Selection!$B$4="GB",VLOOKUP($A27,'Style navne sprog'!$A:$I,4,FALSE),IF(Selection!$B$4="SE",VLOOKUP($A27,'Style navne sprog'!$A:$I,3,FALSE),IF(Selection!$B$4="NO",VLOOKUP($A27,'Style navne sprog'!$A:$I,5,FALSE),IF(Selection!$B$4="PL",VLOOKUP($A27,'Style navne sprog'!$A:$I,7,FALSE))))))) -> Stretch T-shirt | ¾ sleeved | women | C27: 18.65 | D27: 18 | E27: 3XL | F27: 1.4
A28: 0598 | B28: =IF(Selection!$B$4="DK",VLOOKUP($A28,'Style navne sprog'!$A:$I,6,FALSE),IF(Selection!$B$4="DE",VLOOKUP($A28,'Style navne sprog'!$A:$I,2,FALSE),IF(Selection!$B$4="GB",VLOOKUP($A28,'Style navne sprog'!$A:$I,4,FALSE),IF(Selection!$B$4="SE",VLOOKUP($A28,'Style navne sprog'!$A:$I,3,FALSE),IF(Selection!$B$4="NO",VLOOKUP($A28,'Style navne sprog'!$A:$I,5,FALSE),IF(Selection!$B$4="PL",VLOOKUP($A28,'Style navne sprog'!$A:$I,7,FALSE))))))) -> Tank top | stretch | C28: 13.3 | D28: 12.6 | E28: 3XL | F28: 1.4
A29: 0599 | B29: =IF(Selection!$B$4="DK",VLOOKUP($A29,'Style navne sprog'!$A:$I,6,FALSE),IF(Selection!$B$4="DE",VLOOKUP($A29,'Style navne sprog'!$A:$I,2,FALSE),IF(Selection!$B$4="GB",VLOOKUP($A29,'Style navne sprog'!$A:$I,4,FALSE),IF(Selection!$B$4="SE",VLOOKUP($A29,'Style navne sprog'!$A:$I,3,FALSE),IF(Selection!$B$4="NO",VLOOKUP($A29,'Style navne sprog'!$A:$I,5,FALSE),IF(Selection!$B$4="PL",VLOOKUP($A29,'Style navne sprog'!$A:$I,7,FALSE))))))) -> Tank top | stretch | women | C29: 13.3 | D29: 12.6 | E29: 3XL | F29: 1.4
A30: 2000 | B30: =IF(Selection!$B$4="DK",VLOOKUP($A30,'Style navne sprog'!$A:$I,6,FALSE),IF(Selection!$B$4="DE",VLOOKUP($A30,'Style navne sprog'!$A:$I,2,FALSE),IF(Selection!$B$4="GB",VLOOKUP($A30,'Style navne sprog'!$A:$I,4,FALSE),IF(Selection!$B$4="SE",VLOOKUP($A30,'Style navne sprog'!$A:$I,3,FALSE),IF(Selection!$B$4="NO",VLOOKUP($A30,'Style navne sprog'!$A:$I,5,FALSE),IF(Selection!$B$4="PL",VLOOKUP($A30,'Style navne sprog'!$A:$I,7,FALSE))))))) -> YES T-shirt | C30: 7 | D30: 6.3 | E30: 3XL | F30: 1.4
A31: 2030 | B31: =IF(Selection!$B$4="DK",VLOOKUP($A31,'Style navne sprog'!$A:$I,6,FALSE),IF(Selection!$B$4="DE",VLOOKUP($A31,'Style navne sprog'!$A:$I,2,FALSE),IF(Selection!$B$4="GB",VLOOKUP($A31,'Style navne sprog'!$A:$I,4,FALSE),IF(Selection!$B$4="SE",VLOOKUP($A31,'Style navne sprog'!$A:$I,3,FALSE),IF(Selection!$B$4="NO",VLOOKUP($A31,'Style navne sprog'!$A:$I,5,FALSE),IF(Selection!$B$4="PL",VLOOKUP($A31,'Style navne sprog'!$A:$I,7,FALSE))))))) -> YES Active T-shirt | C31: 10.6 | D31: 9.95 | E31: 3XL | F31: 1.4
A32: 2032 | B32: =IF(Selection!$B$4="DK",VLOOKUP($A32,'Style navne sprog'!$A:$I,6,FALSE),IF(Selection!$B$4="DE",VLOOKUP($A32,'Style navne sprog'!$A:$I,2,FALSE),IF(Selection!$B$4="GB",VLOOKUP($A32,'Style navne sprog'!$A:$I,4,FALSE),IF(Selection!$B$4="SE",VLOOKUP($A32,'Style navne sprog'!$A:$I,3,FALSE),IF(Selection!$B$4="NO",VLOOKUP($A32,'Style navne sprog'!$A:$I,5,FALSE),IF(Selection!$B$4="PL",VLOOKUP($A32,'Style navne sprog'!$A:$I,7,FALSE))))))) -> YES Active T-shirt | women | C32: 10.6 | D32: 9.95 | E32: 3XL | F32: 1.4
A34: =IF(Selection!$B$4="PL","KOSZULKI POLO",IF(Selection!$B$4="SE","PIKÉ TRÖJOR",IF(Selection!$B$4="GB","POLO SHIRTS",IF(Selection!$B$4="NO","POLOSKJORTER","POLOSHIRTS")))) -> POLO SHIRTS
A35: 0520 | B35: =IF(Selection!$B$4="DK",VLOOKUP($A35,'Style navne sprog'!$A:$I,6,FALSE),IF(Selection!$B$4="DE",VLOOKUP($A35,'Style navne sprog'!$A:$I,2,FALSE),IF(Selection!$B$4="GB",VLOOKUP($A35,'Style navne sprog'!$A:$I,4,FALSE),IF(Selection!$B$4="SE",VLOOKUP($A35,'Style navne sprog'!$A:$I,3,FALSE),IF(Selection!$B$4="NO",VLOOKUP($A35,'Style navne sprog'!$A:$I,5,FALSE),IF(Selection!$B$4="PL",VLOOKUP($A35,'Style navne sprog'!$A:$I,7,FALSE))))))) -> Polo shirt classic | C35: 22.4 | D35: 21.05 | E35: 3XL-6XL | F35: 2.7
A36: 0521 | B36: =IF(Selection!$B$4="DK",VLOOKUP($A36,'Style navne sprog'!$A:$I,6,FALSE),IF(Selection!$B$4="DE",VLOOKUP($A36,'Style navne sprog'!$A:$I,2,FALSE),IF(Selection!$B$4="GB",VLOOKUP($A36,'Style navne sprog'!$A:$I,4,FALSE),IF(Selection!$B$4="SE",VLOOKUP($A36,'Style navne sprog'!$A:$I,3,FALSE),IF(Selection!$B$4="NO",VLOOKUP($A36,'Style navne sprog'!$A:$I,5,FALSE),IF(Selection!$B$4="PL",VLOOKUP($A36,'Style navne sprog'!$A:$I,7,FALSE))))))) -> Polo shirt classic | women | C36: 22.4 | D36: 21.05 | E36: 3XL | F36: 2.7
A37: 0522 | B37: =IF(Selection!$B$4="DK",VLOOKUP($A37,'Style navne sprog'!$A:$I,6,FALSE),IF(Selection!$B$4="DE",VLOOKUP($A37,'Style navne sprog'!$A:$I,2,FALSE),IF(Selection!$B$4="GB",VLOOKUP($A37,'Style navne sprog'!$A:$I,4,FALSE),IF(Selection!$B$4="SE",VLOOKUP($A37,'Style navne sprog'!$A:$I,3,FALSE),IF(Selection!$B$4="NO",VLOOKUP($A37,'Style navne sprog'!$A:$I,5,FALSE),IF(Selection!$B$4="PL",VLOOKUP($A37,'Style navne sprog'!$A:$I,7,FALSE))))))) -> Contrast polo shirt | stretch | C37: 26.3 | D37: 24.95 | E37: 3XL-4XL | F37: 2.7
A38: 0523 | B38: =IF(Selection!$B$4="DK",VLOOKUP($A38,'Style navne sprog'!$A:$I,6,FALSE),IF(Selection!$B$4="DE",VLOOKUP($A38,'Style navne sprog'!$A:$I,2,FALSE),IF(Selection!$B$4="GB",VLOOKUP($A38,'Style navne sprog'!$A:$I,4,FALSE),IF(Selection!$B$4="SE",VLOOKUP($A38,'Style navne sprog'!$A:$I,3,FALSE),IF(Selection!$B$4="NO",VLOOKUP($A38,'Style navne sprog'!$A:$I,5,FALSE),IF(Selection!$B$4="PL",VLOOKUP($A38,'Style navne sprog'!$A:$I,7,FALSE))))))) -> Contrast polo shirt | stretch | women | C38: 26.3 | D38: 24.95 | E38: 3XL-4XL | F38: 2.7
A39: 0525 | B39: =IF(Selection!$B$4="DK",VLOOKUP($A39,'Style navne sprog'!$A:$I,6,FALSE),IF(Selection!$B$4="DE",VLOOKUP($A39,'Style navne sprog'!$A:$I,2,FALSE),IF(Selection!$B$4="GB",VLOOKUP($A39,'Style navne sprog'!$A:$I,4,FALSE),IF(Selection!$B$4="SE",VLOOKUP($A39,'Style navne sprog'!$A:$I,3,FALSE),IF(Selection!$B$4="NO",VLOOKUP($A39,'Style navne sprog'!$A:$I,5,FALSE),IF(Selection!$B$4="PL",VLOOKUP($A39,'Style navne sprog'!$A:$I,7,FALSE))))))) -> Polo shirt | stretch | C39: 24.35 | D39: 23 | E39: 3XL-6XL | F39: 2.7
A40: 0527 | B40: =IF(Selection!$B$4="DK",VLOOKUP($A40,'Style navne sprog'!$A:$I,6,FALSE),IF(Selection!$B$4="DE",VLOOKUP($A40,'Style navne sprog'!$A:$I,2,FALSE),IF(Selection!$B$4="GB",VLOOKUP($A40,'Style navne sprog'!$A:$I,4,FALSE),IF(Selection!$B$4="SE",VLOOKUP($A40,'Style navne sprog'!$A:$I,3,FALSE),IF(Selection!$B$4="NO",VLOOKUP($A40,'Style navne sprog'!$A:$I,5,FALSE),IF(Selection!$B$4="PL",VLOOKUP($A40,'Style navne sprog'!$A:$I,7,FALSE))))))) -> Polo shirt | stretch | women | C40: 24.35 | D40: 23 | E40: 3XL-6XL | F40: 2.7
A41: 0534 | B41: =IF(Selection!$B$4="DK",VLOOKUP($A41,'Style navne sprog'!$A:$I,6,FALSE),IF(Selection!$B$4="DE",VLOOKUP($A41,'Style navne sprog'!$A:$I,2,FALSE),IF(Selection!$B$4="GB",VLOOKUP($A41,'Style navne sprog'!$A:$I,4,FALSE),IF(Selection!$B$4="SE",VLOOKUP($A41,'Style navne sprog'!$A:$I,3,FALSE),IF(Selection!$B$4="NO",VLOOKUP($A41,'Style navne sprog'!$A:$I,5,FALSE),IF(Selection!$B$4="PL",VLOOKUP($A41,'Style navne sprog'!$A:$I,7,FALSE))))))) -> Business polo shirt | jersey | C41: 32.15 | E41: 3XL-4XL | F41: 2.7
A42: 0535 | B42: =IF(Selection!$B$4="DK",VLOOKUP($A42,'Style navne sprog'!$A:$I,6,FALSE),IF(Selection!$B$4="DE",VLOOKUP($A42,'Style navne sprog'!$A:$I,2,FALSE),IF(Selection!$B$4="GB",VLOOKUP($A42,'Style navne sprog'!$A:$I,4,FALSE),IF(Selection!$B$4="SE",VLOOKUP($A42,'Style navne sprog'!$A:$I,3,FALSE),IF(Selection!$B$4="NO",VLOOKUP($A42,'Style navne sprog'!$A:$I,5,FALSE),IF(Selection!$B$4="PL",VLOOKUP($A42,'Style navne sprog'!$A:$I,7,FALSE))))))) -> Business polo shirt | jersey | women | C42: 32.15 | E42: 3XL | F42: 2.7
A43: 0544 | B43: =IF(Selection!$B$4="DK",VLOOKUP($A43,'Style navne sprog'!$A:$I,6,FALSE),IF(Selection!$B$4="DE",VLOOKUP($A43,'Style navne sprog'!$A:$I,2,FALSE),IF(Selection!$B$4="GB",VLOOKUP($A43,'Style navne sprog'!$A:$I,4,FALSE),IF(Selection!$B$4="SE",VLOOKUP($A43,'Style navne sprog'!$A:$I,3,FALSE),IF(Selection!$B$4="NO",VLOOKUP($A43,'Style navne sprog'!$A:$I,5,FALSE),IF(Selection!$B$4="PL",VLOOKUP($A43,'Style navne sprog'!$A:$I,7,FALSE))))))) -> Long-sleeved polo shirt | stretch | C43: 27.65 | D43: 26.3 | E43: 3XL-6XL | F43: 2.7
A44: 0545 | B44: =IF(Selection!$B$4="DK",VLOOKUP($A44,'Style navne sprog'!$A:$I,6,FALSE),IF(Selection!$B$4="DE",VLOOKUP($A44,'Style navne sprog'!$A:$I,2,FALSE),IF(Selection!$B$4="GB",VLOOKUP($A44,'Style navne sprog'!$A:$I,4,FALSE),IF(Selection!$B$4="SE",VLOOKUP($A44,'Style navne sprog'!$A:$I,3,FALSE),IF(Selection!$B$4="NO",VLOOKUP($A44,'Style navne sprog'!$A:$I,5,FALSE),IF(Selection!$B$4="PL",VLOOKUP($A44,'Style navne sprog'!$A:$I,7,FALSE))))))) -> Long-sleeved polo shirt | stretch | women | C44: 27.65 | D44: 26.3 | E44: 3XL-6XL | F44: 2.7
A45: 0572 | B45: =IF(Selection!$B$4="DK",VLOOKUP($A45,'Style navne sprog'!$A:$I,6,FALSE),IF(Selection!$B$4="DE",VLOOKUP($A45,'Style navne sprog'!$A:$I,2,FALSE),IF(Selection!$B$4="GB",VLOOKUP($A45,'Style navne sprog'!$A:$I,4,FALSE),IF(Selection!$B$4="SE",VLOOKUP($A45,'Style navne sprog'!$A:$I,3,FALSE),IF(Selection!$B$4="NO",VLOOKUP($A45,'Style navne sprog'!$A:$I,5,FALSE),IF(Selection!$B$4="PL",VLOOKUP($A45,'Style navne sprog'!$A:$I,7,FALSE))))))) -> Polo shirt I active | C45: 33.4 | E45: 3XL-4XL | F45: 2.7
A46: 0573 | B46: =IF(Selection!$B$4="DK",VLOOKUP($A46,'Style navne sprog'!$A:$I,6,FALSE),IF(Selection!$B$4="DE",VLOOKUP($A46,'Style navne sprog'!$A:$I,2,FALSE),IF(Selection!$B$4="GB",VLOOKUP($A46,'Style navne sprog'!$A:$I,4,FALSE),IF(Selection!$B$4="SE",VLOOKUP($A46,'Style navne sprog'!$A:$I,3,FALSE),IF(Selection!$B$4="NO",VLOOKUP($A46,'Style navne sprog'!$A:$I,5,FALSE),IF(Selection!$B$4="PL",VLOOKUP($A46,'Style navne sprog'!$A:$I,7,FALSE))))))) -> Polo shirt | active | women | C46: 33.4 | E46: 3XL-4XL | F46: 2.7
A47: 0586 | B47: =IF(Selection!$B$4="DK",VLOOKUP($A47,'Style navne sprog'!$A:$I,6,FALSE),IF(Selection!$B$4="DE",VLOOKUP($A47,'Style navne sprog'!$A:$I,2,FALSE),IF(Selection!$B$4="GB",VLOOKUP($A47,'Style navne sprog'!$A:$I,4,FALSE),IF(Selection!$B$4="SE",VLOOKUP($A47,'Style navne sprog'!$A:$I,3,FALSE),IF(Selection!$B$4="NO",VLOOKUP($A47,'Style navne sprog'!$A:$I,5,FALSE),IF(Selection!$B$4="PL",VLOOKUP($A47,'Style navne sprog'!$A:$I,7,FALSE))))))) -> Polo shirt | organic | C47: 29.95 | D47: 28.6 | E47: 3XL-4XL | F47: 2.7
A48: 0587 | B48: =IF(Selection!$B$4="DK",VLOOKUP($A48,'Style navne sprog'!$A:$I,6,FALSE),IF(Selection!$B$4="DE",VLOOKUP($A48,'Style navne sprog'!$A:$I,2,FALSE),IF(Selection!$B$4="GB",VLOOKUP($A48,'Style navne sprog'!$A:$I,4,FALSE),IF(Selection!$B$4="SE",VLOOKUP($A48,'Style navne sprog'!$A:$I,3,FALSE),IF(Selection!$B$4="NO",VLOOKUP($A48,'Style navne sprog'!$A:$I,5,FALSE),IF(Selection!$B$4="PL",VLOOKUP($A48,'Style navne sprog'!$A:$I,7,FALSE))))))) -> Polo shirt | organic | women | C48: 29.95 | D48: 28.6 | E48: 3XL | F48: 2.7
A49: 2020 | B49: =IF(Selection!$B$4="DK",VLOOKUP($A49,'Style navne sprog'!$A:$I,6,FALSE),IF(Selection!$B$4="DE",VLOOKUP($A49,'Style navne sprog'!$A:$I,2,FALSE),IF(Selection!$B$4="GB",VLOOKUP($A49,'Style navne sprog'!$A:$I,4,FALSE),IF(Selection!$B$4="SE",VLOOKUP($A49,'Style navne sprog'!$A:$I,3,FALSE),IF(Selection!$B$4="NO",VLOOKUP($A49,'Style navne sprog'!$A:$I,5,FALSE),IF(Selection!$B$4="PL",VLOOKUP($A49,'Style navne sprog'!$A:$I,7,FALSE))))))) -> YES polo shirt | C49: 16.15 | E49: 3XL | F49: 2.7
A51: =IF(Selection!$B$4="PL","BLUZY","SWEAT") -> SWEAT
A52: 0600 | B52: =IF(Selection!$B$4="DK",VLOOKUP($A52,'Style navne sprog'!$A:$I,6,FALSE),IF(Selection!$B$4="DE",VLOOKUP($A52,'Style navne sprog'!$A:$I,2,FALSE),IF(Selection!$B$4="GB",VLOOKUP($A52,'Style navne sprog'!$A:$I,4,FALSE),IF(Selection!$B$4="SE",VLOOKUP($A52,'Style navne sprog'!$A:$I,3,FALSE),IF(Selection!$B$4="NO",VLOOKUP($A52,'Style navne sprog'!$A:$I,5,FALSE),IF(Selection!$B$4="PL",VLOOKUP($A52,'Style navne sprog'!$A:$I,7,FALSE))))))) -> Sweatshirt | classic | C52: 28.65 | D52: 27.3 | E52: 3XL-6XL | F52: 2.7
A53: 0601 | B53: =IF(Selection!$B$4="DK",VLOOKUP($A53,'Style navne sprog'!$A:$I,6,FALSE),IF(Selection!$B$4="DE",VLOOKUP($A53,'Style navne sprog'!$A:$I,2,FALSE),IF(Selection!$B$4="GB",VLOOKUP($A53,'Style navne sprog'!$A:$I,4,FALSE),IF(Selection!$B$4="SE",VLOOKUP($A53,'Style navne sprog'!$A:$I,3,FALSE),IF(Selection!$B$4="NO",VLOOKUP($A53,'Style navne sprog'!$A:$I,5,FALSE),IF(Selection!$B$4="PL",VLOOKUP($A53,'Style navne sprog'!$A:$I,7,FALSE))))))) -> Polo sweatshirt | classic | C53: 33.85 | E53: 3XL-4XL | F53: 2.7
A54: 0603 | B54: =IF(Selection!$B$4="DK",VLOOKUP($A54,'Style navne sprog'!$A:$I,6,FALSE),IF(Selection!$B$4="DE",VLOOKUP($A54,'Style navne sprog'!$A:$I,2,FALSE),IF(Selection!$B$4="GB",VLOOKUP($A54,'Style navne sprog'!$A:$I,4,FALSE),IF(Selection!$B$4="SE",VLOOKUP($A54,'Style navne sprog'!$A:$I,3,FALSE),IF(Selection!$B$4="NO",VLOOKUP($A54,'Style navne sprog'!$A:$I,5,FALSE),IF(Selection!$B$4="PL",VLOOKUP($A54,'Style navne sprog'!$A:$I,7,FALSE))))))) -> Sweatshirt | zip | C54: 44.25 | E54: 3XL | F54: 2.7
A55: 0604 | B55: =IF(Selection!$B$4="DK",VLOOKUP($A55,'Style navne sprog'!$A:$I,6,FALSE),IF(Selection!$B$4="DE",VLOOKUP($A55,'Style navne sprog'!$A:$I,2,FALSE),IF(Selection!$B$4="GB",VLOOKUP($A55,'Style navne sprog'!$A:$I,4,FALSE),IF(Selection!$B$4="SE",VLOOKUP($A55,'Style navne sprog'!$A:$I,3,FALSE),IF(Selection!$B$4="NO",VLOOKUP($A55,'Style navne sprog'!$A:$I,5,FALSE),IF(Selection!$B$4="PL",VLOOKUP($A55,'Style navne sprog'!$A:$I,7,FALSE))))))) -> Classic sweatshirt | cotton | C55: 29.85 | E55: 3XL-4XL | F55: 2.7
A56: 0613 | B56: =IF(Selection!$B$4="DK",VLOOKUP($A56,'Style navne sprog'!$A:$I,6,FALSE),IF(Selection!$B$4="DE",VLOOKUP($A56,'Style navne sprog'!$A:$I,2,FALSE),IF(Selection!$B$4="GB",VLOOKUP($A56,'Style navne sprog'!$A:$I,4,FALSE),IF(Selection!$B$4="SE",VLOOKUP($A56,'Style navne sprog'!$A:$I,3,FALSE),IF(Selection!$B$4="NO",VLOOKUP($A56,'Style navne sprog'!$A:$I,5,FALSE),IF(Selection!$B$4="PL",VLOOKUP($A56,'Style navne sprog'!$A:$I,7,FALSE))))))) -> Sweatshirt | business | C56: 42.8 | E56: 3XL | F56: 2.7
A57: 0622 | B57: =IF(Selection!$B$4="DK",VLOOKUP($A57,'Style navne sprog'!$A:$I,6,FALSE),IF(Selection!$B$4="DE",VLOOKUP($A57,'Style navne sprog'!$A:$I,2,FALSE),IF(Selection!$B$4="GB",VLOOKUP($A57,'Style navne sprog'!$A:$I,4,FALSE),IF(Selection!$B$4="SE",VLOOKUP($A57,'Style navne sprog'!$A:$I,3,FALSE),IF(Selection!$B$4="NO",VLOOKUP($A57,'Style navne sprog'!$A:$I,5,FALSE),IF(Selection!$B$4="PL",VLOOKUP($A57,'Style navne sprog'!$A:$I,7,FALSE))))))) -> Sweat cardigan | C57: 48.6 | E57: 3XL | F57: 2.7
A58: 0624 | B58: =IF(Selection!$B$4="DK",VLOOKUP($A58,'Style navne sprog'!$A:$I,6,FALSE),IF(Selection!$B$4="DE",VLOOKUP($A58,'Style navne sprog'!$A:$I,2,FALSE),IF(Selection!$B$4="GB",VLOOKUP($A58,'Style navne sprog'!$A:$I,4,FALSE),IF(Selection!$B$4="SE",VLOOKUP($A58,'Style navne sprog'!$A:$I,3,FALSE),IF(Selection!$B$4="NO",VLOOKUP($A58,'Style navne sprog'!$A:$I,5,FALSE),IF(Selection!$B$4="PL",VLOOKUP($A58,'Style navne sprog'!$A:$I,7,FALSE))))))) -> Sweat cardigan | women | C58: 48.6 | E58: 3XL | F58: 2.7
A59: 0626 | B59: =IF(Selection!$B$4="DK",VLOOKUP($A59,'Style navne sprog'!$A:$I,6,FALSE),IF(Selection!$B$4="DE",VLOOKUP($A59,'Style navne sprog'!$A:$I,2,FALSE),IF(Selection!$B$4="GB",VLOOKUP($A59,'Style navne sprog'!$A:$I,4,FALSE),IF(Selection!$B$4="SE",VLOOKUP($A59,'Style navne sprog'!$A:$I,3,FALSE),IF(Selection!$B$4="NO",VLOOKUP($A59,'Style navne sprog'!$A:$I,5,FALSE),IF(Selection!$B$4="PL",VLOOKUP($A59,'Style navne sprog'!$A:$I,7,FALSE))))))) -> Sweat cardigan | contrast | C59: 60.25 | E59: 3XL | F59: 2.7
A60: 0627 | B60: =IF(Selection!$B$4="DK",VLOOKUP($A60,'Style navne sprog'!$A:$I,6,FALSE),IF(Selection!$B$4="DE",VLOOKUP($A60,'Style navne sprog'!$A:$I,2,FALSE),IF(Selection!$B$4="GB",VLOOKUP($A60,'Style navne sprog'!$A:$I,4,FALSE),IF(Selection!$B$4="SE",VLOOKUP($A60,'Style navne sprog'!$A:$I,3,FALSE),IF(Selection!$B$4="NO",VLOOKUP($A60,'Style navne sprog'!$A:$I,5,FALSE),IF(Selection!$B$4="PL",VLOOKUP($A60,'Style navne sprog'!$A:$I,7,FALSE))))))) -> Sweat cardigan | contrast | women | C60: 60.25 | E60: 3XL | F60: 2.7
A61: 0628 | B61: =IF(Selection!$B$4="DK",VLOOKUP($A61,'Style navne sprog'!$A:$I,6,FALSE),IF(Selection!$B$4="DE",VLOOKUP($A61,'Style navne sprog'!$A:$I,2,FALSE),IF(Selection!$B$4="GB",VLOOKUP($A61,'Style navne sprog'!$A:$I,4,FALSE),IF(Selection!$B$4="SE",VLOOKUP($A61,'Style navne sprog'!$A:$I,3,FALSE),IF(Selection!$B$4="NO",VLOOKUP($A61,'Style navne sprog'!$A:$I,5,FALSE),IF(Selection!$B$4="PL",VLOOKUP($A61,'Style navne sprog'!$A:$I,7,FALSE))))))) -> Sweat cardigan | zip | C61: 49.45 | E61: 3XL-4XL | F61: 2.7
A62: 0629 | B62: =IF(Selection!$B$4="DK",VLOOKUP($A62,'Style navne sprog'!$A:$I,6,FALSE),IF(Selection!$B$4="DE",VLOOKUP($A62,'Style navne sprog'!$A:$I,2,FALSE),IF(Selection!$B$4="GB",VLOOKUP($A62,'Style navne sprog'!$A:$I,4,FALSE),IF(Selection!$B$4="SE",VLOOKUP($A62,'Style navne sprog'!$A:$I,3,FALSE),IF(Selection!$B$4="NO",VLOOKUP($A62,'Style navne sprog'!$A:$I,5,FALSE),IF(Selection!$B$4="PL",VLOOKUP($A62,'Style navne sprog'!$A:$I,7,FALSE))))))) -> Sweat cardigan | zip | women | C62: 49.45 | E62: 3XL-4XL | F62: 2.7
A63: 0630 | B63: =IF(Selection!$B$4="DK",VLOOKUP($A63,'Style navne sprog'!$A:$I,6,FALSE),IF(Selection!$B$4="DE",VLOOKUP($A63,'Style navne sprog'!$A:$I,2,FALSE),IF(Selection!$B$4="GB",VLOOKUP($A63,'Style navne sprog'!$A:$I,4,FALSE),IF(Selection!$B$4="SE",VLOOKUP($A63,'Style navne sprog'!$A:$I,3,FALSE),IF(Selection!$B$4="NO",VLOOKUP($A63,'Style navne sprog'!$A:$I,5,FALSE),IF(Selection!$B$4="PL",VLOOKUP($A63,'Style navne sprog'!$A:$I,7,FALSE))))))) -> Sweat cardigan | bonded | C63: 80.55 | E63: 3XL | F63: 2.7
A64: 0636 | B64: =IF(Selection!$B$4="DK",VLOOKUP($A64,'Style navne sprog'!$A:$I,6,FALSE),IF(Selection!$B$4="DE",VLOOKUP($A64,'Style navne sprog'!$A:$I,2,FALSE),IF(Selection!$B$4="GB",VLOOKUP($A64,'Style navne sprog'!$A:$I,4,FALSE),IF(Selection!$B$4="SE",VLOOKUP($A64,'Style navne sprog'!$A:$I,3,FALSE),IF(Selection!$B$4="NO",VLOOKUP($A64,'Style navne sprog'!$A:$I,5,FALSE),IF(Selection!$B$4="PL",VLOOKUP($A64,'Style navne sprog'!$A:$I,7,FALSE))))))) -> CORE hoodie | C64: 35.45 | E64: 3XL-6XL | F64: 2.7
A65: 0637 | B65: =IF(Selection!$B$4="DK",VLOOKUP($A65,'Style navne sprog'!$A:$I,6,FALSE),IF(Selection!$B$4="DE",VLOOKUP($A65,'Style navne sprog'!$A:$I,2,FALSE),IF(Selection!$B$4="GB",VLOOKUP($A65,'Style navne sprog'!$A:$I,4,FALSE),IF(Selection!$B$4="SE",VLOOKUP($A65,'Style navne sprog'!$A:$I,3,FALSE),IF(Selection!$B$4="NO",VLOOKUP($A65,'Style navne sprog'!$A:$I,5,FALSE),IF(Selection!$B$4="PL",VLOOKUP($A65,'Style navne sprog'!$A:$I,7,FALSE))))))) -> CORE hoodie | women | C65: 35.45 | E65: 3XL | F65: 2.7
A66: 0638 | B66: =IF(Selection!$B$4="DK",VLOOKUP($A66,'Style navne sprog'!$A:$I,6,FALSE),IF(Selection!$B$4="DE",VLOOKUP($A66,'Style navne sprog'!$A:$I,2,FALSE),IF(Selection!$B$4="GB",VLOOKUP($A66,'Style navne sprog'!$A:$I,4,FALSE),IF(Selection!$B$4="SE",VLOOKUP($A66,'Style navne sprog'!$A:$I,3,FALSE),IF(Selection!$B$4="NO",VLOOKUP($A66,'Style navne sprog'!$A:$I,5,FALSE),IF(Selection!$B$4="PL",VLOOKUP($A66,'Style navne sprog'!$A:$I,7,FALSE))))))) -> CORE hoodie | zip | C66: 44.25 | E66: 3XL-6XL | F66: 2.7
A67: 0639 | B67: =IF(Selection!$B$4="DK",VLOOKUP($A67,'Style navne sprog'!$A:$I,6,FALSE),IF(Selection!$B$4="DE",VLOOKUP($A67,'Style navne sprog'!$A:$I,2,FALSE),IF(Selection!$B$4="GB",VLOOKUP($A67,'Style navne sprog'!$A:$I,4,FALSE),IF(Selection!$B$4="SE",VLOOKUP($A67,'Style navne sprog'!$A:$I,3,FALSE),IF(Selection!$B$4="NO",VLOOKUP($A67,'Style navne sprog'!$A:$I,5,FALSE),IF(Selection!$B$4="PL",VLOOKUP($A67,'Style navne sprog'!$A:$I,7,FALSE))))))) -> CORE hoodie | zip | women | C67: 44.25 | E67: 3XL | F67: 2.7
A68: 0660 | B68: =IF(Selection!$B$4="DK",VLOOKUP($A68,'Style navne sprog'!$A:$I,6,FALSE),IF(Selection!$B$4="DE",VLOOKUP($A68,'Style navne sprog'!$A:$I,2,FALSE),IF(Selection!$B$4="GB",VLOOKUP($A68,'Style navne sprog'!$A:$I,4,FALSE),IF(Selection!$B$4="SE",VLOOKUP($A68,'Style navne sprog'!$A:$I,3,FALSE),IF(Selection!$B$4="NO",VLOOKUP($A68,'Style navne sprog'!$A:$I,5,FALSE),IF(Selection!$B$4="PL",VLOOKUP($A68,'Style navne sprog'!$A:$I,7,FALSE))))))) -> Soft hoodie | kangaroo pocket | unisex | C68: 26.7 | E68: 3XL-4XL | F68: 2.7
A69: 0682 | B69: =IF(Selection!$B$4="DK",VLOOKUP($A69,'Style navne sprog'!$A:$I,6,FALSE),IF(Selection!$B$4="DE",VLOOKUP($A69,'Style navne sprog'!$A:$I,2,FALSE),IF(Selection!$B$4="GB",VLOOKUP($A69,'Style navne sprog'!$A:$I,4,FALSE),IF(Selection!$B$4="SE",VLOOKUP($A69,'Style navne sprog'!$A:$I,3,FALSE),IF(Selection!$B$4="NO",VLOOKUP($A69,'Style navne sprog'!$A:$I,5,FALSE),IF(Selection!$B$4="PL",VLOOKUP($A69,'Style navne sprog'!$A:$I,7,FALSE))))))) -> Sweatshirt | organic | C69: 34.05 | E69: 3XL-4XL | F69: 2.7
A70: 0683 | B70: =IF(Selection!$B$4="DK",VLOOKUP($A70,'Style navne sprog'!$A:$I,6,FALSE),IF(Selection!$B$4="DE",VLOOKUP($A70,'Style navne sprog'!$A:$I,2,FALSE),IF(Selection!$B$4="GB",VLOOKUP($A70,'Style navne sprog'!$A:$I,4,FALSE),IF(Selection!$B$4="SE",VLOOKUP($A70,'Style navne sprog'!$A:$I,3,FALSE),IF(Selection!$B$4="NO",VLOOKUP($A70,'Style navne sprog'!$A:$I,5,FALSE),IF(Selection!$B$4="PL",VLOOKUP($A70,'Style navne sprog'!$A:$I,7,FALSE))))))) -> Sweatshirt | organic | women | C70: 34.05 | E70: 3XL | F70: 2.7
A72: PRO WEAR
A73: 0300 | B73: =IF(Selection!$B$4="DK",VLOOKUP($A73,'Style navne sprog'!$A:$I,6,FALSE),IF(Selection!$B$4="DE",VLOOKUP($A73,'Style navne sprog'!$A:$I,2,FALSE),IF(Selection!$B$4="GB",VLOOKUP($A73,'Style navne sprog'!$A:$I,4,FALSE),IF(Selection!$B$4="SE",VLOOKUP($A73,'Style navne sprog'!$A:$I,3,FALSE),IF(Selection!$B$4="NO",VLOOKUP($A73,'Style navne sprog'!$A:$I,5,FALSE),IF(Selection!$B$4="PL",VLOOKUP($A73,'Style navne sprog'!$A:$I,7,FALSE))))))) -> PRO Wear T-shirt | C73: 14.3 | D73: 13.5 | E73: 3XL-6XL | F73: 1.4
A74: 0302 | B74: =IF(Selection!$B$4="DK",VLOOKUP($A74,'Style navne sprog'!$A:$I,6,FALSE),IF(Selection!$B$4="DE",VLOOKUP($A74,'Style navne sprog'!$A:$I,2,FALSE),IF(Selection!$B$4="GB",VLOOKUP($A74,'Style navne sprog'!$A:$I,4,FALSE),IF(Selection!$B$4="SE",VLOOKUP($A74,'Style navne sprog'!$A:$I,3,FALSE),IF(Selection!$B$4="NO",VLOOKUP($A74,'Style navne sprog'!$A:$I,5,FALSE),IF(Selection!$B$4="PL",VLOOKUP($A74,'Style navne sprog'!$A:$I,7,FALSE))))))) -> PRO Wear T-shirt | contrast | C74: 17.2 | D74: 16.4 | E74: 3XL-6XL | F74: 1.4
A75: 0310 | B75: =IF(Selection!$B$4="DK",VLOOKUP($A75,'Style navne sprog'!$A:$I,6,FALSE),IF(Selection!$B$4="DE",VLOOKUP($A75,'Style navne sprog'!$A:$I,2,FALSE),IF(Selection!$B$4="GB",VLOOKUP($A75,'Style navne sprog'!$A:$I,4,FALSE),IF(Selection!$B$4="SE",VLOOKUP($A75,'Style navne sprog'!$A:$I,3,FALSE),IF(Selection!$B$4="NO",VLOOKUP($A75,'Style navne sprog'!$A:$I,5,FALSE),IF(Selection!$B$4="PL",VLOOKUP($A75,'Style navne sprog'!$A:$I,7,FALSE))))))) -> PRO Wear T-shirt | light | C75: 13.15 | D75: 12.35 | E75: 3XL-6XL | F75: 1.4
A76: 0311 | B76: =IF(Selection!$B$4="DK",VLOOKUP($A76,'Style navne sprog'!$A:$I,6,FALSE),IF(Selection!$B$4="DE",VLOOKUP($A76,'Style navne sprog'!$A:$I,2,FALSE),IF(Selection!$B$4="GB",VLOOKUP($A76,'Style navne sprog'!$A:$I,4,FALSE),IF(Selection!$B$4="SE",VLOOKUP($A76,'Style navne sprog'!$A:$I,3,FALSE),IF(Selection!$B$4="NO",VLOOKUP($A76,'Style navne sprog'!$A:$I,5,FALSE),IF(Selection!$B$4="PL",VLOOKUP($A76,'Style navne sprog'!$A:$I,7,FALSE))))))) -> PRO Wear T-shirt | long-sleeved | C76: 18.5 | D76: 17.7 | E76: 3XL-6XL | F76: 1.4
A77: 0312 | B77: =IF(Selection!$B$4="DK",VLOOKUP($A77,'Style navne sprog'!$A:$I,6,FALSE),IF(Selection!$B$4="DE",VLOOKUP($A77,'Style navne sprog'!$A:$I,2,FALSE),IF(Selection!$B$4="GB",VLOOKUP($A77,'Style navne sprog'!$A:$I,4,FALSE),IF(Selection!$B$4="SE",VLOOKUP($A77,'Style navne sprog'!$A:$I,3,FALSE),IF(Selection!$B$4="NO",VLOOKUP($A77,'Style navne sprog'!$A:$I,5,FALSE),IF(Selection!$B$4="PL",VLOOKUP($A77,'Style navne sprog'!$A:$I,7,FALSE))))))) -> PRO Wear T-shirt | women | C77: 14.3 | D77: 13.5 | E77: 3XL-6XL | F77: 1.4
A78: 0313 | B78: =IF(Selection!$B$4="DK",VLOOKUP($A78,'Style navne sprog'!$A:$I,6,FALSE),IF(Selection!$B$4="DE",VLOOKUP($A78,'Style navne sprog'!$A:$I,2,FALSE),IF(Selection!$B$4="GB",VLOOKUP($A78,'Style navne sprog'!$A:$I,4,FALSE),IF(Selection!$B$4="SE",VLOOKUP($A78,'Style navne sprog'!$A:$I,3,FALSE),IF(Selection!$B$4="NO",VLOOKUP($A78,'Style navne sprog'!$A:$I,5,FALSE),IF(Selection!$B$4="PL",VLOOKUP($A78,'Style navne sprog'!$A:$I,7,FALSE))))))) -> PRO Wear T-shirt | ¾ sleeve | women | C78: 15.95 | D78: 15.15 | E78: 3XL-6XL | F78: 1.4
A79: 0315 | B79: =IF(Selection!$B$4="DK",VLOOKUP($A79,'Style navne sprog'!$A:$I,6,FALSE),IF(Selection!$B$4="DE",VLOOKUP($A79,'Style navne sprog'!$A:$I,2,FALSE),IF(Selection!$B$4="GB",VLOOKUP($A79,'Style navne sprog'!$A:$I,4,FALSE),IF(Selection!$B$4="SE",VLOOKUP($A79,'Style navne sprog'!$A:$I,3,FALSE),IF(Selection!$B$4="NO",VLOOKUP($A79,'Style navne sprog'!$A:$I,5,FALSE),IF(Selection!$B$4="PL",VLOOKUP($A79,'Style navne sprog'!$A:$I,7,FALSE))))))) -> PRO Wear T-shirt | ½ sleeve | women | C79: 15.3 | D79: 14.5 | E79: 3XL-6XL | F79: 1.4
A80: 0317 | B80: =IF(Selection!$B$4="DK",VLOOKUP($A80,'Style navne sprog'!$A:$I,6,FALSE),IF(Selection!$B$4="DE",VLOOKUP($A80,'Style navne sprog'!$A:$I,2,FALSE),IF(Selection!$B$4="GB",VLOOKUP($A80,'Style navne sprog'!$A:$I,4,FALSE),IF(Selection!$B$4="SE",VLOOKUP($A80,'Style navne sprog'!$A:$I,3,FALSE),IF(Selection!$B$4="NO",VLOOKUP($A80,'Style navne sprog'!$A:$I,5,FALSE),IF(Selection!$B$4="PL",VLOOKUP($A80,'Style navne sprog'!$A:$I,7,FALSE))))))) -> PRO Wear T-shirt | light | women | C80: 13.15 | D80: 12.35 | E80: 3XL-6XL | F80: 1.4
A81: 0320 | B81: =IF(Selection!$B$4="DK",VLOOKUP($A81,'Style navne sprog'!$A:$I,6,FALSE),IF(Selection!$B$4="DE",VLOOKUP($A81,'Style navne sprog'!$A:$I,2,FALSE),IF(Selection!$B$4="GB",VLOOKUP($A81,'Style navne sprog'!$A:$I,4,FALSE),IF(Selection!$B$4="SE",VLOOKUP($A81,'Style navne sprog'!$A:$I,3,FALSE),IF(Selection!$B$4="NO",VLOOKUP($A81,'Style navne sprog'!$A:$I,5,FALSE),IF(Selection!$B$4="PL",VLOOKUP($A81,'Style navne sprog'!$A:$I,7,FALSE))))))) -> PRO Wear polo shirt | pocket | C81: 27.8 | D81: 26.15 | E81: 3XL-6XL | F81: 2.7
A82: 0321 | B82: =IF(Selection!$B$4="DK",VLOOKUP($A82,'Style navne sprog'!$A:$I,6,FALSE),IF(Selection!$B$4="DE",VLOOKUP($A82,'Style navne sprog'!$A:$I,2,FALSE),IF(Selection!$B$4="GB",VLOOKUP($A82,'Style navne sprog'!$A:$I,4,FALSE),IF(Selection!$B$4="SE",VLOOKUP($A82,'Style navne sprog'!$A:$I,3,FALSE),IF(Selection!$B$4="NO",VLOOKUP($A82,'Style navne sprog'!$A:$I,5,FALSE),IF(Selection!$B$4="PL",VLOOKUP($A82,'Style navne sprog'!$A:$I,7,FALSE))))))) -> PRO Wear polo shirt | women | C82: 27.8 | D82: 26.15 | E82: 3XL-6XL | F82: 2.7
A83: 0322 | B83: =IF(Selection!$B$4="DK",VLOOKUP($A83,'Style navne sprog'!$A:$I,6,FALSE),IF(Selection!$B$4="DE",VLOOKUP($A83,'Style navne sprog'!$A:$I,2,FALSE),IF(Selection!$B$4="GB",VLOOKUP($A83,'Style navne sprog'!$A:$I,4,FALSE),IF(Selection!$B$4="SE",VLOOKUP($A83,'Style navne sprog'!$A:$I,3,FALSE),IF(Selection!$B$4="NO",VLOOKUP($A83,'Style navne sprog'!$A:$I,5,FALSE),IF(Selection!$B$4="PL",VLOOKUP($A83,'Style navne sprog'!$A:$I,7,FALSE))))))) -> PRO Wear polo shirt | contrast | C83: 31.75 | D83: 30.15 | E83: 3XL-6XL | F83: 2.7
A84: 0324 | B84: =IF(Selection!$B$4="DK",VLOOKUP($A84,'Style navne sprog'!$A:$I,6,FALSE),IF(Selection!$B$4="DE",VLOOKUP($A84,'Style navne sprog'!$A:$I,2,FALSE),IF(Selection!$B$4="GB",VLOOKUP($A84,'Style navne sprog'!$A:$I,4,FALSE),IF(Selection!$B$4="SE",VLOOKUP($A84,'Style navne sprog'!$A:$I,3,FALSE),IF(Selection!$B$4="NO",VLOOKUP($A84,'Style navne sprog'!$A:$I,5,FALSE),IF(Selection!$B$4="PL",VLOOKUP($A84,'Style navne sprog'!$A:$I,7,FALSE))))))) -> PRO Wear polo shirt | no pocket | C84: 27.8 | D84: 26.15 | E84: 3XL-6XL | F84: 2.7
A85: 0326 | B85: =IF(Selection!$B$4="DK",VLOOKUP($A85,'Style navne sprog'!$A:$I,6,FALSE),IF(Selection!$B$4="DE",VLOOKUP($A85,'Style navne sprog'!$A:$I,2,FALSE),IF(Selection!$B$4="GB",VLOOKUP($A85,'Style navne sprog'!$A:$I,4,FALSE),IF(Selection!$B$4="SE",VLOOKUP($A85,'Style navne sprog'!$A:$I,3,FALSE),IF(Selection!$B$4="NO",VLOOKUP($A85,'Style navne sprog'!$A:$I,5,FALSE),IF(Selection!$B$4="PL",VLOOKUP($A85,'Style navne sprog'!$A:$I,7,FALSE))))))) -> PRO Wear polo shirt | long-sleeve | C85: 31.75 | D85: 30.15 | E85: 3XL-6XL | F85: 2.7
A86: 0330 | B86: =IF(Selection!$B$4="DK",VLOOKUP($A86,'Style navne sprog'!$A:$I,6,FALSE),IF(Selection!$B$4="DE",VLOOKUP($A86,'Style navne sprog'!$A:$I,2,FALSE),IF(Selection!$B$4="GB",VLOOKUP($A86,'Style navne sprog'!$A:$I,4,FALSE),IF(Selection!$B$4="SE",VLOOKUP($A86,'Style navne sprog'!$A:$I,3,FALSE),IF(Selection!$B$4="NO",VLOOKUP($A86,'Style navne sprog'!$A:$I,5,FALSE),IF(Selection!$B$4="PL",VLOOKUP($A86,'Style navne sprog'!$A:$I,7,FALSE))))))) -> PRO Wear polo shirt | press stud | C86: 27.8 | D86: 26.15 | E86: 3XL-6XL | F86: 2.7
A87: 0336 | B87: =IF(Selection!$B$4="DK",VLOOKUP($A87,'Style navne sprog'!$A:$I,6,FALSE),IF(Selection!$B$4="DE",VLOOKUP($A87,'Style navne sprog'!$A:$I,2,FALSE),IF(Selection!$B$4="GB",VLOOKUP($A87,'Style navne sprog'!$A:$I,4,FALSE),IF(Selection!$B$4="SE",VLOOKUP($A87,'Style navne sprog'!$A:$I,3,FALSE),IF(Selection!$B$4="NO",VLOOKUP($A87,'Style navne sprog'!$A:$I,5,FALSE),IF(Selection!$B$4="PL",VLOOKUP($A87,'Style navne sprog'!$A:$I,7,FALSE))))))) -> PRO Wear long-sleeve polo shirt | press stud | C87: 31.75 | D87: 30.15 | E87: 3XL-6XL | F87: 2.7
A88: 0360 | B88: =IF(Selection!$B$4="DK",VLOOKUP($A88,'Style navne sprog'!$A:$I,6,FALSE),IF(Selection!$B$4="DE",VLOOKUP($A88,'Style navne sprog'!$A:$I,2,FALSE),IF(Selection!$B$4="GB",VLOOKUP($A88,'Style navne sprog'!$A:$I,4,FALSE),IF(Selection!$B$4="SE",VLOOKUP($A88,'Style navne sprog'!$A:$I,3,FALSE),IF(Selection!$B$4="NO",VLOOKUP($A88,'Style navne sprog'!$A:$I,5,FALSE),IF(Selection!$B$4="PL",VLOOKUP($A88,'Style navne sprog'!$A:$I,7,FALSE))))))) -> PRO Wear sweatshirt | classic | C88: 35.75 | D88: 34.15 | E88: 3XL-6XL | F88: 2.7
A89: 0362 | B89: =IF(Selection!$B$4="DK",VLOOKUP($A89,'Style navne sprog'!$A:$I,6,FALSE),IF(Selection!$B$4="DE",VLOOKUP($A89,'Style navne sprog'!$A:$I,2,FALSE),IF(Selection!$B$4="GB",VLOOKUP($A89,'Style navne sprog'!$A:$I,4,FALSE),IF(Selection!$B$4="SE",VLOOKUP($A89,'Style navne sprog'!$A:$I,3,FALSE),IF(Selection!$B$4="NO",VLOOKUP($A89,'Style navne sprog'!$A:$I,5,FALSE),IF(Selection!$B$4="PL",VLOOKUP($A89,'Style navne sprog'!$A:$I,7,FALSE))))))) -> PRO Wear sweatshirt | contrast | C89: 39.8 | D89: 38.2 | E89: 3XL-6XL | F89: 2.7
A90: 0366 | B90: =IF(Selection!$B$4="DK",VLOOKUP($A90,'Style navne sprog'!$A:$I,6,FALSE),IF(Selection!$B$4="DE",VLOOKUP($A90,'Style navne sprog'!$A:$I,2,FALSE),IF(Selection!$B$4="GB",VLOOKUP($A90,'Style navne sprog'!$A:$I,4,FALSE),IF(Selection!$B$4="SE",VLOOKUP($A90,'Style navne sprog'!$A:$I,3,FALSE),IF(Selection!$B$4="NO",VLOOKUP($A90,'Style navne sprog'!$A:$I,5,FALSE),IF(Selection!$B$4="PL",VLOOKUP($A90,'Style navne sprog'!$A:$I,7,FALSE))))))) -> PRO Wear cardigan | sweat | C90: 56.7 | E90: 3XL-6XL | F90: 2.7
A91: 0367 | B91: =IF(Selection!$B$4="DK",VLOOKUP($A91,'Style navne sprog'!$A:$I,6,FALSE),IF(Selection!$B$4="DE",VLOOKUP($A91,'Style navne sprog'!$A:$I,2,FALSE),IF(Selection!$B$4="GB",VLOOKUP($A91,'Style navne sprog'!$A:$I,4,FALSE),IF(Selection!$B$4="SE",VLOOKUP($A91,'Style navne sprog'!$A:$I,3,FALSE),IF(Selection!$B$4="NO",VLOOKUP($A91,'Style navne sprog'!$A:$I,5,FALSE),IF(Selection!$B$4="PL",VLOOKUP($A91,'Style navne sprog'!$A:$I,7,FALSE))))))) -> PRO Wear cardigan | sweat | women | C91: 56.7 | E91: 3XL-6XL | F91: 2.7
A92: 0370 | B92: =IF(Selection!$B$4="DK",VLOOKUP($A92,'Style navne sprog'!$A:$I,6,FALSE),IF(Selection!$B$4="DE",VLOOKUP($A92,'Style navne sprog'!$A:$I,2,FALSE),IF(Selection!$B$4="GB",VLOOKUP($A92,'Style navne sprog'!$A:$I,4,FALSE),IF(Selection!$B$4="SE",VLOOKUP($A92,'Style navne sprog'!$A:$I,3,FALSE),IF(Selection!$B$4="NO",VLOOKUP($A92,'Style navne sprog'!$A:$I,5,FALSE),IF(Selection!$B$4="PL",VLOOKUP($A92,'Style navne sprog'!$A:$I,7,FALSE))))))) -> PRO Wear CARE T-shirt | C92: 15.85 | D92: 15.05 | E92: 3XL-6XL | F92: 1.4
A93: 0371 | B93: =IF(Selection!$B$4="DK",VLOOKUP($A93,'Style navne sprog'!$A:$I,6,FALSE),IF(Selection!$B$4="DE",VLOOKUP($A93,'Style navne sprog'!$A:$I,2,FALSE),IF(Selection!$B$4="GB",VLOOKUP($A93,'Style navne sprog'!$A:$I,4,FALSE),IF(Selection!$B$4="SE",VLOOKUP($A93,'Style navne sprog'!$A:$I,3,FALSE),IF(Selection!$B$4="NO",VLOOKUP($A93,'Style navne sprog'!$A:$I,5,FALSE),IF(Selection!$B$4="PL",VLOOKUP($A93,'Style navne sprog'!$A:$I,7,FALSE))))))) -> PRO Wear CARE T-shirt | women | C93: 15.85 | D93: 15.05 | E93: 3XL-6XL | F93: 1.4
A94: 0372 | B94: =IF(Selection!$B$4="DK",VLOOKUP($A94,'Style navne sprog'!$A:$I,6,FALSE),IF(Selection!$B$4="DE",VLOOKUP($A94,'Style navne sprog'!$A:$I,2,FALSE),IF(Selection!$B$4="GB",VLOOKUP($A94,'Style navne sprog'!$A:$I,4,FALSE),IF(Selection!$B$4="SE",VLOOKUP($A94,'Style navne sprog'!$A:$I,3,FALSE),IF(Selection!$B$4="NO",VLOOKUP($A94,'Style navne sprog'!$A:$I,5,FALSE),IF(Selection!$B$4="PL",VLOOKUP($A94,'Style navne sprog'!$A:$I,7,FALSE))))))) -> PRO Wear CARE T-shirt | v-neck | C94: 15.85 | D94: 15.05 | E94: 3XL-6XL | F94: 1.4
A95: 0373 | B95: =IF(Selection!$B$4="DK",VLOOKUP($A95,'Style navne sprog'!$A:$I,6,FALSE),IF(Selection!$B$4="DE",VLOOKUP($A95,'Style navne sprog'!$A:$I,2,FALSE),IF(Selection!$B$4="GB",VLOOKUP($A95,'Style navne sprog'!$A:$I,4,FALSE),IF(Selection!$B$4="SE",VLOOKUP($A95,'Style navne sprog'!$A:$I,3,FALSE),IF(Selection!$B$4="NO",VLOOKUP($A95,'Style navne sprog'!$A:$I,5,FALSE),IF(Selection!$B$4="PL",VLOOKUP($A95,'Style navne sprog'!$A:$I,7,FALSE))))))) -> PRO Wear CARE T-shirt | v-neck | women | C95: 15.85 | D95: 15.05 | E95: 3XL-6XL | F95: 1.4
A96: 0374 | B96: =IF(Selection!$B$4="DK",VLOOKUP($A96,'Style navne sprog'!$A:$I,6,FALSE),IF(Selection!$B$4="DE",VLOOKUP($A96,'Style navne sprog'!$A:$I,2,FALSE),IF(Selection!$B$4="GB",VLOOKUP($A96,'Style navne sprog'!$A:$I,4,FALSE),IF(Selection!$B$4="SE",VLOOKUP($A96,'Style navne sprog'!$A:$I,3,FALSE),IF(Selection!$B$4="NO",VLOOKUP($A96,'Style navne sprog'!$A:$I,5,FALSE),IF(Selection!$B$4="PL",VLOOKUP($A96,'Style navne sprog'!$A:$I,7,FALSE))))))) -> PRO Wear CARE polo shirt | C96: 30.6 | D96: 29 | E96: 3XL-6XL | F96: 2.7
A97: 0375 | B97: =IF(Selection!$B$4="DK",VLOOKUP($A97,'Style navne sprog'!$A:$I,6,FALSE),IF(Selection!$B$4="DE",VLOOKUP($A97,'Style navne sprog'!$A:$I,2,FALSE),IF(Selection!$B$4="GB",VLOOKUP($A97,'Style navne sprog'!$A:$I,4,FALSE),IF(Selection!$B$4="SE",VLOOKUP($A97,'Style navne sprog'!$A:$I,3,FALSE),IF(Selection!$B$4="NO",VLOOKUP($A97,'Style navne sprog'!$A:$I,5,FALSE),IF(Selection!$B$4="PL",VLOOKUP($A97,'Style navne sprog'!$A:$I,7,FALSE))))))) -> PRO Wear CARE polo shirt | women | C97: 30.6 | D97: 29 | E97: 3XL-6XL | F97: 2.7
A98: 0376 | B98: =IF(Selection!$B$4="DK",VLOOKUP($A98,'Style navne sprog'!$A:$I,6,FALSE),IF(Selection!$B$4="DE",VLOOKUP($A98,'Style navne sprog'!$A:$I,2,FALSE),IF(Selection!$B$4="GB",VLOOKUP($A98,'Style navne sprog'!$A:$I,4,FALSE),IF(Selection!$B$4="SE",VLOOKUP($A98,'Style navne sprog'!$A:$I,3,FALSE),IF(Selection!$B$4="NO",VLOOKUP($A98,'Style navne sprog'!$A:$I,5,FALSE),IF(Selection!$B$4="PL",VLOOKUP($A98,'Style navne sprog'!$A:$I,7,FALSE))))))) -> PRO Wear CARE polo shirt | classic | C98: 29 | D98: 27.4 | E98: 3XL-6XL | F98: 2.7
A99: 0377 | B99: =IF(Selection!$B$4="DK",VLOOKUP($A99,'Style navne sprog'!$A:$I,6,FALSE),IF(Selection!$B$4="DE",VLOOKUP($A99,'Style navne sprog'!$A:$I,2,FALSE),IF(Selection!$B$4="GB",VLOOKUP($A99,'Style navne sprog'!$A:$I,4,FALSE),IF(Selection!$B$4="SE",VLOOKUP($A99,'Style navne sprog'!$A:$I,3,FALSE),IF(Selection!$B$4="NO",VLOOKUP($A99,'Style navne sprog'!$A:$I,5,FALSE),IF(Selection!$B$4="PL",VLOOKUP($A99,'Style navne sprog'!$A:$I,7,FALSE))))))) -> PRO Wear CARE polo shirt | classic | women | C99: 29 | D99: 27.4 | E99: 3XL-6XL | F99: 2.7
A100: 0380 | B100: =IF(Selection!$B$4="DK",VLOOKUP($A100,'Style navne sprog'!$A:$I,6,FALSE),IF(Selection!$B$4="DE",VLOOKUP($A100,'Style navne sprog'!$A:$I,2,FALSE),IF(Selection!$B$4="GB",VLOOKUP($A100,'Style navne sprog'!$A:$I,4,FALSE),IF(Selection!$B$4="SE",VLOOKUP($A100,'Style navne sprog'!$A:$I,3,FALSE),IF(Selection!$B$4="NO",VLOOKUP($A100,'Style navne sprog'!$A:$I,5,FALSE),IF(Selection!$B$4="PL",VLOOKUP($A100,'Style navne sprog'!$A:$I,7,FALSE))))))) -> PRO Wear CARE sweatshirt | unbrushed | C100: 36.1 | D100: 34.5 | E100: 3XL-6XL | F100: 2.7
A101: 0381 | B101: =IF(Selection!$B$4="DK",VLOOKUP($A101,'Style navne sprog'!$A:$I,6,FALSE),IF(Selection!$B$4="DE",VLOOKUP($A101,'Style navne sprog'!$A:$I,2,FALSE),IF(Selection!$B$4="GB",VLOOKUP($A101,'Style navne sprog'!$A:$I,4,FALSE),IF(Selection!$B$4="SE",VLOOKUP($A101,'Style navne sprog'!$A:$I,3,FALSE),IF(Selection!$B$4="NO",VLOOKUP($A101,'Style navne sprog'!$A:$I,5,FALSE),IF(Selection!$B$4="PL",VLOOKUP($A101,'Style navne sprog'!$A:$I,7,FALSE))))))) -> PRO Wear CARE sweatshirt | unbrushed | women | C101: 36.1 | D101: 34.5 | E101: 3XL-6XL | F101: 2.7
A102: 0382 | B102: =IF(Selection!$B$4="DK",VLOOKUP($A102,'Style navne sprog'!$A:$I,6,FALSE),IF(Selection!$B$4="DE",VLOOKUP($A102,'Style navne sprog'!$A:$I,2,FALSE),IF(Selection!$B$4="GB",VLOOKUP($A102,'Style navne sprog'!$A:$I,4,FALSE),IF(Selection!$B$4="SE",VLOOKUP($A102,'Style navne sprog'!$A:$I,3,FALSE),IF(Selection!$B$4="NO",VLOOKUP($A102,'Style navne sprog'!$A:$I,5,FALSE),IF(Selection!$B$4="PL",VLOOKUP($A102,'Style navne sprog'!$A:$I,7,FALSE))))))) -> PRO Wear CARE cardigan | unbrushed | C102: 57.65 | E102: 3XL-6XL | F102: 2.7
A103: 0383 | B103: =IF(Selection!$B$4="DK",VLOOKUP($A103,'Style navne sprog'!$A:$I,6,FALSE),IF(Selection!$B$4="DE",VLOOKUP($A103,'Style navne sprog'!$A:$I,2,FALSE),IF(Selection!$B$4="GB",VLOOKUP($A103,'Style navne sprog'!$A:$I,4,FALSE),IF(Selection!$B$4="SE",VLOOKUP($A103,'Style navne sprog'!$A:$I,3,FALSE),IF(Selection!$B$4="NO",VLOOKUP($A103,'Style navne sprog'!$A:$I,5,FALSE),IF(Selection!$B$4="PL",VLOOKUP($A103,'Style navne sprog'!$A:$I,7,FALSE))))))) -> PRO Wear CARE cardigan | unbrushed | women | C103: 57.65 | E103: 3XL-6XL | F103: 2.7
A104: 0384 | B104: =IF(Selection!$B$4="DK",VLOOKUP($A104,'Style navne sprog'!$A:$I,6,FALSE),IF(Selection!$B$4="DE",VLOOKUP($A104,'Style navne sprog'!$A:$I,2,FALSE),IF(Selection!$B$4="GB",VLOOKUP($A104,'Style navne sprog'!$A:$I,4,FALSE),IF(Selection!$B$4="SE",VLOOKUP($A104,'Style navne sprog'!$A:$I,3,FALSE),IF(Selection!$B$4="NO",VLOOKUP($A104,'Style navne sprog'!$A:$I,5,FALSE),IF(Selection!$B$4="PL",VLOOKUP($A104,'Style navne sprog'!$A:$I,7,FALSE))))))) -> PRO Wear CARE sweat | unbrushed | ¼ zip | C104: 52.3 | E104: 3XL-6XL | F104: 2.7
A105: 0385 | B105: =IF(Selection!$B$4="DK",VLOOKUP($A105,'Style navne sprog'!$A:$I,6,FALSE),IF(Selection!$B$4="DE",VLOOKUP($A105,'Style navne sprog'!$A:$I,2,FALSE),IF(Selection!$B$4="GB",VLOOKUP($A105,'Style navne sprog'!$A:$I,4,FALSE),IF(Selection!$B$4="SE",VLOOKUP($A105,'Style navne sprog'!$A:$I,3,FALSE),IF(Selection!$B$4="NO",VLOOKUP($A105,'Style navne sprog'!$A:$I,5,FALSE),IF(Selection!$B$4="PL",VLOOKUP($A105,'Style navne sprog'!$A:$I,7,FALSE))))))) -> PRO Wear CARE sweat | unbrushed | ¼ zip | women | C105: 52.3 | E105: 3XL-6XL | F105: 2.7
A107: =IF(Selection!$B$4="PL","KOSZULE",IF(Selection!$B$4="SE","SKJORTOR",IF(Selection!$B$4="GB","SHIRTS",IF(Selection!$B$4="DE","HEMDEN & BLUSEN","SKJORTER")))) -> SHIRTS
A108: 0204 | B108: =IF(Selection!$B$4="DK",VLOOKUP($A108,'Style navne sprog'!$A:$I,6,FALSE),IF(Selection!$B$4="DE",VLOOKUP($A108,'Style navne sprog'!$A:$I,2,FALSE),IF(Selection!$B$4="GB",VLOOKUP($A108,'Style navne sprog'!$A:$I,4,FALSE),IF(Selection!$B$4="SE",VLOOKUP($A108,'Style navne sprog'!$A:$I,3,FALSE),IF(Selection!$B$4="NO",VLOOKUP($A108,'Style navne sprog'!$A:$I,5,FALSE),IF(Selection!$B$4="PL",VLOOKUP($A108,'Style navne sprog'!$A:$I,7,FALSE))))))) -> Green leaf shirt | press stud | C108: 38 | E108: 47/48-49/50 | F108: 2.7
A110: =IF(Selection!$B$4="PL","ODZIEZ Z POLARU","FLEECE") -> FLEECE
A111: 0744 | B111: =IF(Selection!$B$4="DK",VLOOKUP($A111,'Style navne sprog'!$A:$I,6,FALSE),IF(Selection!$B$4="DE",VLOOKUP($A111,'Style navne sprog'!$A:$I,2,FALSE),IF(Selection!$B$4="GB",VLOOKUP($A111,'Style navne sprog'!$A:$I,4,FALSE),IF(Selection!$B$4="SE",VLOOKUP($A111,'Style navne sprog'!$A:$I,3,FALSE),IF(Selection!$B$4="NO",VLOOKUP($A111,'Style navne sprog'!$A:$I,5,FALSE),IF(Selection!$B$4="PL",VLOOKUP($A111,'Style navne sprog'!$A:$I,7,FALSE))))))) -> Bonded fleece jacket | C111: 64.3 | E111: 3XL-4XL | F111: 4
A112: 0745 | B112: =IF(Selection!$B$4="DK",VLOOKUP($A112,'Style navne sprog'!$A:$I,6,FALSE),IF(Selection!$B$4="DE",VLOOKUP($A112,'Style navne sprog'!$A:$I,2,FALSE),IF(Selection!$B$4="GB",VLOOKUP($A112,'Style navne sprog'!$A:$I,4,FALSE),IF(Selection!$B$4="SE",VLOOKUP($A112,'Style navne sprog'!$A:$I,3,FALSE),IF(Selection!$B$4="NO",VLOOKUP($A112,'Style navne sprog'!$A:$I,5,FALSE),IF(Selection!$B$4="PL",VLOOKUP($A112,'Style navne sprog'!$A:$I,7,FALSE))))))) -> Bonded fleece jacket | women | C112: 64.3 | E112: 3XL-4XL | F112: 4
A113: 0746 | B113: =IF(Selection!$B$4="DK",VLOOKUP($A113,'Style navne sprog'!$A:$I,6,FALSE),IF(Selection!$B$4="DE",VLOOKUP($A113,'Style navne sprog'!$A:$I,2,FALSE),IF(Selection!$B$4="GB",VLOOKUP($A113,'Style navne sprog'!$A:$I,4,FALSE),IF(Selection!$B$4="SE",VLOOKUP($A113,'Style navne sprog'!$A:$I,3,FALSE),IF(Selection!$B$4="NO",VLOOKUP($A113,'Style navne sprog'!$A:$I,5,FALSE),IF(Selection!$B$4="PL",VLOOKUP($A113,'Style navne sprog'!$A:$I,7,FALSE))))))) -> Bonded fleece vest | C113: 53.55 | E113: 3XL-4XL | F113: 4
A114: 0747 | B114: =IF(Selection!$B$4="DK",VLOOKUP($A114,'Style navne sprog'!$A:$I,6,FALSE),IF(Selection!$B$4="DE",VLOOKUP($A114,'Style navne sprog'!$A:$I,2,FALSE),IF(Selection!$B$4="GB",VLOOKUP($A114,'Style navne sprog'!$A:$I,4,FALSE),IF(Selection!$B$4="SE",VLOOKUP($A114,'Style navne sprog'!$A:$I,3,FALSE),IF(Selection!$B$4="NO",VLOOKUP($A114,'Style navne sprog'!$A:$I,5,FALSE),IF(Selection!$B$4="PL",VLOOKUP($A114,'Style navne sprog'!$A:$I,7,FALSE))))))) -> Bonded fleece vest | women | C114: 53.55 | E114: 3XL-4XL | F114: 4
A115: 0792 | B115: =IF(Selection!$B$4="DK",VLOOKUP($A115,'Style navne sprog'!$A:$I,6,FALSE),IF(Selection!$B$4="DE",VLOOKUP($A115,'Style navne sprog'!$A:$I,2,FALSE),IF(Selection!$B$4="GB",VLOOKUP($A115,'Style navne sprog'!$A:$I,4,FALSE),IF(Selection!$B$4="SE",VLOOKUP($A115,'Style navne sprog'!$A:$I,3,FALSE),IF(Selection!$B$4="NO",VLOOKUP($A115,'Style navne sprog'!$A:$I,5,FALSE),IF(Selection!$B$4="PL",VLOOKUP($A115,'Style navne sprog'!$A:$I,7,FALSE))))))) -> Zip-n-Mix microfleece | reflective | C115: 61.6 | E115: 3XL-6XL | F115: 4
A116: 0793 | B116: =IF(Selection!$B$4="DK",VLOOKUP($A116,'Style navne sprog'!$A:$I,6,FALSE),IF(Selection!$B$4="DE",VLOOKUP($A116,'Style navne sprog'!$A:$I,2,FALSE),IF(Selection!$B$4="GB",VLOOKUP($A116,'Style navne sprog'!$A:$I,4,FALSE),IF(Selection!$B$4="SE",VLOOKUP($A116,'Style navne sprog'!$A:$I,3,FALSE),IF(Selection!$B$4="NO",VLOOKUP($A116,'Style navne sprog'!$A:$I,5,FALSE),IF(Selection!$B$4="PL",VLOOKUP($A116,'Style navne sprog'!$A:$I,7,FALSE))))))) -> Zip-n-Mix microfleece | reflective | women | C116: 61.6 | E116: 3XL-6XL | F116: 4
A117: 0803 | B117: =IF(Selection!$B$4="DK",VLOOKUP($A117,'Style navne sprog'!$A:$I,6,FALSE),IF(Selection!$B$4="DE",VLOOKUP($A117,'Style navne sprog'!$A:$I,2,FALSE),IF(Selection!$B$4="GB",VLOOKUP($A117,'Style navne sprog'!$A:$I,4,FALSE),IF(Selection!$B$4="SE",VLOOKUP($A117,'Style navne sprog'!$A:$I,3,FALSE),IF(Selection!$B$4="NO",VLOOKUP($A117,'Style navne sprog'!$A:$I,5,FALSE),IF(Selection!$B$4="PL",VLOOKUP($A117,'Style navne sprog'!$A:$I,7,FALSE))))))) -> Cardigan | microfleece | C117: 38.85 | E117: 3XL-5XL | F117: 4
A118: 0805 | B118: =IF(Selection!$B$4="DK",VLOOKUP($A118,'Style navne sprog'!$A:$I,6,FALSE),IF(Selection!$B$4="DE",VLOOKUP($A118,'Style navne sprog'!$A:$I,2,FALSE),IF(Selection!$B$4="GB",VLOOKUP($A118,'Style navne sprog'!$A:$I,4,FALSE),IF(Selection!$B$4="SE",VLOOKUP($A118,'Style navne sprog'!$A:$I,3,FALSE),IF(Selection!$B$4="NO",VLOOKUP($A118,'Style navne sprog'!$A:$I,5,FALSE),IF(Selection!$B$4="PL",VLOOKUP($A118,'Style navne sprog'!$A:$I,7,FALSE))))))) -> Cardigan | microfleece | women | C118: 38.85 | E118: 3XL | F118: 4
A119: 0806 | B119: =IF(Selection!$B$4="DK",VLOOKUP($A119,'Style navne sprog'!$A:$I,6,FALSE),IF(Selection!$B$4="DE",VLOOKUP($A119,'Style navne sprog'!$A:$I,2,FALSE),IF(Selection!$B$4="GB",VLOOKUP($A119,'Style navne sprog'!$A:$I,4,FALSE),IF(Selection!$B$4="SE",VLOOKUP($A119,'Style navne sprog'!$A:$I,3,FALSE),IF(Selection!$B$4="NO",VLOOKUP($A119,'Style navne sprog'!$A:$I,5,FALSE),IF(Selection!$B$4="PL",VLOOKUP($A119,'Style navne sprog'!$A:$I,7,FALSE))))))) -> Zip-n-Mix microfleece | C119: 38.85 | E119: 3XL-4XL | F119: 4
A120: 0807 | B120: =IF(Selection!$B$4="DK",VLOOKUP($A120,'Style navne sprog'!$A:$I,6,FALSE),IF(Selection!$B$4="DE",VLOOKUP($A120,'Style navne sprog'!$A:$I,2,FALSE),IF(Selection!$B$4="GB",VLOOKUP($A120,'Style navne sprog'!$A:$I,4,FALSE),IF(Selection!$B$4="SE",VLOOKUP($A120,'Style navne sprog'!$A:$I,3,FALSE),IF(Selection!$B$4="NO",VLOOKUP($A120,'Style navne sprog'!$A:$I,5,FALSE),IF(Selection!$B$4="PL",VLOOKUP($A120,'Style navne sprog'!$A:$I,7,FALSE))))))) -> Zip-n-Mix microfleece | women | C120: 38.85 | E120: 3XL | F120: 4
A121: 0808 | B121: =IF(Selection!$B$4="DK",VLOOKUP($A121,'Style navne sprog'!$A:$I,6,FALSE),IF(Selection!$B$4="DE",VLOOKUP($A121,'Style navne sprog'!$A:$I,2,FALSE),IF(Selection!$B$4="GB",VLOOKUP($A121,'Style navne sprog'!$A:$I,4,FALSE),IF(Selection!$B$4="SE",VLOOKUP($A121,'Style navne sprog'!$A:$I,3,FALSE),IF(Selection!$B$4="NO",VLOOKUP($A121,'Style navne sprog'!$A:$I,5,FALSE),IF(Selection!$B$4="PL",VLOOKUP($A121,'Style navne sprog'!$A:$I,7,FALSE))))))) -> Fleece tunic | unisex | C121: 33.5 | E121: 3XL-6XL | F121: 4
A122: 0809 | B122: =IF(Selection!$B$4="DK",VLOOKUP($A122,'Style navne sprog'!$A:$I,6,FALSE),IF(Selection!$B$4="DE",VLOOKUP($A122,'Style navne sprog'!$A:$I,2,FALSE),IF(Selection!$B$4="GB",VLOOKUP($A122,'Style navne sprog'!$A:$I,4,FALSE),IF(Selection!$B$4="SE",VLOOKUP($A122,'Style navne sprog'!$A:$I,3,FALSE),IF(Selection!$B$4="NO",VLOOKUP($A122,'Style navne sprog'!$A:$I,5,FALSE),IF(Selection!$B$4="PL",VLOOKUP($A122,'Style navne sprog'!$A:$I,7,FALSE))))))) -> Fleece bolero | unisex | C122: 31.05
A123: 0811 | B123: =IF(Selection!$B$4="DK",VLOOKUP($A123,'Style navne sprog'!$A:$I,6,FALSE),IF(Selection!$B$4="DE",VLOOKUP($A123,'Style navne sprog'!$A:$I,2,FALSE),IF(Selection!$B$4="GB",VLOOKUP($A123,'Style navne sprog'!$A:$I,4,FALSE),IF(Selection!$B$4="SE",VLOOKUP($A123,'Style navne sprog'!$A:$I,3,FALSE),IF(Selection!$B$4="NO",VLOOKUP($A123,'Style navne sprog'!$A:$I,5,FALSE),IF(Selection!$B$4="PL",VLOOKUP($A123,'Style navne sprog'!$A:$I,7,FALSE))))))) -> Active vest | microfleece | C123: 35.45 | E123: 3XL-4XL | F123: 4
A124: 0812 | B124: =IF(Selection!$B$4="DK",VLOOKUP($A124,'Style navne sprog'!$A:$I,6,FALSE),IF(Selection!$B$4="DE",VLOOKUP($A124,'Style navne sprog'!$A:$I,2,FALSE),IF(Selection!$B$4="GB",VLOOKUP($A124,'Style navne sprog'!$A:$I,4,FALSE),IF(Selection!$B$4="SE",VLOOKUP($A124,'Style navne sprog'!$A:$I,3,FALSE),IF(Selection!$B$4="NO",VLOOKUP($A124,'Style navne sprog'!$A:$I,5,FALSE),IF(Selection!$B$4="PL",VLOOKUP($A124,'Style navne sprog'!$A:$I,7,FALSE))))))) -> Active vest | microfleece | women | C124: 35.45 | E124: 3XL | F124: 4
A125: 0826 | B125: =IF(Selection!$B$4="DK",VLOOKUP($A125,'Style navne sprog'!$A:$I,6,FALSE),IF(Selection!$B$4="DE",VLOOKUP($A125,'Style navne sprog'!$A:$I,2,FALSE),IF(Selection!$B$4="GB",VLOOKUP($A125,'Style navne sprog'!$A:$I,4,FALSE),IF(Selection!$B$4="SE",VLOOKUP($A125,'Style navne sprog'!$A:$I,3,FALSE),IF(Selection!$B$4="NO",VLOOKUP($A125,'Style navne sprog'!$A:$I,5,FALSE),IF(Selection!$B$4="PL",VLOOKUP($A125,'Style navne sprog'!$A:$I,7,FALSE))))))) -> Fleece jacket | quilted | C125: 79.2 | E125: 3XL-4XL | F125: 4
A126: 0827 | B126: =IF(Selection!$B$4="DK",VLOOKUP($A126,'Style navne sprog'!$A:$I,6,FALSE),IF(Selection!$B$4="DE",VLOOKUP($A126,'Style navne sprog'!$A:$I,2,FALSE),IF(Selection!$B$4="GB",VLOOKUP($A126,'Style navne sprog'!$A:$I,4,FALSE),IF(Selection!$B$4="SE",VLOOKUP($A126,'Style navne sprog'!$A:$I,3,FALSE),IF(Selection!$B$4="NO",VLOOKUP($A126,'Style navne sprog'!$A:$I,5,FALSE),IF(Selection!$B$4="PL",VLOOKUP($A126,'Style navne sprog'!$A:$I,7,FALSE))))))) -> Fleece jacket | quilted | women | C126: 79.2 | E126: 4XL | F126: 4
A127: 0828 | B127: =IF(Selection!$B$4="DK",VLOOKUP($A127,'Style navne sprog'!$A:$I,6,FALSE),IF(Selection!$B$4="DE",VLOOKUP($A127,'Style navne sprog'!$A:$I,2,FALSE),IF(Selection!$B$4="GB",VLOOKUP($A127,'Style navne sprog'!$A:$I,4,FALSE),IF(Selection!$B$4="SE",VLOOKUP($A127,'Style navne sprog'!$A:$I,3,FALSE),IF(Selection!$B$4="NO",VLOOKUP($A127,'Style navne sprog'!$A:$I,5,FALSE),IF(Selection!$B$4="PL",VLOOKUP($A127,'Style navne sprog'!$A:$I,7,FALSE))))))) -> Pile fleece jacket | C127: 79.05 | E127: 3XL | F127: 4
A128: 0829 | B128: =IF(Selection!$B$4="DK",VLOOKUP($A128,'Style navne sprog'!$A:$I,6,FALSE),IF(Selection!$B$4="DE",VLOOKUP($A128,'Style navne sprog'!$A:$I,2,FALSE),IF(Selection!$B$4="GB",VLOOKUP($A128,'Style navne sprog'!$A:$I,4,FALSE),IF(Selection!$B$4="SE",VLOOKUP($A128,'Style navne sprog'!$A:$I,3,FALSE),IF(Selection!$B$4="NO",VLOOKUP($A128,'Style navne sprog'!$A:$I,5,FALSE),IF(Selection!$B$4="PL",VLOOKUP($A128,'Style navne sprog'!$A:$I,7,FALSE))))))) -> Pile fleece jacket I women | C128: 79.05 | E128: 3XL | F128: 4
A129: 0840 | B129: =IF(Selection!$B$4="DK",VLOOKUP($A129,'Style navne sprog'!$A:$I,6,FALSE),IF(Selection!$B$4="DE",VLOOKUP($A129,'Style navne sprog'!$A:$I,2,FALSE),IF(Selection!$B$4="GB",VLOOKUP($A129,'Style navne sprog'!$A:$I,4,FALSE),IF(Selection!$B$4="SE",VLOOKUP($A129,'Style navne sprog'!$A:$I,3,FALSE),IF(Selection!$B$4="NO",VLOOKUP($A129,'Style navne sprog'!$A:$I,5,FALSE),IF(Selection!$B$4="PL",VLOOKUP($A129,'Style navne sprog'!$A:$I,7,FALSE))))))) -> Cardigan | stretch comfort | C129: 80.4 | E129: 3XL-4XL | F129: 4
A130: 0841 | B130: =IF(Selection!$B$4="DK",VLOOKUP($A130,'Style navne sprog'!$A:$I,6,FALSE),IF(Selection!$B$4="DE",VLOOKUP($A130,'Style navne sprog'!$A:$I,2,FALSE),IF(Selection!$B$4="GB",VLOOKUP($A130,'Style navne sprog'!$A:$I,4,FALSE),IF(Selection!$B$4="SE",VLOOKUP($A130,'Style navne sprog'!$A:$I,3,FALSE),IF(Selection!$B$4="NO",VLOOKUP($A130,'Style navne sprog'!$A:$I,5,FALSE),IF(Selection!$B$4="PL",VLOOKUP($A130,'Style navne sprog'!$A:$I,7,FALSE))))))) -> Cardigan | stretch comfort | women | C130: 80.4 | E130: 3XL-4XL | F130: 4
A131: 0847 | B131: =IF(Selection!$B$4="DK",VLOOKUP($A131,'Style navne sprog'!$A:$I,6,FALSE),IF(Selection!$B$4="DE",VLOOKUP($A131,'Style navne sprog'!$A:$I,2,FALSE),IF(Selection!$B$4="GB",VLOOKUP($A131,'Style navne sprog'!$A:$I,4,FALSE),IF(Selection!$B$4="SE",VLOOKUP($A131,'Style navne sprog'!$A:$I,3,FALSE),IF(Selection!$B$4="NO",VLOOKUP($A131,'Style navne sprog'!$A:$I,5,FALSE),IF(Selection!$B$4="PL",VLOOKUP($A131,'Style navne sprog'!$A:$I,7,FALSE))))))) -> Zip-n-Mix fleece | melange | C131: 70.85 | E131: 3XL-4XL | F131: 4
A132: 0848 | B132: =IF(Selection!$B$4="DK",VLOOKUP($A132,'Style navne sprog'!$A:$I,6,FALSE),IF(Selection!$B$4="DE",VLOOKUP($A132,'Style navne sprog'!$A:$I,2,FALSE),IF(Selection!$B$4="GB",VLOOKUP($A132,'Style navne sprog'!$A:$I,4,FALSE),IF(Selection!$B$4="SE",VLOOKUP($A132,'Style navne sprog'!$A:$I,3,FALSE),IF(Selection!$B$4="NO",VLOOKUP($A132,'Style navne sprog'!$A:$I,5,FALSE),IF(Selection!$B$4="PL",VLOOKUP($A132,'Style navne sprog'!$A:$I,7,FALSE))))))) -> Zip-n-Mix fleece | melange | women | C132: 70.85 | E132: 3XL | F132: 4
A133: 0850 | B133: =IF(Selection!$B$4="DK",VLOOKUP($A133,'Style navne sprog'!$A:$I,6,FALSE),IF(Selection!$B$4="DE",VLOOKUP($A133,'Style navne sprog'!$A:$I,2,FALSE),IF(Selection!$B$4="GB",VLOOKUP($A133,'Style navne sprog'!$A:$I,4,FALSE),IF(Selection!$B$4="SE",VLOOKUP($A133,'Style navne sprog'!$A:$I,3,FALSE),IF(Selection!$B$4="NO",VLOOKUP($A133,'Style navne sprog'!$A:$I,5,FALSE),IF(Selection!$B$4="PL",VLOOKUP($A133,'Style navne sprog'!$A:$I,7,FALSE))))))) -> Cardigan | knit fleece | C133: 81.6 | E133: 3XL | F133: 4
A134: 0851 | B134: =IF(Selection!$B$4="DK",VLOOKUP($A134,'Style navne sprog'!$A:$I,6,FALSE),IF(Selection!$B$4="DE",VLOOKUP($A134,'Style navne sprog'!$A:$I,2,FALSE),IF(Selection!$B$4="GB",VLOOKUP($A134,'Style navne sprog'!$A:$I,4,FALSE),IF(Selection!$B$4="SE",VLOOKUP($A134,'Style navne sprog'!$A:$I,3,FALSE),IF(Selection!$B$4="NO",VLOOKUP($A134,'Style navne sprog'!$A:$I,5,FALSE),IF(Selection!$B$4="PL",VLOOKUP($A134,'Style navne sprog'!$A:$I,7,FALSE))))))) -> Cardigan | knit fleece | women | C134: 81.6 | E134: 3XL | F134: 4
A136: =IF(Selection!$B$4="PL","ODZIEZ WIERZCHNIA",IF(Selection!$B$4="SE","YTTERKLÄDER",IF(Selection!$B$4="GB","OUTERWEAR",IF(Selection!$B$4="DE","JACKEN & WESTEN",IF(Selection!$B$4="NO","YTTERTØY","OVERTØJ"))))) -> OUTERWEAR
A137: 0712 | B137: =IF(Selection!$B$4="DK",VLOOKUP($A137,'Style navne sprog'!$A:$I,6,FALSE),IF(Selection!$B$4="DE",VLOOKUP($A137,'Style navne sprog'!$A:$I,2,FALSE),IF(Selection!$B$4="GB",VLOOKUP($A137,'Style navne sprog'!$A:$I,4,FALSE),IF(Selection!$B$4="SE",VLOOKUP($A137,'Style navne sprog'!$A:$I,3,FALSE),IF(Selection!$B$4="NO",VLOOKUP($A137,'Style navne sprog'!$A:$I,5,FALSE),IF(Selection!$B$4="PL",VLOOKUP($A137,'Style navne sprog'!$A:$I,7,FALSE))))))) -> Zip-n-Mix shell Jacket | C137: 160.95 | E137: 3XL-6XL | F137: 4
A138: 0713 | B138: =IF(Selection!$B$4="DK",VLOOKUP($A138,'Style navne sprog'!$A:$I,6,FALSE),IF(Selection!$B$4="DE",VLOOKUP($A138,'Style navne sprog'!$A:$I,2,FALSE),IF(Selection!$B$4="GB",VLOOKUP($A138,'Style navne sprog'!$A:$I,4,FALSE),IF(Selection!$B$4="SE",VLOOKUP($A138,'Style navne sprog'!$A:$I,3,FALSE),IF(Selection!$B$4="NO",VLOOKUP($A138,'Style navne sprog'!$A:$I,5,FALSE),IF(Selection!$B$4="PL",VLOOKUP($A138,'Style navne sprog'!$A:$I,7,FALSE))))))) -> Zip-n-Mix shell jacket | women | C138: 160.95 | E138: 3XL-6XL | F138: 4
A139: 0720 | B139: =IF(Selection!$B$4="DK",VLOOKUP($A139,'Style navne sprog'!$A:$I,6,FALSE),IF(Selection!$B$4="DE",VLOOKUP($A139,'Style navne sprog'!$A:$I,2,FALSE),IF(Selection!$B$4="GB",VLOOKUP($A139,'Style navne sprog'!$A:$I,4,FALSE),IF(Selection!$B$4="SE",VLOOKUP($A139,'Style navne sprog'!$A:$I,3,FALSE),IF(Selection!$B$4="NO",VLOOKUP($A139,'Style navne sprog'!$A:$I,5,FALSE),IF(Selection!$B$4="PL",VLOOKUP($A139,'Style navne sprog'!$A:$I,7,FALSE))))))) -> Hybrid jacket | C139: 93.85 | E139: 3XL-4XL | F139: 4
A140: 0721 | B140: =IF(Selection!$B$4="DK",VLOOKUP($A140,'Style navne sprog'!$A:$I,6,FALSE),IF(Selection!$B$4="DE",VLOOKUP($A140,'Style navne sprog'!$A:$I,2,FALSE),IF(Selection!$B$4="GB",VLOOKUP($A140,'Style navne sprog'!$A:$I,4,FALSE),IF(Selection!$B$4="SE",VLOOKUP($A140,'Style navne sprog'!$A:$I,3,FALSE),IF(Selection!$B$4="NO",VLOOKUP($A140,'Style navne sprog'!$A:$I,5,FALSE),IF(Selection!$B$4="PL",VLOOKUP($A140,'Style navne sprog'!$A:$I,7,FALSE))))))) -> Hybrid jacket | women | C140: 93.85 | E140: 3XL-4XL | F140: 4
A141: 0780 | B141: =IF(Selection!$B$4="DK",VLOOKUP($A141,'Style navne sprog'!$A:$I,6,FALSE),IF(Selection!$B$4="DE",VLOOKUP($A141,'Style navne sprog'!$A:$I,2,FALSE),IF(Selection!$B$4="GB",VLOOKUP($A141,'Style navne sprog'!$A:$I,4,FALSE),IF(Selection!$B$4="SE",VLOOKUP($A141,'Style navne sprog'!$A:$I,3,FALSE),IF(Selection!$B$4="NO",VLOOKUP($A141,'Style navne sprog'!$A:$I,5,FALSE),IF(Selection!$B$4="PL",VLOOKUP($A141,'Style navne sprog'!$A:$I,7,FALSE))))))) -> Zip-n-Mix jacket | hybrid | C141: 120.65 | E141: 3XL-6XL | F141: 4
A142: 0781 | B142: =IF(Selection!$B$4="DK",VLOOKUP($A142,'Style navne sprog'!$A:$I,6,FALSE),IF(Selection!$B$4="DE",VLOOKUP($A142,'Style navne sprog'!$A:$I,2,FALSE),IF(Selection!$B$4="GB",VLOOKUP($A142,'Style navne sprog'!$A:$I,4,FALSE),IF(Selection!$B$4="SE",VLOOKUP($A142,'Style navne sprog'!$A:$I,3,FALSE),IF(Selection!$B$4="NO",VLOOKUP($A142,'Style navne sprog'!$A:$I,5,FALSE),IF(Selection!$B$4="PL",VLOOKUP($A142,'Style navne sprog'!$A:$I,7,FALSE))))))) -> Zip-n-Mix jacket | hybrid | women | C142: 120.65 | E142: 3XL-6XL | F142: 4
A143: 0824 | B143: =IF(Selection!$B$4="DK",VLOOKUP($A143,'Style navne sprog'!$A:$I,6,FALSE),IF(Selection!$B$4="DE",VLOOKUP($A143,'Style navne sprog'!$A:$I,2,FALSE),IF(Selection!$B$4="GB",VLOOKUP($A143,'Style navne sprog'!$A:$I,4,FALSE),IF(Selection!$B$4="SE",VLOOKUP($A143,'Style navne sprog'!$A:$I,3,FALSE),IF(Selection!$B$4="NO",VLOOKUP($A143,'Style navne sprog'!$A:$I,5,FALSE),IF(Selection!$B$4="PL",VLOOKUP($A143,'Style navne sprog'!$A:$I,7,FALSE))))))) -> Soft shell vest | functional | C143: 61.6 | E143: 3XL-6XL | F143: 4
A144: 0825 | B144: =IF(Selection!$B$4="DK",VLOOKUP($A144,'Style navne sprog'!$A:$I,6,FALSE),IF(Selection!$B$4="DE",VLOOKUP($A144,'Style navne sprog'!$A:$I,2,FALSE),IF(Selection!$B$4="GB",VLOOKUP($A144,'Style navne sprog'!$A:$I,4,FALSE),IF(Selection!$B$4="SE",VLOOKUP($A144,'Style navne sprog'!$A:$I,3,FALSE),IF(Selection!$B$4="NO",VLOOKUP($A144,'Style navne sprog'!$A:$I,5,FALSE),IF(Selection!$B$4="PL",VLOOKUP($A144,'Style navne sprog'!$A:$I,7,FALSE))))))) -> Soft shell vest | functional | women | C144: 61.6 | E144: 3XL | F144: 4
A145: 0830 | B145: =IF(Selection!$B$4="DK",VLOOKUP($A145,'Style navne sprog'!$A:$I,6,FALSE),IF(Selection!$B$4="DE",VLOOKUP($A145,'Style navne sprog'!$A:$I,2,FALSE),IF(Selection!$B$4="GB",VLOOKUP($A145,'Style navne sprog'!$A:$I,4,FALSE),IF(Selection!$B$4="SE",VLOOKUP($A145,'Style navne sprog'!$A:$I,3,FALSE),IF(Selection!$B$4="NO",VLOOKUP($A145,'Style navne sprog'!$A:$I,5,FALSE),IF(Selection!$B$4="PL",VLOOKUP($A145,'Style navne sprog'!$A:$I,7,FALSE))))))) -> Rain jacket | performance | C145: 79.05 | E145: 3XL | F145: 4
A146: 0831 | B146: =IF(Selection!$B$4="DK",VLOOKUP($A146,'Style navne sprog'!$A:$I,6,FALSE),IF(Selection!$B$4="DE",VLOOKUP($A146,'Style navne sprog'!$A:$I,2,FALSE),IF(Selection!$B$4="GB",VLOOKUP($A146,'Style navne sprog'!$A:$I,4,FALSE),IF(Selection!$B$4="SE",VLOOKUP($A146,'Style navne sprog'!$A:$I,3,FALSE),IF(Selection!$B$4="NO",VLOOKUP($A146,'Style navne sprog'!$A:$I,5,FALSE),IF(Selection!$B$4="PL",VLOOKUP($A146,'Style navne sprog'!$A:$I,7,FALSE))))))) -> Rain jacket | performance | women | C146: 79.05 | E146: 3XL | F146: 4
A147: 0836 | B147: =IF(Selection!$B$4="DK",VLOOKUP($A147,'Style navne sprog'!$A:$I,6,FALSE),IF(Selection!$B$4="DE",VLOOKUP($A147,'Style navne sprog'!$A:$I,2,FALSE),IF(Selection!$B$4="GB",VLOOKUP($A147,'Style navne sprog'!$A:$I,4,FALSE),IF(Selection!$B$4="SE",VLOOKUP($A147,'Style navne sprog'!$A:$I,3,FALSE),IF(Selection!$B$4="NO",VLOOKUP($A147,'Style navne sprog'!$A:$I,5,FALSE),IF(Selection!$B$4="PL",VLOOKUP($A147,'Style navne sprog'!$A:$I,7,FALSE))))))) -> Soft shell jacket | light | C147: 87.1 | E147: 3XL-6XL | F147: 4
A148: 0837 | B148: =IF(Selection!$B$4="DK",VLOOKUP($A148,'Style navne sprog'!$A:$I,6,FALSE),IF(Selection!$B$4="DE",VLOOKUP($A148,'Style navne sprog'!$A:$I,2,FALSE),IF(Selection!$B$4="GB",VLOOKUP($A148,'Style navne sprog'!$A:$I,4,FALSE),IF(Selection!$B$4="SE",VLOOKUP($A148,'Style navne sprog'!$A:$I,3,FALSE),IF(Selection!$B$4="NO",VLOOKUP($A148,'Style navne sprog'!$A:$I,5,FALSE),IF(Selection!$B$4="PL",VLOOKUP($A148,'Style navne sprog'!$A:$I,7,FALSE))))))) -> Soft shell jacket | light | women | C148: 87.1 | E148: 3XL | F148: 4
A149: 0842 | B149: =IF(Selection!$B$4="DK",VLOOKUP($A149,'Style navne sprog'!$A:$I,6,FALSE),IF(Selection!$B$4="DE",VLOOKUP($A149,'Style navne sprog'!$A:$I,2,FALSE),IF(Selection!$B$4="GB",VLOOKUP($A149,'Style navne sprog'!$A:$I,4,FALSE),IF(Selection!$B$4="SE",VLOOKUP($A149,'Style navne sprog'!$A:$I,3,FALSE),IF(Selection!$B$4="NO",VLOOKUP($A149,'Style navne sprog'!$A:$I,5,FALSE),IF(Selection!$B$4="PL",VLOOKUP($A149,'Style navne sprog'!$A:$I,7,FALSE))))))) -> Hooded winter jacket | C149: 160.95 | E149: 3XL-4XL | F149: 4
A150: 0843 | B150: =IF(Selection!$B$4="DK",VLOOKUP($A150,'Style navne sprog'!$A:$I,6,FALSE),IF(Selection!$B$4="DE",VLOOKUP($A150,'Style navne sprog'!$A:$I,2,FALSE),IF(Selection!$B$4="GB",VLOOKUP($A150,'Style navne sprog'!$A:$I,4,FALSE),IF(Selection!$B$4="SE",VLOOKUP($A150,'Style navne sprog'!$A:$I,3,FALSE),IF(Selection!$B$4="NO",VLOOKUP($A150,'Style navne sprog'!$A:$I,5,FALSE),IF(Selection!$B$4="PL",VLOOKUP($A150,'Style navne sprog'!$A:$I,7,FALSE))))))) -> Hooded winter jacket | women | C150: 160.95 | E150: 3XL-4XL | F150: 4
A151: 0854 | B151: =IF(Selection!$B$4="DK",VLOOKUP($A151,'Style navne sprog'!$A:$I,6,FALSE),IF(Selection!$B$4="DE",VLOOKUP($A151,'Style navne sprog'!$A:$I,2,FALSE),IF(Selection!$B$4="GB",VLOOKUP($A151,'Style navne sprog'!$A:$I,4,FALSE),IF(Selection!$B$4="SE",VLOOKUP($A151,'Style navne sprog'!$A:$I,3,FALSE),IF(Selection!$B$4="NO",VLOOKUP($A151,'Style navne sprog'!$A:$I,5,FALSE),IF(Selection!$B$4="PL",VLOOKUP($A151,'Style navne sprog'!$A:$I,7,FALSE))))))) -> CORE soft shell jacket | C151: 65.65 | E151: 3XL-6XL | F151: 4
A152: 0856 | B152: =IF(Selection!$B$4="DK",VLOOKUP($A152,'Style navne sprog'!$A:$I,6,FALSE),IF(Selection!$B$4="DE",VLOOKUP($A152,'Style navne sprog'!$A:$I,2,FALSE),IF(Selection!$B$4="GB",VLOOKUP($A152,'Style navne sprog'!$A:$I,4,FALSE),IF(Selection!$B$4="SE",VLOOKUP($A152,'Style navne sprog'!$A:$I,3,FALSE),IF(Selection!$B$4="NO",VLOOKUP($A152,'Style navne sprog'!$A:$I,5,FALSE),IF(Selection!$B$4="PL",VLOOKUP($A152,'Style navne sprog'!$A:$I,7,FALSE))))))) -> CORE soft shell jacket| women | C152: 65.65 | E152: 3XL | F152: 4
A153: 0868 | B153: =IF(Selection!$B$4="DK",VLOOKUP($A153,'Style navne sprog'!$A:$I,6,FALSE),IF(Selection!$B$4="DE",VLOOKUP($A153,'Style navne sprog'!$A:$I,2,FALSE),IF(Selection!$B$4="GB",VLOOKUP($A153,'Style navne sprog'!$A:$I,4,FALSE),IF(Selection!$B$4="SE",VLOOKUP($A153,'Style navne sprog'!$A:$I,3,FALSE),IF(Selection!$B$4="NO",VLOOKUP($A153,'Style navne sprog'!$A:$I,5,FALSE),IF(Selection!$B$4="PL",VLOOKUP($A153,'Style navne sprog'!$A:$I,7,FALSE))))))) -> Soft shell jacket | performance | C153: 71 | E153: 3XL-4XL | F153: 4
A154: 0869 | B154: =IF(Selection!$B$4="DK",VLOOKUP($A154,'Style navne sprog'!$A:$I,6,FALSE),IF(Selection!$B$4="DE",VLOOKUP($A154,'Style navne sprog'!$A:$I,2,FALSE),IF(Selection!$B$4="GB",VLOOKUP($A154,'Style navne sprog'!$A:$I,4,FALSE),IF(Selection!$B$4="SE",VLOOKUP($A154,'Style navne sprog'!$A:$I,3,FALSE),IF(Selection!$B$4="NO",VLOOKUP($A154,'Style navne sprog'!$A:$I,5,FALSE),IF(Selection!$B$4="PL",VLOOKUP($A154,'Style navne sprog'!$A:$I,7,FALSE))))))) -> Soft shell jacket | performance | women | C154: 71 | E154: 3XL | F154: 4
A155: 0892 | B155: =IF(Selection!$B$4="DK",VLOOKUP($A155,'Style navne sprog'!$A:$I,6,FALSE),IF(Selection!$B$4="DE",VLOOKUP($A155,'Style navne sprog'!$A:$I,2,FALSE),IF(Selection!$B$4="GB",VLOOKUP($A155,'Style navne sprog'!$A:$I,4,FALSE),IF(Selection!$B$4="SE",VLOOKUP($A155,'Style navne sprog'!$A:$I,3,FALSE),IF(Selection!$B$4="NO",VLOOKUP($A155,'Style navne sprog'!$A:$I,5,FALSE),IF(Selection!$B$4="PL",VLOOKUP($A155,'Style navne sprog'!$A:$I,7,FALSE))))))) -> Bodywarmer | stretch | C155: 71 | E155: 3XL | F155: 4
A156: 0893 | B156: =IF(Selection!$B$4="DK",VLOOKUP($A156,'Style navne sprog'!$A:$I,6,FALSE),IF(Selection!$B$4="DE",VLOOKUP($A156,'Style navne sprog'!$A:$I,2,FALSE),IF(Selection!$B$4="GB",VLOOKUP($A156,'Style navne sprog'!$A:$I,4,FALSE),IF(Selection!$B$4="SE",VLOOKUP($A156,'Style navne sprog'!$A:$I,3,FALSE),IF(Selection!$B$4="NO",VLOOKUP($A156,'Style navne sprog'!$A:$I,5,FALSE),IF(Selection!$B$4="PL",VLOOKUP($A156,'Style navne sprog'!$A:$I,7,FALSE))))))) -> Bodywarmer | stretch | women | C156: 71 | E156: 3XL | F156: 4
A157: 0896 | B157: =IF(Selection!$B$4="DK",VLOOKUP($A157,'Style navne sprog'!$A:$I,6,FALSE),IF(Selection!$B$4="DE",VLOOKUP($A157,'Style navne sprog'!$A:$I,2,FALSE),IF(Selection!$B$4="GB",VLOOKUP($A157,'Style navne sprog'!$A:$I,4,FALSE),IF(Selection!$B$4="SE",VLOOKUP($A157,'Style navne sprog'!$A:$I,3,FALSE),IF(Selection!$B$4="NO",VLOOKUP($A157,'Style navne sprog'!$A:$I,5,FALSE),IF(Selection!$B$4="PL",VLOOKUP($A157,'Style navne sprog'!$A:$I,7,FALSE))))))) -> Padded jacket | stretch | C157: 81.75 | E157: 3XL | F157: 4
A158: 0897 | B158: =IF(Selection!$B$4="DK",VLOOKUP($A158,'Style navne sprog'!$A:$I,6,FALSE),IF(Selection!$B$4="DE",VLOOKUP($A158,'Style navne sprog'!$A:$I,2,FALSE),IF(Selection!$B$4="GB",VLOOKUP($A158,'Style navne sprog'!$A:$I,4,FALSE),IF(Selection!$B$4="SE",VLOOKUP($A158,'Style navne sprog'!$A:$I,3,FALSE),IF(Selection!$B$4="NO",VLOOKUP($A158,'Style navne sprog'!$A:$I,5,FALSE),IF(Selection!$B$4="PL",VLOOKUP($A158,'Style navne sprog'!$A:$I,7,FALSE))))))) -> Padded jacket | stretch | women | C158: 81.75 | E158: 3XL | F158: 4
A159: 0898 | B159: =IF(Selection!$B$4="DK",VLOOKUP($A159,'Style navne sprog'!$A:$I,6,FALSE),IF(Selection!$B$4="DE",VLOOKUP($A159,'Style navne sprog'!$A:$I,2,FALSE),IF(Selection!$B$4="GB",VLOOKUP($A159,'Style navne sprog'!$A:$I,4,FALSE),IF(Selection!$B$4="SE",VLOOKUP($A159,'Style navne sprog'!$A:$I,3,FALSE),IF(Selection!$B$4="NO",VLOOKUP($A159,'Style navne sprog'!$A:$I,5,FALSE),IF(Selection!$B$4="PL",VLOOKUP($A159,'Style navne sprog'!$A:$I,7,FALSE))))))) -> Soft shell jacket | winter | C159: 118 | E159: 3XL | F159: 4
A160: 0899 | B160: =IF(Selection!$B$4="DK",VLOOKUP($A160,'Style navne sprog'!$A:$I,6,FALSE),IF(Selection!$B$4="DE",VLOOKUP($A160,'Style navne sprog'!$A:$I,2,FALSE),IF(Selection!$B$4="GB",VLOOKUP($A160,'Style navne sprog'!$A:$I,4,FALSE),IF(Selection!$B$4="SE",VLOOKUP($A160,'Style navne sprog'!$A:$I,3,FALSE),IF(Selection!$B$4="NO",VLOOKUP($A160,'Style navne sprog'!$A:$I,5,FALSE),IF(Selection!$B$4="PL",VLOOKUP($A160,'Style navne sprog'!$A:$I,7,FALSE))))))) -> Soft shell jacket | winter | women | C160: 118 | E160: 3XL | F160: 4
A162: =IF(Selection!$B$4="PL","SPODNIE",IF(Selection!$B$4="SE","BYXOR",IF(Selection!$B$4="GB","TROUSERS",IF(Selection!$B$4="DE","HOSEN","BUKSER")))) -> TROUSERS
A163: 0661 | B163: =IF(Selection!$B$4="DK",VLOOKUP($A163,'Style navne sprog'!$A:$I,6,FALSE),IF(Selection!$B$4="DE",VLOOKUP($A163,'Style navne sprog'!$A:$I,2,FALSE),IF(Selection!$B$4="GB",VLOOKUP($A163,'Style navne sprog'!$A:$I,4,FALSE),IF(Selection!$B$4="SE",VLOOKUP($A163,'Style navne sprog'!$A:$I,3,FALSE),IF(Selection!$B$4="NO",VLOOKUP($A163,'Style navne sprog'!$A:$I,5,FALSE),IF(Selection!$B$4="PL",VLOOKUP($A163,'Style navne sprog'!$A:$I,7,FALSE))))))) -> Classic sweatpants | unisex | C163: 22.7 | E163: 3XL-4XL | F163: 2.7
A164: 0714 | B164: =IF(Selection!$B$4="DK",VLOOKUP($A164,'Style navne sprog'!$A:$I,6,FALSE),IF(Selection!$B$4="DE",VLOOKUP($A164,'Style navne sprog'!$A:$I,2,FALSE),IF(Selection!$B$4="GB",VLOOKUP($A164,'Style navne sprog'!$A:$I,4,FALSE),IF(Selection!$B$4="SE",VLOOKUP($A164,'Style navne sprog'!$A:$I,3,FALSE),IF(Selection!$B$4="NO",VLOOKUP($A164,'Style navne sprog'!$A:$I,5,FALSE),IF(Selection!$B$4="PL",VLOOKUP($A164,'Style navne sprog'!$A:$I,7,FALSE))))))) -> Zip-n-Mix pants | unisex | C164: 87.1 | E164: 3XL-6XL | F164: 2.7
A165: 0902 | B165: =IF(Selection!$B$4="DK",VLOOKUP($A165,'Style navne sprog'!$A:$I,6,FALSE),IF(Selection!$B$4="DE",VLOOKUP($A165,'Style navne sprog'!$A:$I,2,FALSE),IF(Selection!$B$4="GB",VLOOKUP($A165,'Style navne sprog'!$A:$I,4,FALSE),IF(Selection!$B$4="SE",VLOOKUP($A165,'Style navne sprog'!$A:$I,3,FALSE),IF(Selection!$B$4="NO",VLOOKUP($A165,'Style navne sprog'!$A:$I,5,FALSE),IF(Selection!$B$4="PL",VLOOKUP($A165,'Style navne sprog'!$A:$I,7,FALSE))))))) -> Hybrid stretch pants | C165: 93.55 | E165: 3XL-6XL | F165: 4
A166: 0903 | B166: =IF(Selection!$B$4="DK",VLOOKUP($A166,'Style navne sprog'!$A:$I,6,FALSE),IF(Selection!$B$4="DE",VLOOKUP($A166,'Style navne sprog'!$A:$I,2,FALSE),IF(Selection!$B$4="GB",VLOOKUP($A166,'Style navne sprog'!$A:$I,4,FALSE),IF(Selection!$B$4="SE",VLOOKUP($A166,'Style navne sprog'!$A:$I,3,FALSE),IF(Selection!$B$4="NO",VLOOKUP($A166,'Style navne sprog'!$A:$I,5,FALSE),IF(Selection!$B$4="PL",VLOOKUP($A166,'Style navne sprog'!$A:$I,7,FALSE))))))) -> Hybrid stretch pants | women | C166: 93.55 | E166: 3XL-6XL | F166: 4
A167: 0907 | B167: =IF(Selection!$B$4="DK",VLOOKUP($A167,'Style navne sprog'!$A:$I,6,FALSE),IF(Selection!$B$4="DE",VLOOKUP($A167,'Style navne sprog'!$A:$I,2,FALSE),IF(Selection!$B$4="GB",VLOOKUP($A167,'Style navne sprog'!$A:$I,4,FALSE),IF(Selection!$B$4="SE",VLOOKUP($A167,'Style navne sprog'!$A:$I,3,FALSE),IF(Selection!$B$4="NO",VLOOKUP($A167,'Style navne sprog'!$A:$I,5,FALSE),IF(Selection!$B$4="PL",VLOOKUP($A167,'Style navne sprog'!$A:$I,7,FALSE))))))) -> Stretch pants | multifunctional | unisex | C167: 70.05 | E167: 3XL-6XL | F167: 4
A168: 0910 | B168: =IF(Selection!$B$4="DK",VLOOKUP($A168,'Style navne sprog'!$A:$I,6,FALSE),IF(Selection!$B$4="DE",VLOOKUP($A168,'Style navne sprog'!$A:$I,2,FALSE),IF(Selection!$B$4="GB",VLOOKUP($A168,'Style navne sprog'!$A:$I,4,FALSE),IF(Selection!$B$4="SE",VLOOKUP($A168,'Style navne sprog'!$A:$I,3,FALSE),IF(Selection!$B$4="NO",VLOOKUP($A168,'Style navne sprog'!$A:$I,5,FALSE),IF(Selection!$B$4="PL",VLOOKUP($A168,'Style navne sprog'!$A:$I,7,FALSE))))))) -> CORE stretch pants | C168: 93.85 | E168: 3XL-4XL | F168: 4
A169: 0911 | B169: =IF(Selection!$B$4="DK",VLOOKUP($A169,'Style navne sprog'!$A:$I,6,FALSE),IF(Selection!$B$4="DE",VLOOKUP($A169,'Style navne sprog'!$A:$I,2,FALSE),IF(Selection!$B$4="GB",VLOOKUP($A169,'Style navne sprog'!$A:$I,4,FALSE),IF(Selection!$B$4="SE",VLOOKUP($A169,'Style navne sprog'!$A:$I,3,FALSE),IF(Selection!$B$4="NO",VLOOKUP($A169,'Style navne sprog'!$A:$I,5,FALSE),IF(Selection!$B$4="PL",VLOOKUP($A169,'Style navne sprog'!$A:$I,7,FALSE))))))) -> CORE stretch pants | women | C169: 93.85 | E169: 3XL-4XL | F169: 4
A170: 0912 | B170: =IF(Selection!$B$4="DK",VLOOKUP($A170,'Style navne sprog'!$A:$I,6,FALSE),IF(Selection!$B$4="DE",VLOOKUP($A170,'Style navne sprog'!$A:$I,2,FALSE),IF(Selection!$B$4="GB",VLOOKUP($A170,'Style navne sprog'!$A:$I,4,FALSE),IF(Selection!$B$4="SE",VLOOKUP($A170,'Style navne sprog'!$A:$I,3,FALSE),IF(Selection!$B$4="NO",VLOOKUP($A170,'Style navne sprog'!$A:$I,5,FALSE),IF(Selection!$B$4="PL",VLOOKUP($A170,'Style navne sprog'!$A:$I,7,FALSE))))))) -> CORE stretch shorts | C170: 84.45 | E170: 3XL-4XL | F170: 4
A171: 0913 | B171: =IF(Selection!$B$4="DK",VLOOKUP($A171,'Style navne sprog'!$A:$I,6,FALSE),IF(Selection!$B$4="DE",VLOOKUP($A171,'Style navne sprog'!$A:$I,2,FALSE),IF(Selection!$B$4="GB",VLOOKUP($A171,'Style navne sprog'!$A:$I,4,FALSE),IF(Selection!$B$4="SE",VLOOKUP($A171,'Style navne sprog'!$A:$I,3,FALSE),IF(Selection!$B$4="NO",VLOOKUP($A171,'Style navne sprog'!$A:$I,5,FALSE),IF(Selection!$B$4="PL",VLOOKUP($A171,'Style navne sprog'!$A:$I,7,FALSE))))))) -> CORE stretch shorts | women | C171: 84.45 | E171: 3XL-4XL | F171: 4
A172: 0914 | B172: =IF(Selection!$B$4="DK",VLOOKUP($A172,'Style navne sprog'!$A:$I,6,FALSE),IF(Selection!$B$4="DE",VLOOKUP($A172,'Style navne sprog'!$A:$I,2,FALSE),IF(Selection!$B$4="GB",VLOOKUP($A172,'Style navne sprog'!$A:$I,4,FALSE),IF(Selection!$B$4="SE",VLOOKUP($A172,'Style navne sprog'!$A:$I,3,FALSE),IF(Selection!$B$4="NO",VLOOKUP($A172,'Style navne sprog'!$A:$I,5,FALSE),IF(Selection!$B$4="PL",VLOOKUP($A172,'Style navne sprog'!$A:$I,7,FALSE))))))) -> Cargo stretch pants | unisex | C172: 93.85 | E172: 3XL-4XL | F172: 4
A174: =IF(Selection!$B$4="PL","DZIECI",IF(Selection!$B$4="SE","BARN",IF(Selection!$B$4="GB","CHILDREN",IF(Selection!$B$4="DE","KINDER","BØRN")))) -> CHILDREN
A175: 40500 | B175: =IF(Selection!$B$4="DK",VLOOKUP($A175,'Style navne sprog'!$A:$I,6,FALSE),IF(Selection!$B$4="DE",VLOOKUP($A175,'Style navne sprog'!$A:$I,2,FALSE),IF(Selection!$B$4="GB",VLOOKUP($A175,'Style navne sprog'!$A:$I,4,FALSE),IF(Selection!$B$4="SE",VLOOKUP($A175,'Style navne sprog'!$A:$I,3,FALSE),IF(Selection!$B$4="NO",VLOOKUP($A175,'Style navne sprog'!$A:$I,5,FALSE),IF(Selection!$B$4="PL",VLOOKUP($A175,'Style navne sprog'!$A:$I,7,FALSE))))))) -> GAME T-shirt | children | C175: 7.05 | D175: 6.4
A176: 40510 | B176: =IF(Selection!$B$4="DK",VLOOKUP($A176,'Style navne sprog'!$A:$I,6,FALSE),IF(Selection!$B$4="DE",VLOOKUP($A176,'Style navne sprog'!$A:$I,2,FALSE),IF(Selection!$B$4="GB",VLOOKUP($A176,'Style navne sprog'!$A:$I,4,FALSE),IF(Selection!$B$4="SE",VLOOKUP($A176,'Style navne sprog'!$A:$I,3,FALSE),IF(Selection!$B$4="NO",VLOOKUP($A176,'Style navne sprog'!$A:$I,5,FALSE),IF(Selection!$B$4="PL",VLOOKUP($A176,'Style navne sprog'!$A:$I,7,FALSE))))))) -> T-TIME® T-shirt | children | C176: 9.8 | D176: 9.15
A177: 40552 | B177: =IF(Selection!$B$4="DK",VLOOKUP($A177,'Style navne sprog'!$A:$I,6,FALSE),IF(Selection!$B$4="DE",VLOOKUP($A177,'Style navne sprog'!$A:$I,2,FALSE),IF(Selection!$B$4="GB",VLOOKUP($A177,'Style navne sprog'!$A:$I,4,FALSE),IF(Selection!$B$4="SE",VLOOKUP($A177,'Style navne sprog'!$A:$I,3,FALSE),IF(Selection!$B$4="NO",VLOOKUP($A177,'Style navne sprog'!$A:$I,5,FALSE),IF(Selection!$B$4="PL",VLOOKUP($A177,'Style navne sprog'!$A:$I,7,FALSE))))))) -> Organic T-shirt | children | C177: 11.05 | D177: 10.4
A178: 40634 | B178: =IF(Selection!$B$4="DK",VLOOKUP($A178,'Style navne sprog'!$A:$I,6,FALSE),IF(Selection!$B$4="DE",VLOOKUP($A178,'Style navne sprog'!$A:$I,2,FALSE),IF(Selection!$B$4="GB",VLOOKUP($A178,'Style navne sprog'!$A:$I,4,FALSE),IF(Selection!$B$4="SE",VLOOKUP($A178,'Style navne sprog'!$A:$I,3,FALSE),IF(Selection!$B$4="NO",VLOOKUP($A178,'Style navne sprog'!$A:$I,5,FALSE),IF(Selection!$B$4="PL",VLOOKUP($A178,'Style navne sprog'!$A:$I,7,FALSE))))))) -> CORE sweatshirt | children | C178: 22.3
A179: 40636 | B179: =IF(Selection!$B$4="DK",VLOOKUP($A179,'Style navne sprog'!$A:$I,6,FALSE),IF(Selection!$B$4="DE",VLOOKUP($A179,'Style navne sprog'!$A:$I,2,FALSE),IF(Selection!$B$4="GB",VLOOKUP($A179,'Style navne sprog'!$A:$I,4,FALSE),IF(Selection!$B$4="SE",VLOOKUP($A179,'Style navne sprog'!$A:$I,3,FALSE),IF(Selection!$B$4="NO",VLOOKUP($A179,'Style navne sprog'!$A:$I,5,FALSE),IF(Selection!$B$4="PL",VLOOKUP($A179,'Style navne sprog'!$A:$I,7,FALSE))))))) -> CORE hoodie | children | C179: 27.5
A180: 40638 | B180: =IF(Selection!$B$4="DK",VLOOKUP($A180,'Style navne sprog'!$A:$I,6,FALSE),IF(Selection!$B$4="DE",VLOOKUP($A180,'Style navne sprog'!$A:$I,2,FALSE),IF(Selection!$B$4="GB",VLOOKUP($A180,'Style navne sprog'!$A:$I,4,FALSE),IF(Selection!$B$4="SE",VLOOKUP($A180,'Style navne sprog'!$A:$I,3,FALSE),IF(Selection!$B$4="NO",VLOOKUP($A180,'Style navne sprog'!$A:$I,5,FALSE),IF(Selection!$B$4="PL",VLOOKUP($A180,'Style navne sprog'!$A:$I,7,FALSE))))))) -> CORE zip hoodie | children | C180: 27.5
A181: 40836 | B181: =IF(Selection!$B$4="DK",VLOOKUP($A181,'Style navne sprog'!$A:$I,6,FALSE),IF(Selection!$B$4="DE",VLOOKUP($A181,'Style navne sprog'!$A:$I,2,FALSE),IF(Selection!$B$4="GB",VLOOKUP($A181,'Style navne sprog'!$A:$I,4,FALSE),IF(Selection!$B$4="SE",VLOOKUP($A181,'Style navne sprog'!$A:$I,3,FALSE),IF(Selection!$B$4="NO",VLOOKUP($A181,'Style navne sprog'!$A:$I,5,FALSE),IF(Selection!$B$4="PL",VLOOKUP($A181,'Style navne sprog'!$A:$I,7,FALSE))))))) -> Soft shell jacket | light | children | C181: 61.35
A182: 42030 | B182: =IF(Selection!$B$4="DK",VLOOKUP($A182,'Style navne sprog'!$A:$I,6,FALSE),IF(Selection!$B$4="DE",VLOOKUP($A182,'Style navne sprog'!$A:$I,2,FALSE),IF(Selection!$B$4="GB",VLOOKUP($A182,'Style navne sprog'!$A:$I,4,FALSE),IF(Selection!$B$4="SE",VLOOKUP($A182,'Style navne sprog'!$A:$I,3,FALSE),IF(Selection!$B$4="NO",VLOOKUP($A182,'Style navne sprog'!$A:$I,5,FALSE),IF(Selection!$B$4="PL",VLOOKUP($A182,'Style navne sprog'!$A:$I,7,FALSE))))))) -> YES Active T-shirt | children | C182: 10.2 | D182: 9.55
A184: =IF(Selection!$B$4="PL","AKCESORIA",IF(Selection!$B$4="SE","ACCESSOARER",IF(Selection!$B$4="GB","ACCESSORIES",IF(Selection!$B$4="DE","ACCESSORIES","ACCESSORIES")))) -> ACCESSORIES
A185: 0010 | B185: =IF(Selection!$B$4="DK",VLOOKUP($A185,'Style navne sprog'!$A:$I,6,FALSE),IF(Selection!$B$4="DE",VLOOKUP($A185,'Style navne sprog'!$A:$I,2,FALSE),IF(Selection!$B$4="GB",VLOOKUP($A185,'Style navne sprog'!$A:$I,4,FALSE),IF(Selection!$B$4="SE",VLOOKUP($A185,'Style navne sprog'!$A:$I,3,FALSE),IF(Selection!$B$4="NO",VLOOKUP($A185,'Style navne sprog'!$A:$I,5,FALSE),IF(Selection!$B$4="PL",VLOOKUP($A185,'Style navne sprog'!$A:$I,7,FALSE))))))) -> Towel 50x100 | C185: 11.95
A186: 0011 | B186: =IF(Selection!$B$4="DK",VLOOKUP($A186,'Style navne sprog'!$A:$I,6,FALSE),IF(Selection!$B$4="DE",VLOOKUP($A186,'Style navne sprog'!$A:$I,2,FALSE),IF(Selection!$B$4="GB",VLOOKUP($A186,'Style navne sprog'!$A:$I,4,FALSE),IF(Selection!$B$4="SE",VLOOKUP($A186,'Style navne sprog'!$A:$I,3,FALSE),IF(Selection!$B$4="NO",VLOOKUP($A186,'Style navne sprog'!$A:$I,5,FALSE),IF(Selection!$B$4="PL",VLOOKUP($A186,'Style navne sprog'!$A:$I,7,FALSE))))))) -> Bath towel 70x140 | C186: 19.65
A187: 0036 | B187: =IF(Selection!$B$4="DK",VLOOKUP($A187,'Style navne sprog'!$A:$I,6,FALSE),IF(Selection!$B$4="DE",VLOOKUP($A187,'Style navne sprog'!$A:$I,2,FALSE),IF(Selection!$B$4="GB",VLOOKUP($A187,'Style navne sprog'!$A:$I,4,FALSE),IF(Selection!$B$4="SE",VLOOKUP($A187,'Style navne sprog'!$A:$I,3,FALSE),IF(Selection!$B$4="NO",VLOOKUP($A187,'Style navne sprog'!$A:$I,5,FALSE),IF(Selection!$B$4="PL",VLOOKUP($A187,'Style navne sprog'!$A:$I,7,FALSE))))))) -> Hat | stretch | C187: 8.45
A188: 0038 | B188: =IF(Selection!$B$4="DK",VLOOKUP($A188,'Style navne sprog'!$A:$I,6,FALSE),IF(Selection!$B$4="DE",VLOOKUP($A188,'Style navne sprog'!$A:$I,2,FALSE),IF(Selection!$B$4="GB",VLOOKUP($A188,'Style navne sprog'!$A:$I,4,FALSE),IF(Selection!$B$4="SE",VLOOKUP($A188,'Style navne sprog'!$A:$I,3,FALSE),IF(Selection!$B$4="NO",VLOOKUP($A188,'Style navne sprog'!$A:$I,5,FALSE),IF(Selection!$B$4="PL",VLOOKUP($A188,'Style navne sprog'!$A:$I,7,FALSE))))))) -> Neck warmer | stretch | C188: 7.65
A189: 0040 | B189: =IF(Selection!$B$4="DK",VLOOKUP($A189,'Style navne sprog'!$A:$I,6,FALSE),IF(Selection!$B$4="DE",VLOOKUP($A189,'Style navne sprog'!$A:$I,2,FALSE),IF(Selection!$B$4="GB",VLOOKUP($A189,'Style navne sprog'!$A:$I,4,FALSE),IF(Selection!$B$4="SE",VLOOKUP($A189,'Style navne sprog'!$A:$I,3,FALSE),IF(Selection!$B$4="NO",VLOOKUP($A189,'Style navne sprog'!$A:$I,5,FALSE),IF(Selection!$B$4="PL",VLOOKUP($A189,'Style navne sprog'!$A:$I,7,FALSE))))))) -> Soft neck warmer | C189: 11.95
A190: 0042 | B190: =IF(Selection!$B$4="DK",VLOOKUP($A190,'Style navne sprog'!$A:$I,6,FALSE),IF(Selection!$B$4="DE",VLOOKUP($A190,'Style navne sprog'!$A:$I,2,FALSE),IF(Selection!$B$4="GB",VLOOKUP($A190,'Style navne sprog'!$A:$I,4,FALSE),IF(Selection!$B$4="SE",VLOOKUP($A190,'Style navne sprog'!$A:$I,3,FALSE),IF(Selection!$B$4="NO",VLOOKUP($A190,'Style navne sprog'!$A:$I,5,FALSE),IF(Selection!$B$4="PL",VLOOKUP($A190,'Style navne sprog'!$A:$I,7,FALSE))))))) -> Knitted hat | C190: 9.05
A191: 0045 | B191: =IF(Selection!$B$4="DK",VLOOKUP($A191,'Style navne sprog'!$A:$I,6,FALSE),IF(Selection!$B$4="DE",VLOOKUP($A191,'Style navne sprog'!$A:$I,2,FALSE),IF(Selection!$B$4="GB",VLOOKUP($A191,'Style navne sprog'!$A:$I,4,FALSE),IF(Selection!$B$4="SE",VLOOKUP($A191,'Style navne sprog'!$A:$I,3,FALSE),IF(Selection!$B$4="NO",VLOOKUP($A191,'Style navne sprog'!$A:$I,5,FALSE),IF(Selection!$B$4="PL",VLOOKUP($A191,'Style navne sprog'!$A:$I,7,FALSE))))))) -> Stretch hat | C191: 10.6
A192: 0044 | B192: =IF(Selection!$B$4="DK",VLOOKUP($A192,'Style navne sprog'!$A:$I,6,FALSE),IF(Selection!$B$4="DE",VLOOKUP($A192,'Style navne sprog'!$A:$I,2,FALSE),IF(Selection!$B$4="GB",VLOOKUP($A192,'Style navne sprog'!$A:$I,4,FALSE),IF(Selection!$B$4="SE",VLOOKUP($A192,'Style navne sprog'!$A:$I,3,FALSE),IF(Selection!$B$4="NO",VLOOKUP($A192,'Style navne sprog'!$A:$I,5,FALSE),IF(Selection!$B$4="PL",VLOOKUP($A192,'Style navne sprog'!$A:$I,7,FALSE))))))) -> Knitted hat | lining | C192: 11.15
A193: 0050 | B193: =IF(Selection!$B$4="DK",VLOOKUP($A193,'Style navne sprog'!$A:$I,6,FALSE),IF(Selection!$B$4="DE",VLOOKUP($A193,'Style navne sprog'!$A:$I,2,FALSE),IF(Selection!$B$4="GB",VLOOKUP($A193,'Style navne sprog'!$A:$I,4,FALSE),IF(Selection!$B$4="SE",VLOOKUP($A193,'Style navne sprog'!$A:$I,3,FALSE),IF(Selection!$B$4="NO",VLOOKUP($A193,'Style navne sprog'!$A:$I,5,FALSE),IF(Selection!$B$4="PL",VLOOKUP($A193,'Style navne sprog'!$A:$I,7,FALSE))))))) -> Urban cap | C193: 9.25
A194: 0052 | B194: =IF(Selection!$B$4="DK",VLOOKUP($A194,'Style navne sprog'!$A:$I,6,FALSE),IF(Selection!$B$4="DE",VLOOKUP($A194,'Style navne sprog'!$A:$I,2,FALSE),IF(Selection!$B$4="GB",VLOOKUP($A194,'Style navne sprog'!$A:$I,4,FALSE),IF(Selection!$B$4="SE",VLOOKUP($A194,'Style navne sprog'!$A:$I,3,FALSE),IF(Selection!$B$4="NO",VLOOKUP($A194,'Style navne sprog'!$A:$I,5,FALSE),IF(Selection!$B$4="PL",VLOOKUP($A194,'Style navne sprog'!$A:$I,7,FALSE))))))) -> Golf cap | C194: 4.95
A195: 0054 | B195: =IF(Selection!$B$4="DK",VLOOKUP($A195,'Style navne sprog'!$A:$I,6,FALSE),IF(Selection!$B$4="DE",VLOOKUP($A195,'Style navne sprog'!$A:$I,2,FALSE),IF(Selection!$B$4="GB",VLOOKUP($A195,'Style navne sprog'!$A:$I,4,FALSE),IF(Selection!$B$4="SE",VLOOKUP($A195,'Style navne sprog'!$A:$I,3,FALSE),IF(Selection!$B$4="NO",VLOOKUP($A195,'Style navne sprog'!$A:$I,5,FALSE),IF(Selection!$B$4="PL",VLOOKUP($A195,'Style navne sprog'!$A:$I,7,FALSE))))))) -> Twill cap | C195: 6.5
A196: 0060 | B196: =IF(Selection!$B$4="DK",VLOOKUP($A196,'Style navne sprog'!$A:$I,6,FALSE),IF(Selection!$B$4="DE",VLOOKUP($A196,'Style navne sprog'!$A:$I,2,FALSE),IF(Selection!$B$4="GB",VLOOKUP($A196,'Style navne sprog'!$A:$I,4,FALSE),IF(Selection!$B$4="SE",VLOOKUP($A196,'Style navne sprog'!$A:$I,3,FALSE),IF(Selection!$B$4="NO",VLOOKUP($A196,'Style navne sprog'!$A:$I,5,FALSE),IF(Selection!$B$4="PL",VLOOKUP($A196,'Style navne sprog'!$A:$I,7,FALSE))))))) -> Classic canvas bucket hat | C196: 9.25
A197: 0068 | B197: =IF(Selection!$B$4="DK",VLOOKUP($A197,'Style navne sprog'!$A:$I,6,FALSE),IF(Selection!$B$4="DE",VLOOKUP($A197,'Style navne sprog'!$A:$I,2,FALSE),IF(Selection!$B$4="GB",VLOOKUP($A197,'Style navne sprog'!$A:$I,4,FALSE),IF(Selection!$B$4="SE",VLOOKUP($A197,'Style navne sprog'!$A:$I,3,FALSE),IF(Selection!$B$4="NO",VLOOKUP($A197,'Style navne sprog'!$A:$I,5,FALSE),IF(Selection!$B$4="PL",VLOOKUP($A197,'Style navne sprog'!$A:$I,7,FALSE))))))) -> Cap | stretch | C197: 9.05
A198: 0073 | B198: =IF(Selection!$B$4="DK",VLOOKUP($A198,'Style navne sprog'!$A:$I,6,FALSE),IF(Selection!$B$4="DE",VLOOKUP($A198,'Style navne sprog'!$A:$I,2,FALSE),IF(Selection!$B$4="GB",VLOOKUP($A198,'Style navne sprog'!$A:$I,4,FALSE),IF(Selection!$B$4="SE",VLOOKUP($A198,'Style navne sprog'!$A:$I,3,FALSE),IF(Selection!$B$4="NO",VLOOKUP($A198,'Style navne sprog'!$A:$I,5,FALSE),IF(Selection!$B$4="PL",VLOOKUP($A198,'Style navne sprog'!$A:$I,7,FALSE))))))) -> Apron | C198: 19.2
A199: 0074 | B199: =IF(Selection!$B$4="DK",VLOOKUP($A199,'Style navne sprog'!$A:$I,6,FALSE),IF(Selection!$B$4="DE",VLOOKUP($A199,'Style navne sprog'!$A:$I,2,FALSE),IF(Selection!$B$4="GB",VLOOKUP($A199,'Style navne sprog'!$A:$I,4,FALSE),IF(Selection!$B$4="SE",VLOOKUP($A199,'Style navne sprog'!$A:$I,3,FALSE),IF(Selection!$B$4="NO",VLOOKUP($A199,'Style navne sprog'!$A:$I,5,FALSE),IF(Selection!$B$4="PL",VLOOKUP($A199,'Style navne sprog'!$A:$I,7,FALSE))))))) -> Serving apron | C199: 19.2
A200: 0170 | B200: =IF(Selection!$B$4="DK",VLOOKUP($A200,'Style navne sprog'!$A:$I,6,FALSE),IF(Selection!$B$4="DE",VLOOKUP($A200,'Style navne sprog'!$A:$I,2,FALSE),IF(Selection!$B$4="GB",VLOOKUP($A200,'Style navne sprog'!$A:$I,4,FALSE),IF(Selection!$B$4="SE",VLOOKUP($A200,'Style navne sprog'!$A:$I,3,FALSE),IF(Selection!$B$4="NO",VLOOKUP($A200,'Style navne sprog'!$A:$I,5,FALSE),IF(Selection!$B$4="PL",VLOOKUP($A200,'Style navne sprog'!$A:$I,7,FALSE))))))) -> Durable socks | C200: 6.6
A201: 1510 | B201: =IF(Selection!$B$4="DK",VLOOKUP($A201,'Style navne sprog'!$A:$I,6,FALSE),IF(Selection!$B$4="DE",VLOOKUP($A201,'Style navne sprog'!$A:$I,2,FALSE),IF(Selection!$B$4="GB",VLOOKUP($A201,'Style navne sprog'!$A:$I,4,FALSE),IF(Selection!$B$4="SE",VLOOKUP($A201,'Style navne sprog'!$A:$I,3,FALSE),IF(Selection!$B$4="NO",VLOOKUP($A201,'Style navne sprog'!$A:$I,5,FALSE),IF(Selection!$B$4="PL",VLOOKUP($A201,'Style navne sprog'!$A:$I,7,FALSE))))))) -> Cotton bag | C201: 6.65
A202: 1800 | B202: =IF(Selection!$B$4="DK",VLOOKUP($A202,'Style navne sprog'!$A:$I,6,FALSE),IF(Selection!$B$4="DE",VLOOKUP($A202,'Style navne sprog'!$A:$I,2,FALSE),IF(Selection!$B$4="GB",VLOOKUP($A202,'Style navne sprog'!$A:$I,4,FALSE),IF(Selection!$B$4="SE",VLOOKUP($A202,'Style navne sprog'!$A:$I,3,FALSE),IF(Selection!$B$4="NO",VLOOKUP($A202,'Style navne sprog'!$A:$I,5,FALSE),IF(Selection!$B$4="PL",VLOOKUP($A202,'Style navne sprog'!$A:$I,7,FALSE))))))) -> Sports bag | C202: 28.25
A203: 1802 | B203: =IF(Selection!$B$4="DK",VLOOKUP($A203,'Style navne sprog'!$A:$I,6,FALSE),IF(Selection!$B$4="DE",VLOOKUP($A203,'Style navne sprog'!$A:$I,2,FALSE),IF(Selection!$B$4="GB",VLOOKUP($A203,'Style navne sprog'!$A:$I,4,FALSE),IF(Selection!$B$4="SE",VLOOKUP($A203,'Style navne sprog'!$A:$I,3,FALSE),IF(Selection!$B$4="NO",VLOOKUP($A203,'Style navne sprog'!$A:$I,5,FALSE),IF(Selection!$B$4="PL",VLOOKUP($A203,'Style navne sprog'!$A:$I,7,FALSE))))))) -> Large sports bag | trolley | C203: 54.15
A204: 1805 | B204: =IF(Selection!$B$4="DK",VLOOKUP($A204,'Style navne sprog'!$A:$I,6,FALSE),IF(Selection!$B$4="DE",VLOOKUP($A204,'Style navne sprog'!$A:$I,2,FALSE),IF(Selection!$B$4="GB",VLOOKUP($A204,'Style navne sprog'!$A:$I,4,FALSE),IF(Selection!$B$4="SE",VLOOKUP($A204,'Style navne sprog'!$A:$I,3,FALSE),IF(Selection!$B$4="NO",VLOOKUP($A204,'Style navne sprog'!$A:$I,5,FALSE),IF(Selection!$B$4="PL",VLOOKUP($A204,'Style navne sprog'!$A:$I,7,FALSE))))))) -> Ripstop backpack | C204: 28.2
A205: 1810 | B205: =IF(Selection!$B$4="DK",VLOOKUP($A205,'Style navne sprog'!$A:$I,6,FALSE),IF(Selection!$B$4="DE",VLOOKUP($A205,'Style navne sprog'!$A:$I,2,FALSE),IF(Selection!$B$4="GB",VLOOKUP($A205,'Style navne sprog'!$A:$I,4,FALSE),IF(Selection!$B$4="SE",VLOOKUP($A205,'Style navne sprog'!$A:$I,3,FALSE),IF(Selection!$B$4="NO",VLOOKUP($A205,'Style navne sprog'!$A:$I,5,FALSE),IF(Selection!$B$4="PL",VLOOKUP($A205,'Style navne sprog'!$A:$I,7,FALSE))))))) -> Backpack | C205: 28.25
A206: 1820 | B206: =IF(Selection!$B$4="DK",VLOOKUP($A206,'Style navne sprog'!$A:$I,6,FALSE),IF(Selection!$B$4="DE",VLOOKUP($A206,'Style navne sprog'!$A:$I,2,FALSE),IF(Selection!$B$4="GB",VLOOKUP($A206,'Style navne sprog'!$A:$I,4,FALSE),IF(Selection!$B$4="SE",VLOOKUP($A206,'Style navne sprog'!$A:$I,3,FALSE),IF(Selection!$B$4="NO",VLOOKUP($A206,'Style navne sprog'!$A:$I,5,FALSE),IF(Selection!$B$4="PL",VLOOKUP($A206,'Style navne sprog'!$A:$I,7,FALSE))))))) -> Backpack | canvas | C206: 44.15
A207: 1821 | B207: =IF(Selection!$B$4="DK",VLOOKUP($A207,'Style navne sprog'!$A:$I,6,FALSE),IF(Selection!$B$4="DE",VLOOKUP($A207,'Style navne sprog'!$A:$I,2,FALSE),IF(Selection!$B$4="GB",VLOOKUP($A207,'Style navne sprog'!$A:$I,4,FALSE),IF(Selection!$B$4="SE",VLOOKUP($A207,'Style navne sprog'!$A:$I,3,FALSE),IF(Selection!$B$4="NO",VLOOKUP($A207,'Style navne sprog'!$A:$I,5,FALSE),IF(Selection!$B$4="PL",VLOOKUP($A207,'Style navne sprog'!$A:$I,7,FALSE))))))) -> Shopping bag | canvas | C207: 24.05
A208: 1825 | B208: =IF(Selection!$B$4="DK",VLOOKUP($A208,'Style navne sprog'!$A:$I,6,FALSE),IF(Selection!$B$4="DE",VLOOKUP($A208,'Style navne sprog'!$A:$I,2,FALSE),IF(Selection!$B$4="GB",VLOOKUP($A208,'Style navne sprog'!$A:$I,4,FALSE),IF(Selection!$B$4="SE",VLOOKUP($A208,'Style navne sprog'!$A:$I,3,FALSE),IF(Selection!$B$4="NO",VLOOKUP($A208,'Style navne sprog'!$A:$I,5,FALSE),IF(Selection!$B$4="PL",VLOOKUP($A208,'Style navne sprog'!$A:$I,7,FALSE))))))) -> Ripstop sports bag | C208: 35.1
A209: 1850 | B209: =IF(Selection!$B$4="DK",VLOOKUP($A209,'Style navne sprog'!$A:$I,6,FALSE),IF(Selection!$B$4="DE",VLOOKUP($A209,'Style navne sprog'!$A:$I,2,FALSE),IF(Selection!$B$4="GB",VLOOKUP($A209,'Style navne sprog'!$A:$I,4,FALSE),IF(Selection!$B$4="SE",VLOOKUP($A209,'Style navne sprog'!$A:$I,3,FALSE),IF(Selection!$B$4="NO",VLOOKUP($A209,'Style navne sprog'!$A:$I,5,FALSE),IF(Selection!$B$4="PL",VLOOKUP($A209,'Style navne sprog'!$A:$I,7,FALSE))))))) -> Gym bag | backpack | C209: 4.85
A210: 1864 | B210: =IF(Selection!$B$4="DK",VLOOKUP($A210,'Style navne sprog'!$A:$I,6,FALSE),IF(Selection!$B$4="DE",VLOOKUP($A210,'Style navne sprog'!$A:$I,2,FALSE),IF(Selection!$B$4="GB",VLOOKUP($A210,'Style navne sprog'!$A:$I,4,FALSE),IF(Selection!$B$4="SE",VLOOKUP($A210,'Style navne sprog'!$A:$I,3,FALSE),IF(Selection!$B$4="NO",VLOOKUP($A210,'Style navne sprog'!$A:$I,5,FALSE),IF(Selection!$B$4="PL",VLOOKUP($A210,'Style navne sprog'!$A:$I,7,FALSE))))))) -> Computer bag | C210: 48
... 81 more rows

Sheet Factor
A1: Style | B1: Beskrivelse
A2: a | B2: a | C2: 0 | F2: 0
A3: NO. | B3: =IF(Selection!$B$4="DK","PRODUKTNAVN",IF(Selection!$B$4="DE","PRODUKTNAME",IF(Selection!$B$4="GB","PRODUCT NAME",IF(Selection!$B$4="SE","PRODUKTNAMN",IF(Selection!$B$4="NO","PRODUKTNAVN",IF(Selection!$B$4="PL","NAZWA PRODUKTU")))))) -> PRODUCT NAME | C3: =IF(Selection!$B$4="GB","PRICE VAT EXCLUSIVE","PREIS EX. MWST.") -> PRICE VAT EXCLUSIVE
A4: - | C4: EUR | E4: =IF(Selection!$B$4="GB","SIZE ADD-ON EUR","GRÖSSEN ZZGL.EUR") -> SIZE ADD-ON EUR
C5: =IF(Selection!$B$4="GB","1 pcs","1 Stück") -> 1 pcs | D5: 100 pcs | E5: =IF(Selection!$B$4="GB","1 pcs","1 Stück") -> 1 pcs
A7: =IF(Selection!$B$4="PL","T-SHIRTY",IF(Selection!$B$4="NO","T-SKJORTER","T-SHIRTS")) -> T-SHIRTS
A8: 0500 | B8: =IF(Selection!$B$4="DK",VLOOKUP($A8,'Style navne sprog'!$A:$I,6,FALSE),IF(Selection!$B$4="DE",VLOOKUP($A8,'Style navne sprog'!$A:$I,2,FALSE),IF(Selection!$B$4="GB",VLOOKUP($A8,'Style navne sprog'!$A:$I,4,FALSE),IF(Selection!$B$4="SE",VLOOKUP($A8,'Style navne sprog'!$A:$I,3,FALSE),IF(Selection!$B$4="NO",VLOOKUP($A8,'Style navne sprog'!$A:$I,5,FALSE),IF(Selection!$B$4="PL",VLOOKUP($A8,'Style navne sprog'!$A:$I,7,FALSE))))))) -> GAME® T-shirt | C8: =IF(Master!C8<>"",Master!C8*Selection!$B$3,"") -> 16.9 | D8: =IF(Master!D8<>"",Master!D8*Selection!$B$3,"") -> 15.6 | E8: 3XL | F8: =IF(Master!F8<>"",Master!F8*Selection!$B$3,"") -> 2.8 | G8: =IF(Factor!#REF!<>"",Factor!#REF!*Selection!$B$3,"") -> 
A9: 0502 | B9: =IF(Selection!$B$4="DK",VLOOKUP($A9,'Style navne sprog'!$A:$I,6,FALSE),IF(Selection!$B$4="DE",VLOOKUP($A9,'Style navne sprog'!$A:$I,2,FALSE),IF(Selection!$B$4="GB",VLOOKUP($A9,'Style navne sprog'!$A:$I,4,FALSE),IF(Selection!$B$4="SE",VLOOKUP($A9,'Style navne sprog'!$A:$I,3,FALSE),IF(Selection!$B$4="NO",VLOOKUP($A9,'Style navne sprog'!$A:$I,5,FALSE),IF(Selection!$B$4="PL",VLOOKUP($A9,'Style navne sprog'!$A:$I,7,FALSE))))))) -> T-TIME® T-shirt | tight | C9: =IF(Master!C9<>"",Master!C9*Selection!$B$3,"") -> 21.1 | D9: =IF(Master!D9<>"",Master!D9*Selection!$B$3,"") -> 19.7 | E9: 3XL | F9: =IF(Master!F9<>"",Master!F9*Selection!$B$3,"") -> 2.8 | G9: =IF(Factor!#REF!<>"",Factor!#REF!*Selection!$B$3,"") -> 
A10: 0506 | B10: =IF(Selection!$B$4="DK",VLOOKUP($A10,'Style navne sprog'!$A:$I,6,FALSE),IF(Selection!$B$4="DE",VLOOKUP($A10,'Style navne sprog'!$A:$I,2,FALSE),IF(Selection!$B$4="GB",VLOOKUP($A10,'Style navne sprog'!$A:$I,4,FALSE),IF(Selection!$B$4="SE",VLOOKUP($A10,'Style navne sprog'!$A:$I,3,FALSE),IF(Selection!$B$4="NO",VLOOKUP($A10,'Style navne sprog'!$A:$I,5,FALSE),IF(Selection!$B$4="PL",VLOOKUP($A10,'Style navne sprog'!$A:$I,7,FALSE))))))) -> Interlock T-shirt | v-neck | women | C10: =IF(Master!C10<>"",Master!C10*Selection!$B$3,"") -> 29.5 | D10: =IF(Master!D10<>"",Master!D10*Selection!$B$3,"") -> 28.2 | E10: 3XL-4XL | F10: =IF(Master!F10<>"",Master!F10*Selection!$B$3,"") -> 2.8 | G10: =IF(Factor!#REF!<>"",Factor!#REF!*Selection!$B$3,"") -> 
A11: 0508 | B11: =IF(Selection!$B$4="DK",VLOOKUP($A11,'Style navne sprog'!$A:$I,6,FALSE),IF(Selection!$B$4="DE",VLOOKUP($A11,'Style navne sprog'!$A:$I,2,FALSE),IF(Selection!$B$4="GB",VLOOKUP($A11,'Style navne sprog'!$A:$I,4,FALSE),IF(Selection!$B$4="SE",VLOOKUP($A11,'Style navne sprog'!$A:$I,3,FALSE),IF(Selection!$B$4="NO",VLOOKUP($A11,'Style navne sprog'!$A:$I,5,FALSE),IF(Selection!$B$4="PL",VLOOKUP($A11,'Style navne sprog'!$A:$I,7,FALSE))))))) -> Interlock T-shirt | women | C11: =IF(Master!C11<>"",Master!C11*Selection!$B$3,"") -> 29.5 | D11: =IF(Master!D11<>"",Master!D11*Selection!$B$3,"") -> 28.2 | E11: 3XL-4XL | F11: =IF(Master!F11<>"",Master!F11*Selection!$B$3,"") -> 2.8 | G11: =IF(Factor!#REF!<>"",Factor!#REF!*Selection!$B$3,"") -> 
A12: 0509 | B12: =IF(Selection!$B$4="DK",VLOOKUP($A12,'Style navne sprog'!$A:$I,6,FALSE),IF(Selection!$B$4="DE",VLOOKUP($A12,'Style navne sprog'!$A:$I,2,FALSE),IF(Selection!$B$4="GB",VLOOKUP($A12,'Style navne sprog'!$A:$I,4,FALSE),IF(Selection!$B$4="SE",VLOOKUP($A12,'Style navne sprog'!$A:$I,3,FALSE),IF(Selection!$B$4="NO",VLOOKUP($A12,'Style navne sprog'!$A:$I,5,FALSE),IF(Selection!$B$4="PL",VLOOKUP($A12,'Style navne sprog'!$A:$I,7,FALSE))))))) -> Interlock T-shirt | long-sleeved | women | C12: =IF(Master!C12<>"",Master!C12*Selection!$B$3,"") -> 37.4 | D12: =IF(Master!D12<>"",Master!D12*Selection!$B$3,"") -> 36.1 | E12: 3XL-4XL | F12: =IF(Master!F12<>"",Master!F12*Selection!$B$3,"") -> 2.8 | G12: =IF(Factor!#REF!<>"",Factor!#REF!*Selection!$B$3,"") -> 
A13: 0510 | B13: =IF(Selection!$B$4="DK",VLOOKUP($A13,'Style navne sprog'!$A:$I,6,FALSE),IF(Selection!$B$4="DE",VLOOKUP($A13,'Style navne sprog'!$A:$I,2,FALSE),IF(Selection!$B$4="GB",VLOOKUP($A13,'Style navne sprog'!$A:$I,4,FALSE),IF(Selection!$B$4="SE",VLOOKUP($A13,'Style navne sprog'!$A:$I,3,FALSE),IF(Selection!$B$4="NO",VLOOKUP($A13,'Style navne sprog'!$A:$I,5,FALSE),IF(Selection!$B$4="PL",VLOOKUP($A13,'Style navne sprog'!$A:$I,7,FALSE))))))) -> T-TIME® T-shirt | C13: =IF(Master!C13<>"",Master!C13*Selection!$B$3,"") -> 21.1 | D13: =IF(Master!D13<>"",Master!D13*Selection!$B$3,"") -> 19.7 | E13: 3XL-6XL | F13: =IF(Master!F13<>"",Master!F13*Selection!$B$3,"") -> 2.8 | G13: =IF(Factor!#REF!<>"",Factor!#REF!*Selection!$B$3,"") -> 
A14: 0511 | B14: =IF(Selection!$B$4="DK",VLOOKUP($A14,'Style navne sprog'!$A:$I,6,FALSE),IF(Selection!$B$4="DE",VLOOKUP($A14,'Style navne sprog'!$A:$I,2,FALSE),IF(Selection!$B$4="GB",VLOOKUP($A14,'Style navne sprog'!$A:$I,4,FALSE),IF(Selection!$B$4="SE",VLOOKUP($A14,'Style navne sprog'!$A:$I,3,FALSE),IF(Selection!$B$4="NO",VLOOKUP($A14,'Style navne sprog'!$A:$I,5,FALSE),IF(Selection!$B$4="PL",VLOOKUP($A14,'Style navne sprog'!$A:$I,7,FALSE))))))) -> T-TIME® T-shirt | women | C14: =IF(Master!C14<>"",Master!C14*Selection!$B$3,"") -> 21.1 | D14: =IF(Master!D14<>"",Master!D14*Selection!$B$3,"") -> 19.7 | E14: 3XL-6XL | F14: =IF(Master!F14<>"",Master!F14*Selection!$B$3,"") -> 2.8 | G14: =IF(Factor!#REF!<>"",Factor!#REF!*Selection!$B$3,"") -> 
A15: 0514 | B15: =IF(Selection!$B$4="DK",VLOOKUP($A15,'Style navne sprog'!$A:$I,6,FALSE),IF(Selection!$B$4="DE",VLOOKUP($A15,'Style navne sprog'!$A:$I,2,FALSE),IF(Selection!$B$4="GB",VLOOKUP($A15,'Style navne sprog'!$A:$I,4,FALSE),IF(Selection!$B$4="SE",VLOOKUP($A15,'Style navne sprog'!$A:$I,3,FALSE),IF(Selection!$B$4="NO",VLOOKUP($A15,'Style navne sprog'!$A:$I,5,FALSE),IF(Selection!$B$4="PL",VLOOKUP($A15,'Style navne sprog'!$A:$I,7,FALSE))))))) -> T-TIME® T-shirt | v-neck | C15: =IF(Master!C15<>"",Master!C15*Selection!$B$3,"") -> 21.1 | D15: =IF(Master!D15<>"",Master!D15*Selection!$B$3,"") -> 19.7 | F15: =IF(Master!F15<>"",Master!F15*Selection!$B$3,"") ->  | G15: =IF(Factor!#REF!<>"",Factor!#REF!*Selection!$B$3,"") -> 
A16: 0517 | B16: =IF(Selection!$B$4="DK",VLOOKUP($A16,'Style navne sprog'!$A:$I,6,FALSE),IF(Selection!$B$4="DE",VLOOKUP($A16,'Style navne sprog'!$A:$I,2,FALSE),IF(Selection!$B$4="GB",VLOOKUP($A16,'Style navne sprog'!$A:$I,4,FALSE),IF(Selection!$B$4="SE",VLOOKUP($A16,'Style navne sprog'!$A:$I,3,FALSE),IF(Selection!$B$4="NO",VLOOKUP($A16,'Style navne sprog'!$A:$I,5,FALSE),IF(Selection!$B$4="PL",VLOOKUP($A16,'Style navne sprog'!$A:$I,7,FALSE))))))) -> Interlock T-shirt | C16: =IF(Master!C16<>"",Master!C16*Selection!$B$3,"") -> 29.5 | D16: =IF(Master!D16<>"",Master!D16*Selection!$B$3,"") -> 28.2 | E16: 3XL | F16: =IF(Master!F16<>"",Master!F16*Selection!$B$3,"") -> 2.8 | G16: =IF(Factor!#REF!<>"",Factor!#REF!*Selection!$B$3,"") -> 
A17: 0518 | B17: =IF(Selection!$B$4="DK",VLOOKUP($A17,'Style navne sprog'!$A:$I,6,FALSE),IF(Selection!$B$4="DE",VLOOKUP($A17,'Style navne sprog'!$A:$I,2,FALSE),IF(Selection!$B$4="GB",VLOOKUP($A17,'Style navne sprog'!$A:$I,4,FALSE),IF(Selection!$B$4="SE",VLOOKUP($A17,'Style navne sprog'!$A:$I,3,FALSE),IF(Selection!$B$4="NO",VLOOKUP($A17,'Style navne sprog'!$A:$I,5,FALSE),IF(Selection!$B$4="PL",VLOOKUP($A17,'Style navne sprog'!$A:$I,7,FALSE))))))) -> Interlock T-shirt | long-sleeved | C17: =IF(Master!C17<>"",Master!C17*Selection!$B$3,"") -> 37.4 | D17: =IF(Master!D17<>"",Master!D17*Selection!$B$3,"") -> 36.1 | E17: 3XL | F17: =IF(Master!F17<>"",Master!F17*Selection!$B$3,"") -> 2.8 | G17: =IF(Factor!#REF!<>"",Factor!#REF!*Selection!$B$3,"") -> 
A18: 0524 | B18: =IF(Selection!$B$4="DK",VLOOKUP($A18,'Style navne sprog'!$A:$I,6,FALSE),IF(Selection!$B$4="DE",VLOOKUP($A18,'Style navne sprog'!$A:$I,2,FALSE),IF(Selection!$B$4="GB",VLOOKUP($A18,'Style navne sprog'!$A:$I,4,FALSE),IF(Selection!$B$4="SE",VLOOKUP($A18,'Style navne sprog'!$A:$I,3,FALSE),IF(Selection!$B$4="NO",VLOOKUP($A18,'Style navne sprog'!$A:$I,5,FALSE),IF(Selection!$B$4="PL",VLOOKUP($A18,'Style navne sprog'!$A:$I,7,FALSE))))))) -> RE-CARE T-shirt | unisex | C18: =IF(Master!C18<>"",Master!C18*Selection!$B$3,"") -> 42.7 | D18: =IF(Master!D18<>"",Master!D18*Selection!$B$3,"") -> 41.3 | E18: 3XL-4XL | F18: =IF(Master!F18<>"",Master!F18*Selection!$B$3,"") -> 2.8 | G18: =IF(Factor!#REF!<>"",Factor!#REF!*Selection!$B$3,"") -> 
A19: 0528 | B19: =IF(Selection!$B$4="DK",VLOOKUP($A19,'Style navne sprog'!$A:$I,6,FALSE),IF(Selection!$B$4="DE",VLOOKUP($A19,'Style navne sprog'!$A:$I,2,FALSE),IF(Selection!$B$4="GB",VLOOKUP($A19,'Style navne sprog'!$A:$I,4,FALSE),IF(Selection!$B$4="SE",VLOOKUP($A19,'Style navne sprog'!$A:$I,3,FALSE),IF(Selection!$B$4="NO",VLOOKUP($A19,'Style navne sprog'!$A:$I,5,FALSE),IF(Selection!$B$4="PL",VLOOKUP($A19,'Style navne sprog'!$A:$I,7,FALSE))))))) -> T-shirt Lyocell | C19: =IF(Master!C19<>"",Master!C19*Selection!$B$3,"") -> 39.2 | D19: =IF(Master!D19<>"",Master!D19*Selection!$B$3,"") -> 37.9 | E19: 3XL-6XL | F19: =IF(Master!F19<>"",Master!F19*Selection!$B$3,"") -> 2.8 | G19: =IF(Factor!#REF!<>"",Factor!#REF!*Selection!$B$3,"") -> 
A20: 0529 | B20: =IF(Selection!$B$4="DK",VLOOKUP($A20,'Style navne sprog'!$A:$I,6,FALSE),IF(Selection!$B$4="DE",VLOOKUP($A20,'Style navne sprog'!$A:$I,2,FALSE),IF(Selection!$B$4="GB",VLOOKUP($A20,'Style navne sprog'!$A:$I,4,FALSE),IF(Selection!$B$4="SE",VLOOKUP($A20,'Style navne sprog'!$A:$I,3,FALSE),IF(Selection!$B$4="NO",VLOOKUP($A20,'Style navne sprog'!$A:$I,5,FALSE),IF(Selection!$B$4="PL",VLOOKUP($A20,'Style navne sprog'!$A:$I,7,FALSE))))))) -> T-shirt Lyocell | women | C20: =IF(Master!C20<>"",Master!C20*Selection!$B$3,"") -> 39.2 | D20: =IF(Master!D20<>"",Master!D20*Selection!$B$3,"") -> 37.9 | E20: 3XL-6XL | F20: =IF(Master!F20<>"",Master!F20*Selection!$B$3,"") -> 2.8 | G20: =IF(Factor!#REF!<>"",Factor!#REF!*Selection!$B$3,"") -> 
A21: 0546 | B21: =IF(Selection!$B$4="DK",VLOOKUP($A21,'Style navne sprog'!$A:$I,6,FALSE),IF(Selection!$B$4="DE",VLOOKUP($A21,'Style navne sprog'!$A:$I,2,FALSE),IF(Selection!$B$4="GB",VLOOKUP($A21,'Style navne sprog'!$A:$I,4,FALSE),IF(Selection!$B$4="SE",VLOOKUP($A21,'Style navne sprog'!$A:$I,3,FALSE),IF(Selection!$B$4="NO",VLOOKUP($A21,'Style navne sprog'!$A:$I,5,FALSE),IF(Selection!$B$4="PL",VLOOKUP($A21,'Style navne sprog'!$A:$I,7,FALSE))))))) -> T-TIME® T-shirt | turtleneck | C21: =IF(Master!C21<>"",Master!C21*Selection!$B$3,"") -> 47.7 | D21: =IF(Master!D21<>"",Master!D21*Selection!$B$3,"") -> 46.3 | F21: =IF(Master!F21<>"",Master!F21*Selection!$B$3,"") ->  | G21: =IF(Factor!#REF!<>"",Factor!#REF!*Selection!$B$3,"") -> 
A22: 0550 | B22: =IF(Selection!$B$4="DK",VLOOKUP($A22,'Style navne sprog'!$A:$I,6,FALSE),IF(Selection!$B$4="DE",VLOOKUP($A22,'Style navne sprog'!$A:$I,2,FALSE),IF(Selection!$B$4="GB",VLOOKUP($A22,'Style navne sprog'!$A:$I,4,FALSE),IF(Selection!$B$4="SE",VLOOKUP($A22,'Style navne sprog'!$A:$I,3,FALSE),IF(Selection!$B$4="NO",VLOOKUP($A22,'Style navne sprog'!$A:$I,5,FALSE),IF(Selection!$B$4="PL",VLOOKUP($A22,'Style navne sprog'!$A:$I,7,FALSE))))))) -> T-TIME® T-shirt | chest pocket | C22: =IF(Master!C22<>"",Master!C22*Selection!$B$3,"") -> 25.2 | D22: =IF(Master!D22<>"",Master!D22*Selection!$B$3,"") -> 23.9 | E22: 3XL | F22: =IF(Master!F22<>"",Master!F22*Selection!$B$3,"") -> 2.8 | G22: =IF(Factor!#REF!<>"",Factor!#REF!*Selection!$B$3,"") -> 
A23: 0552 | B23: =IF(Selection!$B$4="DK",VLOOKUP($A23,'Style navne sprog'!$A:$I,6,FALSE),IF(Selection!$B$4="DE",VLOOKUP($A23,'Style navne sprog'!$A:$I,2,FALSE),IF(Selection!$B$4="GB",VLOOKUP($A23,'Style navne sprog'!$A:$I,4,FALSE),IF(Selection!$B$4="SE",VLOOKUP($A23,'Style navne sprog'!$A:$I,3,FALSE),IF(Selection!$B$4="NO",VLOOKUP($A23,'Style navne sprog'!$A:$I,5,FALSE),IF(Selection!$B$4="PL",VLOOKUP($A23,'Style navne sprog'!$A:$I,7,FALSE))))))) -> T-shirt | organic | C23: =IF(Master!C23<>"",Master!C23*Selection!$B$3,"") -> 24 | D23: =IF(Master!D23<>"",Master!D23*Selection!$B$3,"") -> 22.7 | E23: 3XL-4XL | F23: =IF(Master!F23<>"",Master!F23*Selection!$B$3,"") -> 2.8 | G23: =IF(Factor!#REF!<>"",Factor!#REF!*Selection!$B$3,"") -> 
A24: 0553 | B24: =IF(Selection!$B$4="DK",VLOOKUP($A24,'Style navne sprog'!$A:$I,6,FALSE),IF(Selection!$B$4="DE",VLOOKUP($A24,'Style navne sprog'!$A:$I,2,FALSE),IF(Selection!$B$4="GB",VLOOKUP($A24,'Style navne sprog'!$A:$I,4,FALSE),IF(Selection!$B$4="SE",VLOOKUP($A24,'Style navne sprog'!$A:$I,3,FALSE),IF(Selection!$B$4="NO",VLOOKUP($A24,'Style navne sprog'!$A:$I,5,FALSE),IF(Selection!$B$4="PL",VLOOKUP($A24,'Style navne sprog'!$A:$I,7,FALSE))))))) -> T-shirt | organic | women | C24: =IF(Master!C24<>"",Master!C24*Selection!$B$3,"") -> 24 | D24: =IF(Master!D24<>"",Master!D24*Selection!$B$3,"") -> 22.7 | E24: 3XL | F24: =IF(Master!F24<>"",Master!F24*Selection!$B$3,"") -> 2.8 | G24: =IF(Factor!#REF!<>"",Factor!#REF!*Selection!$B$3,"") -> 
A25: 0594 | B25: =IF(Selection!$B$4="DK",VLOOKUP($A25,'Style navne sprog'!$A:$I,6,FALSE),IF(Selection!$B$4="DE",VLOOKUP($A25,'Style navne sprog'!$A:$I,2,FALSE),IF(Selection!$B$4="GB",VLOOKUP($A25,'Style navne sprog'!$A:$I,4,FALSE),IF(Selection!$B$4="SE",VLOOKUP($A25,'Style navne sprog'!$A:$I,3,FALSE),IF(Selection!$B$4="NO",VLOOKUP($A25,'Style navne sprog'!$A:$I,5,FALSE),IF(Selection!$B$4="PL",VLOOKUP($A25,'Style navne sprog'!$A:$I,7,FALSE))))))) -> Stretch T-shirt | comfort | C25: =IF(Master!C25<>"",Master!C25*Selection!$B$3,"") -> 28.1 | D25: =IF(Master!D25<>"",Master!D25*Selection!$B$3,"") -> 26.7 | E25: 3XL | F25: =IF(Master!F25<>"",Master!F25*Selection!$B$3,"") -> 2.8 | G25: =IF(Factor!#REF!<>"",Factor!#REF!*Selection!$B$3,"") -> 
A26: 0595 | B26: =IF(Selection!$B$4="DK",VLOOKUP($A26,'Style navne sprog'!$A:$I,6,FALSE),IF(Selection!$B$4="DE",VLOOKUP($A26,'Style navne sprog'!$A:$I,2,FALSE),IF(Selection!$B$4="GB",VLOOKUP($A26,'Style navne sprog'!$A:$I,4,FALSE),IF(Selection!$B$4="SE",VLOOKUP($A26,'Style navne sprog'!$A:$I,3,FALSE),IF(Selection!$B$4="NO",VLOOKUP($A26,'Style navne sprog'!$A:$I,5,FALSE),IF(Selection!$B$4="PL",VLOOKUP($A26,'Style navne sprog'!$A:$I,7,FALSE))))))) -> Stretch T-shirt | comfort | women | C26: =IF(Master!C26<>"",Master!C26*Selection!$B$3,"") -> 28.1 | D26: =IF(Master!D26<>"",Master!D26*Selection!$B$3,"") -> 26.7 | E26: 3XL | F26: =IF(Master!F26<>"",Master!F26*Selection!$B$3,"") -> 2.8 | G26: =IF(Factor!#REF!<>"",Factor!#REF!*Selection!$B$3,"") -> 
A27: 0597 | B27: =IF(Selection!$B$4="DK",VLOOKUP($A27,'Style navne sprog'!$A:$I,6,FALSE),IF(Selection!$B$4="DE",VLOOKUP($A27,'Style navne sprog'!$A:$I,2,FALSE),IF(Selection!$B$4="GB",VLOOKUP($A27,'Style navne sprog'!$A:$I,4,FALSE),IF(Selection!$B$4="SE",VLOOKUP($A27,'Style navne sprog'!$A:$I,3,FALSE),IF(Selection!$B$4="NO",VLOOKUP($A27,'Style navne sprog'!$A:$I,5,FALSE),IF(Selection!$B$4="PL",VLOOKUP($A27,'Style navne sprog'!$A:$I,7,FALSE))))))) -> Stretch T-shirt | ¾ sleeved | women | C27: =IF(Master!C27<>"",Master!C27*Selection!$B$3,"") -> 37.3 | D27: =IF(Master!D27<>"",Master!D27*Selection!$B$3,"") -> 36 | E27: 3XL | F27: =IF(Master!F27<>"",Master!F27*Selection!$B$3,"") -> 2.8 | G27: =IF(Factor!#REF!<>"",Factor!#REF!*Selection!$B$3,"") -> 
A28: 0598 | B28: =IF(Selection!$B$4="DK",VLOOKUP($A28,'Style navne sprog'!$A:$I,6,FALSE),IF(Selection!$B$4="DE",VLOOKUP($A28,'Style navne sprog'!$A:$I,2,FALSE),IF(Selection!$B$4="GB",VLOOKUP($A28,'Style navne sprog'!$A:$I,4,FALSE),IF(Selection!$B$4="SE",VLOOKUP($A28,'Style navne sprog'!$A:$I,3,FALSE),IF(Selection!$B$4="NO",VLOOKUP($A28,'Style navne sprog'!$A:$I,5,FALSE),IF(Selection!$B$4="PL",VLOOKUP($A28,'Style navne sprog'!$A:$I,7,FALSE))))))) -> Tank top | stretch | C28: =IF(Master!C28<>"",Master!C28*Selection!$B$3,"") -> 26.6 | D28: =IF(Master!D28<>"",Master!D28*Selection!$B$3,"") -> 25.2 | E28: 3XL | F28: =IF(Master!F28<>"",Master!F28*Selection!$B$3,"") -> 2.8 | G28: =IF(Factor!#REF!<>"",Factor!#REF!*Selection!$B$3,"") -> 
A29: 0599 | B29: =IF(Selection!$B$4="DK",VLOOKUP($A29,'Style navne sprog'!$A:$I,6,FALSE),IF(Selection!$B$4="DE",VLOOKUP($A29,'Style navne sprog'!$A:$I,2,FALSE),IF(Selection!$B$4="GB",VLOOKUP($A29,'Style navne sprog'!$A:$I,4,FALSE),IF(Selection!$B$4="SE",VLOOKUP($A29,'Style navne sprog'!$A:$I,3,FALSE),IF(Selection!$B$4="NO",VLOOKUP($A29,'Style navne sprog'!$A:$I,5,FALSE),IF(Selection!$B$4="PL",VLOOKUP($A29,'Style navne sprog'!$A:$I,7,FALSE))))))) -> Tank top | stretch | women | C29: =IF(Master!C29<>"",Master!C29*Selection!$B$3,"") -> 26.6 | D29: =IF(Master!D29<>"",Master!D29*Selection!$B$3,"") -> 25.2 | E29: 3XL | F29: =IF(Master!F29<>"",Master!F29*Selection!$B$3,"") -> 2.8 | G29: =IF(Factor!#REF!<>"",Factor!#REF!*Selection!$B$3,"") -> 
A30: 2000 | B30: =IF(Selection!$B$4="DK",VLOOKUP($A30,'Style navne sprog'!$A:$I,6,FALSE),IF(Selection!$B$4="DE",VLOOKUP($A30,'Style navne sprog'!$A:$I,2,FALSE),IF(Selection!$B$4="GB",VLOOKUP($A30,'Style navne sprog'!$A:$I,4,FALSE),IF(Selection!$B$4="SE",VLOOKUP($A30,'Style navne sprog'!$A:$I,3,FALSE),IF(Selection!$B$4="NO",VLOOKUP($A30,'Style navne sprog'!$A:$I,5,FALSE),IF(Selection!$B$4="PL",VLOOKUP($A30,'Style navne sprog'!$A:$I,7,FALSE))))))) -> YES T-shirt | C30: =IF(Master!C30<>"",Master!C30*Selection!$B$3,"") -> 14 | D30: =IF(Master!D30<>"",Master!D30*Selection!$B$3,"") -> 12.6 | E30: 3XL | F30: =IF(Master!F30<>"",Master!F30*Selection!$B$3,"") -> 2.8 | G30: =IF(Factor!#REF!<>"",Factor!#REF!*Selection!$B$3,"") -> 
A31: 2030 | B31: =IF(Selection!$B$4="DK",VLOOKUP($A31,'Style navne sprog'!$A:$I,6,FALSE),IF(Selection!$B$4="DE",VLOOKUP($A31,'Style navne sprog'!$A:$I,2,FALSE),IF(Selection!$B$4="GB",VLOOKUP($A31,'Style navne sprog'!$A:$I,4,FALSE),IF(Selection!$B$4="SE",VLOOKUP($A31,'Style navne sprog'!$A:$I,3,FALSE),IF(Selection!$B$4="NO",VLOOKUP($A31,'Style navne sprog'!$A:$I,5,FALSE),IF(Selection!$B$4="PL",VLOOKUP($A31,'Style navne sprog'!$A:$I,7,FALSE))))))) -> YES Active T-shirt | C31: =IF(Master!C31<>"",Master!C31*Selection!$B$3,"") -> 21.2 | D31: =IF(Master!D31<>"",Master!D31*Selection!$B$3,"") -> 19.9 | E31: 3XL | F31: =IF(Master!F31<>"",Master!F31*Selection!$B$3,"") -> 2.8 | G31: =IF(Factor!#REF!<>"",Factor!#REF!*Selection!$B$3,"") -> 
A32: 2032 | B32: =IF(Selection!$B$4="DK",VLOOKUP($A32,'Style navne sprog'!$A:$I,6,FALSE),IF(Selection!$B$4="DE",VLOOKUP($A32,'Style navne sprog'!$A:$I,2,FALSE),IF(Selection!$B$4="GB",VLOOKUP($A32,'Style navne sprog'!$A:$I,4,FALSE),IF(Selection!$B$4="SE",VLOOKUP($A32,'Style navne sprog'!$A:$I,3,FALSE),IF(Selection!$B$4="NO",VLOOKUP($A32,'Style navne sprog'!$A:$I,5,FALSE),IF(Selection!$B$4="PL",VLOOKUP($A32,'Style navne sprog'!$A:$I,7,FALSE))))))) -> YES Active T-shirt | women | C32: =IF(Master!C32<>"",Master!C32*Selection!$B$3,"") -> 21.2 | D32: =IF(Master!D32<>"",Master!D32*Selection!$B$3,"") -> 19.9 | E32: 3XL | F32: =IF(Master!F32<>"",Master!F32*Selection!$B$3,"") -> 2.8 | G32: =IF(Factor!#REF!<>"",Factor!#REF!*Selection!$B$3,"") -> 
A34: =IF(Selection!$B$4="PL","KOSZULKI POLO",IF(Selection!$B$4="SE","PIKÉ TRÖJOR",IF(Selection!$B$4="GB","POLO SHIRTS",IF(Selection!$B$4="NO","POLOSKJORTER","POLOSHIRTS")))) -> POLO SHIRTS
A35: 0520 | B35: =IF(Selection!$B$4="DK",VLOOKUP($A35,'Style navne sprog'!$A:$I,6,FALSE),IF(Selection!$B$4="DE",VLOOKUP($A35,'Style navne sprog'!$A:$I,2,FALSE),IF(Selection!$B$4="GB",VLOOKUP($A35,'Style navne sprog'!$A:$I,4,FALSE),IF(Selection!$B$4="SE",VLOOKUP($A35,'Style navne sprog'!$A:$I,3,FALSE),IF(Selection!$B$4="NO",VLOOKUP($A35,'Style navne sprog'!$A:$I,5,FALSE),IF(Selection!$B$4="PL",VLOOKUP($A35,'Style navne sprog'!$A:$I,7,FALSE))))))) -> Polo shirt classic | C35: =IF(Master!C35<>"",Master!C35*Selection!$B$3,"") -> 44.8 | D35: =IF(Master!D35<>"",Master!D35*Selection!$B$3,"") -> 42.1 | E35: 3XL-6XL | F35: =IF(Master!F35<>"",Master!F35*Selection!$B$3,"") -> 5.4 | G35: =IF(Factor!#REF!<>"",Factor!#REF!*Selection!$B$3,"") -> 
A36: 0521 | B36: =IF(Selection!$B$4="DK",VLOOKUP($A36,'Style navne sprog'!$A:$I,6,FALSE),IF(Selection!$B$4="DE",VLOOKUP($A36,'Style navne sprog'!$A:$I,2,FALSE),IF(Selection!$B$4="GB",VLOOKUP($A36,'Style navne sprog'!$A:$I,4,FALSE),IF(Selection!$B$4="SE",VLOOKUP($A36,'Style navne sprog'!$A:$I,3,FALSE),IF(Selection!$B$4="NO",VLOOKUP($A36,'Style navne sprog'!$A:$I,5,FALSE),IF(Selection!$B$4="PL",VLOOKUP($A36,'Style navne sprog'!$A:$I,7,FALSE))))))) -> Polo shirt classic | women | C36: =IF(Master!C36<>"",Master!C36*Selection!$B$3,"") -> 44.8 | D36: =IF(Master!D36<>"",Master!D36*Selection!$B$3,"") -> 42.1 | E36: 3XL | F36: =IF(Master!F36<>"",Master!F36*Selection!$B$3,"") -> 5.4 | G36: =IF(Factor!#REF!<>"",Factor!#REF!*Selection!$B$3,"") -> 
A37: 0522 | B37: =IF(Selection!$B$4="DK",VLOOKUP($A37,'Style navne sprog'!$A:$I,6,FALSE),IF(Selection!$B$4="DE",VLOOKUP($A37,'Style navne sprog'!$A:$I,2,FALSE),IF(Selection!$B$4="GB",VLOOKUP($A37,'Style navne sprog'!$A:$I,4,FALSE),IF(Selection!$B$4="SE",VLOOKUP($A37,'Style navne sprog'!$A:$I,3,FALSE),IF(Selection!$B$4="NO",VLOOKUP($A37,'Style navne sprog'!$A:$I,5,FALSE),IF(Selection!$B$4="PL",VLOOKUP($A37,'Style navne sprog'!$A:$I,7,FALSE))))))) -> Contrast polo shirt | stretch | C37: =IF(Master!C37<>"",Master!C37*Selection!$B$3,"") -> 52.6 | D37: =IF(Master!D37<>"",Master!D37*Selection!$B$3,"") -> 49.9 | E37: 3XL-4XL | F37: =IF(Master!F37<>"",Master!F37*Selection!$B$3,"") -> 5.4 | G37: =IF(Factor!#REF!<>"",Factor!#REF!*Selection!$B$3,"") -> 
A38: 0523 | B38: =IF(Selection!$B$4="DK",VLOOKUP($A38,'Style navne sprog'!$A:$I,6,FALSE),IF(Selection!$B$4="DE",VLOOKUP($A38,'Style navne sprog'!$A:$I,2,FALSE),IF(Selection!$B$4="GB",VLOOKUP($A38,'Style navne sprog'!$A:$I,4,FALSE),IF(Selection!$B$4="SE",VLOOKUP($A38,'Style navne sprog'!$A:$I,3,FALSE),IF(Selection!$B$4="NO",VLOOKUP($A38,'Style navne sprog'!$A:$I,5,FALSE),IF(Selection!$B$4="PL",VLOOKUP($A38,'Style navne sprog'!$A:$I,7,FALSE))))))) -> Contrast polo shirt | stretch | women | C38: =IF(Master!C38<>"",Master!C38*Selection!$B$3,"") -> 52.6 | D38: =IF(Master!D38<>"",Master!D38*Selection!$B$3,"") -> 49.9 | E38: 3XL-4XL | F38: =IF(Master!F38<>"",Master!F38*Selection!$B$3,"") -> 5.4 | G38: =IF(Factor!#REF!<>"",Factor!#REF!*Selection!$B$3,"") -> 
A39: 0525 | B39: =IF(Selection!$B$4="DK",VLOOKUP($A39,'Style navne sprog'!$A:$I,6,FALSE),IF(Selection!$B$4="DE",VLOOKUP($A39,'Style navne sprog'!$A:$I,2,FALSE),IF(Selection!$B$4="GB",VLOOKUP($A39,'Style navne sprog'!$A:$I,4,FALSE),IF(Selection!$B$4="SE",VLOOKUP($A39,'Style navne sprog'!$A:$I,3,FALSE),IF(Selection!$B$4="NO",VLOOKUP($A39,'Style navne sprog'!$A:$I,5,FALSE),IF(Selection!$B$4="PL",VLOOKUP($A39,'Style navne sprog'!$A:$I,7,FALSE))))))) -> Polo shirt | stretch | C39: =IF(Master!C39<>"",Master!C39*Selection!$B$3,"") -> 48.7 | D39: =IF(Master!D39<>"",Master!D39*Selection!$B$3,"") -> 46 | E39: 3XL-6XL | F39: =IF(Master!F39<>"",Master!F39*Selection!$B$3,"") -> 5.4 | G39: =IF(Factor!#REF!<>"",Factor!#REF!*Selection!$B$3,"") -> 
A40: 0527 | B40: =IF(Selection!$B$4="DK",VLOOKUP($A40,'Style navne sprog'!$A:$I,6,FALSE),IF(Selection!$B$4="DE",VLOOKUP($A40,'Style navne sprog'!$A:$I,2,FALSE),IF(Selection!$B$4="GB",VLOOKUP($A40,'Style navne sprog'!$A:$I,4,FALSE),IF(Selection!$B$4="SE",VLOOKUP($A40,'Style navne sprog'!$A:$I,3,FALSE),IF(Selection!$B$4="NO",VLOOKUP($A40,'Style navne sprog'!$A:$I,5,FALSE),IF(Selection!$B$4="PL",VLOOKUP($A40,'Style navne sprog'!$A:$I,7,FALSE))))))) -> Polo shirt | stretch | women | C40: =IF(Master!C40<>"",Master!C40*Selection!$B$3,"") -> 48.7 | D40: =IF(Master!D40<>"",Master!D40*Selection!$B$3,"") -> 46 | E40: 3XL-6XL | F40: =IF(Master!F40<>"",Master!F40*Selection!$B$3,"") -> 5.4 | G40: =IF(Factor!#REF!<>"",Factor!#REF!*Selection!$B$3,"") -> 
A41: 0534 | B41: =IF(Selection!$B$4="DK",VLOOKUP($A41,'Style navne sprog'!$A:$I,6,FALSE),IF(Selection!$B$4="DE",VLOOKUP($A41,'Style navne sprog'!$A:$I,2,FALSE),IF(Selection!$B$4="GB",VLOOKUP($A41,'Style navne sprog'!$A:$I,4,FALSE),IF(Selection!$B$4="SE",VLOOKUP($A41,'Style navne sprog'!$A:$I,3,FALSE),IF(Selection!$B$4="NO",VLOOKUP($A41,'Style navne sprog'!$A:$I,5,FALSE),IF(Selection!$B$4="PL",VLOOKUP($A41,'Style navne sprog'!$A:$I,7,FALSE))))))) -> Business polo shirt | jersey | C41: =IF(Master!C41<>"",Master!C41*Selection!$B$3,"") -> 64.3 | D41: =IF(Master!D41<>"",Master!D41*Selection!$B$3,"") ->  | E41: 3XL-4XL | F41: =IF(Master!F41<>"",Master!F41*Selection!$B$3,"") -> 5.4 | G41: =IF(Factor!#REF!<>"",Factor!#REF!*Selection!$B$3,"") -> 
A42: 0535 | B42: =IF(Selection!$B$4="DK",VLOOKUP($A42,'Style navne sprog'!$A:$I,6,FALSE),IF(Selection!$B$4="DE",VLOOKUP($A42,'Style navne sprog'!$A:$I,2,FALSE),IF(Selection!$B$4="GB",VLOOKUP($A42,'Style navne sprog'!$A:$I,4,FALSE),IF(Selection!$B$4="SE",VLOOKUP($A42,'Style navne sprog'!$A:$I,3,FALSE),IF(Selection!$B$4="NO",VLOOKUP($A42,'Style navne sprog'!$A:$I,5,FALSE),IF(Selection!$B$4="PL",VLOOKUP($A42,'Style navne sprog'!$A:$I,7,FALSE))))))) -> Business polo shirt | jersey | women | C42: =IF(Master!C42<>"",Master!C42*Selection!$B$3,"") -> 64.3 | D42: =IF(Master!D42<>"",Master!D42*Selection!$B$3,"") ->  | E42: 3XL | F42: =IF(Master!F42<>"",Master!F42*Selection!$B$3,"") -> 5.4 | G42: =IF(Factor!#REF!<>"",Factor!#REF!*Selection!$B$3,"") -> 
A43: 0544 | B43: =IF(Selection!$B$4="DK",VLOOKUP($A43,'Style navne sprog'!$A:$I,6,FALSE),IF(Selection!$B$4="DE",VLOOKUP($A43,'Style navne sprog'!$A:$I,2,FALSE),IF(Selection!$B$4="GB",VLOOKUP($A43,'Style navne sprog'!$A:$I,4,FALSE),IF(Selection!$B$4="SE",VLOOKUP($A43,'Style navne sprog'!$A:$I,3,FALSE),IF(Selection!$B$4="NO",VLOOKUP($A43,'Style navne sprog'!$A:$I,5,FALSE),IF(Selection!$B$4="PL",VLOOKUP($A43,'Style navne sprog'!$A:$I,7,FALSE))))))) -> Long-sleeved polo shirt | stretch | C43: =IF(Master!C43<>"",Master!C43*Selection!$B$3,"") -> 55.3 | D43: =IF(Master!D43<>"",Master!D43*Selection!$B$3,"") -> 52.6 | E43: 3XL-6XL | F43: =IF(Master!F43<>"",Master!F43*Selection!$B$3,"") -> 5.4 | G43: =IF(Factor!#REF!<>"",Factor!#REF!*Selection!$B$3,"") -> 
A44: 0545 | B44: =IF(Selection!$B$4="DK",VLOOKUP($A44,'Style navne sprog'!$A:$I,6,FALSE),IF(Selection!$B$4="DE",VLOOKUP($A44,'Style navne sprog'!$A:$I,2,FALSE),IF(Selection!$B$4="GB",VLOOKUP($A44,'Style navne sprog'!$A:$I,4,FALSE),IF(Selection!$B$4="SE",VLOOKUP($A44,'Style navne sprog'!$A:$I,3,FALSE),IF(Selection!$B$4="NO",VLOOKUP($A44,'Style navne sprog'!$A:$I,5,FALSE),IF(Selection!$B$4="PL",VLOOKUP($A44,'Style navne sprog'!$A:$I,7,FALSE))))))) -> Long-sleeved polo shirt | stretch | women | C44: =IF(Master!C44<>"",Master!C44*Selection!$B$3,"") -> 55.3 | D44: =IF(Master!D44<>"",Master!D44*Selection!$B$3,"") -> 52.6 | E44: 3XL-6XL | F44: =IF(Master!F44<>"",Master!F44*Selection!$B$3,"") -> 5.4 | G44: =IF(Factor!#REF!<>"",Factor!#REF!*Selection!$B$3,"") -> 
A45: 0572 | B45: =IF(Selection!$B$4="DK",VLOOKUP($A45,'Style navne sprog'!$A:$I,6,FALSE),IF(Selection!$B$4="DE",VLOOKUP($A45,'Style navne sprog'!$A:$I,2,FALSE),IF(Selection!$B$4="GB",VLOOKUP($A45,'Style navne sprog'!$A:$I,4,FALSE),IF(Selection!$B$4="SE",VLOOKUP($A45,'Style navne sprog'!$A:$I,3,FALSE),IF(Selection!$B$4="NO",VLOOKUP($A45,'Style navne sprog'!$A:$I,5,FALSE),IF(Selection!$B$4="PL",VLOOKUP($A45,'Style navne sprog'!$A:$I,7,FALSE))))))) -> Polo shirt I active | C45: =IF(Master!C45<>"",Master!C45*Selection!$B$3,"") -> 66.8 | D45: =IF(Master!D45<>"",Master!D45*Selection!$B$3,"") ->  | E45: 3XL-4XL | F45: =IF(Master!F45<>"",Master!F45*Selection!$B$3,"") -> 5.4 | G45: =IF(Factor!#REF!<>"",Factor!#REF!*Selection!$B$3,"") -> 
A46: 0573 | B46: =IF(Selection!$B$4="DK",VLOOKUP($A46,'Style navne sprog'!$A:$I,6,FALSE),IF(Selection!$B$4="DE",VLOOKUP($A46,'Style navne sprog'!$A:$I,2,FALSE),IF(Selection!$B$4="GB",VLOOKUP($A46,'Style navne sprog'!$A:$I,4,FALSE),IF(Selection!$B$4="SE",VLOOKUP($A46,'Style navne sprog'!$A:$I,3,FALSE),IF(Selection!$B$4="NO",VLOOKUP($A46,'Style navne sprog'!$A:$I,5,FALSE),IF(Selection!$B$4="PL",VLOOKUP($A46,'Style navne sprog'!$A:$I,7,FALSE))))))) -> Polo shirt | active | women | C46: =IF(Master!C46<>"",Master!C46*Selection!$B$3,"") -> 66.8 | D46: =IF(Master!D46<>"",Master!D46*Selection!$B$3,"") ->  | E46: 3XL-4XL | F46: =IF(Master!F46<>"",Master!F46*Selection!$B$3,"") -> 5.4 | G46: =IF(Factor!#REF!<>"",Factor!#REF!*Selection!$B$3,"") -> 
A47: 0586 | B47: =IF(Selection!$B$4="DK",VLOOKUP($A47,'Style navne sprog'!$A:$I,6,FALSE),IF(Selection!$B$4="DE",VLOOKUP($A47,'Style navne sprog'!$A:$I,2,FALSE),IF(Selection!$B$4="GB",VLOOKUP($A47,'Style navne sprog'!$A:$I,4,FALSE),IF(Selection!$B$4="SE",VLOOKUP($A47,'Style navne sprog'!$A:$I,3,FALSE),IF(Selection!$B$4="NO",VLOOKUP($A47,'Style navne sprog'!$A:$I,5,FALSE),IF(Selection!$B$4="PL",VLOOKUP($A47,'Style navne sprog'!$A:$I,7,FALSE))))))) -> Polo shirt | organic | C47: =IF(Master!C47<>"",Master!C47*Selection!$B$3,"") -> 59.9 | D47: =IF(Master!D47<>"",Master!D47*Selection!$B$3,"") -> 57.2 | E47: 3XL-4XL | F47: =IF(Master!F47<>"",Master!F47*Selection!$B$3,"") -> 5.4 | G47: =IF(Factor!#REF!<>"",Factor!#REF!*Selection!$B$3,"") -> 
A48: 0587 | B48: =IF(Selection!$B$4="DK",VLOOKUP($A48,'Style navne sprog'!$A:$I,6,FALSE),IF(Selection!$B$4="DE",VLOOKUP($A48,'Style navne sprog'!$A:$I,2,FALSE),IF(Selection!$B$4="GB",VLOOKUP($A48,'Style navne sprog'!$A:$I,4,FALSE),IF(Selection!$B$4="SE",VLOOKUP($A48,'Style navne sprog'!$A:$I,3,FALSE),IF(Selection!$B$4="NO",VLOOKUP($A48,'Style navne sprog'!$A:$I,5,FALSE),IF(Selection!$B$4="PL",VLOOKUP($A48,'Style navne sprog'!$A:$I,7,FALSE))))))) -> Polo shirt | organic | women | C48: =IF(Master!C48<>"",Master!C48*Selection!$B$3,"") -> 59.9 | D48: =IF(Master!D48<>"",Master!D48*Selection!$B$3,"") -> 57.2 | E48: 3XL | F48: =IF(Master!F48<>"",Master!F48*Selection!$B$3,"") -> 5.4 | G48: =IF(Factor!#REF!<>"",Factor!#REF!*Selection!$B$3,"") -> 
A49: 2020 | B49: =IF(Selection!$B$4="DK",VLOOKUP($A49,'Style navne sprog'!$A:$I,6,FALSE),IF(Selection!$B$4="DE",VLOOKUP($A49,'Style navne sprog'!$A:$I,2,FALSE),IF(Selection!$B$4="GB",VLOOKUP($A49,'Style navne sprog'!$A:$I,4,FALSE),IF(Selection!$B$4="SE",VLOOKUP($A49,'Style navne sprog'!$A:$I,3,FALSE),IF(Selection!$B$4="NO",VLOOKUP($A49,'Style navne sprog'!$A:$I,5,FALSE),IF(Selection!$B$4="PL",VLOOKUP($A49,'Style navne sprog'!$A:$I,7,FALSE))))))) -> YES polo shirt | C49: =IF(Master!C49<>"",Master!C49*Selection!$B$3,"") -> 32.3 | D49: =IF(Master!D49<>"",Master!D49*Selection!$B$3,"") ->  | E49: 3XL | F49: =IF(Master!F49<>"",Master!F49*Selection!$B$3,"") -> 5.4 | G49: =IF(Factor!#REF!<>"",Factor!#REF!*Selection!$B$3,"") -> 
A51: =IF(Selection!$B$4="PL","BLUZY","SWEAT") -> SWEAT
A52: 0600 | B52: =IF(Selection!$B$4="DK",VLOOKUP($A52,'Style navne sprog'!$A:$I,6,FALSE),IF(Selection!$B$4="DE",VLOOKUP($A52,'Style navne sprog'!$A:$I,2,FALSE),IF(Selection!$B$4="GB",VLOOKUP($A52,'Style navne sprog'!$A:$I,4,FALSE),IF(Selection!$B$4="SE",VLOOKUP($A52,'Style navne sprog'!$A:$I,3,FALSE),IF(Selection!$B$4="NO",VLOOKUP($A52,'Style navne sprog'!$A:$I,5,FALSE),IF(Selection!$B$4="PL",VLOOKUP($A52,'Style navne sprog'!$A:$I,7,FALSE))))))) -> Sweatshirt | classic | C52: =IF(Master!C52<>"",Master!C52*Selection!$B$3,"") -> 57.3 | D52: =IF(Master!D52<>"",Master!D52*Selection!$B$3,"") -> 54.6 | E52: 3XL-6XL | F52: =IF(Master!F52<>"",Master!F52*Selection!$B$3,"") -> 5.4 | G52: =IF(Factor!#REF!<>"",Factor!#REF!*Selection!$B$3,"") -> 
A53: 0601 | B53: =IF(Selection!$B$4="DK",VLOOKUP($A53,'Style navne sprog'!$A:$I,6,FALSE),IF(Selection!$B$4="DE",VLOOKUP($A53,'Style navne sprog'!$A:$I,2,FALSE),IF(Selection!$B$4="GB",VLOOKUP($A53,'Style navne sprog'!$A:$I,4,FALSE),IF(Selection!$B$4="SE",VLOOKUP($A53,'Style navne sprog'!$A:$I,3,FALSE),IF(Selection!$B$4="NO",VLOOKUP($A53,'Style navne sprog'!$A:$I,5,FALSE),IF(Selection!$B$4="PL",VLOOKUP($A53,'Style navne sprog'!$A:$I,7,FALSE))))))) -> Polo sweatshirt | classic | C53: =IF(Master!C53<>"",Master!C53*Selection!$B$3,"") -> 67.7 | D53: =IF(Master!D53<>"",Master!D53*Selection!$B$3,"") ->  | E53: 3XL-4XL | F53: =IF(Master!F53<>"",Master!F53*Selection!$B$3,"") -> 5.4 | G53: =IF(Factor!#REF!<>"",Factor!#REF!*Selection!$B$3,"") -> 
A54: 0603 | B54: =IF(Selection!$B$4="DK",VLOOKUP($A54,'Style navne sprog'!$A:$I,6,FALSE),IF(Selection!$B$4="DE",VLOOKUP($A54,'Style navne sprog'!$A:$I,2,FALSE),IF(Selection!$B$4="GB",VLOOKUP($A54,'Style navne sprog'!$A:$I,4,FALSE),IF(Selection!$B$4="SE",VLOOKUP($A54,'Style navne sprog'!$A:$I,3,FALSE),IF(Selection!$B$4="NO",VLOOKUP($A54,'Style navne sprog'!$A:$I,5,FALSE),IF(Selection!$B$4="PL",VLOOKUP($A54,'Style navne sprog'!$A:$I,7,FALSE))))))) -> Sweatshirt | zip | C54: =IF(Master!C54<>"",Master!C54*Selection!$B$3,"") -> 88.5 | D54: =IF(Master!D54<>"",Master!D54*Selection!$B$3,"") ->  | E54: 3XL | F54: =IF(Master!F54<>"",Master!F54*Selection!$B$3,"") -> 5.4 | G54: =IF(Factor!#REF!<>"",Factor!#REF!*Selection!$B$3,"") -> 
A55: 0604 | B55: =IF(Selection!$B$4="DK",VLOOKUP($A55,'Style navne sprog'!$A:$I,6,FALSE),IF(Selection!$B$4="DE",VLOOKUP($A55,'Style navne sprog'!$A:$I,2,FALSE),IF(Selection!$B$4="GB",VLOOKUP($A55,'Style navne sprog'!$A:$I,4,FALSE),IF(Selection!$B$4="SE",VLOOKUP($A55,'Style navne sprog'!$A:$I,3,FALSE),IF(Selection!$B$4="NO",VLOOKUP($A55,'Style navne sprog'!$A:$I,5,FALSE),IF(Selection!$B$4="PL",VLOOKUP($A55,'Style navne sprog'!$A:$I,7,FALSE))))))) -> Classic sweatshirt | cotton | C55: =IF(Master!C55<>"",Master!C55*Selection!$B$3,"") -> 59.7 | D55: =IF(Master!D55<>"",Master!D55*Selection!$B$3,"") ->  | E55: 3XL-4XL | F55: =IF(Master!F55<>"",Master!F55*Selection!$B$3,"") -> 5.4 | G55: =IF(Factor!#REF!<>"",Factor!#REF!*Selection!$B$3,"") -> 
A56: 0613 | B56: =IF(Selection!$B$4="DK",VLOOKUP($A56,'Style navne sprog'!$A:$I,6,FALSE),IF(Selection!$B$4="DE",VLOOKUP($A56,'Style navne sprog'!$A:$I,2,FALSE),IF(Selection!$B$4="GB",VLOOKUP($A56,'Style navne sprog'!$A:$I,4,FALSE),IF(Selection!$B$4="SE",VLOOKUP($A56,'Style navne sprog'!$A:$I,3,FALSE),IF(Selection!$B$4="NO",VLOOKUP($A56,'Style navne sprog'!$A:$I,5,FALSE),IF(Selection!$B$4="PL",VLOOKUP($A56,'Style navne sprog'!$A:$I,7,FALSE))))))) -> Sweatshirt | business | C56: =IF(Master!C56<>"",Master!C56*Selection!$B$3,"") -> 85.6 | D56: =IF(Master!D56<>"",Master!D56*Selection!$B$3,"") ->  | E56: 3XL | F56: =IF(Master!F56<>"",Master!F56*Selection!$B$3,"") -> 5.4 | G56: =IF(Factor!#REF!<>"",Factor!#REF!*Selection!$B$3,"") -> 
A57: 0622 | B57: =IF(Selection!$B$4="DK",VLOOKUP($A57,'Style navne sprog'!$A:$I,6,FALSE),IF(Selection!$B$4="DE",VLOOKUP($A57,'Style navne sprog'!$A:$I,2,FALSE),IF(Selection!$B$4="GB",VLOOKUP($A57,'Style navne sprog'!$A:$I,4,FALSE),IF(Selection!$B$4="SE",VLOOKUP($A57,'Style navne sprog'!$A:$I,3,FALSE),IF(Selection!$B$4="NO",VLOOKUP($A57,'Style navne sprog'!$A:$I,5,FALSE),IF(Selection!$B$4="PL",VLOOKUP($A57,'Style navne sprog'!$A:$I,7,FALSE))))))) -> Sweat cardigan | C57: =IF(Master!C57<>"",Master!C57*Selection!$B$3,"") -> 97.2 | D57: =IF(Master!D57<>"",Master!D57*Selection!$B$3,"") ->  | E57: 3XL | F57: =IF(Master!F57<>"",Master!F57*Selection!$B$3,"") -> 5.4 | G57: =IF(Factor!#REF!<>"",Factor!#REF!*Selection!$B$3,"") -> 
A58: 0624 | B58: =IF(Selection!$B$4="DK",VLOOKUP($A58,'Style navne sprog'!$A:$I,6,FALSE),IF(Selection!$B$4="DE",VLOOKUP($A58,'Style navne sprog'!$A:$I,2,FALSE),IF(Selection!$B$4="GB",VLOOKUP($A58,'Style navne sprog'!$A:$I,4,FALSE),IF(Selection!$B$4="SE",VLOOKUP($A58,'Style navne sprog'!$A:$I,3,FALSE),IF(Selection!$B$4="NO",VLOOKUP($A58,'Style navne sprog'!$A:$I,5,FALSE),IF(Selection!$B$4="PL",VLOOKUP($A58,'Style navne sprog'!$A:$I,7,FALSE))))))) -> Sweat cardigan | women | C58: =IF(Master!C58<>"",Master!C58*Selection!$B$3,"") -> 97.2 | D58: =IF(Master!D58<>"",Master!D58*Selection!$B$3,"") ->  | E58: 3XL | F58: =IF(Master!F58<>"",Master!F58*Selection!$B$3,"") -> 5.4 | G58: =IF(Factor!#REF!<>"",Factor!#REF!*Selection!$B$3,"") -> 
A59: 0626 | B59: =IF(Selection!$B$4="DK",VLOOKUP($A59,'Style navne sprog'!$A:$I,6,FALSE),IF(Selection!$B$4="DE",VLOOKUP($A59,'Style navne sprog'!$A:$I,2,FALSE),IF(Selection!$B$4="GB",VLOOKUP($A59,'Style navne sprog'!$A:$I,4,FALSE),IF(Selection!$B$4="SE",VLOOKUP($A59,'Style navne sprog'!$A:$I,3,FALSE),IF(Selection!$B$4="NO",VLOOKUP($A59,'Style navne sprog'!$A:$I,5,FALSE),IF(Selection!$B$4="PL",VLOOKUP($A59,'Style navne sprog'!$A:$I,7,FALSE))))))) -> Sweat cardigan | contrast | C59: =IF(Master!C59<>"",Master!C59*Selection!$B$3,"") -> 120.5 | D59: =IF(Master!D59<>"",Master!D59*Selection!$B$3,"") ->  | E59: 3XL | F59: =IF(Master!F59<>"",Master!F59*Selection!$B$3,"") -> 5.4 | G59: =IF(Factor!#REF!<>"",Factor!#REF!*Selection!$B$3,"") -> 
A60: 0627 | B60: =IF(Selection!$B$4="DK",VLOOKUP($A60,'Style navne sprog'!$A:$I,6,FALSE),IF(Selection!$B$4="DE",VLOOKUP($A60,'Style navne sprog'!$A:$I,2,FALSE),IF(Selection!$B$4="GB",VLOOKUP($A60,'Style navne sprog'!$A:$I,4,FALSE),IF(Selection!$B$4="SE",VLOOKUP($A60,'Style navne sprog'!$A:$I,3,FALSE),IF(Selection!$B$4="NO",VLOOKUP($A60,'Style navne sprog'!$A:$I,5,FALSE),IF(Selection!$B$4="PL",VLOOKUP($A60,'Style navne sprog'!$A:$I,7,FALSE))))))) -> Sweat cardigan | contrast | women | C60: =IF(Master!C60<>"",Master!C60*Selection!$B$3,"") -> 120.5 | D60: =IF(Master!D60<>"",Master!D60*Selection!$B$3,"") ->  | E60: 3XL | F60: =IF(Master!F60<>"",Master!F60*Selection!$B$3,"") -> 5.4 | G60: =IF(Factor!#REF!<>"",Factor!#REF!*Selection!$B$3,"") -> 
A61: 0628 | B61: =IF(Selection!$B$4="DK",VLOOKUP($A61,'Style navne sprog'!$A:$I,6,FALSE),IF(Selection!$B$4="DE",VLOOKUP($A61,'Style navne sprog'!$A:$I,2,FALSE),IF(Selection!$B$4="GB",VLOOKUP($A61,'Style navne sprog'!$A:$I,4,FALSE),IF(Selection!$B$4="SE",VLOOKUP($A61,'Style navne sprog'!$A:$I,3,FALSE),IF(Selection!$B$4="NO",VLOOKUP($A61,'Style navne sprog'!$A:$I,5,FALSE),IF(Selection!$B$4="PL",VLOOKUP($A61,'Style navne sprog'!$A:$I,7,FALSE))))))) -> Sweat cardigan | zip | C61: =IF(Master!C61<>"",Master!C61*Selection!$B$3,"") -> 98.9 | D61: =IF(Master!D61<>"",Master!D61*Selection!$B$3,"") ->  | E61: 3XL-4XL | F61: =IF(Master!F61<>"",Master!F61*Selection!$B$3,"") -> 5.4 | G61: =IF(Factor!#REF!<>"",Factor!#REF!*Selection!$B$3,"") -> 
A62: 0629 | B62: =IF(Selection!$B$4="DK",VLOOKUP($A62,'Style navne sprog'!$A:$I,6,FALSE),IF(Selection!$B$4="DE",VLOOKUP($A62,'Style navne sprog'!$A:$I,2,FALSE),IF(Selection!$B$4="GB",VLOOKUP($A62,'Style navne sprog'!$A:$I,4,FALSE),IF(Selection!$B$4="SE",VLOOKUP($A62,'Style navne sprog'!$A:$I,3,FALSE),IF(Selection!$B$4="NO",VLOOKUP($A62,'Style navne sprog'!$A:$I,5,FALSE),IF(Selection!$B$4="PL",VLOOKUP($A62,'Style navne sprog'!$A:$I,7,FALSE))))))) -> Sweat cardigan | zip | women | C62: =IF(Master!C62<>"",Master!C62*Selection!$B$3,"") -> 98.9 | D62: =IF(Master!D62<>"",Master!D62*Selection!$B$3,"") ->  | E62: 3XL-4XL | F62: =IF(Master!F62<>"",Master!F62*Selection!$B$3,"") -> 5.4 | G62: =IF(Factor!#REF!<>"",Factor!#REF!*Selection!$B$3,"") -> 
A63: 0630 | B63: =IF(Selection!$B$4="DK",VLOOKUP($A63,'Style navne sprog'!$A:$I,6,FALSE),IF(Selection!$B$4="DE",VLOOKUP($A63,'Style navne sprog'!$A:$I,2,FALSE),IF(Selection!$B$4="GB",VLOOKUP($A63,'Style navne sprog'!$A:$I,4,FALSE),IF(Selection!$B$4="SE",VLOOKUP($A63,'Style navne sprog'!$A:$I,3,FALSE),IF(Selection!$B$4="NO",VLOOKUP($A63,'Style navne sprog'!$A:$I,5,FALSE),IF(Selection!$B$4="PL",VLOOKUP($A63,'Style navne sprog'!$A:$I,7,FALSE))))))) -> Sweat cardigan | bonded | C63: =IF(Master!C63<>"",Master!C63*Selection!$B$3,"") -> 161.1 | D63: =IF(Master!D63<>"",Master!D63*Selection!$B$3,"") ->  | E63: 3XL | F63: =IF(Master!F63<>"",Master!F63*Selection!$B$3,"") -> 5.4 | G63: =IF(Factor!#REF!<>"",Factor!#REF!*Selection!$B$3,"") -> 
A64: 0636 | B64: =IF(Selection!$B$4="DK",VLOOKUP($A64,'Style navne sprog'!$A:$I,6,FALSE),IF(Selection!$B$4="DE",VLOOKUP($A64,'Style navne sprog'!$A:$I,2,FALSE),IF(Selection!$B$4="GB",VLOOKUP($A64,'Style navne sprog'!$A:$I,4,FALSE),IF(Selection!$B$4="SE",VLOOKUP($A64,'Style navne sprog'!$A:$I,3,FALSE),IF(Selection!$B$4="NO",VLOOKUP($A64,'Style navne sprog'!$A:$I,5,FALSE),IF(Selection!$B$4="PL",VLOOKUP($A64,'Style navne sprog'!$A:$I,7,FALSE))))))) -> CORE hoodie | C64: =IF(Master!C64<>"",Master!C64*Selection!$B$3,"") -> 70.9 | D64: =IF(Master!D64<>"",Master!D64*Selection!$B$3,"") ->  | E64: 3XL-6XL | F64: =IF(Master!F64<>"",Master!F64*Selection!$B$3,"") -> 5.4 | G64: =IF(Factor!#REF!<>"",Factor!#REF!*Selection!$B$3,"") -> 
A65: 0637 | B65: =IF(Selection!$B$4="DK",VLOOKUP($A65,'Style navne sprog'!$A:$I,6,FALSE),IF(Selection!$B$4="DE",VLOOKUP($A65,'Style navne sprog'!$A:$I,2,FALSE),IF(Selection!$B$4="GB",VLOOKUP($A65,'Style navne sprog'!$A:$I,4,FALSE),IF(Selection!$B$4="SE",VLOOKUP($A65,'Style navne sprog'!$A:$I,3,FALSE),IF(Selection!$B$4="NO",VLOOKUP($A65,'Style navne sprog'!$A:$I,5,FALSE),IF(Selection!$B$4="PL",VLOOKUP($A65,'Style navne sprog'!$A:$I,7,FALSE))))))) -> CORE hoodie | women | C65: =IF(Master!C65<>"",Master!C65*Selection!$B$3,"") -> 70.9 | D65: =IF(Master!D65<>"",Master!D65*Selection!$B$3,"") ->  | E65: 3XL | F65: =IF(Master!F65<>"",Master!F65*Selection!$B$3,"") -> 5.4 | G65: =IF(Factor!#REF!<>"",Factor!#REF!*Selection!$B$3,"") -> 
A66: 0638 | B66: =IF(Selection!$B$4="DK",VLOOKUP($A66,'Style navne sprog'!$A:$I,6,FALSE),IF(Selection!$B$4="DE",VLOOKUP($A66,'Style navne sprog'!$A:$I,2,FALSE),IF(Selection!$B$4="GB",VLOOKUP($A66,'Style navne sprog'!$A:$I,4,FALSE),IF(Selection!$B$4="SE",VLOOKUP($A66,'Style navne sprog'!$A:$I,3,FALSE),IF(Selection!$B$4="NO",VLOOKUP($A66,'Style navne sprog'!$A:$I,5,FALSE),IF(Selection!$B$4="PL",VLOOKUP($A66,'Style navne sprog'!$A:$I,7,FALSE))))))) -> CORE hoodie | zip | C66: =IF(Master!C66<>"",Master!C66*Selection!$B$3,"") -> 88.5 | D66: =IF(Master!D66<>"",Master!D66*Selection!$B$3,"") ->  | E66: 3XL-6XL | F66: =IF(Master!F66<>"",Master!F66*Selection!$B$3,"") -> 5.4 | G66: =IF(Factor!#REF!<>"",Factor!#REF!*Selection!$B$3,"") -> 
A67: 0639 | B67: =IF(Selection!$B$4="DK",VLOOKUP($A67,'Style navne sprog'!$A:$I,6,FALSE),IF(Selection!$B$4="DE",VLOOKUP($A67,'Style navne sprog'!$A:$I,2,FALSE),IF(Selection!$B$4="GB",VLOOKUP($A67,'Style navne sprog'!$A:$I,4,FALSE),IF(Selection!$B$4="SE",VLOOKUP($A67,'Style navne sprog'!$A:$I,3,FALSE),IF(Selection!$B$4="NO",VLOOKUP($A67,'Style navne sprog'!$A:$I,5,FALSE),IF(Selection!$B$4="PL",VLOOKUP($A67,'Style navne sprog'!$A:$I,7,FALSE))))))) -> CORE hoodie | zip | women | C67: =IF(Master!C67<>"",Master!C67*Selection!$B$3,"") -> 88.5 | D67: =IF(Master!D67<>"",Master!D67*Selection!$B$3,"") ->  | E67: 3XL | F67: =IF(Master!F67<>"",Master!F67*Selection!$B$3,"") -> 5.4 | G67: =IF(Factor!#REF!<>"",Factor!#REF!*Selection!$B$3,"") -> 
A68: 0660 | B68: =IF(Selection!$B$4="DK",VLOOKUP($A68,'Style navne sprog'!$A:$I,6,FALSE),IF(Selection!$B$4="DE",VLOOKUP($A68,'Style navne sprog'!$A:$I,2,FALSE),IF(Selection!$B$4="GB",VLOOKUP($A68,'Style navne sprog'!$A:$I,4,FALSE),IF(Selection!$B$4="SE",VLOOKUP($A68,'Style navne sprog'!$A:$I,3,FALSE),IF(Selection!$B$4="NO",VLOOKUP($A68,'Style navne sprog'!$A:$I,5,FALSE),IF(Selection!$B$4="PL",VLOOKUP($A68,'Style navne sprog'!$A:$I,7,FALSE))))))) -> Soft hoodie | kangaroo pocket | unisex | C68: =IF(Master!C68<>"",Master!C68*Selection!$B$3,"") -> 53.4 | D68: =IF(Master!D68<>"",Master!D68*Selection!$B$3,"") ->  | E68: 3XL-4XL | F68: =IF(Master!F68<>"",Master!F68*Selection!$B$3,"") -> 5.4 | G68: =IF(Factor!#REF!<>"",Factor!#REF!*Selection!$B$3,"") -> 
A69: 0682 | B69: =IF(Selection!$B$4="DK",VLOOKUP($A69,'Style navne sprog'!$A:$I,6,FALSE),IF(Selection!$B$4="DE",VLOOKUP($A69,'Style navne sprog'!$A:$I,2,FALSE),IF(Selection!$B$4="GB",VLOOKUP($A69,'Style navne sprog'!$A:$I,4,FALSE),IF(Selection!$B$4="SE",VLOOKUP($A69,'Style navne sprog'!$A:$I,3,FALSE),IF(Selection!$B$4="NO",VLOOKUP($A69,'Style navne sprog'!$A:$I,5,FALSE),IF(Selection!$B$4="PL",VLOOKUP($A69,'Style navne sprog'!$A:$I,7,FALSE))))))) -> Sweatshirt | organic | C69: =IF(Master!C69<>"",Master!C69*Selection!$B$3,"") -> 68.1 | D69: =IF(Master!D69<>"",Master!D69*Selection!$B$3,"") ->  | E69: 3XL-4XL | F69: =IF(Master!F69<>"",Master!F69*Selection!$B$3,"") -> 5.4 | G69: =IF(Factor!#REF!<>"",Factor!#REF!*Selection!$B$3,"") -> 
A70: 0683 | B70: =IF(Selection!$B$4="DK",VLOOKUP($A70,'Style navne sprog'!$A:$I,6,FALSE),IF(Selection!$B$4="DE",VLOOKUP($A70,'Style navne sprog'!$A:$I,2,FALSE),IF(Selection!$B$4="GB",VLOOKUP($A70,'Style navne sprog'!$A:$I,4,FALSE),IF(Selection!$B$4="SE",VLOOKUP($A70,'Style navne sprog'!$A:$I,3,FALSE),IF(Selection!$B$4="NO",VLOOKUP($A70,'Style navne sprog'!$A:$I,5,FALSE),IF(Selection!$B$4="PL",VLOOKUP($A70,'Style navne sprog'!$A:$I,7,FALSE))))))) -> Sweatshirt | organic | women | C70: =IF(Master!C70<>"",Master!C70*Selection!$B$3,"") -> 68.1 | D70: =IF(Master!D70<>"",Master!D70*Selection!$B$3,"") ->  | E70: 3XL | F70: =IF(Master!F70<>"",Master!F70*Selection!$B$3,"") -> 5.4 | G70: =IF(Factor!#REF!<>"",Factor!#REF!*Selection!$B$3,"") -> 
A72: PRO WEAR
A73: 0300 | B73: =IF(Selection!$B$4="DK",VLOOKUP($A73,'Style navne sprog'!$A:$I,6,FALSE),IF(Selection!$B$4="DE",VLOOKUP($A73,'Style navne sprog'!$A:$I,2,FALSE),IF(Selection!$B$4="GB",VLOOKUP($A73,'Style navne sprog'!$A:$I,4,FALSE),IF(Selection!$B$4="SE",VLOOKUP($A73,'Style navne sprog'!$A:$I,3,FALSE),IF(Selection!$B$4="NO",VLOOKUP($A73,'Style navne sprog'!$A:$I,5,FALSE),IF(Selection!$B$4="PL",VLOOKUP($A73,'Style navne sprog'!$A:$I,7,FALSE))))))) -> PRO Wear T-shirt | C73: =IF(Master!C73<>"",Master!C73*Selection!$B$3,"") -> 28.6 | D73: =IF(Master!D73<>"",Master!D73*Selection!$B$3,"") -> 27 | E73: 3XL-6XL | F73: =IF(Master!F73<>"",Master!F73*Selection!$B$3,"") -> 2.8 | G73: =IF(Factor!#REF!<>"",Factor!#REF!*Selection!$B$3,"") -> 
A74: 0302 | B74: =IF(Selection!$B$4="DK",VLOOKUP($A74,'Style navne sprog'!$A:$I,6,FALSE),IF(Selection!$B$4="DE",VLOOKUP($A74,'Style navne sprog'!$A:$I,2,FALSE),IF(Selection!$B$4="GB",VLOOKUP($A74,'Style navne sprog'!$A:$I,4,FALSE),IF(Selection!$B$4="SE",VLOOKUP($A74,'Style navne sprog'!$A:$I,3,FALSE),IF(Selection!$B$4="NO",VLOOKUP($A74,'Style navne sprog'!$A:$I,5,FALSE),IF(Selection!$B$4="PL",VLOOKUP($A74,'Style navne sprog'!$A:$I,7,FALSE))))))) -> PRO Wear T-shirt | contrast | C74: =IF(Master!C74<>"",Master!C74*Selection!$B$3,"") -> 34.4 | D74: =IF(Master!D74<>"",Master!D74*Selection!$B$3,"") -> 32.8 | E74: 3XL-6XL | F74: =IF(Master!F74<>"",Master!F74*Selection!$B$3,"") -> 2.8 | G74: =IF(Factor!#REF!<>"",Factor!#REF!*Selection!$B$3,"") -> 
A75: 0310 | B75: =IF(Selection!$B$4="DK",VLOOKUP($A75,'Style navne sprog'!$A:$I,6,FALSE),IF(Selection!$B$4="DE",VLOOKUP($A75,'Style navne sprog'!$A:$I,2,FALSE),IF(Selection!$B$4="GB",VLOOKUP($A75,'Style navne sprog'!$A:$I,4,FALSE),IF(Selection!$B$4="SE",VLOOKUP($A75,'Style navne sprog'!$A:$I,3,FALSE),IF(Selection!$B$4="NO",VLOOKUP($A75,'Style navne sprog'!$A:$I,5,FALSE),IF(Selection!$B$4="PL",VLOOKUP($A75,'Style navne sprog'!$A:$I,7,FALSE))))))) -> PRO Wear T-shirt | light | C75: =IF(Master!C75<>"",Master!C75*Selection!$B$3,"") -> 26.3 | D75: =IF(Master!D75<>"",Master!D75*Selection!$B$3,"") -> 24.7 | E75: 3XL-6XL | F75: =IF(Master!F75<>"",Master!F75*Selection!$B$3,"") -> 2.8 | G75: =IF(Factor!#REF!<>"",Factor!#REF!*Selection!$B$3,"") -> 
A76: 0311 | B76: =IF(Selection!$B$4="DK",VLOOKUP($A76,'Style navne sprog'!$A:$I,6,FALSE),IF(Selection!$B$4="DE",VLOOKUP($A76,'Style navne sprog'!$A:$I,2,FALSE),IF(Selection!$B$4="GB",VLOOKUP($A76,'Style navne sprog'!$A:$I,4,FALSE),IF(Selection!$B$4="SE",VLOOKUP($A76,'Style navne sprog'!$A:$I,3,FALSE),IF(Selection!$B$4="NO",VLOOKUP($A76,'Style navne sprog'!$A:$I,5,FALSE),IF(Selection!$B$4="PL",VLOOKUP($A76,'Style navne sprog'!$A:$I,7,FALSE))))))) -> PRO Wear T-shirt | long-sleeved | C76: =IF(Master!C76<>"",Master!C76*Selection!$B$3,"") -> 37 | D76: =IF(Master!D76<>"",Master!D76*Selection!$B$3,"") -> 35.4 | E76: 3XL-6XL | F76: =IF(Master!F76<>"",Master!F76*Selection!$B$3,"") -> 2.8 | G76: =IF(Factor!#REF!<>"",Factor!#REF!*Selection!$B$3,"") -> 
A77: 0312 | B77: =IF(Selection!$B$4="DK",VLOOKUP($A77,'Style navne sprog'!$A:$I,6,FALSE),IF(Selection!$B$4="DE",VLOOKUP($A77,'Style navne sprog'!$A:$I,2,FALSE),IF(Selection!$B$4="GB",VLOOKUP($A77,'Style navne sprog'!$A:$I,4,FALSE),IF(Selection!$B$4="SE",VLOOKUP($A77,'Style navne sprog'!$A:$I,3,FALSE),IF(Selection!$B$4="NO",VLOOKUP($A77,'Style navne sprog'!$A:$I,5,FALSE),IF(Selection!$B$4="PL",VLOOKUP($A77,'Style navne sprog'!$A:$I,7,FALSE))))))) -> PRO Wear T-shirt | women | C77: =IF(Master!C77<>"",Master!C77*Selection!$B$3,"") -> 28.6 | D77: =IF(Master!D77<>"",Master!D77*Selection!$B$3,"") -> 27 | E77: 3XL-6XL | F77: =IF(Master!F77<>"",Master!F77*Selection!$B$3,"") -> 2.8 | G77: =IF(Factor!#REF!<>"",Factor!#REF!*Selection!$B$3,"") -> 
A78: 0313 | B78: =IF(Selection!$B$4="DK",VLOOKUP($A78,'Style navne sprog'!$A:$I,6,FALSE),IF(Selection!$B$4="DE",VLOOKUP($A78,'Style navne sprog'!$A:$I,2,FALSE),IF(Selection!$B$4="GB",VLOOKUP($A78,'Style navne sprog'!$A:$I,4,FALSE),IF(Selection!$B$4="SE",VLOOKUP($A78,'Style navne sprog'!$A:$I,3,FALSE),IF(Selection!$B$4="NO",VLOOKUP($A78,'Style navne sprog'!$A:$I,5,FALSE),IF(Selection!$B$4="PL",VLOOKUP($A78,'Style navne sprog'!$A:$I,7,FALSE))))))) -> PRO Wear T-shirt | ¾ sleeve | women | C78: =IF(Master!C78<>"",Master!C78*Selection!$B$3,"") -> 31.9 | D78: =IF(Master!D78<>"",Master!D78*Selection!$B$3,"") -> 30.3 | E78: 3XL-6XL | F78: =IF(Master!F78<>"",Master!F78*Selection!$B$3,"") -> 2.8 | G78: =IF(Factor!#REF!<>"",Factor!#REF!*Selection!$B$3,"") -> 
A79: 0315 | B79: =IF(Selection!$B$4="DK",VLOOKUP($A79,'Style navne sprog'!$A:$I,6,FALSE),IF(Selection!$B$4="DE",VLOOKUP($A79,'Style navne sprog'!$A:$I,2,FALSE),IF(Selection!$B$4="GB",VLOOKUP($A79,'Style navne sprog'!$A:$I,4,FALSE),IF(Selection!$B$4="SE",VLOOKUP($A79,'Style navne sprog'!$A:$I,3,FALSE),IF(Selection!$B$4="NO",VLOOKUP($A79,'Style navne sprog'!$A:$I,5,FALSE),IF(Selection!$B$4="PL",VLOOKUP($A79,'Style navne sprog'!$A:$I,7,FALSE))))))) -> PRO Wear T-shirt | ½ sleeve | women | C79: =IF(Master!C79<>"",Master!C79*Selection!$B$3,"") -> 30.6 | D79: =IF(Master!D79<>"",Master!D79*Selection!$B$3,"") -> 29 | E79: 3XL-6XL | F79: =IF(Master!F79<>"",Master!F79*Selection!$B$3,"") -> 2.8 | G79: =IF(Factor!#REF!<>"",Factor!#REF!*Selection!$B$3,"") -> 
A80: 0317 | B80: =IF(Selection!$B$4="DK",VLOOKUP($A80,'Style navne sprog'!$A:$I,6,FALSE),IF(Selection!$B$4="DE",VLOOKUP($A80,'Style navne sprog'!$A:$I,2,FALSE),IF(Selection!$B$4="GB",VLOOKUP($A80,'Style navne sprog'!$A:$I,4,FALSE),IF(Selection!$B$4="SE",VLOOKUP($A80,'Style navne sprog'!$A:$I,3,FALSE),IF(Selection!$B$4="NO",VLOOKUP($A80,'Style navne sprog'!$A:$I,5,FALSE),IF(Selection!$B$4="PL",VLOOKUP($A80,'Style navne sprog'!$A:$I,7,FALSE))))))) -> PRO Wear T-shirt | light | women | C80: =IF(Master!C80<>"",Master!C80*Selection!$B$3,"") -> 26.3 | D80: =IF(Master!D80<>"",Master!D80*Selection!$B$3,"") -> 24.7 | E80: 3XL-6XL | F80: =IF(Master!F80<>"",Master!F80*Selection!$B$3,"") -> 2.8 | G80: =IF(Factor!#REF!<>"",Factor!#REF!*Selection!$B$3,"") -> 
A81: 0320 | B81: =IF(Selection!$B$4="DK",VLOOKUP($A81,'Style navne sprog'!$A:$I,6,FALSE),IF(Selection!$B$4="DE",VLOOKUP($A81,'Style navne sprog'!$A:$I,2,FALSE),IF(Selection!$B$4="GB",VLOOKUP($A81,'Style navne sprog'!$A:$I,4,FALSE),IF(Selection!$B$4="SE",VLOOKUP($A81,'Style navne sprog'!$A:$I,3,FALSE),IF(Selection!$B$4="NO",VLOOKUP($A81,'Style navne sprog'!$A:$I,5,FALSE),IF(Selection!$B$4="PL",VLOOKUP($A81,'Style navne sprog'!$A:$I,7,FALSE))))))) -> PRO Wear polo shirt | pocket | C81: =IF(Master!C81<>"",Master!C81*Selection!$B$3,"") -> 55.6 | D81: =IF(Master!D81<>"",Master!D81*Selection!$B$3,"") -> 52.3 | E81: 3XL-6XL | F81: =IF(Master!F81<>"",Master!F81*Selection!$B$3,"") -> 5.4 | G81: =IF(Factor!#REF!<>"",Factor!#REF!*Selection!$B$3,"") -> 
A82: 0321 | B82: =IF(Selection!$B$4="DK",VLOOKUP($A82,'Style navne sprog'!$A:$I,6,FALSE),IF(Selection!$B$4="DE",VLOOKUP($A82,'Style navne sprog'!$A:$I,2,FALSE),IF(Selection!$B$4="GB",VLOOKUP($A82,'Style navne sprog'!$A:$I,4,FALSE),IF(Selection!$B$4="SE",VLOOKUP($A82,'Style navne sprog'!$A:$I,3,FALSE),IF(Selection!$B$4="NO",VLOOKUP($A82,'Style navne sprog'!$A:$I,5,FALSE),IF(Selection!$B$4="PL",VLOOKUP($A82,'Style navne sprog'!$A:$I,7,FALSE))))))) -> PRO Wear polo shirt | women | C82: =IF(Master!C82<>"",Master!C82*Selection!$B$3,"") -> 55.6 | D82: =IF(Master!D82<>"",Master!D82*Selection!$B$3,"") -> 52.3 | E82: 3XL-6XL | F82: =IF(Master!F82<>"",Master!F82*Selection!$B$3,"") -> 5.4 | G82: =IF(Factor!#REF!<>"",Factor!#REF!*Selection!$B$3,"") -> 
A83: 0322 | B83: =IF(Selection!$B$4="DK",VLOOKUP($A83,'Style navne sprog'!$A:$I,6,FALSE),IF(Selection!$B$4="DE",VLOOKUP($A83,'Style navne sprog'!$A:$I,2,FALSE),IF(Selection!$B$4="GB",VLOOKUP($A83,'Style navne sprog'!$A:$I,4,FALSE),IF(Selection!$B$4="SE",VLOOKUP($A83,'Style navne sprog'!$A:$I,3,FALSE),IF(Selection!$B$4="NO",VLOOKUP($A83,'Style navne sprog'!$A:$I,5,FALSE),IF(Selection!$B$4="PL",VLOOKUP($A83,'Style navne sprog'!$A:$I,7,FALSE))))))) -> PRO Wear polo shirt | contrast | C83: =IF(Master!C83<>"",Master!C83*Selection!$B$3,"") -> 63.5 | D83: =IF(Master!D83<>"",Master!D83*Selection!$B$3,"") -> 60.3 | E83: 3XL-6XL | F83: =IF(Master!F83<>"",Master!F83*Selection!$B$3,"") -> 5.4 | G83: =IF(Factor!#REF!<>"",Factor!#REF!*Selection!$B$3,"") -> 
A84: 0324 | B84: =IF(Selection!$B$4="DK",VLOOKUP($A84,'Style navne sprog'!$A:$I,6,FALSE),IF(Selection!$B$4="DE",VLOOKUP($A84,'Style navne sprog'!$A:$I,2,FALSE),IF(Selection!$B$4="GB",VLOOKUP($A84,'Style navne sprog'!$A:$I,4,FALSE),IF(Selection!$B$4="SE",VLOOKUP($A84,'Style navne sprog'!$A:$I,3,FALSE),IF(Selection!$B$4="NO",VLOOKUP($A84,'Style navne sprog'!$A:$I,5,FALSE),IF(Selection!$B$4="PL",VLOOKUP($A84,'Style navne sprog'!$A:$I,7,FALSE))))))) -> PRO Wear polo shirt | no pocket | C84: =IF(Master!C84<>"",Master!C84*Selection!$B$3,"") -> 55.6 | D84: =IF(Master!D84<>"",Master!D84*Selection!$B$3,"") -> 52.3 | E84: 3XL-6XL | F84: =IF(Master!F84<>"",Master!F84*Selection!$B$3,"") -> 5.4 | G84: =IF(Factor!#REF!<>"",Factor!#REF!*Selection!$B$3,"") -> 
A85: 0326 | B85: =IF(Selection!$B$4="DK",VLOOKUP($A85,'Style navne sprog'!$A:$I,6,FALSE),IF(Selection!$B$4="DE",VLOOKUP($A85,'Style navne sprog'!$A:$I,2,FALSE),IF(Selection!$B$4="GB",VLOOKUP($A85,'Style navne sprog'!$A:$I,4,FALSE),IF(Selection!$B$4="SE",VLOOKUP($A85,'Style navne sprog'!$A:$I,3,FALSE),IF(Selection!$B$4="NO",VLOOKUP($A85,'Style navne sprog'!$A:$I,5,FALSE),IF(Selection!$B$4="PL",VLOOKUP($A85,'Style navne sprog'!$A:$I,7,FALSE))))))) -> PRO Wear polo shirt | long-sleeve | C85: =IF(Master!C85<>"",Master!C85*Selection!$B$3,"") -> 63.5 | D85: =IF(Master!D85<>"",Master!D85*Selection!$B$3,"") -> 60.3 | E85: 3XL-6XL | F85: =IF(Master!F85<>"",Master!F85*Selection!$B$3,"") -> 5.4 | G85: =IF(Factor!#REF!<>"",Factor!#REF!*Selection!$B$3,"") -> 
A86: 0330 | B86: =IF(Selection!$B$4="DK",VLOOKUP($A86,'Style navne sprog'!$A:$I,6,FALSE),IF(Selection!$B$4="DE",VLOOKUP($A86,'Style navne sprog'!$A:$I,2,FALSE),IF(Selection!$B$4="GB",VLOOKUP($A86,'Style navne sprog'!$A:$I,4,FALSE),IF(Selection!$B$4="SE",VLOOKUP($A86,'Style navne sprog'!$A:$I,3,FALSE),IF(Selection!$B$4="NO",VLOOKUP($A86,'Style navne sprog'!$A:$I,5,FALSE),IF(Selection!$B$4="PL",VLOOKUP($A86,'Style navne sprog'!$A:$I,7,FALSE))))))) -> PRO Wear polo shirt | press stud | C86: =IF(Master!C86<>"",Master!C86*Selection!$B$3,"") -> 55.6 | D86: =IF(Master!D86<>"",Master!D86*Selection!$B$3,"") -> 52.3 | E86: 3XL-6XL | F86: =IF(Master!F86<>"",Master!F86*Selection!$B$3,"") -> 5.4 | G86: =IF(Factor!#REF!<>"",Factor!#REF!*Selection!$B$3,"") -> 
A87: 0336 | B87: =IF(Selection!$B$4="DK",VLOOKUP($A87,'Style navne sprog'!$A:$I,6,FALSE),IF(Selection!$B$4="DE",VLOOKUP($A87,'Style navne sprog'!$A:$I,2,FALSE),IF(Selection!$B$4="GB",VLOOKUP($A87,'Style navne sprog'!$A:$I,4,FALSE),IF(Selection!$B$4="SE",VLOOKUP($A87,'Style navne sprog'!$A:$I,3,FALSE),IF(Selection!$B$4="NO",VLOOKUP($A87,'Style navne sprog'!$A:$I,5,FALSE),IF(Selection!$B$4="PL",VLOOKUP($A87,'Style navne sprog'!$A:$I,7,FALSE))))))) -> PRO Wear long-sleeve polo shirt | press stud | C87: =IF(Master!C87<>"",Master!C87*Selection!$B$3,"") -> 63.5 | D87: =IF(Master!D87<>"",Master!D87*Selection!$B$3,"") -> 60.3 | E87: 3XL-6XL | F87: =IF(Master!F87<>"",Master!F87*Selection!$B$3,"") -> 5.4 | G87: =IF(Factor!#REF!<>"",Factor!#REF!*Selection!$B$3,"") -> 
A88: 0360 | B88: =IF(Selection!$B$4="DK",VLOOKUP($A88,'Style navne sprog'!$A:$I,6,FALSE),IF(Selection!$B$4="DE",VLOOKUP($A88,'Style navne sprog'!$A:$I,2,FALSE),IF(Selection!$B$4="GB",VLOOKUP($A88,'Style navne sprog'!$A:$I,4,FALSE),IF(Selection!$B$4="SE",VLOOKUP($A88,'Style navne sprog'!$A:$I,3,FALSE),IF(Selection!$B$4="NO",VLOOKUP($A88,'Style navne sprog'!$A:$I,5,FALSE),IF(Selection!$B$4="PL",VLOOKUP($A88,'Style navne sprog'!$A:$I,7,FALSE))))))) -> PRO Wear sweatshirt | classic | C88: =IF(Master!C88<>"",Master!C88*Selection!$B$3,"") -> 71.5 | D88: =IF(Master!D88<>"",Master!D88*Selection!$B$3,"") -> 68.3 | E88: 3XL-6XL | F88: =IF(Master!F88<>"",Master!F88*Selection!$B$3,"") -> 5.4 | G88: =IF(Factor!#REF!<>"",Factor!#REF!*Selection!$B$3,"") -> 
A89: 0362 | B89: =IF(Selection!$B$4="DK",VLOOKUP($A89,'Style navne sprog'!$A:$I,6,FALSE),IF(Selection!$B$4="DE",VLOOKUP($A89,'Style navne sprog'!$A:$I,2,FALSE),IF(Selection!$B$4="GB",VLOOKUP($A89,'Style navne sprog'!$A:$I,4,FALSE),IF(Selection!$B$4="SE",VLOOKUP($A89,'Style navne sprog'!$A:$I,3,FALSE),IF(Selection!$B$4="NO",VLOOKUP($A89,'Style navne sprog'!$A:$I,5,FALSE),IF(Selection!$B$4="PL",VLOOKUP($A89,'Style navne sprog'!$A:$I,7,FALSE))))))) -> PRO Wear sweatshirt | contrast | C89: =IF(Master!C89<>"",Master!C89*Selection!$B$3,"") -> 79.6 | D89: =IF(Master!D89<>"",Master!D89*Selection!$B$3,"") -> 76.4 | E89: 3XL-6XL | F89: =IF(Master!F89<>"",Master!F89*Selection!$B$3,"") -> 5.4 | G89: =IF(Factor!#REF!<>"",Factor!#REF!*Selection!$B$3,"") -> 
A90: 0366 | B90: =IF(Selection!$B$4="DK",VLOOKUP($A90,'Style navne sprog'!$A:$I,6,FALSE),IF(Selection!$B$4="DE",VLOOKUP($A90,'Style navne sprog'!$A:$I,2,FALSE),IF(Selection!$B$4="GB",VLOOKUP($A90,'Style navne sprog'!$A:$I,4,FALSE),IF(Selection!$B$4="SE",VLOOKUP($A90,'Style navne sprog'!$A:$I,3,FALSE),IF(Selection!$B$4="NO",VLOOKUP($A90,'Style navne sprog'!$A:$I,5,FALSE),IF(Selection!$B$4="PL",VLOOKUP($A90,'Style navne sprog'!$A:$I,7,FALSE))))))) -> PRO Wear cardigan | sweat | C90: =IF(Master!C90<>"",Master!C90*Selection!$B$3,"") -> 113.4 | D90: =IF(Master!D90<>"",Master!D90*Selection!$B$3,"") ->  | E90: 3XL-6XL | F90: =IF(Master!F90<>"",Master!F90*Selection!$B$3,"") -> 5.4 | G90: =IF(Factor!#REF!<>"",Factor!#REF!*Selection!$B$3,"") -> 
A91: 0367 | B91: =IF(Selection!$B$4="DK",VLOOKUP($A91,'Style navne sprog'!$A:$I,6,FALSE),IF(Selection!$B$4="DE",VLOOKUP($A91,'Style navne sprog'!$A:$I,2,FALSE),IF(Selection!$B$4="GB",VLOOKUP($A91,'Style navne sprog'!$A:$I,4,FALSE),IF(Selection!$B$4="SE",VLOOKUP($A91,'Style navne sprog'!$A:$I,3,FALSE),IF(Selection!$B$4="NO",VLOOKUP($A91,'Style navne sprog'!$A:$I,5,FALSE),IF(Selection!$B$4="PL",VLOOKUP($A91,'Style navne sprog'!$A:$I,7,FALSE))))))) -> PRO Wear cardigan | sweat | women | C91: =IF(Master!C91<>"",Master!C91*Selection!$B$3,"") -> 113.4 | D91: =IF(Master!D91<>"",Master!D91*Selection!$B$3,"") ->  | E91: 3XL-6XL | F91: =IF(Master!F91<>"",Master!F91*Selection!$B$3,"") -> 5.4 | G91: =IF(Factor!#REF!<>"",Factor!#REF!*Selection!$B$3,"") -> 
A92: 0370 | B92: =IF(Selection!$B$4="DK",VLOOKUP($A92,'Style navne sprog'!$A:$I,6,FALSE),IF(Selection!$B$4="DE",VLOOKUP($A92,'Style navne sprog'!$A:$I,2,FALSE),IF(Selection!$B$4="GB",VLOOKUP($A92,'Style navne sprog'!$A:$I,4,FALSE),IF(Selection!$B$4="SE",VLOOKUP($A92,'Style navne sprog'!$A:$I,3,FALSE),IF(Selection!$B$4="NO",VLOOKUP($A92,'Style navne sprog'!$A:$I,5,FALSE),IF(Selection!$B$4="PL",VLOOKUP($A92,'Style navne sprog'!$A:$I,7,FALSE))))))) -> PRO Wear CARE T-shirt | C92: =IF(Master!C92<>"",Master!C92*Selection!$B$3,"") -> 31.7 | D92: =IF(Master!D92<>"",Master!D92*Selection!$B$3,"") -> 30.1 | E92: 3XL-6XL | F92: =IF(Master!F92<>"",Master!F92*Selection!$B$3,"") -> 2.8 | G92: =IF(Factor!#REF!<>"",Factor!#REF!*Selection!$B$3,"") -> 
A93: 0371 | B93: =IF(Selection!$B$4="DK",VLOOKUP($A93,'Style navne sprog'!$A:$I,6,FALSE),IF(Selection!$B$4="DE",VLOOKUP($A93,'Style navne sprog'!$A:$I,2,FALSE),IF(Selection!$B$4="GB",VLOOKUP($A93,'Style navne sprog'!$A:$I,4,FALSE),IF(Selection!$B$4="SE",VLOOKUP($A93,'Style navne sprog'!$A:$I,3,FALSE),IF(Selection!$B$4="NO",VLOOKUP($A93,'Style navne sprog'!$A:$I,5,FALSE),IF(Selection!$B$4="PL",VLOOKUP($A93,'Style navne sprog'!$A:$I,7,FALSE))))))) -> PRO Wear CARE T-shirt | women | C93: =IF(Master!C93<>"",Master!C93*Selection!$B$3,"") -> 31.7 | D93: =IF(Master!D93<>"",Master!D93*Selection!$B$3,"") -> 30.1 | E93: 3XL-6XL | F93: =IF(Master!F93<>"",Master!F93*Selection!$B$3,"") -> 2.8 | G93: =IF(Factor!#REF!<>"",Factor!#REF!*Selection!$B$3,"") -> 
A94: 0372 | B94: =IF(Selection!$B$4="DK",VLOOKUP($A94,'Style navne sprog'!$A:$I,6,FALSE),IF(Selection!$B$4="DE",VLOOKUP($A94,'Style navne sprog'!$A:$I,2,FALSE),IF(Selection!$B$4="GB",VLOOKUP($A94,'Style navne sprog'!$A:$I,4,FALSE),IF(Selection!$B$4="SE",VLOOKUP($A94,'Style navne sprog'!$A:$I,3,FALSE),IF(Selection!$B$4="NO",VLOOKUP($A94,'Style navne sprog'!$A:$I,5,FALSE),IF(Selection!$B$4="PL",VLOOKUP($A94,'Style navne sprog'!$A:$I,7,FALSE))))))) -> PRO Wear CARE T-shirt | v-neck | C94: =IF(Master!C94<>"",Master!C94*Selection!$B$3,"") -> 31.7 | D94: =IF(Master!D94<>"",Master!D94*Selection!$B$3,"") -> 30.1 | E94: 3XL-6XL | F94: =IF(Master!F94<>"",Master!F94*Selection!$B$3,"") -> 2.8 | G94: =IF(Factor!#REF!<>"",Factor!#REF!*Selection!$B$3,"") -> 
A95: 0373 | B95: =IF(Selection!$B$4="DK",VLOOKUP($A95,'Style navne sprog'!$A:$I,6,FALSE),IF(Selection!$B$4="DE",VLOOKUP($A95,'Style navne sprog'!$A:$I,2,FALSE),IF(Selection!$B$4="GB",VLOOKUP($A95,'Style navne sprog'!$A:$I,4,FALSE),IF(Selection!$B$4="SE",VLOOKUP($A95,'Style navne sprog'!$A:$I,3,FALSE),IF(Selection!$B$4="NO",VLOOKUP($A95,'Style navne sprog'!$A:$I,5,FALSE),IF(Selection!$B$4="PL",VLOOKUP($A95,'Style navne sprog'!$A:$I,7,FALSE))))))) -> PRO Wear CARE T-shirt | v-neck | women | C95: =IF(Master!C95<>"",Master!C95*Selection!$B$3,"") -> 31.7 | D95: =IF(Master!D95<>"",Master!D95*Selection!$B$3,"") -> 30.1 | E95: 3XL-6XL | F95: =IF(Master!F95<>"",Master!F95*Selection!$B$3,"") -> 2.8 | G95: =IF(Factor!#REF!<>"",Factor!#REF!*Selection!$B$3,"") -> 
A96: 0374 | B96: =IF(Selection!$B$4="DK",VLOOKUP($A96,'Style navne sprog'!$A:$I,6,FALSE),IF(Selection!$B$4="DE",VLOOKUP($A96,'Style navne sprog'!$A:$I,2,FALSE),IF(Selection!$B$4="GB",VLOOKUP($A96,'Style navne sprog'!$A:$I,4,FALSE),IF(Selection!$B$4="SE",VLOOKUP($A96,'Style navne sprog'!$A:$I,3,FALSE),IF(Selection!$B$4="NO",VLOOKUP($A96,'Style navne sprog'!$A:$I,5,FALSE),IF(Selection!$B$4="PL",VLOOKUP($A96,'Style navne sprog'!$A:$I,7,FALSE))))))) -> PRO Wear CARE polo shirt | C96: =IF(Master!C96<>"",Master!C96*Selection!$B$3,"") -> 61.2 | D96: =IF(Master!D96<>"",Master!D96*Selection!$B$3,"") -> 58 | E96: 3XL-6XL | F96: =IF(Master!F96<>"",Master!F96*Selection!$B$3,"") -> 5.4 | G96: =IF(Factor!#REF!<>"",Factor!#REF!*Selection!$B$3,"") -> 
A97: 0375 | B97: =IF(Selection!$B$4="DK",VLOOKUP($A97,'Style navne sprog'!$A:$I,6,FALSE),IF(Selection!$B$4="DE",VLOOKUP($A97,'Style navne sprog'!$A:$I,2,FALSE),IF(Selection!$B$4="GB",VLOOKUP($A97,'Style navne sprog'!$A:$I,4,FALSE),IF(Selection!$B$4="SE",VLOOKUP($A97,'Style navne sprog'!$A:$I,3,FALSE),IF(Selection!$B$4="NO",VLOOKUP($A97,'Style navne sprog'!$A:$I,5,FALSE),IF(Selection!$B$4="PL",VLOOKUP($A97,'Style navne sprog'!$A:$I,7,FALSE))))))) -> PRO Wear CARE polo shirt | women | C97: =IF(Master!C97<>"",Master!C97*Selection!$B$3,"") -> 61.2 | D97: =IF(Master!D97<>"",Master!D97*Selection!$B$3,"") -> 58 | E97: 3XL-6XL | F97: =IF(Master!F97<>"",Master!F97*Selection!$B$3,"") -> 5.4 | G97: =IF(Factor!#REF!<>"",Factor!#REF!*Selection!$B$3,"") -> 
A98: 0376 | B98: =IF(Selection!$B$4="DK",VLOOKUP($A98,'Style navne sprog'!$A:$I,6,FALSE),IF(Selection!$B$4="DE",VLOOKUP($A98,'Style navne sprog'!$A:$I,2,FALSE),IF(Selection!$B$4="GB",VLOOKUP($A98,'Style navne sprog'!$A:$I,4,FALSE),IF(Selection!$B$4="SE",VLOOKUP($A98,'Style navne sprog'!$A:$I,3,FALSE),IF(Selection!$B$4="NO",VLOOKUP($A98,'Style navne sprog'!$A:$I,5,FALSE),IF(Selection!$B$4="PL",VLOOKUP($A98,'Style navne sprog'!$A:$I,7,FALSE))))))) -> PRO Wear CARE polo shirt | classic | C98: =IF(Master!C98<>"",Master!C98*Selection!$B$3,"") -> 58 | D98: =IF(Master!D98<>"",Master!D98*Selection!$B$3,"") -> 54.8 | E98: 3XL-6XL | F98: =IF(Master!F98<>"",Master!F98*Selection!$B$3,"") -> 5.4 | G98: =IF(Factor!#REF!<>"",Factor!#REF!*Selection!$B$3,"") -> 
A99: 0377 | B99: =IF(Selection!$B$4="DK",VLOOKUP($A99,'Style navne sprog'!$A:$I,6,FALSE),IF(Selection!$B$4="DE",VLOOKUP($A99,'Style navne sprog'!$A:$I,2,FALSE),IF(Selection!$B$4="GB",VLOOKUP($A99,'Style navne sprog'!$A:$I,4,FALSE),IF(Selection!$B$4="SE",VLOOKUP($A99,'Style navne sprog'!$A:$I,3,FALSE),IF(Selection!$B$4="NO",VLOOKUP($A99,'Style navne sprog'!$A:$I,5,FALSE),IF(Selection!$B$4="PL",VLOOKUP($A99,'Style navne sprog'!$A:$I,7,FALSE))))))) -> PRO Wear CARE polo shirt | classic | women | C99: =IF(Master!C99<>"",Master!C99*Selection!$B$3,"") -> 58 | D99: =IF(Master!D99<>"",Master!D99*Selection!$B$3,"") -> 54.8 | E99: 3XL-6XL | F99: =IF(Master!F99<>"",Master!F99*Selection!$B$3,"") -> 5.4 | G99: =IF(Factor!#REF!<>"",Factor!#REF!*Selection!$B$3,"") -> 
A100: 0380 | B100: =IF(Selection!$B$4="DK",VLOOKUP($A100,'Style navne sprog'!$A:$I,6,FALSE),IF(Selection!$B$4="DE",VLOOKUP($A100,'Style navne sprog'!$A:$I,2,FALSE),IF(Selection!$B$4="GB",VLOOKUP($A100,'Style navne sprog'!$A:$I,4,FALSE),IF(Selection!$B$4="SE",VLOOKUP($A100,'Style navne sprog'!$A:$I,3,FALSE),IF(Selection!$B$4="NO",VLOOKUP($A100,'Style navne sprog'!$A:$I,5,FALSE),IF(Selection!$B$4="PL",VLOOKUP($A100,'Style navne sprog'!$A:$I,7,FALSE))))))) -> PRO Wear CARE sweatshirt | unbrushed | C100: =IF(Master!C100<>"",Master!C100*Selection!$B$3,"") -> 72.2 | D100: =IF(Master!D100<>"",Master!D100*Selection!$B$3,"") -> 69 | E100: 3XL-6XL | F100: =IF(Master!F100<>"",Master!F100*Selection!$B$3,"") -> 5.4 | G100: =IF(Factor!#REF!<>"",Factor!#REF!*Selection!$B$3,"") -> 
A101: 0381 | B101: =IF(Selection!$B$4="DK",VLOOKUP($A101,'Style navne sprog'!$A:$I,6,FALSE),IF(Selection!$B$4="DE",VLOOKUP($A101,'Style navne sprog'!$A:$I,2,FALSE),IF(Selection!$B$4="GB",VLOOKUP($A101,'Style navne sprog'!$A:$I,4,FALSE),IF(Selection!$B$4="SE",VLOOKUP($A101,'Style navne sprog'!$A:$I,3,FALSE),IF(Selection!$B$4="NO",VLOOKUP($A101,'Style navne sprog'!$A:$I,5,FALSE),IF(Selection!$B$4="PL",VLOOKUP($A101,'Style navne sprog'!$A:$I,7,FALSE))))))) -> PRO Wear CARE sweatshirt | unbrushed | women | C101: =IF(Master!C101<>"",Master!C101*Selection!$B$3,"") -> 72.2 | D101: =IF(Master!D101<>"",Master!D101*Selection!$B$3,"") -> 69 | E101: 3XL-6XL | F101: =IF(Master!F101<>"",Master!F101*Selection!$B$3,"") -> 5.4 | G101: =IF(Factor!#REF!<>"",Factor!#REF!*Selection!$B$3,"") -> 
A102: 0382 | B102: =IF(Selection!$B$4="DK",VLOOKUP($A102,'Style navne sprog'!$A:$I,6,FALSE),IF(Selection!$B$4="DE",VLOOKUP($A102,'Style navne sprog'!$A:$I,2,FALSE),IF(Selection!$B$4="GB",VLOOKUP($A102,'Style navne sprog'!$A:$I,4,FALSE),IF(Selection!$B$4="SE",VLOOKUP($A102,'Style navne sprog'!$A:$I,3,FALSE),IF(Selection!$B$4="NO",VLOOKUP($A102,'Style navne sprog'!$A:$I,5,FALSE),IF(Selection!$B$4="PL",VLOOKUP($A102,'Style navne sprog'!$A:$I,7,FALSE))))))) -> PRO Wear CARE cardigan | unbrushed | C102: =IF(Master!C102<>"",Master!C102*Selection!$B$3,"") -> 115.3 | D102: =IF(Master!D102<>"",Master!D102*Selection!$B$3,"") ->  | E102: 3XL-6XL | F102: =IF(Master!F102<>"",Master!F102*Selection!$B$3,"") -> 5.4 | G102: =IF(Factor!#REF!<>"",Factor!#REF!*Selection!$B$3,"") -> 
A103: 0383 | B103: =IF(Selection!$B$4="DK",VLOOKUP($A103,'Style navne sprog'!$A:$I,6,FALSE),IF(Selection!$B$4="DE",VLOOKUP($A103,'Style navne sprog'!$A:$I,2,FALSE),IF(Selection!$B$4="GB",VLOOKUP($A103,'Style navne sprog'!$A:$I,4,FALSE),IF(Selection!$B$4="SE",VLOOKUP($A103,'Style navne sprog'!$A:$I,3,FALSE),IF(Selection!$B$4="NO",VLOOKUP($A103,'Style navne sprog'!$A:$I,5,FALSE),IF(Selection!$B$4="PL",VLOOKUP($A103,'Style navne sprog'!$A:$I,7,FALSE))))))) -> PRO Wear CARE cardigan | unbrushed | women | C103: =IF(Master!C103<>"",Master!C103*Selection!$B$3,"") -> 115.3 | D103: =IF(Master!D103<>"",Master!D103*Selection!$B$3,"") ->  | E103: 3XL-6XL | F103: =IF(Master!F103<>"",Master!F103*Selection!$B$3,"") -> 5.4 | G103: =IF(Factor!#REF!<>"",Factor!#REF!*Selection!$B$3,"") -> 
A104: 0384 | B104: =IF(Selection!$B$4="DK",VLOOKUP($A104,'Style navne sprog'!$A:$I,6,FALSE),IF(Selection!$B$4="DE",VLOOKUP($A104,'Style navne sprog'!$A:$I,2,FALSE),IF(Selection!$B$4="GB",VLOOKUP($A104,'Style navne sprog'!$A:$I,4,FALSE),IF(Selection!$B$4="SE",VLOOKUP($A104,'Style navne sprog'!$A:$I,3,FALSE),IF(Selection!$B$4="NO",VLOOKUP($A104,'Style navne sprog'!$A:$I,5,FALSE),IF(Selection!$B$4="PL",VLOOKUP($A104,'Style navne sprog'!$A:$I,7,FALSE))))))) -> PRO Wear CARE sweat | unbrushed | ¼ zip | C104: =IF(Master!C104<>"",Master!C104*Selection!$B$3,"") -> 104.6 | D104: =IF(Master!D104<>"",Master!D104*Selection!$B$3,"") ->  | E104: 3XL-6XL | F104: =IF(Master!F104<>"",Master!F104*Selection!$B$3,"") -> 5.4 | G104: =IF(Factor!#REF!<>"",Factor!#REF!*Selection!$B$3,"") -> 
A105: 0385 | B105: =IF(Selection!$B$4="DK",VLOOKUP($A105,'Style navne sprog'!$A:$I,6,FALSE),IF(Selection!$B$4="DE",VLOOKUP($A105,'Style navne sprog'!$A:$I,2,FALSE),IF(Selection!$B$4="GB",VLOOKUP($A105,'Style navne sprog'!$A:$I,4,FALSE),IF(Selection!$B$4="SE",VLOOKUP($A105,'Style navne sprog'!$A:$I,3,FALSE),IF(Selection!$B$4="NO",VLOOKUP($A105,'Style navne sprog'!$A:$I,5,FALSE),IF(Selection!$B$4="PL",VLOOKUP($A105,'Style navne sprog'!$A:$I,7,FALSE))))))) -> PRO Wear CARE sweat | unbrushed | ¼ zip | women | C105: =IF(Master!C105<>"",Master!C105*Selection!$B$3,"") -> 104.6 | D105: =IF(Master!D105<>"",Master!D105*Selection!$B$3,"") ->  | E105: 3XL-6XL | F105: =IF(Master!F105<>"",Master!F105*Selection!$B$3,"") -> 5.4 | G105: =IF(Factor!#REF!<>"",Factor!#REF!*Selection!$B$3,"") -> 
A107: =IF(Selection!$B$4="PL","KOSZULE",IF(Selection!$B$4="SE","SKJORTOR",IF(Selection!$B$4="GB","SHIRTS",IF(Selection!$B$4="DE","HEMDEN & BLUSEN","SKJORTER")))) -> SHIRTS
A108: 0204 | B108: =IF(Selection!$B$4="DK",VLOOKUP($A108,'Style navne sprog'!$A:$I,6,FALSE),IF(Selection!$B$4="DE",VLOOKUP($A108,'Style navne sprog'!$A:$I,2,FALSE),IF(Selection!$B$4="GB",VLOOKUP($A108,'Style navne sprog'!$A:$I,4,FALSE),IF(Selection!$B$4="SE",VLOOKUP($A108,'Style navne sprog'!$A:$I,3,FALSE),IF(Selection!$B$4="NO",VLOOKUP($A108,'Style navne sprog'!$A:$I,5,FALSE),IF(Selection!$B$4="PL",VLOOKUP($A108,'Style navne sprog'!$A:$I,7,FALSE))))))) -> Green leaf shirt | press stud | C108: =IF(Master!C108<>"",Master!C108*Selection!$B$3,"") -> 76 | D108: =IF(Master!D108<>"",Master!D108*Selection!$B$3,"") ->  | E108: 47/48-49/50 | F108: =IF(Master!F108<>"",Master!F108*Selection!$B$3,"") -> 5.4 | G108: =IF(Factor!#REF!<>"",Factor!#REF!*Selection!$B$3,"") -> 
A110: =IF(Selection!$B$4="PL","ODZIEZ Z POLARU","FLEECE") -> FLEECE
A111: 0744 | B111: =IF(Selection!$B$4="DK",VLOOKUP($A111,'Style navne sprog'!$A:$I,6,FALSE),IF(Selection!$B$4="DE",VLOOKUP($A111,'Style navne sprog'!$A:$I,2,FALSE),IF(Selection!$B$4="GB",VLOOKUP($A111,'Style navne sprog'!$A:$I,4,FALSE),IF(Selection!$B$4="SE",VLOOKUP($A111,'Style navne sprog'!$A:$I,3,FALSE),IF(Selection!$B$4="NO",VLOOKUP($A111,'Style navne sprog'!$A:$I,5,FALSE),IF(Selection!$B$4="PL",VLOOKUP($A111,'Style navne sprog'!$A:$I,7,FALSE))))))) -> Bonded fleece jacket | C111: =IF(Master!C111<>"",Master!C111*Selection!$B$3,"") -> 128.6 | D111: =IF(Master!D111<>"",Master!D111*Selection!$B$3,"") ->  | E111: 3XL-4XL | F111: =IF(Master!F111<>"",Master!F111*Selection!$B$3,"") -> 8 | G111: =IF(Factor!#REF!<>"",Factor!#REF!*Selection!$B$3,"") -> 
A112: 0745 | B112: =IF(Selection!$B$4="DK",VLOOKUP($A112,'Style navne sprog'!$A:$I,6,FALSE),IF(Selection!$B$4="DE",VLOOKUP($A112,'Style navne sprog'!$A:$I,2,FALSE),IF(Selection!$B$4="GB",VLOOKUP($A112,'Style navne sprog'!$A:$I,4,FALSE),IF(Selection!$B$4="SE",VLOOKUP($A112,'Style navne sprog'!$A:$I,3,FALSE),IF(Selection!$B$4="NO",VLOOKUP($A112,'Style navne sprog'!$A:$I,5,FALSE),IF(Selection!$B$4="PL",VLOOKUP($A112,'Style navne sprog'!$A:$I,7,FALSE))))))) -> Bonded fleece jacket | women | C112: =IF(Master!C112<>"",Master!C112*Selection!$B$3,"") -> 128.6 | D112: =IF(Master!D112<>"",Master!D112*Selection!$B$3,"") ->  | E112: 3XL-4XL | F112: =IF(Master!F112<>"",Master!F112*Selection!$B$3,"") -> 8 | G112: =IF(Factor!#REF!<>"",Factor!#REF!*Selection!$B$3,"") -> 
A113: 0746 | B113: =IF(Selection!$B$4="DK",VLOOKUP($A113,'Style navne sprog'!$A:$I,6,FALSE),IF(Selection!$B$4="DE",VLOOKUP($A113,'Style navne sprog'!$A:$I,2,FALSE),IF(Selection!$B$4="GB",VLOOKUP($A113,'Style navne sprog'!$A:$I,4,FALSE),IF(Selection!$B$4="SE",VLOOKUP($A113,'Style navne sprog'!$A:$I,3,FALSE),IF(Selection!$B$4="NO",VLOOKUP($A113,'Style navne sprog'!$A:$I,5,FALSE),IF(Selection!$B$4="PL",VLOOKUP($A113,'Style navne sprog'!$A:$I,7,FALSE))))))) -> Bonded fleece vest | C113: =IF(Master!C113<>"",Master!C113*Selection!$B$3,"") -> 107.1 | D113: =IF(Master!D113<>"",Master!D113*Selection!$B$3,"") ->  | E113: 3XL-4XL | F113: =IF(Master!F113<>"",Master!F113*Selection!$B$3,"") -> 8 | G113: =IF(Factor!#REF!<>"",Factor!#REF!*Selection!$B$3,"") -> 
A114: 0747 | B114: =IF(Selection!$B$4="DK",VLOOKUP($A114,'Style navne sprog'!$A:$I,6,FALSE),IF(Selection!$B$4="DE",VLOOKUP($A114,'Style navne sprog'!$A:$I,2,FALSE),IF(Selection!$B$4="GB",VLOOKUP($A114,'Style navne sprog'!$A:$I,4,FALSE),IF(Selection!$B$4="SE",VLOOKUP($A114,'Style navne sprog'!$A:$I,3,FALSE),IF(Selection!$B$4="NO",VLOOKUP($A114,'Style navne sprog'!$A:$I,5,FALSE),IF(Selection!$B$4="PL",VLOOKUP($A114,'Style navne sprog'!$A:$I,7,FALSE))))))) -> Bonded fleece vest | women | C114: =IF(Master!C114<>"",Master!C114*Selection!$B$3,"") -> 107.1 | D114: =IF(Master!D114<>"",Master!D114*Selection!$B$3,"") ->  | E114: 3XL-4XL | F114: =IF(Master!F114<>"",Master!F114*Selection!$B$3,"") -> 8 | G114: =IF(Factor!#REF!<>"",Factor!#REF!*Selection!$B$3,"") -> 
A115: 0792 | B115: =IF(Selection!$B$4="DK",VLOOKUP($A115,'Style navne sprog'!$A:$I,6,FALSE),IF(Selection!$B$4="DE",VLOOKUP($A115,'Style navne sprog'!$A:$I,2,FALSE),IF(Selection!$B$4="GB",VLOOKUP($A115,'Style navne sprog'!$A:$I,4,FALSE),IF(Selection!$B$4="SE",VLOOKUP($A115,'Style navne sprog'!$A:$I,3,FALSE),IF(Selection!$B$4="NO",VLOOKUP($A115,'Style navne sprog'!$A:$I,5,FALSE),IF(Selection!$B$4="PL",VLOOKUP($A115,'Style navne sprog'!$A:$I,7,FALSE))))))) -> Zip-n-Mix microfleece | reflective | C115: =IF(Master!C115<>"",Master!C115*Selection!$B$3,"") -> 123.2 | D115: =IF(Master!D115<>"",Master!D115*Selection!$B$3,"") ->  | E115: 3XL-6XL | F115: =IF(Master!F115<>"",Master!F115*Selection!$B$3,"") -> 8 | G115: =IF(Factor!#REF!<>"",Factor!#REF!*Selection!$B$3,"") -> 
A116: 0793 | B116: =IF(Selection!$B$4="DK",VLOOKUP($A116,'Style navne sprog'!$A:$I,6,FALSE),IF(Selection!$B$4="DE",VLOOKUP($A116,'Style navne sprog'!$A:$I,2,FALSE),IF(Selection!$B$4="GB",VLOOKUP($A116,'Style navne sprog'!$A:$I,4,FALSE),IF(Selection!$B$4="SE",VLOOKUP($A116,'Style navne sprog'!$A:$I,3,FALSE),IF(Selection!$B$4="NO",VLOOKUP($A116,'Style navne sprog'!$A:$I,5,FALSE),IF(Selection!$B$4="PL",VLOOKUP($A116,'Style navne sprog'!$A:$I,7,FALSE))))))) -> Zip-n-Mix microfleece | reflective | women | C116: =IF(Master!C116<>"",Master!C116*Selection!$B$3,"") -> 123.2 | D116: =IF(Master!D116<>"",Master!D116*Selection!$B$3,"") ->  | E116: 3XL-6XL | F116: =IF(Master!F116<>"",Master!F116*Selection!$B$3,"") -> 8 | G116: =IF(Factor!#REF!<>"",Factor!#REF!*Selection!$B$3,"") -> 
A117: 0803 | B117: =IF(Selection!$B$4="DK",VLOOKUP($A117,'Style navne sprog'!$A:$I,6,FALSE),IF(Selection!$B$4="DE",VLOOKUP($A117,'Style navne sprog'!$A:$I,2,FALSE),IF(Selection!$B$4="GB",VLOOKUP($A117,'Style navne sprog'!$A:$I,4,FALSE),IF(Selection!$B$4="SE",VLOOKUP($A117,'Style navne sprog'!$A:$I,3,FALSE),IF(Selection!$B$4="NO",VLOOKUP($A117,'Style navne sprog'!$A:$I,5,FALSE),IF(Selection!$B$4="PL",VLOOKUP($A117,'Style navne sprog'!$A:$I,7,FALSE))))))) -> Cardigan | microfleece | C117: =IF(Master!C117<>"",Master!C117*Selection!$B$3,"") -> 77.7 | D117: =IF(Master!D117<>"",Master!D117*Selection!$B$3,"") ->  | E117: 3XL-5XL | F117: =IF(Master!F117<>"",Master!F117*Selection!$B$3,"") -> 8 | G117: =IF(Factor!#REF!<>"",Factor!#REF!*Selection!$B$3,"") -> 
A118: 0805 | B118: =IF(Selection!$B$4="DK",VLOOKUP($A118,'Style navne sprog'!$A:$I,6,FALSE),IF(Selection!$B$4="DE",VLOOKUP($A118,'Style navne sprog'!$A:$I,2,FALSE),IF(Selection!$B$4="GB",VLOOKUP($A118,'Style navne sprog'!$A:$I,4,FALSE),IF(Selection!$B$4="SE",VLOOKUP($A118,'Style navne sprog'!$A:$I,3,FALSE),IF(Selection!$B$4="NO",VLOOKUP($A118,'Style navne sprog'!$A:$I,5,FALSE),IF(Selection!$B$4="PL",VLOOKUP($A118,'Style navne sprog'!$A:$I,7,FALSE))))))) -> Cardigan | microfleece | women | C118: =IF(Master!C118<>"",Master!C118*Selection!$B$3,"") -> 77.7 | D118: =IF(Master!D118<>"",Master!D118*Selection!$B$3,"") ->  | E118: 3XL | F118: =IF(Master!F118<>"",Master!F118*Selection!$B$3,"") -> 8 | G118: =IF(Factor!#REF!<>"",Factor!#REF!*Selection!$B$3,"") -> 
A119: 0806 | B119: =IF(Selection!$B$4="DK",VLOOKUP($A119,'Style navne sprog'!$A:$I,6,FALSE),IF(Selection!$B$4="DE",VLOOKUP($A119,'Style navne sprog'!$A:$I,2,FALSE),IF(Selection!$B$4="GB",VLOOKUP($A119,'Style navne sprog'!$A:$I,4,FALSE),IF(Selection!$B$4="SE",VLOOKUP($A119,'Style navne sprog'!$A:$I,3,FALSE),IF(Selection!$B$4="NO",VLOOKUP($A119,'Style navne sprog'!$A:$I,5,FALSE),IF(Selection!$B$4="PL",VLOOKUP($A119,'Style navne sprog'!$A:$I,7,FALSE))))))) -> Zip-n-Mix microfleece | C119: =IF(Master!C119<>"",Master!C119*Selection!$B$3,"") -> 77.7 | D119: =IF(Master!D119<>"",Master!D119*Selection!$B$3,"") ->  | E119: 3XL-4XL | F119: =IF(Master!F119<>"",Master!F119*Selection!$B$3,"") -> 8 | G119: =IF(Factor!#REF!<>"",Factor!#REF!*Selection!$B$3,"") -> 
A120: 0807 | B120: =IF(Selection!$B$4="DK",VLOOKUP($A120,'Style navne sprog'!$A:$I,6,FALSE),IF(Selection!$B$4="DE",VLOOKUP($A120,'Style navne sprog'!$A:$I,2,FALSE),IF(Selection!$B$4="GB",VLOOKUP($A120,'Style navne sprog'!$A:$I,4,FALSE),IF(Selection!$B$4="SE",VLOOKUP($A120,'Style navne sprog'!$A:$I,3,FALSE),IF(Selection!$B$4="NO",VLOOKUP($A120,'Style navne sprog'!$A:$I,5,FALSE),IF(Selection!$B$4="PL",VLOOKUP($A120,'Style navne sprog'!$A:$I,7,FALSE))))))) -> Zip-n-Mix microfleece | women | C120: =IF(Master!C120<>"",Master!C120*Selection!$B$3,"") -> 77.7 | D120: =IF(Master!D120<>"",Master!D120*Selection!$B$3,"") ->  | E120: 3XL | F120: =IF(Master!F120<>"",Master!F120*Selection!$B$3,"") -> 8 | G120: =IF(Factor!#REF!<>"",Factor!#REF!*Selection!$B$3,"") -> 
A121: 0808 | B121: =IF(Selection!$B$4="DK",VLOOKUP($A121,'Style navne sprog'!$A:$I,6,FALSE),IF(Selection!$B$4="DE",VLOOKUP($A121,'Style navne sprog'!$A:$I,2,FALSE),IF(Selection!$B$4="GB",VLOOKUP($A121,'Style navne sprog'!$A:$I,4,FALSE),IF(Selection!$B$4="SE",VLOOKUP($A121,'Style navne sprog'!$A:$I,3,FALSE),IF(Selection!$B$4="NO",VLOOKUP($A121,'Style navne sprog'!$A:$I,5,FALSE),IF(Selection!$B$4="PL",VLOOKUP($A121,'Style navne sprog'!$A:$I,7,FALSE))))))) -> Fleece tunic | unisex | C121: =IF(Master!C121<>"",Master!C121*Selection!$B$3,"") -> 67 | D121: =IF(Master!D121<>"",Master!D121*Selection!$B$3,"") ->  | E121: 3XL-6XL | F121: =IF(Master!F121<>"",Master!F121*Selection!$B$3,"") -> 8 | G121: =IF(Factor!#REF!<>"",Factor!#REF!*Selection!$B$3,"") -> 
A122: 0809 | B122: =IF(Selection!$B$4="DK",VLOOKUP($A122,'Style navne sprog'!$A:$I,6,FALSE),IF(Selection!$B$4="DE",VLOOKUP($A122,'Style navne sprog'!$A:$I,2,FALSE),IF(Selection!$B$4="GB",VLOOKUP($A122,'Style navne sprog'!$A:$I,4,FALSE),IF(Selection!$B$4="SE",VLOOKUP($A122,'Style navne sprog'!$A:$I,3,FALSE),IF(Selection!$B$4="NO",VLOOKUP($A122,'Style navne sprog'!$A:$I,5,FALSE),IF(Selection!$B$4="PL",VLOOKUP($A122,'Style navne sprog'!$A:$I,7,FALSE))))))) -> Fleece bolero | unisex | C122: =IF(Master!C122<>"",Master!C122*Selection!$B$3,"") -> 62.1 | D122: =IF(Master!D122<>"",Master!D122*Selection!$B$3,"") ->  | F122: =IF(Master!F122<>"",Master!F122*Selection!$B$3,"") ->  | G122: =IF(Factor!#REF!<>"",Factor!#REF!*Selection!$B$3,"") -> 
A123: 0811 | B123: =IF(Selection!$B$4="DK",VLOOKUP($A123,'Style navne sprog'!$A:$I,6,FALSE),IF(Selection!$B$4="DE",VLOOKUP($A123,'Style navne sprog'!$A:$I,2,FALSE),IF(Selection!$B$4="GB",VLOOKUP($A123,'Style navne sprog'!$A:$I,4,FALSE),IF(Selection!$B$4="SE",VLOOKUP($A123,'Style navne sprog'!$A:$I,3,FALSE),IF(Selection!$B$4="NO",VLOOKUP($A123,'Style navne sprog'!$A:$I,5,FALSE),IF(Selection!$B$4="PL",VLOOKUP($A123,'Style navne sprog'!$A:$I,7,FALSE))))))) -> Active vest | microfleece | C123: =IF(Master!C123<>"",Master!C123*Selection!$B$3,"") -> 70.9 | D123: =IF(Master!D123<>"",Master!D123*Selection!$B$3,"") ->  | E123: 3XL-4XL | F123: =IF(Master!F123<>"",Master!F123*Selection!$B$3,"") -> 8 | G123: =IF(Factor!#REF!<>"",Factor!#REF!*Selection!$B$3,"") -> 
A124: 0812 | B124: =IF(Selection!$B$4="DK",VLOOKUP($A124,'Style navne sprog'!$A:$I,6,FALSE),IF(Selection!$B$4="DE",VLOOKUP($A124,'Style navne sprog'!$A:$I,2,FALSE),IF(Selection!$B$4="GB",VLOOKUP($A124,'Style navne sprog'!$A:$I,4,FALSE),IF(Selection!$B$4="SE",VLOOKUP($A124,'Style navne sprog'!$A:$I,3,FALSE),IF(Selection!$B$4="NO",VLOOKUP($A124,'Style navne sprog'!$A:$I,5,FALSE),IF(Selection!$B$4="PL",VLOOKUP($A124,'Style navne sprog'!$A:$I,7,FALSE))))))) -> Active vest | microfleece | women | C124: =IF(Master!C124<>"",Master!C124*Selection!$B$3,"") -> 70.9 | D124: =IF(Master!D124<>"",Master!D124*Selection!$B$3,"") ->  | E124: 3XL | F124: =IF(Master!F124<>"",Master!F124*Selection!$B$3,"") -> 8 | G124: =IF(Factor!#REF!<>"",Factor!#REF!*Selection!$B$3,"") -> 
A125: 0826 | B125: =IF(Selection!$B$4="DK",VLOOKUP($A125,'Style navne sprog'!$A:$I,6,FALSE),IF(Selection!$B$4="DE",VLOOKUP($A125,'Style navne sprog'!$A:$I,2,FALSE),IF(Selection!$B$4="GB",VLOOKUP($A125,'Style navne sprog'!$A:$I,4,FALSE),IF(Selection!$B$4="SE",VLOOKUP($A125,'Style navne sprog'!$A:$I,3,FALSE),IF(Selection!$B$4="NO",VLOOKUP($A125,'Style navne sprog'!$A:$I,5,FALSE),IF(Selection!$B$4="PL",VLOOKUP($A125,'Style navne sprog'!$A:$I,7,FALSE))))))) -> Fleece jacket | quilted | C125: =IF(Master!C125<>"",Master!C125*Selection!$B$3,"") -> 158.4 | D125: =IF(Master!D125<>"",Master!D125*Selection!$B$3,"") ->  | E125: 3XL-4XL | F125: =IF(Master!F125<>"",Master!F125*Selection!$B$3,"") -> 8 | G125: =IF(Factor!#REF!<>"",Factor!#REF!*Selection!$B$3,"") -> 
A126: 0827 | B126: =IF(Selection!$B$4="DK",VLOOKUP($A126,'Style navne sprog'!$A:$I,6,FALSE),IF(Selection!$B$4="DE",VLOOKUP($A126,'Style navne sprog'!$A:$I,2,FALSE),IF(Selection!$B$4="GB",VLOOKUP($A126,'Style navne sprog'!$A:$I,4,FALSE),IF(Selection!$B$4="SE",VLOOKUP($A126,'Style navne sprog'!$A:$I,3,FALSE),IF(Selection!$B$4="NO",VLOOKUP($A126,'Style navne sprog'!$A:$I,5,FALSE),IF(Selection!$B$4="PL",VLOOKUP($A126,'Style navne sprog'!$A:$I,7,FALSE))))))) -> Fleece jacket | quilted | women | C126: =IF(Master!C126<>"",Master!C126*Selection!$B$3,"") -> 158.4 | D126: =IF(Master!D126<>"",Master!D126*Selection!$B$3,"") ->  | E126: 4XL | F126: =IF(Master!F126<>"",Master!F126*Selection!$B$3,"") -> 8 | G126: =IF(Factor!#REF!<>"",Factor!#REF!*Selection!$B$3,"") -> 
A127: 0828 | B127: =IF(Selection!$B$4="DK",VLOOKUP($A127,'Style navne sprog'!$A:$I,6,FALSE),IF(Selection!$B$4="DE",VLOOKUP($A127,'Style navne sprog'!$A:$I,2,FALSE),IF(Selection!$B$4="GB",VLOOKUP($A127,'Style navne sprog'!$A:$I,4,FALSE),IF(Selection!$B$4="SE",VLOOKUP($A127,'Style navne sprog'!$A:$I,3,FALSE),IF(Selection!$B$4="NO",VLOOKUP($A127,'Style navne sprog'!$A:$I,5,FALSE),IF(Selection!$B$4="PL",VLOOKUP($A127,'Style navne sprog'!$A:$I,7,FALSE))))))) -> Pile fleece jacket | C127: =IF(Master!C127<>"",Master!C127*Selection!$B$3,"") -> 158.1 | D127: =IF(Master!D127<>"",Master!D127*Selection!$B$3,"") ->  | E127: 3XL | F127: =IF(Master!F127<>"",Master!F127*Selection!$B$3,"") -> 8 | G127: =IF(Factor!#REF!<>"",Factor!#REF!*Selection!$B$3,"") -> 
A128: 0829 | B128: =IF(Selection!$B$4="DK",VLOOKUP($A128,'Style navne sprog'!$A:$I,6,FALSE),IF(Selection!$B$4="DE",VLOOKUP($A128,'Style navne sprog'!$A:$I,2,FALSE),IF(Selection!$B$4="GB",VLOOKUP($A128,'Style navne sprog'!$A:$I,4,FALSE),IF(Selection!$B$4="SE",VLOOKUP($A128,'Style navne sprog'!$A:$I,3,FALSE),IF(Selection!$B$4="NO",VLOOKUP($A128,'Style navne sprog'!$A:$I,5,FALSE),IF(Selection!$B$4="PL",VLOOKUP($A128,'Style navne sprog'!$A:$I,7,FALSE))))))) -> Pile fleece jacket I women | C128: =IF(Master!C128<>"",Master!C128*Selection!$B$3,"") -> 158.1 | D128: =IF(Master!D128<>"",Master!D128*Selection!$B$3,"") ->  | E128: 3XL | F128: =IF(Master!F128<>"",Master!F128*Selection!$B$3,"") -> 8 | G128: =IF(Factor!#REF!<>"",Factor!#REF!*Selection!$B$3,"") -> 
A129: 0840 | B129: =IF(Selection!$B$4="DK",VLOOKUP($A129,'Style navne sprog'!$A:$I,6,FALSE),IF(Selection!$B$4="DE",VLOOKUP($A129,'Style navne sprog'!$A:$I,2,FALSE),IF(Selection!$B$4="GB",VLOOKUP($A129,'Style navne sprog'!$A:$I,4,FALSE),IF(Selection!$B$4="SE",VLOOKUP($A129,'Style navne sprog'!$A:$I,3,FALSE),IF(Selection!$B$4="NO",VLOOKUP($A129,'Style navne sprog'!$A:$I,5,FALSE),IF(Selection!$B$4="PL",VLOOKUP($A129,'Style navne sprog'!$A:$I,7,FALSE))))))) -> Cardigan | stretch comfort | C129: =IF(Master!C129<>"",Master!C129*Selection!$B$3,"") -> 160.8 | D129: =IF(Master!D129<>"",Master!D129*Selection!$B$3,"") ->  | E129: 3XL-4XL | F129: =IF(Master!F129<>"",Master!F129*Selection!$B$3,"") -> 8 | G129: =IF(Factor!#REF!<>"",Factor!#REF!*Selection!$B$3,"") -> 
A130: 0841 | B130: =IF(Selection!$B$4="DK",VLOOKUP($A130,'Style navne sprog'!$A:$I,6,FALSE),IF(Selection!$B$4="DE",VLOOKUP($A130,'Style navne sprog'!$A:$I,2,FALSE),IF(Selection!$B$4="GB",VLOOKUP($A130,'Style navne sprog'!$A:$I,4,FALSE),IF(Selection!$B$4="SE",VLOOKUP($A130,'Style navne sprog'!$A:$I,3,FALSE),IF(Selection!$B$4="NO",VLOOKUP($A130,'Style navne sprog'!$A:$I,5,FALSE),IF(Selection!$B$4="PL",VLOOKUP($A130,'Style navne sprog'!$A:$I,7,FALSE))))))) -> Cardigan | stretch comfort | women | C130: =IF(Master!C130<>"",Master!C130*Selection!$B$3,"") -> 160.8 | D130: =IF(Master!D130<>"",Master!D130*Selection!$B$3,"") ->  | E130: 3XL-4XL | F130: =IF(Master!F130<>"",Master!F130*Selection!$B$3,"") -> 8 | G130: =IF(Factor!#REF!<>"",Factor!#REF!*Selection!$B$3,"") -> 
A131: 0847 | B131: =IF(Selection!$B$4="DK",VLOOKUP($A131,'Style navne sprog'!$A:$I,6,FALSE),IF(Selection!$B$4="DE",VLOOKUP($A131,'Style navne sprog'!$A:$I,2,FALSE),IF(Selection!$B$4="GB",VLOOKUP($A131,'Style navne sprog'!$A:$I,4,FALSE),IF(Selection!$B$4="SE",VLOOKUP($A131,'Style navne sprog'!$A:$I,3,FALSE),IF(Selection!$B$4="NO",VLOOKUP($A131,'Style navne sprog'!$A:$I,5,FALSE),IF(Selection!$B$4="PL",VLOOKUP($A131,'Style navne sprog'!$A:$I,7,FALSE))))))) -> Zip-n-Mix fleece | melange | C131: =IF(Master!C131<>"",Master!C131*Selection!$B$3,"") -> 141.7 | D131: =IF(Master!D131<>"",Master!D131*Selection!$B$3,"") ->  | E131: 3XL-4XL | F131: =IF(Master!F131<>"",Master!F131*Selection!$B$3,"") -> 8 | G131: =IF(Factor!#REF!<>"",Factor!#REF!*Selection!$B$3,"") -> 
A132: 0848 | B132: =IF(Selection!$B$4="DK",VLOOKUP($A132,'Style navne sprog'!$A:$I,6,FALSE),IF(Selection!$B$4="DE",VLOOKUP($A132,'Style navne sprog'!$A:$I,2,FALSE),IF(Selection!$B$4="GB",VLOOKUP($A132,'Style navne sprog'!$A:$I,4,FALSE),IF(Selection!$B$4="SE",VLOOKUP($A132,'Style navne sprog'!$A:$I,3,FALSE),IF(Selection!$B$4="NO",VLOOKUP($A132,'Style navne sprog'!$A:$I,5,FALSE),IF(Selection!$B$4="PL",VLOOKUP($A132,'Style navne sprog'!$A:$I,7,FALSE))))))) -> Zip-n-Mix fleece | melange | women | C132: =IF(Master!C132<>"",Master!C132*Selection!$B$3,"") -> 141.7 | D132: =IF(Master!D132<>"",Master!D132*Selection!$B$3,"") ->  | E132: 3XL | F132: =IF(Master!F132<>"",Master!F132*Selection!$B$3,"") -> 8 | G132: =IF(Factor!#REF!<>"",Factor!#REF!*Selection!$B$3,"") -> 
A133: 0850 | B133: =IF(Selection!$B$4="DK",VLOOKUP($A133,'Style navne sprog'!$A:$I,6,FALSE),IF(Selection!$B$4="DE",VLOOKUP($A133,'Style navne sprog'!$A:$I,2,FALSE),IF(Selection!$B$4="GB",VLOOKUP($A133,'Style navne sprog'!$A:$I,4,FALSE),IF(Selection!$B$4="SE",VLOOKUP($A133,'Style navne sprog'!$A:$I,3,FALSE),IF(Selection!$B$4="NO",VLOOKUP($A133,'Style navne sprog'!$A:$I,5,FALSE),IF(Selection!$B$4="PL",VLOOKUP($A133,'Style navne sprog'!$A:$I,7,FALSE))))))) -> Cardigan | knit fleece | C133: =IF(Master!C133<>"",Master!C133*Selection!$B$3,"") -> 163.2 | D133: =IF(Master!D133<>"",Master!D133*Selection!$B$3,"") ->  | E133: 3XL | F133: =IF(Master!F133<>"",Master!F133*Selection!$B$3,"") -> 8 | G133: =IF(Factor!#REF!<>"",Factor!#REF!*Selection!$B$3,"") -> 
A134: 0851 | B134: =IF(Selection!$B$4="DK",VLOOKUP($A134,'Style navne sprog'!$A:$I,6,FALSE),IF(Selection!$B$4="DE",VLOOKUP($A134,'Style navne sprog'!$A:$I,2,FALSE),IF(Selection!$B$4="GB",VLOOKUP($A134,'Style navne sprog'!$A:$I,4,FALSE),IF(Selection!$B$4="SE",VLOOKUP($A134,'Style navne sprog'!$A:$I,3,FALSE),IF(Selection!$B$4="NO",VLOOKUP($A134,'Style navne sprog'!$A:$I,5,FALSE),IF(Selection!$B$4="PL",VLOOKUP($A134,'Style navne sprog'!$A:$I,7,FALSE))))))) -> Cardigan | knit fleece | women | C134: =IF(Master!C134<>"",Master!C134*Selection!$B$3,"") -> 163.2 | D134: =IF(Master!D134<>"",Master!D134*Selection!$B$3,"") ->  | E134: 3XL | F134: =IF(Master!F134<>"",Master!F134*Selection!$B$3,"") -> 8 | G134: =IF(Factor!#REF!<>"",Factor!#REF!*Selection!$B$3,"") -> 
A136: =IF(Selection!$B$4="PL","ODZIEZ WIERZCHNIA",IF(Selection!$B$4="SE","YTTERKLÄDER",IF(Selection!$B$4="GB","OUTERWEAR",IF(Selection!$B$4="DE","JACKEN & WESTEN",IF(Selection!$B$4="NO","YTTERTØY","OVERTØJ"))))) -> OUTERWEAR
A137: 0712 | B137: =IF(Selection!$B$4="DK",VLOOKUP($A137,'Style navne sprog'!$A:$I,6,FALSE),IF(Selection!$B$4="DE",VLOOKUP($A137,'Style navne sprog'!$A:$I,2,FALSE),IF(Selection!$B$4="GB",VLOOKUP($A137,'Style navne sprog'!$A:$I,4,FALSE),IF(Selection!$B$4="SE",VLOOKUP($A137,'Style navne sprog'!$A:$I,3,FALSE),IF(Selection!$B$4="NO",VLOOKUP($A137,'Style navne sprog'!$A:$I,5,FALSE),IF(Selection!$B$4="PL",VLOOKUP($A137,'Style navne sprog'!$A:$I,7,FALSE))))))) -> Zip-n-Mix shell Jacket | C137: =IF(Master!C137<>"",Master!C137*Selection!$B$3,"") -> 321.9 | D137: =IF(Master!D137<>"",Master!D137*Selection!$B$3,"") ->  | E137: 3XL-6XL | F137: =IF(Master!F137<>"",Master!F137*Selection!$B$3,"") -> 8 | G137: =IF(Factor!#REF!<>"",Factor!#REF!*Selection!$B$3,"") -> 
A138: 0713 | B138: =IF(Selection!$B$4="DK",VLOOKUP($A138,'Style navne sprog'!$A:$I,6,FALSE),IF(Selection!$B$4="DE",VLOOKUP($A138,'Style navne sprog'!$A:$I,2,FALSE),IF(Selection!$B$4="GB",VLOOKUP($A138,'Style navne sprog'!$A:$I,4,FALSE),IF(Selection!$B$4="SE",VLOOKUP($A138,'Style navne sprog'!$A:$I,3,FALSE),IF(Selection!$B$4="NO",VLOOKUP($A138,'Style navne sprog'!$A:$I,5,FALSE),IF(Selection!$B$4="PL",VLOOKUP($A138,'Style navne sprog'!$A:$I,7,FALSE))))))) -> Zip-n-Mix shell jacket | women | C138: =IF(Master!C138<>"",Master!C138*Selection!$B$3,"") -> 321.9 | D138: =IF(Master!D138<>"",Master!D138*Selection!$B$3,"") ->  | E138: 3XL-6XL | F138: =IF(Master!F138<>"",Master!F138*Selection!$B$3,"") -> 8 | G138: =IF(Factor!#REF!<>"",Factor!#REF!*Selection!$B$3,"") -> 
A139: 0720 | B139: =IF(Selection!$B$4="DK",VLOOKUP($A139,'Style navne sprog'!$A:$I,6,FALSE),IF(Selection!$B$4="DE",VLOOKUP($A139,'Style navne sprog'!$A:$I,2,FALSE),IF(Selection!$B$4="GB",VLOOKUP($A139,'Style navne sprog'!$A:$I,4,FALSE),IF(Selection!$B$4="SE",VLOOKUP($A139,'Style navne sprog'!$A:$I,3,FALSE),IF(Selection!$B$4="NO",VLOOKUP($A139,'Style navne sprog'!$A:$I,5,FALSE),IF(Selection!$B$4="PL",VLOOKUP($A139,'Style navne sprog'!$A:$I,7,FALSE))))))) -> Hybrid jacket | C139: =IF(Master!C139<>"",Master!C139*Selection!$B$3,"") -> 187.7 | D139: =IF(Master!D139<>"",Master!D139*Selection!$B$3,"") ->  | E139: 3XL-4XL | F139: =IF(Master!F139<>"",Master!F139*Selection!$B$3,"") -> 8 | G139: =IF(Factor!#REF!<>"",Factor!#REF!*Selection!$B$3,"") -> 
A140: 0721 | B140: =IF(Selection!$B$4="DK",VLOOKUP($A140,'Style navne sprog'!$A:$I,6,FALSE),IF(Selection!$B$4="DE",VLOOKUP($A140,'Style navne sprog'!$A:$I,2,FALSE),IF(Selection!$B$4="GB",VLOOKUP($A140,'Style navne sprog'!$A:$I,4,FALSE),IF(Selection!$B$4="SE",VLOOKUP($A140,'Style navne sprog'!$A:$I,3,FALSE),IF(Selection!$B$4="NO",VLOOKUP($A140,'Style navne sprog'!$A:$I,5,FALSE),IF(Selection!$B$4="PL",VLOOKUP($A140,'Style navne sprog'!$A:$I,7,FALSE))))))) -> Hybrid jacket | women | C140: =IF(Master!C140<>"",Master!C140*Selection!$B$3,"") -> 187.7 | D140: =IF(Master!D140<>"",Master!D140*Selection!$B$3,"") ->  | E140: 3XL-4XL | F140: =IF(Master!F140<>"",Master!F140*Selection!$B$3,"") -> 8 | G140: =IF(Factor!#REF!<>"",Factor!#REF!*Selection!$B$3,"") -> 
A141: 0780 | B141: =IF(Selection!$B$4="DK",VLOOKUP($A141,'Style navne sprog'!$A:$I,6,FALSE),IF(Selection!$B$4="DE",VLOOKUP($A141,'Style navne sprog'!$A:$I,2,FALSE),IF(Selection!$B$4="GB",VLOOKUP($A141,'Style navne sprog'!$A:$I,4,FALSE),IF(Selection!$B$4="SE",VLOOKUP($A141,'Style navne sprog'!$A:$I,3,FALSE),IF(Selection!$B$4="NO",VLOOKUP($A141,'Style navne sprog'!$A:$I,5,FALSE),IF(Selection!$B$4="PL",VLOOKUP($A141,'Style navne sprog'!$A:$I,7,FALSE))))))) -> Zip-n-Mix jacket | hybrid | C141: =IF(Master!C141<>"",Master!C141*Selection!$B$3,"") -> 241.3 | D141: =IF(Master!D141<>"",Master!D141*Selection!$B$3,"") ->  | E141: 3XL-6XL | F141: =IF(Master!F141<>"",Master!F141*Selection!$B$3,"") -> 8 | G141: =IF(Factor!#REF!<>"",Factor!#REF!*Selection!$B$3,"") -> 
A142: 0781 | B142: =IF(Selection!$B$4="DK",VLOOKUP($A142,'Style navne sprog'!$A:$I,6,FALSE),IF(Selection!$B$4="DE",VLOOKUP($A142,'Style navne sprog'!$A:$I,2,FALSE),IF(Selection!$B$4="GB",VLOOKUP($A142,'Style navne sprog'!$A:$I,4,FALSE),IF(Selection!$B$4="SE",VLOOKUP($A142,'Style navne sprog'!$A:$I,3,FALSE),IF(Selection!$B$4="NO",VLOOKUP($A142,'Style navne sprog'!$A:$I,5,FALSE),IF(Selection!$B$4="PL",VLOOKUP($A142,'Style navne sprog'!$A:$I,7,FALSE))))))) -> Zip-n-Mix jacket | hybrid | women | C142: =IF(Master!C142<>"",Master!C142*Selection!$B$3,"") -> 241.3 | D142: =IF(Master!D142<>"",Master!D142*Selection!$B$3,"") ->  | E142: 3XL-6XL | F142: =IF(Master!F142<>"",Master!F142*Selection!$B$3,"") -> 8 | G142: =IF(Factor!#REF!<>"",Factor!#REF!*Selection!$B$3,"") -> 
A143: 0824 | B143: =IF(Selection!$B$4="DK",VLOOKUP($A143,'Style navne sprog'!$A:$I,6,FALSE),IF(Selection!$B$4="DE",VLOOKUP($A143,'Style navne sprog'!$A:$I,2,FALSE),IF(Selection!$B$4="GB",VLOOKUP($A143,'Style navne sprog'!$A:$I,4,FALSE),IF(Selection!$B$4="SE",VLOOKUP($A143,'Style navne sprog'!$A:$I,3,FALSE),IF(Selection!$B$4="NO",VLOOKUP($A143,'Style navne sprog'!$A:$I,5,FALSE),IF(Selection!$B$4="PL",VLOOKUP($A143,'Style navne sprog'!$A:$I,7,FALSE))))))) -> Soft shell vest | functional | C143: =IF(Master!C143<>"",Master!C143*Selection!$B$3,"") -> 123.2 | D143: =IF(Master!D143<>"",Master!D143*Selection!$B$3,"") ->  | E143: 3XL-6XL | F143: =IF(Master!F143<>"",Master!F143*Selection!$B$3,"") -> 8 | G143: =IF(Factor!#REF!<>"",Factor!#REF!*Selection!$B$3,"") -> 
A144: 0825 | B144: =IF(Selection!$B$4="DK",VLOOKUP($A144,'Style navne sprog'!$A:$I,6,FALSE),IF(Selection!$B$4="DE",VLOOKUP($A144,'Style navne sprog'!$A:$I,2,FALSE),IF(Selection!$B$4="GB",VLOOKUP($A144,'Style navne sprog'!$A:$I,4,FALSE),IF(Selection!$B$4="SE",VLOOKUP($A144,'Style navne sprog'!$A:$I,3,FALSE),IF(Selection!$B$4="NO",VLOOKUP($A144,'Style navne sprog'!$A:$I,5,FALSE),IF(Selection!$B$4="PL",VLOOKUP($A144,'Style navne sprog'!$A:$I,7,FALSE))))))) -> Soft shell vest | functional | women | C144: =IF(Master!C144<>"",Master!C144*Selection!$B$3,"") -> 123.2 | D144: =IF(Master!D144<>"",Master!D144*Selection!$B$3,"") ->  | E144: 3XL | F144: =IF(Master!F144<>"",Master!F144*Selection!$B$3,"") -> 8 | G144: =IF(Factor!#REF!<>"",Factor!#REF!*Selection!$B$3,"") -> 
A145: 0830 | B145: =IF(Selection!$B$4="DK",VLOOKUP($A145,'Style navne sprog'!$A:$I,6,FALSE),IF(Selection!$B$4="DE",VLOOKUP($A145,'Style navne sprog'!$A:$I,2,FALSE),IF(Selection!$B$4="GB",VLOOKUP($A145,'Style navne sprog'!$A:$I,4,FALSE),IF(Selection!$B$4="SE",VLOOKUP($A145,'Style navne sprog'!$A:$I,3,FALSE),IF(Selection!$B$4="NO",VLOOKUP($A145,'Style navne sprog'!$A:$I,5,FALSE),IF(Selection!$B$4="PL",VLOOKUP($A145,'Style navne sprog'!$A:$I,7,FALSE))))))) -> Rain jacket | performance | C145: =IF(Master!C145<>"",Master!C145*Selection!$B$3,"") -> 158.1 | D145: =IF(Master!D145<>"",Master!D145*Selection!$B$3,"") ->  | E145: 3XL | F145: =IF(Master!F145<>"",Master!F145*Selection!$B$3,"") -> 8 | G145: =IF(Factor!#REF!<>"",Factor!#REF!*Selection!$B$3,"") -> 
A146: 0831 | B146: =IF(Selection!$B$4="DK",VLOOKUP($A146,'Style navne sprog'!$A:$I,6,FALSE),IF(Selection!$B$4="DE",VLOOKUP($A146,'Style navne sprog'!$A:$I,2,FALSE),IF(Selection!$B$4="GB",VLOOKUP($A146,'Style navne sprog'!$A:$I,4,FALSE),IF(Selection!$B$4="SE",VLOOKUP($A146,'Style navne sprog'!$A:$I,3,FALSE),IF(Selection!$B$4="NO",VLOOKUP($A146,'Style navne sprog'!$A:$I,5,FALSE),IF(Selection!$B$4="PL",VLOOKUP($A146,'Style navne sprog'!$A:$I,7,FALSE))))))) -> Rain jacket | performance | women | C146: =IF(Master!C146<>"",Master!C146*Selection!$B$3,"") -> 158.1 | D146: =IF(Master!D146<>"",Master!D146*Selection!$B$3,"") ->  | E146: 3XL | F146: =IF(Master!F146<>"",Master!F146*Selection!$B$3,"") -> 8 | G146: =IF(Factor!#REF!<>"",Factor!#REF!*Selection!$B$3,"") -> 
A147: 0836 | B147: =IF(Selection!$B$4="DK",VLOOKUP($A147,'Style navne sprog'!$A:$I,6,FALSE),IF(Selection!$B$4="DE",VLOOKUP($A147,'Style navne sprog'!$A:$I,2,FALSE),IF(Selection!$B$4="GB",VLOOKUP($A147,'Style navne sprog'!$A:$I,4,FALSE),IF(Selection!$B$4="SE",VLOOKUP($A147,'Style navne sprog'!$A:$I,3,FALSE),IF(Selection!$B$4="NO",VLOOKUP($A147,'Style navne sprog'!$A:$I,5,FALSE),IF(Selection!$B$4="PL",VLOOKUP($A147,'Style navne sprog'!$A:$I,7,FALSE))))))) -> Soft shell jacket | light | C147: =IF(Master!C147<>"",Master!C147*Selection!$B$3,"") -> 174.2 | D147: =IF(Master!D147<>"",Master!D147*Selection!$B$3,"") ->  | E147: 3XL-6XL | F147: =IF(Master!F147<>"",Master!F147*Selection!$B$3,"") -> 8 | G147: =IF(Factor!#REF!<>"",Factor!#REF!*Selection!$B$3,"") -> 
A148: 0837 | B148: =IF(Selection!$B$4="DK",VLOOKUP($A148,'Style navne sprog'!$A:$I,6,FALSE),IF(Selection!$B$4="DE",VLOOKUP($A148,'Style navne sprog'!$A:$I,2,FALSE),IF(Selection!$B$4="GB",VLOOKUP($A148,'Style navne sprog'!$A:$I,4,FALSE),IF(Selection!$B$4="SE",VLOOKUP($A148,'Style navne sprog'!$A:$I,3,FALSE),IF(Selection!$B$4="NO",VLOOKUP($A148,'Style navne sprog'!$A:$I,5,FALSE),IF(Selection!$B$4="PL",VLOOKUP($A148,'Style navne sprog'!$A:$I,7,FALSE))))))) -> Soft shell jacket | light | women | C148: =IF(Master!C148<>"",Master!C148*Selection!$B$3,"") -> 174.2 | D148: =IF(Master!D148<>"",Master!D148*Selection!$B$3,"") ->  | E148: 3XL | F148: =IF(Master!F148<>"",Master!F148*Selection!$B$3,"") -> 8 | G148: =IF(Factor!#REF!<>"",Factor!#REF!*Selection!$B$3,"") -> 
A149: 0842 | B149: =IF(Selection!$B$4="DK",VLOOKUP($A149,'Style navne sprog'!$A:$I,6,FALSE),IF(Selection!$B$4="DE",VLOOKUP($A149,'Style navne sprog'!$A:$I,2,FALSE),IF(Selection!$B$4="GB",VLOOKUP($A149,'Style navne sprog'!$A:$I,4,FALSE),IF(Selection!$B$4="SE",VLOOKUP($A149,'Style navne sprog'!$A:$I,3,FALSE),IF(Selection!$B$4="NO",VLOOKUP($A149,'Style navne sprog'!$A:$I,5,FALSE),IF(Selection!$B$4="PL",VLOOKUP($A149,'Style navne sprog'!$A:$I,7,FALSE))))))) -> Hooded winter jacket | C149: =IF(Master!C149<>"",Master!C149*Selection!$B$3,"") -> 321.9 | D149: =IF(Master!D149<>"",Master!D149*Selection!$B$3,"") ->  | E149: 3XL-4XL | F149: =IF(Master!F149<>"",Master!F149*Selection!$B$3,"") -> 8 | G149: =IF(Factor!#REF!<>"",Factor!#REF!*Selection!$B$3,"") -> 
A150: 0843 | B150: =IF(Selection!$B$4="DK",VLOOKUP($A150,'Style navne sprog'!$A:$I,6,FALSE),IF(Selection!$B$4="DE",VLOOKUP($A150,'Style navne sprog'!$A:$I,2,FALSE),IF(Selection!$B$4="GB",VLOOKUP($A150,'Style navne sprog'!$A:$I,4,FALSE),IF(Selection!$B$4="SE",VLOOKUP($A150,'Style navne sprog'!$A:$I,3,FALSE),IF(Selection!$B$4="NO",VLOOKUP($A150,'Style navne sprog'!$A:$I,5,FALSE),IF(Selection!$B$4="PL",VLOOKUP($A150,'Style navne sprog'!$A:$I,7,FALSE))))))) -> Hooded winter jacket | women | C150: =IF(Master!C150<>"",Master!C150*Selection!$B$3,"") -> 321.9 | D150: =IF(Master!D150<>"",Master!D150*Selection!$B$3,"") ->  | E150: 3XL-4XL | F150: =IF(Master!F150<>"",Master!F150*Selection!$B$3,"") -> 8 | G150: =IF(Factor!#REF!<>"",Factor!#REF!*Selection!$B$3,"") -> 
A151: 0854 | B151: =IF(Selection!$B$4="DK",VLOOKUP($A151,'Style navne sprog'!$A:$I,6,FALSE),IF(Selection!$B$4="DE",VLOOKUP($A151,'Style navne sprog'!$A:$I,2,FALSE),IF(Selection!$B$4="GB",VLOOKUP($A151,'Style navne sprog'!$A:$I,4,FALSE),IF(Selection!$B$4="SE",VLOOKUP($A151,'Style navne sprog'!$A:$I,3,FALSE),IF(Selection!$B$4="NO",VLOOKUP($A151,'Style navne sprog'!$A:$I,5,FALSE),IF(Selection!$B$4="PL",VLOOKUP($A151,'Style navne sprog'!$A:$I,7,FALSE))))))) -> CORE soft shell jacket | C151: =IF(Master!C151<>"",Master!C151*Selection!$B$3,"") -> 131.3 | D151: =IF(Master!D151<>"",Master!D151*Selection!$B$3,"") ->  | E151: 3XL-6XL | F151: =IF(Master!F151<>"",Master!F151*Selection!$B$3,"") -> 8 | G151: =IF(Factor!#REF!<>"",Factor!#REF!*Selection!$B$3,"") -> 
A152: 0856 | B152: =IF(Selection!$B$4="DK",VLOOKUP($A152,'Style navne sprog'!$A:$I,6,FALSE),IF(Selection!$B$4="DE",VLOOKUP($A152,'Style navne sprog'!$A:$I,2,FALSE),IF(Selection!$B$4="GB",VLOOKUP($A152,'Style navne sprog'!$A:$I,4,FALSE),IF(Selection!$B$4="SE",VLOOKUP($A152,'Style navne sprog'!$A:$I,3,FALSE),IF(Selection!$B$4="NO",VLOOKUP($A152,'Style navne sprog'!$A:$I,5,FALSE),IF(Selection!$B$4="PL",VLOOKUP($A152,'Style navne sprog'!$A:$I,7,FALSE))))))) -> CORE soft shell jacket| women | C152: =IF(Master!C152<>"",Master!C152*Selection!$B$3,"") -> 131.3 | D152: =IF(Master!D152<>"",Master!D152*Selection!$B$3,"") ->  | E152: 3XL | F152: =IF(Master!F152<>"",Master!F152*Selection!$B$3,"") -> 8 | G152: =IF(Factor!#REF!<>"",Factor!#REF!*Selection!$B$3,"") -> 
A153: 0868 | B153: =IF(Selection!$B$4="DK",VLOOKUP($A153,'Style navne sprog'!$A:$I,6,FALSE),IF(Selection!$B$4="DE",VLOOKUP($A153,'Style navne sprog'!$A:$I,2,FALSE),IF(Selection!$B$4="GB",VLOOKUP($A153,'Style navne sprog'!$A:$I,4,FALSE),IF(Selection!$B$4="SE",VLOOKUP($A153,'Style navne sprog'!$A:$I,3,FALSE),IF(Selection!$B$4="NO",VLOOKUP($A153,'Style navne sprog'!$A:$I,5,FALSE),IF(Selection!$B$4="PL",VLOOKUP($A153,'Style navne sprog'!$A:$I,7,FALSE))))))) -> Soft shell jacket | performance | C153: =IF(Master!C153<>"",Master!C153*Selection!$B$3,"") -> 142 | D153: =IF(Master!D153<>"",Master!D153*Selection!$B$3,"") ->  | E153: 3XL-4XL | F153: =IF(Master!F153<>"",Master!F153*Selection!$B$3,"") -> 8 | G153: =IF(Factor!#REF!<>"",Factor!#REF!*Selection!$B$3,"") -> 
A154: 0869 | B154: =IF(Selection!$B$4="DK",VLOOKUP($A154,'Style navne sprog'!$A:$I,6,FALSE),IF(Selection!$B$4="DE",VLOOKUP($A154,'Style navne sprog'!$A:$I,2,FALSE),IF(Selection!$B$4="GB",VLOOKUP($A154,'Style navne sprog'!$A:$I,4,FALSE),IF(Selection!$B$4="SE",VLOOKUP($A154,'Style navne sprog'!$A:$I,3,FALSE),IF(Selection!$B$4="NO",VLOOKUP($A154,'Style navne sprog'!$A:$I,5,FALSE),IF(Selection!$B$4="PL",VLOOKUP($A154,'Style navne sprog'!$A:$I,7,FALSE))))))) -> Soft shell jacket | performance | women | C154: =IF(Master!C154<>"",Master!C154*Selection!$B$3,"") -> 142 | D154: =IF(Master!D154<>"",Master!D154*Selection!$B$3,"") ->  | E154: 3XL | F154: =IF(Master!F154<>"",Master!F154*Selection!$B$3,"") -> 8 | G154: =IF(Factor!#REF!<>"",Factor!#REF!*Selection!$B$3,"") -> 
A155: 0892 | B155: =IF(Selection!$B$4="DK",VLOOKUP($A155,'Style navne sprog'!$A:$I,6,FALSE),IF(Selection!$B$4="DE",VLOOKUP($A155,'Style navne sprog'!$A:$I,2,FALSE),IF(Selection!$B$4="GB",VLOOKUP($A155,'Style navne sprog'!$A:$I,4,FALSE),IF(Selection!$B$4="SE",VLOOKUP($A155,'Style navne sprog'!$A:$I,3,FALSE),IF(Selection!$B$4="NO",VLOOKUP($A155,'Style navne sprog'!$A:$I,5,FALSE),IF(Selection!$B$4="PL",VLOOKUP($A155,'Style navne sprog'!$A:$I,7,FALSE))))))) -> Bodywarmer | stretch | C155: =IF(Master!C155<>"",Master!C155*Selection!$B$3,"") -> 142 | D155: =IF(Master!D155<>"",Master!D155*Selection!$B$3,"") ->  | E155: 3XL | F155: =IF(Master!F155<>"",Master!F155*Selection!$B$3,"") -> 8 | G155: =IF(Factor!#REF!<>"",Factor!#REF!*Selection!$B$3,"") -> 
A156: 0893 | B156: =IF(Selection!$B$4="DK",VLOOKUP($A156,'Style navne sprog'!$A:$I,6,FALSE),IF(Selection!$B$4="DE",VLOOKUP($A156,'Style navne sprog'!$A:$I,2,FALSE),IF(Selection!$B$4="GB",VLOOKUP($A156,'Style navne sprog'!$A:$I,4,FALSE),IF(Selection!$B$4="SE",VLOOKUP($A156,'Style navne sprog'!$A:$I,3,FALSE),IF(Selection!$B$4="NO",VLOOKUP($A156,'Style navne sprog'!$A:$I,5,FALSE),IF(Selection!$B$4="PL",VLOOKUP($A156,'Style navne sprog'!$A:$I,7,FALSE))))))) -> Bodywarmer | stretch | women | C156: =IF(Master!C156<>"",Master!C156*Selection!$B$3,"") -> 142 | D156: =IF(Master!D156<>"",Master!D156*Selection!$B$3,"") ->  | E156: 3XL | F156: =IF(Master!F156<>"",Master!F156*Selection!$B$3,"") -> 8 | G156: =IF(Factor!#REF!<>"",Factor!#REF!*Selection!$B$3,"") -> 
A157: 0896 | B157: =IF(Selection!$B$4="DK",VLOOKUP($A157,'Style navne sprog'!$A:$I,6,FALSE),IF(Selection!$B$4="DE",VLOOKUP($A157,'Style navne sprog'!$A:$I,2,FALSE),IF(Selection!$B$4="GB",VLOOKUP($A157,'Style navne sprog'!$A:$I,4,FALSE),IF(Selection!$B$4="SE",VLOOKUP($A157,'Style navne sprog'!$A:$I,3,FALSE),IF(Selection!$B$4="NO",VLOOKUP($A157,'Style navne sprog'!$A:$I,5,FALSE),IF(Selection!$B$4="PL",VLOOKUP($A157,'Style navne sprog'!$A:$I,7,FALSE))))))) -> Padded jacket | stretch | C157: =IF(Master!C157<>"",Master!C157*Selection!$B$3,"") -> 163.5 | D157: =IF(Master!D157<>"",Master!D157*Selection!$B$3,"") ->  | E157: 3XL | F157: =IF(Master!F157<>"",Master!F157*Selection!$B$3,"") -> 8 | G157: =IF(Factor!#REF!<>"",Factor!#REF!*Selection!$B$3,"") -> 
A158: 0897 | B158: =IF(Selection!$B$4="DK",VLOOKUP($A158,'Style navne sprog'!$A:$I,6,FALSE),IF(Selection!$B$4="DE",VLOOKUP($A158,'Style navne sprog'!$A:$I,2,FALSE),IF(Selection!$B$4="GB",VLOOKUP($A158,'Style navne sprog'!$A:$I,4,FALSE),IF(Selection!$B$4="SE",VLOOKUP($A158,'Style navne sprog'!$A:$I,3,FALSE),IF(Selection!$B$4="NO",VLOOKUP($A158,'Style navne sprog'!$A:$I,5,FALSE),IF(Selection!$B$4="PL",VLOOKUP($A158,'Style navne sprog'!$A:$I,7,FALSE))))))) -> Padded jacket | stretch | women | C158: =IF(Master!C158<>"",Master!C158*Selection!$B$3,"") -> 163.5 | D158: =IF(Master!D158<>"",Master!D158*Selection!$B$3,"") ->  | E158: 3XL | F158: =IF(Master!F158<>"",Master!F158*Selection!$B$3,"") -> 8 | G158: =IF(Factor!#REF!<>"",Factor!#REF!*Selection!$B$3,"") -> 
A159: 0898 | B159: =IF(Selection!$B$4="DK",VLOOKUP($A159,'Style navne sprog'!$A:$I,6,FALSE),IF(Selection!$B$4="DE",VLOOKUP($A159,'Style navne sprog'!$A:$I,2,FALSE),IF(Selection!$B$4="GB",VLOOKUP($A159,'Style navne sprog'!$A:$I,4,FALSE),IF(Selection!$B$4="SE",VLOOKUP($A159,'Style navne sprog'!$A:$I,3,FALSE),IF(Selection!$B$4="NO",VLOOKUP($A159,'Style navne sprog'!$A:$I,5,FALSE),IF(Selection!$B$4="PL",VLOOKUP($A159,'Style navne sprog'!$A:$I,7,FALSE))))))) -> Soft shell jacket | winter | C159: =IF(Master!C159<>"",Master!C159*Selection!$B$3,"") -> 236 | D159: =IF(Master!D159<>"",Master!D159*Selection!$B$3,"") ->  | E159: 3XL | F159: =IF(Master!F159<>"",Master!F159*Selection!$B$3,"") -> 8 | G159: =IF(Factor!#REF!<>"",Factor!#REF!*Selection!$B$3,"") -> 
A160: 0899 | B160: =IF(Selection!$B$4="DK",VLOOKUP($A160,'Style navne sprog'!$A:$I,6,FALSE),IF(Selection!$B$4="DE",VLOOKUP($A160,'Style navne sprog'!$A:$I,2,FALSE),IF(Selection!$B$4="GB",VLOOKUP($A160,'Style navne sprog'!$A:$I,4,FALSE),IF(Selection!$B$4="SE",VLOOKUP($A160,'Style navne sprog'!$A:$I,3,FALSE),IF(Selection!$B$4="NO",VLOOKUP($A160,'Style navne sprog'!$A:$I,5,FALSE),IF(Selection!$B$4="PL",VLOOKUP($A160,'Style navne sprog'!$A:$I,7,FALSE))))))) -> Soft shell jacket | winter | women | C160: =IF(Master!C160<>"",Master!C160*Selection!$B$3,"") -> 236 | D160: =IF(Master!D160<>"",Master!D160*Selection!$B$3,"") ->  | E160: 3XL | F160: =IF(Master!F160<>"",Master!F160*Selection!$B$3,"") -> 8 | G160: =IF(Factor!#REF!<>"",Factor!#REF!*Selection!$B$3,"") -> 
A162: =IF(Selection!$B$4="PL","SPODNIE",IF(Selection!$B$4="SE","BYXOR",IF(Selection!$B$4="GB","TROUSERS",IF(Selection!$B$4="DE","HOSEN","BUKSER")))) -> TROUSERS
A163: 0661 | B163: =IF(Selection!$B$4="DK",VLOOKUP($A163,'Style navne sprog'!$A:$I,6,FALSE),IF(Selection!$B$4="DE",VLOOKUP($A163,'Style navne sprog'!$A:$I,2,FALSE),IF(Selection!$B$4="GB",VLOOKUP($A163,'Style navne sprog'!$A:$I,4,FALSE),IF(Selection!$B$4="SE",VLOOKUP($A163,'Style navne sprog'!$A:$I,3,FALSE),IF(Selection!$B$4="NO",VLOOKUP($A163,'Style navne sprog'!$A:$I,5,FALSE),IF(Selection!$B$4="PL",VLOOKUP($A163,'Style navne sprog'!$A:$I,7,FALSE))))))) -> Classic sweatpants | unisex | C163: =IF(Master!C163<>"",Master!C163*Selection!$B$3,"") -> 45.4 | D163: =IF(Master!D163<>"",Master!D163*Selection!$B$3,"") ->  | E163: 3XL-4XL | F163: =IF(Master!F163<>"",Master!F163*Selection!$B$3,"") -> 5.4 | G163: =IF(Factor!#REF!<>"",Factor!#REF!*Selection!$B$3,"") -> 
A164: 0714 | B164: =IF(Selection!$B$4="DK",VLOOKUP($A164,'Style navne sprog'!$A:$I,6,FALSE),IF(Selection!$B$4="DE",VLOOKUP($A164,'Style navne sprog'!$A:$I,2,FALSE),IF(Selection!$B$4="GB",VLOOKUP($A164,'Style navne sprog'!$A:$I,4,FALSE),IF(Selection!$B$4="SE",VLOOKUP($A164,'Style navne sprog'!$A:$I,3,FALSE),IF(Selection!$B$4="NO",VLOOKUP($A164,'Style navne sprog'!$A:$I,5,FALSE),IF(Selection!$B$4="PL",VLOOKUP($A164,'Style navne sprog'!$A:$I,7,FALSE))))))) -> Zip-n-Mix pants | unisex | C164: =IF(Master!C164<>"",Master!C164*Selection!$B$3,"") -> 174.2 | D164: =IF(Master!D164<>"",Master!D164*Selection!$B$3,"") ->  | E164: 3XL-6XL | F164: =IF(Master!F164<>"",Master!F164*Selection!$B$3,"") -> 5.4 | G164: =IF(Factor!#REF!<>"",Factor!#REF!*Selection!$B$3,"") -> 
A165: 0902 | B165: =IF(Selection!$B$4="DK",VLOOKUP($A165,'Style navne sprog'!$A:$I,6,FALSE),IF(Selection!$B$4="DE",VLOOKUP($A165,'Style navne sprog'!$A:$I,2,FALSE),IF(Selection!$B$4="GB",VLOOKUP($A165,'Style navne sprog'!$A:$I,4,FALSE),IF(Selection!$B$4="SE",VLOOKUP($A165,'Style navne sprog'!$A:$I,3,FALSE),IF(Selection!$B$4="NO",VLOOKUP($A165,'Style navne sprog'!$A:$I,5,FALSE),IF(Selection!$B$4="PL",VLOOKUP($A165,'Style navne sprog'!$A:$I,7,FALSE))))))) -> Hybrid stretch pants | C165: =IF(Master!C165<>"",Master!C165*Selection!$B$3,"") -> 187.1 | D165: =IF(Master!D165<>"",Master!D165*Selection!$B$3,"") ->  | E165: 3XL-6XL | F165: =IF(Master!F165<>"",Master!F165*Selection!$B$3,"") -> 8 | G165: =IF(Factor!#REF!<>"",Factor!#REF!*Selection!$B$3,"") -> 
A166: 0903 | B166: =IF(Selection!$B$4="DK",VLOOKUP($A166,'Style navne sprog'!$A:$I,6,FALSE),IF(Selection!$B$4="DE",VLOOKUP($A166,'Style navne sprog'!$A:$I,2,FALSE),IF(Selection!$B$4="GB",VLOOKUP($A166,'Style navne sprog'!$A:$I,4,FALSE),IF(Selection!$B$4="SE",VLOOKUP($A166,'Style navne sprog'!$A:$I,3,FALSE),IF(Selection!$B$4="NO",VLOOKUP($A166,'Style navne sprog'!$A:$I,5,FALSE),IF(Selection!$B$4="PL",VLOOKUP($A166,'Style navne sprog'!$A:$I,7,FALSE))))))) -> Hybrid stretch pants | women | C166: =IF(Master!C166<>"",Master!C166*Selection!$B$3,"") -> 187.1 | D166: =IF(Master!D166<>"",Master!D166*Selection!$B$3,"") ->  | E166: 3XL-6XL | F166: =IF(Master!F166<>"",Master!F166*Selection!$B$3,"") -> 8 | G166: =IF(Factor!#REF!<>"",Factor!#REF!*Selection!$B$3,"") -> 
A167: 0907 | B167: =IF(Selection!$B$4="DK",VLOOKUP($A167,'Style navne sprog'!$A:$I,6,FALSE),IF(Selection!$B$4="DE",VLOOKUP($A167,'Style navne sprog'!$A:$I,2,FALSE),IF(Selection!$B$4="GB",VLOOKUP($A167,'Style navne sprog'!$A:$I,4,FALSE),IF(Selection!$B$4="SE",VLOOKUP($A167,'Style navne sprog'!$A:$I,3,FALSE),IF(Selection!$B$4="NO",VLOOKUP($A167,'Style navne sprog'!$A:$I,5,FALSE),IF(Selection!$B$4="PL",VLOOKUP($A167,'Style navne sprog'!$A:$I,7,FALSE))))))) -> Stretch pants | multifunctional | unisex | C167: =IF(Master!C167<>"",Master!C167*Selection!$B$3,"") -> 140.1 | D167: =IF(Master!D167<>"",Master!D167*Selection!$B$3,"") ->  | E167: 3XL-6XL | F167: =IF(Master!F167<>"",Master!F167*Selection!$B$3,"") -> 8 | G167: =IF(Factor!#REF!<>"",Factor!#REF!*Selection!$B$3,"") -> 
A168: 0910 | B168: =IF(Selection!$B$4="DK",VLOOKUP($A168,'Style navne sprog'!$A:$I,6,FALSE),IF(Selection!$B$4="DE",VLOOKUP($A168,'Style navne sprog'!$A:$I,2,FALSE),IF(Selection!$B$4="GB",VLOOKUP($A168,'Style navne sprog'!$A:$I,4,FALSE),IF(Selection!$B$4="SE",VLOOKUP($A168,'Style navne sprog'!$A:$I,3,FALSE),IF(Selection!$B$4="NO",VLOOKUP($A168,'Style navne sprog'!$A:$I,5,FALSE),IF(Selection!$B$4="PL",VLOOKUP($A168,'Style navne sprog'!$A:$I,7,FALSE))))))) -> CORE stretch pants | C168: =IF(Master!C168<>"",Master!C168*Selection!$B$3,"") -> 187.7 | D168: =IF(Master!D168<>"",Master!D168*Selection!$B$3,"") ->  | E168: 3XL-4XL | F168: =IF(Master!F168<>"",Master!F168*Selection!$B$3,"") -> 8 | G168: =IF(Factor!#REF!<>"",Factor!#REF!*Selection!$B$3,"") -> 
A169: 0911 | B169: =IF(Selection!$B$4="DK",VLOOKUP($A169,'Style navne sprog'!$A:$I,6,FALSE),IF(Selection!$B$4="DE",VLOOKUP($A169,'Style navne sprog'!$A:$I,2,FALSE),IF(Selection!$B$4="GB",VLOOKUP($A169,'Style navne sprog'!$A:$I,4,FALSE),IF(Selection!$B$4="SE",VLOOKUP($A169,'Style navne sprog'!$A:$I,3,FALSE),IF(Selection!$B$4="NO",VLOOKUP($A169,'Style navne sprog'!$A:$I,5,FALSE),IF(Selection!$B$4="PL",VLOOKUP($A169,'Style navne sprog'!$A:$I,7,FALSE))))))) -> CORE stretch pants | women | C169: =IF(Master!C169<>"",Master!C169*Selection!$B$3,"") -> 187.7 | D169: =IF(Master!D169<>"",Master!D169*Selection!$B$3,"") ->  | E169: 3XL-4XL | F169: =IF(Master!F169<>"",Master!F169*Selection!$B$3,"") -> 8 | G169: =IF(Factor!#REF!<>"",Factor!#REF!*Selection!$B$3,"") -> 
A170: 0912 | B170: =IF(Selection!$B$4="DK",VLOOKUP($A170,'Style navne sprog'!$A:$I,6,FALSE),IF(Selection!$B$4="DE",VLOOKUP($A170,'Style navne sprog'!$A:$I,2,FALSE),IF(Selection!$B$4="GB",VLOOKUP($A170,'Style navne sprog'!$A:$I,4,FALSE),IF(Selection!$B$4="SE",VLOOKUP($A170,'Style navne sprog'!$A:$I,3,FALSE),IF(Selection!$B$4="NO",VLOOKUP($A170,'Style navne sprog'!$A:$I,5,FALSE),IF(Selection!$B$4="PL",VLOOKUP($A170,'Style navne sprog'!$A:$I,7,FALSE))))))) -> CORE stretch shorts | C170: =IF(Master!C170<>"",Master!C170*Selection!$B$3,"") -> 168.9 | E170: 3XL-4XL | F170: =IF(Master!F170<>"",Master!F170*Selection!$B$3,"") -> 8
A171: 0913 | B171: =IF(Selection!$B$4="DK",VLOOKUP($A171,'Style navne sprog'!$A:$I,6,FALSE),IF(Selection!$B$4="DE",VLOOKUP($A171,'Style navne sprog'!$A:$I,2,FALSE),IF(Selection!$B$4="GB",VLOOKUP($A171,'Style navne sprog'!$A:$I,4,FALSE),IF(Selection!$B$4="SE",VLOOKUP($A171,'Style navne sprog'!$A:$I,3,FALSE),IF(Selection!$B$4="NO",VLOOKUP($A171,'Style navne sprog'!$A:$I,5,FALSE),IF(Selection!$B$4="PL",VLOOKUP($A171,'Style navne sprog'!$A:$I,7,FALSE))))))) -> CORE stretch shorts | women | C171: =IF(Master!C171<>"",Master!C171*Selection!$B$3,"") -> 168.9 | E171: 3XL-4XL | F171: =IF(Master!F171<>"",Master!F171*Selection!$B$3,"") -> 8
A172: 0914 | B172: =IF(Selection!$B$4="DK",VLOOKUP($A172,'Style navne sprog'!$A:$I,6,FALSE),IF(Selection!$B$4="DE",VLOOKUP($A172,'Style navne sprog'!$A:$I,2,FALSE),IF(Selection!$B$4="GB",VLOOKUP($A172,'Style navne sprog'!$A:$I,4,FALSE),IF(Selection!$B$4="SE",VLOOKUP($A172,'Style navne sprog'!$A:$I,3,FALSE),IF(Selection!$B$4="NO",VLOOKUP($A172,'Style navne sprog'!$A:$I,5,FALSE),IF(Selection!$B$4="PL",VLOOKUP($A172,'Style navne sprog'!$A:$I,7,FALSE))))))) -> Cargo stretch pants | unisex | C172: =IF(Master!C172<>"",Master!C172*Selection!$B$3,"") -> 187.7 | D172: =IF(Master!D172<>"",Master!D172*Selection!$B$3,"") ->  | E172: 3XL-4XL | F172: =IF(Master!F172<>"",Master!F172*Selection!$B$3,"") -> 8 | G172: =IF(Factor!#REF!<>"",Factor!#REF!*Selection!$B$3,"") -> 
A174: =IF(Selection!$B$4="PL","DZIECI",IF(Selection!$B$4="SE","BARN",IF(Selection!$B$4="GB","CHILDREN",IF(Selection!$B$4="DE","KINDER","BØRN")))) -> CHILDREN
A175: 40500 | B175: =IF(Selection!$B$4="DK",VLOOKUP($A175,'Style navne sprog'!$A:$I,6,FALSE),IF(Selection!$B$4="DE",VLOOKUP($A175,'Style navne sprog'!$A:$I,2,FALSE),IF(Selection!$B$4="GB",VLOOKUP($A175,'Style navne sprog'!$A:$I,4,FALSE),IF(Selection!$B$4="SE",VLOOKUP($A175,'Style navne sprog'!$A:$I,3,FALSE),IF(Selection!$B$4="NO",VLOOKUP($A175,'Style navne sprog'!$A:$I,5,FALSE),IF(Selection!$B$4="PL",VLOOKUP($A175,'Style navne sprog'!$A:$I,7,FALSE))))))) -> GAME T-shirt | children | C175: =IF(Master!C175<>"",Master!C175*Selection!$B$3,"") -> 14.1 | D175: =IF(Master!D175<>"",Master!D175*Selection!$B$3,"") -> 12.8 | F175: =IF(Master!F175<>"",Master!F175*Selection!$B$3,"") ->  | G175: =IF(Factor!#REF!<>"",Factor!#REF!*Selection!$B$3,"") -> 
A176: 40510 | B176: =IF(Selection!$B$4="DK",VLOOKUP($A176,'Style navne sprog'!$A:$I,6,FALSE),IF(Selection!$B$4="DE",VLOOKUP($A176,'Style navne sprog'!$A:$I,2,FALSE),IF(Selection!$B$4="GB",VLOOKUP($A176,'Style navne sprog'!$A:$I,4,FALSE),IF(Selection!$B$4="SE",VLOOKUP($A176,'Style navne sprog'!$A:$I,3,FALSE),IF(Selection!$B$4="NO",VLOOKUP($A176,'Style navne sprog'!$A:$I,5,FALSE),IF(Selection!$B$4="PL",VLOOKUP($A176,'Style navne sprog'!$A:$I,7,FALSE))))))) -> T-TIME® T-shirt | children | C176: =IF(Master!C176<>"",Master!C176*Selection!$B$3,"") -> 19.6 | D176: =IF(Master!D176<>"",Master!D176*Selection!$B$3,"") -> 18.3 | F176: =IF(Master!F176<>"",Master!F176*Selection!$B$3,"") ->  | G176: =IF(Factor!#REF!<>"",Factor!#REF!*Selection!$B$3,"") -> 
A177: 40552 | B177: =IF(Selection!$B$4="DK",VLOOKUP($A177,'Style navne sprog'!$A:$I,6,FALSE),IF(Selection!$B$4="DE",VLOOKUP($A177,'Style navne sprog'!$A:$I,2,FALSE),IF(Selection!$B$4="GB",VLOOKUP($A177,'Style navne sprog'!$A:$I,4,FALSE),IF(Selection!$B$4="SE",VLOOKUP($A177,'Style navne sprog'!$A:$I,3,FALSE),IF(Selection!$B$4="NO",VLOOKUP($A177,'Style navne sprog'!$A:$I,5,FALSE),IF(Selection!$B$4="PL",VLOOKUP($A177,'Style navne sprog'!$A:$I,7,FALSE))))))) -> Organic T-shirt | children | C177: =IF(Master!C177<>"",Master!C177*Selection!$B$3,"") -> 22.1 | D177: =IF(Master!D177<>"",Master!D177*Selection!$B$3,"") -> 20.8 | F177: =IF(Master!F177<>"",Master!F177*Selection!$B$3,"") ->  | G177: =IF(Factor!#REF!<>"",Factor!#REF!*Selection!$B$3,"") -> 
A178: 40634 | B178: =IF(Selection!$B$4="DK",VLOOKUP($A178,'Style navne sprog'!$A:$I,6,FALSE),IF(Selection!$B$4="DE",VLOOKUP($A178,'Style navne sprog'!$A:$I,2,FALSE),IF(Selection!$B$4="GB",VLOOKUP($A178,'Style navne sprog'!$A:$I,4,FALSE),IF(Selection!$B$4="SE",VLOOKUP($A178,'Style navne sprog'!$A:$I,3,FALSE),IF(Selection!$B$4="NO",VLOOKUP($A178,'Style navne sprog'!$A:$I,5,FALSE),IF(Selection!$B$4="PL",VLOOKUP($A178,'Style navne sprog'!$A:$I,7,FALSE))))))) -> CORE sweatshirt | children | C178: =IF(Master!C178<>"",Master!C178*Selection!$B$3,"") -> 44.6 | D178: =IF(Master!D178<>"",Master!D178*Selection!$B$3,"") ->  | F178: =IF(Master!F178<>"",Master!F178*Selection!$B$3,"") ->  | G178: =IF(Factor!#REF!<>"",Factor!#REF!*Selection!$B$3,"") -> 
A179: 40636 | B179: =IF(Selection!$B$4="DK",VLOOKUP($A179,'Style navne sprog'!$A:$I,6,FALSE),IF(Selection!$B$4="DE",VLOOKUP($A179,'Style navne sprog'!$A:$I,2,FALSE),IF(Selection!$B$4="GB",VLOOKUP($A179,'Style navne sprog'!$A:$I,4,FALSE),IF(Selection!$B$4="SE",VLOOKUP($A179,'Style navne sprog'!$A:$I,3,FALSE),IF(Selection!$B$4="NO",VLOOKUP($A179,'Style navne sprog'!$A:$I,5,FALSE),IF(Selection!$B$4="PL",VLOOKUP($A179,'Style navne sprog'!$A:$I,7,FALSE))))))) -> CORE hoodie | children | C179: =IF(Master!C179<>"",Master!C179*Selection!$B$3,"") -> 55 | D179: =IF(Master!D179<>"",Master!D179*Selection!$B$3,"") ->  | F179: =IF(Master!F179<>"",Master!F179*Selection!$B$3,"") ->  | G179: =IF(Factor!#REF!<>"",Factor!#REF!*Selection!$B$3,"") -> 
A180: 40638 | B180: =IF(Selection!$B$4="DK",VLOOKUP($A180,'Style navne sprog'!$A:$I,6,FALSE),IF(Selection!$B$4="DE",VLOOKUP($A180,'Style navne sprog'!$A:$I,2,FALSE),IF(Selection!$B$4="GB",VLOOKUP($A180,'Style navne sprog'!$A:$I,4,FALSE),IF(Selection!$B$4="SE",VLOOKUP($A180,'Style navne sprog'!$A:$I,3,FALSE),IF(Selection!$B$4="NO",VLOOKUP($A180,'Style navne sprog'!$A:$I,5,FALSE),IF(Selection!$B$4="PL",VLOOKUP($A180,'Style navne sprog'!$A:$I,7,FALSE))))))) -> CORE zip hoodie | children | C180: =IF(Master!C180<>"",Master!C180*Selection!$B$3,"") -> 55 | D180: =IF(Master!D180<>"",Master!D180*Selection!$B$3,"") ->  | F180: =IF(Master!F180<>"",Master!F180*Selection!$B$3,"") ->  | G180: =IF(Factor!#REF!<>"",Factor!#REF!*Selection!$B$3,"") -> 
A181: 40836 | B181: =IF(Selection!$B$4="DK",VLOOKUP($A181,'Style navne sprog'!$A:$I,6,FALSE),IF(Selection!$B$4="DE",VLOOKUP($A181,'Style navne sprog'!$A:$I,2,FALSE),IF(Selection!$B$4="GB",VLOOKUP($A181,'Style navne sprog'!$A:$I,4,FALSE),IF(Selection!$B$4="SE",VLOOKUP($A181,'Style navne sprog'!$A:$I,3,FALSE),IF(Selection!$B$4="NO",VLOOKUP($A181,'Style navne sprog'!$A:$I,5,FALSE),IF(Selection!$B$4="PL",VLOOKUP($A181,'Style navne sprog'!$A:$I,7,FALSE))))))) -> Soft shell jacket | light | children | C181: =IF(Master!C181<>"",Master!C181*Selection!$B$3,"") -> 122.7 | D181: =IF(Master!D181<>"",Master!D181*Selection!$B$3,"") ->  | F181: =IF(Master!F181<>"",Master!F181*Selection!$B$3,"") ->  | G181: =IF(Factor!#REF!<>"",Factor!#REF!*Selection!$B$3,"") -> 
A182: 42030 | B182: =IF(Selection!$B$4="DK",VLOOKUP($A182,'Style navne sprog'!$A:$I,6,FALSE),IF(Selection!$B$4="DE",VLOOKUP($A182,'Style navne sprog'!$A:$I,2,FALSE),IF(Selection!$B$4="GB",VLOOKUP($A182,'Style navne sprog'!$A:$I,4,FALSE),IF(Selection!$B$4="SE",VLOOKUP($A182,'Style navne sprog'!$A:$I,3,FALSE),IF(Selection!$B$4="NO",VLOOKUP($A182,'Style navne sprog'!$A:$I,5,FALSE),IF(Selection!$B$4="PL",VLOOKUP($A182,'Style navne sprog'!$A:$I,7,FALSE))))))) -> YES Active T-shirt | children | C182: =IF(Master!C182<>"",Master!C182*Selection!$B$3,"") -> 20.4 | D182: =IF(Master!D182<>"",Master!D182*Selection!$B$3,"") -> 19.1 | F182: =IF(Master!F182<>"",Master!F182*Selection!$B$3,"") ->  | G182: =IF(Factor!#REF!<>"",Factor!#REF!*Selection!$B$3,"") -> 
A184: =IF(Selection!$B$4="PL","AKCESORIA",IF(Selection!$B$4="SE","ACCESSOARER",IF(Selection!$B$4="GB","ACCESSORIES",IF(Selection!$B$4="DE","ACCESSORIES","ACCESSORIES")))) -> ACCESSORIES
A185: 0010 | B185: =IF(Selection!$B$4="DK",VLOOKUP($A185,'Style navne sprog'!$A:$I,6,FALSE),IF(Selection!$B$4="DE",VLOOKUP($A185,'Style navne sprog'!$A:$I,2,FALSE),IF(Selection!$B$4="GB",VLOOKUP($A185,'Style navne sprog'!$A:$I,4,FALSE),IF(Selection!$B$4="SE",VLOOKUP($A185,'Style navne sprog'!$A:$I,3,FALSE),IF(Selection!$B$4="NO",VLOOKUP($A185,'Style navne sprog'!$A:$I,5,FALSE),IF(Selection!$B$4="PL",VLOOKUP($A185,'Style navne sprog'!$A:$I,7,FALSE))))))) -> Towel 50x100 | C185: =IF(Master!C185<>"",Master!C185*Selection!$B$3,"") -> 23.9 | D185: =IF(Master!D185<>"",Master!D185*Selection!$B$3,"") ->  | F185: =IF(Master!F185<>"",Master!F185*Selection!$B$3,"") ->  | G185: =IF(Factor!#REF!<>"",Factor!#REF!*Selection!$B$3,"") -> 
A186: 0011 | B186: =IF(Selection!$B$4="DK",VLOOKUP($A186,'Style navne sprog'!$A:$I,6,FALSE),IF(Selection!$B$4="DE",VLOOKUP($A186,'Style navne sprog'!$A:$I,2,FALSE),IF(Selection!$B$4="GB",VLOOKUP($A186,'Style navne sprog'!$A:$I,4,FALSE),IF(Selection!$B$4="SE",VLOOKUP($A186,'Style navne sprog'!$A:$I,3,FALSE),IF(Selection!$B$4="NO",VLOOKUP($A186,'Style navne sprog'!$A:$I,5,FALSE),IF(Selection!$B$4="PL",VLOOKUP($A186,'Style navne sprog'!$A:$I,7,FALSE))))))) -> Bath towel 70x140 | C186: =IF(Master!C186<>"",Master!C186*Selection!$B$3,"") -> 39.3 | D186: =IF(Master!D186<>"",Master!D186*Selection!$B$3,"") ->  | F186: =IF(Master!F186<>"",Master!F186*Selection!$B$3,"") ->  | G186: =IF(Factor!#REF!<>"",Factor!#REF!*Selection!$B$3,"") -> 
A187: 0036 | B187: =IF(Selection!$B$4="DK",VLOOKUP($A187,'Style navne sprog'!$A:$I,6,FALSE),IF(Selection!$B$4="DE",VLOOKUP($A187,'Style navne sprog'!$A:$I,2,FALSE),IF(Selection!$B$4="GB",VLOOKUP($A187,'Style navne sprog'!$A:$I,4,FALSE),IF(Selection!$B$4="SE",VLOOKUP($A187,'Style navne sprog'!$A:$I,3,FALSE),IF(Selection!$B$4="NO",VLOOKUP($A187,'Style navne sprog'!$A:$I,5,FALSE),IF(Selection!$B$4="PL",VLOOKUP($A187,'Style navne sprog'!$A:$I,7,FALSE))))))) -> Hat | stretch | C187: =IF(Master!C187<>"",Master!C187*Selection!$B$3,"") -> 16.9 | D187: =IF(Master!D187<>"",Master!D187*Selection!$B$3,"") ->  | F187: =IF(Master!F187<>"",Master!F187*Selection!$B$3,"") ->  | G187: =IF(Factor!#REF!<>"",Factor!#REF!*Selection!$B$3,"") -> 
A188: 0038 | B188: =IF(Selection!$B$4="DK",VLOOKUP($A188,'Style navne sprog'!$A:$I,6,FALSE),IF(Selection!$B$4="DE",VLOOKUP($A188,'Style navne sprog'!$A:$I,2,FALSE),IF(Selection!$B$4="GB",VLOOKUP($A188,'Style navne sprog'!$A:$I,4,FALSE),IF(Selection!$B$4="SE",VLOOKUP($A188,'Style navne sprog'!$A:$I,3,FALSE),IF(Selection!$B$4="NO",VLOOKUP($A188,'Style navne sprog'!$A:$I,5,FALSE),IF(Selection!$B$4="PL",VLOOKUP($A188,'Style navne sprog'!$A:$I,7,FALSE))))))) -> Neck warmer | stretch | C188: =IF(Master!C188<>"",Master!C188*Selection!$B$3,"") -> 15.3 | D188: =IF(Master!D188<>"",Master!D188*Selection!$B$3,"") ->  | F188: =IF(Master!F188<>"",Master!F188*Selection!$B$3,"") ->  | G188: =IF(Factor!#REF!<>"",Factor!#REF!*Selection!$B$3,"") -> 
A189: 0040 | B189: =IF(Selection!$B$4="DK",VLOOKUP($A189,'Style navne sprog'!$A:$I,6,FALSE),IF(Selection!$B$4="DE",VLOOKUP($A189,'Style navne sprog'!$A:$I,2,FALSE),IF(Selection!$B$4="GB",VLOOKUP($A189,'Style navne sprog'!$A:$I,4,FALSE),IF(Selection!$B$4="SE",VLOOKUP($A189,'Style navne sprog'!$A:$I,3,FALSE),IF(Selection!$B$4="NO",VLOOKUP($A189,'Style navne sprog'!$A:$I,5,FALSE),IF(Selection!$B$4="PL",VLOOKUP($A189,'Style navne sprog'!$A:$I,7,FALSE))))))) -> Soft neck warmer | C189: =IF(Master!C189<>"",Master!C189*Selection!$B$3,"") -> 23.9 | D189: =IF(Master!D189<>"",Master!D189*Selection!$B$3,"") ->  | F189: =IF(Master!F189<>"",Master!F189*Selection!$B$3,"") ->  | G189: =IF(Factor!#REF!<>"",Factor!#REF!*Selection!$B$3,"") -> 
A190: 0042 | B190: =IF(Selection!$B$4="DK",VLOOKUP($A190,'Style navne sprog'!$A:$I,6,FALSE),IF(Selection!$B$4="DE",VLOOKUP($A190,'Style navne sprog'!$A:$I,2,FALSE),IF(Selection!$B$4="GB",VLOOKUP($A190,'Style navne sprog'!$A:$I,4,FALSE),IF(Selection!$B$4="SE",VLOOKUP($A190,'Style navne sprog'!$A:$I,3,FALSE),IF(Selection!$B$4="NO",VLOOKUP($A190,'Style navne sprog'!$A:$I,5,FALSE),IF(Selection!$B$4="PL",VLOOKUP($A190,'Style navne sprog'!$A:$I,7,FALSE))))))) -> Knitted hat | C190: =IF(Master!C190<>"",Master!C190*Selection!$B$3,"") -> 18.1 | D190: =IF(Master!D190<>"",Master!D190*Selection!$B$3,"") ->  | F190: =IF(Master!F190<>"",Master!F190*Selection!$B$3,"") ->  | G190: =IF(Factor!#REF!<>"",Factor!#REF!*Selection!$B$3,"") -> 
A191: 0045 | B191: =IF(Selection!$B$4="DK",VLOOKUP($A191,'Style navne sprog'!$A:$I,6,FALSE),IF(Selection!$B$4="DE",VLOOKUP($A191,'Style navne sprog'!$A:$I,2,FALSE),IF(Selection!$B$4="GB",VLOOKUP($A191,'Style navne sprog'!$A:$I,4,FALSE),IF(Selection!$B$4="SE",VLOOKUP($A191,'Style navne sprog'!$A:$I,3,FALSE),IF(Selection!$B$4="NO",VLOOKUP($A191,'Style navne sprog'!$A:$I,5,FALSE),IF(Selection!$B$4="PL",VLOOKUP($A191,'Style navne sprog'!$A:$I,7,FALSE))))))) -> Stretch hat | C191: =IF(Master!C191<>"",Master!C191*Selection!$B$3,"") -> 21.2 | D191: =IF(Master!D191<>"",Master!D191*Selection!$B$3,"") ->  | F191: =IF(Master!F191<>"",Master!F191*Selection!$B$3,"") ->  | G191: =IF(Factor!#REF!<>"",Factor!#REF!*Selection!$B$3,"") -> 
A192: 0044 | B192: =IF(Selection!$B$4="DK",VLOOKUP($A192,'Style navne sprog'!$A:$I,6,FALSE),IF(Selection!$B$4="DE",VLOOKUP($A192,'Style navne sprog'!$A:$I,2,FALSE),IF(Selection!$B$4="GB",VLOOKUP($A192,'Style navne sprog'!$A:$I,4,FALSE),IF(Selection!$B$4="SE",VLOOKUP($A192,'Style navne sprog'!$A:$I,3,FALSE),IF(Selection!$B$4="NO",VLOOKUP($A192,'Style navne sprog'!$A:$I,5,FALSE),IF(Selection!$B$4="PL",VLOOKUP($A192,'Style navne sprog'!$A:$I,7,FALSE))))))) -> Knitted hat | lining | C192: =IF(Master!C192<>"",Master!C192*Selection!$B$3,"") -> 22.3 | D192: =IF(Master!D192<>"",Master!D192*Selection!$B$3,"") ->  | F192: =IF(Master!F192<>"",Master!F192*Selection!$B$3,"") ->  | G192: =IF(Factor!#REF!<>"",Factor!#REF!*Selection!$B$3,"") -> 
A193: 0050 | B193: =IF(Selection!$B$4="DK",VLOOKUP($A193,'Style navne sprog'!$A:$I,6,FALSE),IF(Selection!$B$4="DE",VLOOKUP($A193,'Style navne sprog'!$A:$I,2,FALSE),IF(Selection!$B$4="GB",VLOOKUP($A193,'Style navne sprog'!$A:$I,4,FALSE),IF(Selection!$B$4="SE",VLOOKUP($A193,'Style navne sprog'!$A:$I,3,FALSE),IF(Selection!$B$4="NO",VLOOKUP($A193,'Style navne sprog'!$A:$I,5,FALSE),IF(Selection!$B$4="PL",VLOOKUP($A193,'Style navne sprog'!$A:$I,7,FALSE))))))) -> Urban cap | C193: =IF(Master!C193<>"",Master!C193*Selection!$B$3,"") -> 18.5 | D193: =IF(Master!D193<>"",Master!D193*Selection!$B$3,"") ->  | F193: =IF(Master!F193<>"",Master!F193*Selection!$B$3,"") ->  | G193: =IF(Factor!#REF!<>"",Factor!#REF!*Selection!$B$3,"") -> 
A194: 0052 | B194: =IF(Selection!$B$4="DK",VLOOKUP($A194,'Style navne sprog'!$A:$I,6,FALSE),IF(Selection!$B$4="DE",VLOOKUP($A194,'Style navne sprog'!$A:$I,2,FALSE),IF(Selection!$B$4="GB",VLOOKUP($A194,'Style navne sprog'!$A:$I,4,FALSE),IF(Selection!$B$4="SE",VLOOKUP($A194,'Style navne sprog'!$A:$I,3,FALSE),IF(Selection!$B$4="NO",VLOOKUP($A194,'Style navne sprog'!$A:$I,5,FALSE),IF(Selection!$B$4="PL",VLOOKUP($A194,'Style navne sprog'!$A:$I,7,FALSE))))))) -> Golf cap | C194: =IF(Master!C194<>"",Master!C194*Selection!$B$3,"") -> 9.9 | D194: =IF(Master!D194<>"",Master!D194*Selection!$B$3,"") ->  | F194: =IF(Master!F194<>"",Master!F194*Selection!$B$3,"") ->  | G194: =IF(Factor!#REF!<>"",Factor!#REF!*Selection!$B$3,"") -> 
A195: 0054 | B195: =IF(Selection!$B$4="DK",VLOOKUP($A195,'Style navne sprog'!$A:$I,6,FALSE),IF(Selection!$B$4="DE",VLOOKUP($A195,'Style navne sprog'!$A:$I,2,FALSE),IF(Selection!$B$4="GB",VLOOKUP($A195,'Style navne sprog'!$A:$I,4,FALSE),IF(Selection!$B$4="SE",VLOOKUP($A195,'Style navne sprog'!$A:$I,3,FALSE),IF(Selection!$B$4="NO",VLOOKUP($A195,'Style navne sprog'!$A:$I,5,FALSE),IF(Selection!$B$4="PL",VLOOKUP($A195,'Style navne sprog'!$A:$I,7,FALSE))))))) -> Twill cap | C195: =IF(Master!C195<>"",Master!C195*Selection!$B$3,"") -> 13 | D195: =IF(Master!D195<>"",Master!D195*Selection!$B$3,"") ->  | F195: =IF(Master!F195<>"",Master!F195*Selection!$B$3,"") ->  | G195: =IF(Factor!#REF!<>"",Factor!#REF!*Selection!$B$3,"") -> 
A196: 0060 | B196: =IF(Selection!$B$4="DK",VLOOKUP($A196,'Style navne sprog'!$A:$I,6,FALSE),IF(Selection!$B$4="DE",VLOOKUP($A196,'Style navne sprog'!$A:$I,2,FALSE),IF(Selection!$B$4="GB",VLOOKUP($A196,'Style navne sprog'!$A:$I,4,FALSE),IF(Selection!$B$4="SE",VLOOKUP($A196,'Style navne sprog'!$A:$I,3,FALSE),IF(Selection!$B$4="NO",VLOOKUP($A196,'Style navne sprog'!$A:$I,5,FALSE),IF(Selection!$B$4="PL",VLOOKUP($A196,'Style navne sprog'!$A:$I,7,FALSE))))))) -> Classic canvas bucket hat | C196: =IF(Master!C196<>"",Master!C196*Selection!$B$3,"") -> 18.5 | D196: =IF(Master!D196<>"",Master!D196*Selection!$B$3,"") ->  | F196: =IF(Master!F196<>"",Master!F196*Selection!$B$3,"") ->  | G196: =IF(Factor!#REF!<>"",Factor!#REF!*Selection!$B$3,"") -> 
A197: 0068 | B197: =IF(Selection!$B$4="DK",VLOOKUP($A197,'Style navne sprog'!$A:$I,6,FALSE),IF(Selection!$B$4="DE",VLOOKUP($A197,'Style navne sprog'!$A:$I,2,FALSE),IF(Selection!$B$4="GB",VLOOKUP($A197,'Style navne sprog'!$A:$I,4,FALSE),IF(Selection!$B$4="SE",VLOOKUP($A197,'Style navne sprog'!$A:$I,3,FALSE),IF(Selection!$B$4="NO",VLOOKUP($A197,'Style navne sprog'!$A:$I,5,FALSE),IF(Selection!$B$4="PL",VLOOKUP($A197,'Style navne sprog'!$A:$I,7,FALSE))))))) -> Cap | stretch | C197: =IF(Master!C197<>"",Master!C197*Selection!$B$3,"") -> 18.1 | D197: =IF(Master!D197<>"",Master!D197*Selection!$B$3,"") ->  | F197: =IF(Master!F197<>"",Master!F197*Selection!$B$3,"") ->  | G197: =IF(Factor!#REF!<>"",Factor!#REF!*Selection!$B$3,"") -> 
A198: 0073 | B198: =IF(Selection!$B$4="DK",VLOOKUP($A198,'Style navne sprog'!$A:$I,6,FALSE),IF(Selection!$B$4="DE",VLOOKUP($A198,'Style navne sprog'!$A:$I,2,FALSE),IF(Selection!$B$4="GB",VLOOKUP($A198,'Style navne sprog'!$A:$I,4,FALSE),IF(Selection!$B$4="SE",VLOOKUP($A198,'Style navne sprog'!$A:$I,3,FALSE),IF(Selection!$B$4="NO",VLOOKUP($A198,'Style navne sprog'!$A:$I,5,FALSE),IF(Selection!$B$4="PL",VLOOKUP($A198,'Style navne sprog'!$A:$I,7,FALSE))))))) -> Apron | C198: =IF(Master!C198<>"",Master!C198*Selection!$B$3,"") -> 38.4 | D198: =IF(Master!D198<>"",Master!D198*Selection!$B$3,"") ->  | F198: =IF(Master!F198<>"",Master!F198*Selection!$B$3,"") ->  | G198: =IF(Factor!#REF!<>"",Factor!#REF!*Selection!$B$3,"") -> 
A199: 0074 | B199: =IF(Selection!$B$4="DK",VLOOKUP($A199,'Style navne sprog'!$A:$I,6,FALSE),IF(Selection!$B$4="DE",VLOOKUP($A199,'Style navne sprog'!$A:$I,2,FALSE),IF(Selection!$B$4="GB",VLOOKUP($A199,'Style navne sprog'!$A:$I,4,FALSE),IF(Selection!$B$4="SE",VLOOKUP($A199,'Style navne sprog'!$A:$I,3,FALSE),IF(Selection!$B$4="NO",VLOOKUP($A199,'Style navne sprog'!$A:$I,5,FALSE),IF(Selection!$B$4="PL",VLOOKUP($A199,'Style navne sprog'!$A:$I,7,FALSE))))))) -> Serving apron | C199: =IF(Master!C199<>"",Master!C199*Selection!$B$3,"") -> 38.4 | D199: =IF(Master!D199<>"",Master!D199*Selection!$B$3,"") ->  | F199: =IF(Master!F199<>"",Master!F199*Selection!$B$3,"") ->  | G199: =IF(Factor!#REF!<>"",Factor!#REF!*Selection!$B$3,"") -> 
A200: 0170 | B200: =IF(Selection!$B$4="DK",VLOOKUP($A200,'Style navne sprog'!$A:$I,6,FALSE),IF(Selection!$B$4="DE",VLOOKUP($A200,'Style navne sprog'!$A:$I,2,FALSE),IF(Selection!$B$4="GB",VLOOKUP($A200,'Style navne sprog'!$A:$I,4,FALSE),IF(Selection!$B$4="SE",VLOOKUP($A200,'Style navne sprog'!$A:$I,3,FALSE),IF(Selection!$B$4="NO",VLOOKUP($A200,'Style navne sprog'!$A:$I,5,FALSE),IF(Selection!$B$4="PL",VLOOKUP($A200,'Style navne sprog'!$A:$I,7,FALSE))))))) -> Durable socks | C200: =IF(Master!C200<>"",Master!C200*Selection!$B$3,"") -> 13.2 | D200: =IF(Master!D200<>"",Master!D200*Selection!$B$3,"") ->  | F200: =IF(Master!F200<>"",Master!F200*Selection!$B$3,"") ->  | G200: =IF(Factor!#REF!<>"",Factor!#REF!*Selection!$B$3,"") -> 
A201: 1510 | B201: =IF(Selection!$B$4="DK",VLOOKUP($A201,'Style navne sprog'!$A:$I,6,FALSE),IF(Selection!$B$4="DE",VLOOKUP($A201,'Style navne sprog'!$A:$I,2,FALSE),IF(Selection!$B$4="GB",VLOOKUP($A201,'Style navne sprog'!$A:$I,4,FALSE),IF(Selection!$B$4="SE",VLOOKUP($A201,'Style navne sprog'!$A:$I,3,FALSE),IF(Selection!$B$4="NO",VLOOKUP($A201,'Style navne sprog'!$A:$I,5,FALSE),IF(Selection!$B$4="PL",VLOOKUP($A201,'Style navne sprog'!$A:$I,7,FALSE))))))) -> Cotton bag | C201: =IF(Master!C201<>"",Master!C201*Selection!$B$3,"") -> 13.3 | D201: =IF(Master!D201<>"",Master!D201*Selection!$B$3,"") ->  | F201: =IF(Master!F201<>"",Master!F201*Selection!$B$3,"") ->  | G201: =IF(Factor!#REF!<>"",Factor!#REF!*Selection!$B$3,"") -> 
A202: 1800 | B202: =IF(Selection!$B$4="DK",VLOOKUP($A202,'Style navne sprog'!$A:$I,6,FALSE),IF(Selection!$B$4="DE",VLOOKUP($A202,'Style navne sprog'!$A:$I,2,FALSE),IF(Selection!$B$4="GB",VLOOKUP($A202,'Style navne sprog'!$A:$I,4,FALSE),IF(Selection!$B$4="SE",VLOOKUP($A202,'Style navne sprog'!$A:$I,3,FALSE),IF(Selection!$B$4="NO",VLOOKUP($A202,'Style navne sprog'!$A:$I,5,FALSE),IF(Selection!$B$4="PL",VLOOKUP($A202,'Style navne sprog'!$A:$I,7,FALSE))))))) -> Sports bag | C202: =IF(Master!C202<>"",Master!C202*Selection!$B$3,"") -> 56.5 | D202: =IF(Master!D202<>"",Master!D202*Selection!$B$3,"") ->  | F202: =IF(Master!F202<>"",Master!F202*Selection!$B$3,"") ->  | G202: =IF(Factor!#REF!<>"",Factor!#REF!*Selection!$B$3,"") -> 
A203: 1802 | B203: =IF(Selection!$B$4="DK",VLOOKUP($A203,'Style navne sprog'!$A:$I,6,FALSE),IF(Selection!$B$4="DE",VLOOKUP($A203,'Style navne sprog'!$A:$I,2,FALSE),IF(Selection!$B$4="GB",VLOOKUP($A203,'Style navne sprog'!$A:$I,4,FALSE),IF(Selection!$B$4="SE",VLOOKUP($A203,'Style navne sprog'!$A:$I,3,FALSE),IF(Selection!$B$4="NO",VLOOKUP($A203,'Style navne sprog'!$A:$I,5,FALSE),IF(Selection!$B$4="PL",VLOOKUP($A203,'Style navne sprog'!$A:$I,7,FALSE))))))) -> Large sports bag | trolley | C203: =IF(Master!C203<>"",Master!C203*Selection!$B$3,"") -> 108.3 | D203: =IF(Master!D203<>"",Master!D203*Selection!$B$3,"") ->  | F203: =IF(Master!F203<>"",Master!F203*Selection!$B$3,"") ->  | G203: =IF(Factor!#REF!<>"",Factor!#REF!*Selection!$B$3,"") -> 
A204: 1805 | B204: =IF(Selection!$B$4="DK",VLOOKUP($A204,'Style navne sprog'!$A:$I,6,FALSE),IF(Selection!$B$4="DE",VLOOKUP($A204,'Style navne sprog'!$A:$I,2,FALSE),IF(Selection!$B$4="GB",VLOOKUP($A204,'Style navne sprog'!$A:$I,4,FALSE),IF(Selection!$B$4="SE",VLOOKUP($A204,'Style navne sprog'!$A:$I,3,FALSE),IF(Selection!$B$4="NO",VLOOKUP($A204,'Style navne sprog'!$A:$I,5,FALSE),IF(Selection!$B$4="PL",VLOOKUP($A204,'Style navne sprog'!$A:$I,7,FALSE))))))) -> Ripstop backpack | C204: =IF(Master!C204<>"",Master!C204*Selection!$B$3,"") -> 56.4 | D204: =IF(Master!D204<>"",Master!D204*Selection!$B$3,"") ->  | F204: =IF(Master!F204<>"",Master!F204*Selection!$B$3,"") ->  | G204: =IF(Factor!#REF!<>"",Factor!#REF!*Selection!$B$3,"") -> 
A205: 1810 | B205: =IF(Selection!$B$4="DK",VLOOKUP($A205,'Style navne sprog'!$A:$I,6,FALSE),IF(Selection!$B$4="DE",VLOOKUP($A205,'Style navne sprog'!$A:$I,2,FALSE),IF(Selection!$B$4="GB",VLOOKUP($A205,'Style navne sprog'!$A:$I,4,FALSE),IF(Selection!$B$4="SE",VLOOKUP($A205,'Style navne sprog'!$A:$I,3,FALSE),IF(Selection!$B$4="NO",VLOOKUP($A205,'Style navne sprog'!$A:$I,5,FALSE),IF(Selection!$B$4="PL",VLOOKUP($A205,'Style navne sprog'!$A:$I,7,FALSE))))))) -> Backpack | C205: =IF(Master!C205<>"",Master!C205*Selection!$B$3,"") -> 56.5 | D205: =IF(Master!D205<>"",Master!D205*Selection!$B$3,"") ->  | F205: =IF(Master!F205<>"",Master!F205*Selection!$B$3,"") ->  | G205: =IF(Factor!#REF!<>"",Factor!#REF!*Selection!$B$3,"") -> 
A206: 1820 | B206: =IF(Selection!$B$4="DK",VLOOKUP($A206,'Style navne sprog'!$A:$I,6,FALSE),IF(Selection!$B$4="DE",VLOOKUP($A206,'Style navne sprog'!$A:$I,2,FALSE),IF(Selection!$B$4="GB",VLOOKUP($A206,'Style navne sprog'!$A:$I,4,FALSE),IF(Selection!$B$4="SE",VLOOKUP($A206,'Style navne sprog'!$A:$I,3,FALSE),IF(Selection!$B$4="NO",VLOOKUP($A206,'Style navne sprog'!$A:$I,5,FALSE),IF(Selection!$B$4="PL",VLOOKUP($A206,'Style navne sprog'!$A:$I,7,FALSE))))))) -> Backpack | canvas | C206: =IF(Master!C206<>"",Master!C206*Selection!$B$3,"") -> 88.3 | D206: =IF(Master!D206<>"",Master!D206*Selection!$B$3,"") ->  | F206: =IF(Master!F206<>"",Master!F206*Selection!$B$3,"") ->  | G206: =IF(Factor!#REF!<>"",Factor!#REF!*Selection!$B$3,"") -> 
A207: 1821 | B207: =IF(Selection!$B$4="DK",VLOOKUP($A207,'Style navne sprog'!$A:$I,6,FALSE),IF(Selection!$B$4="DE",VLOOKUP($A207,'Style navne sprog'!$A:$I,2,FALSE),IF(Selection!$B$4="GB",VLOOKUP($A207,'Style navne sprog'!$A:$I,4,FALSE),IF(Selection!$B$4="SE",VLOOKUP($A207,'Style navne sprog'!$A:$I,3,FALSE),IF(Selection!$B$4="NO",VLOOKUP($A207,'Style navne sprog'!$A:$I,5,FALSE),IF(Selection!$B$4="PL",VLOOKUP($A207,'Style navne sprog'!$A:$I,7,FALSE))))))) -> Shopping bag | canvas | C207: =IF(Master!C207<>"",Master!C207*Selection!$B$3,"") -> 48.1 | D207: =IF(Master!D207<>"",Master!D207*Selection!$B$3,"") ->  | F207: =IF(Master!F207<>"",Master!F207*Selection!$B$3,"") ->  | G207: =IF(Factor!#REF!<>"",Factor!#REF!*Selection!$B$3,"") -> 
A208: 1825 | B208: =IF(Selection!$B$4="DK",VLOOKUP($A208,'Style navne sprog'!$A:$I,6,FALSE),IF(Selection!$B$4="DE",VLOOKUP($A208,'Style navne sprog'!$A:$I,2,FALSE),IF(Selection!$B$4="GB",VLOOKUP($A208,'Style navne sprog'!$A:$I,4,FALSE),IF(Selection!$B$4="SE",VLOOKUP($A208,'Style navne sprog'!$A:$I,3,FALSE),IF(Selection!$B$4="NO",VLOOKUP($A208,'Style navne sprog'!$A:$I,5,FALSE),IF(Selection!$B$4="PL",VLOOKUP($A208,'Style navne sprog'!$A:$I,7,FALSE))))))) -> Ripstop sports bag | C208: =IF(Master!C208<>"",Master!C208*Selection!$B$3,"") -> 70.2 | D208: =IF(Master!D208<>"",Master!D208*Selection!$B$3,"") ->  | F208: =IF(Master!F208<>"",Master!F208*Selection!$B$3,"") ->  | G208: =IF(Factor!#REF!<>"",Factor!#REF!*Selection!$B$3,"") -> 
A209: 1850 | B209: =IF(Selection!$B$4="DK",VLOOKUP($A209,'Style navne sprog'!$A:$I,6,FALSE),IF(Selection!$B$4="DE",VLOOKUP($A209,'Style navne sprog'!$A:$I,2,FALSE),IF(Selection!$B$4="GB",VLOOKUP($A209,'Style navne sprog'!$A:$I,4,FALSE),IF(Selection!$B$4="SE",VLOOKUP($A209,'Style navne sprog'!$A:$I,3,FALSE),IF(Selection!$B$4="NO",VLOOKUP($A209,'Style navne sprog'!$A:$I,5,FALSE),IF(Selection!$B$4="PL",VLOOKUP($A209,'Style navne sprog'!$A:$I,7,FALSE))))))) -> Gym bag | backpack | C209: =IF(Master!C209<>"",Master!C209*Selection!$B$3,"") -> 9.7 | D209: =IF(Master!D209<>"",Master!D209*Selection!$B$3,"") ->  | F209: =IF(Master!F209<>"",Master!F209*Selection!$B$3,"") ->  | G209: =IF(Factor!#REF!<>"",Factor!#REF!*Selection!$B$3,"") -> 
A210: 1864 | B210: =IF(Selection!$B$4="DK",VLOOKUP($A210,'Style navne sprog'!$A:$I,6,FALSE),IF(Selection!$B$4="DE",VLOOKUP($A210,'Style navne sprog'!$A:$I,2,FALSE),IF(Selection!$B$4="GB",VLOOKUP($A210,'Style navne sprog'!$A:$I,4,FALSE),IF(Selection!$B$4="SE",VLOOKUP($A210,'Style navne sprog'!$A:$I,3,FALSE),IF(Selection!$B$4="NO",VLOOKUP($A210,'Style navne sprog'!$A:$I,5,FALSE),IF(Selection!$B$4="PL",VLOOKUP($A210,'Style navne sprog'!$A:$I,7,FALSE))))))) -> Computer bag | C210: =IF(Master!C210<>"",Master!C210*Selection!$B$3,"") -> 96 | D210: =IF(Master!D210<>"",Master!D210*Selection!$B$3,"") ->  | F210: =IF(Master!F210<>"",Master!F210*Selection!$B$3,"") ->  | G210: =IF(Factor!#REF!<>"",Factor!#REF!*Selection!$B$3,"") -> 
... 81 more rows

Sheet Style navne sprog (hidden)
A1: SeasonCode | B1: All
A2: AreaCode | B2: All
A3: Item Category Code | B3: (Multiple Items)
A6: StyleNo | B6: ItemNameDE | C6: ItemNameSE | D6: ItemNameGB | E6: ItemNameNO | F6: ItemName | G6: ItemNamePL | N6: Opslag Master
A7: 0010 | B7: Handtuch 50x100 | C7: Handduk 50x100 | D7: Towel 50x100 | E7: Håndklæde 50x100 | F7: Håndklæde 50x100 | G7: Ręcznik 50x100 | N7: =_xlfn.XLOOKUP(A7,Master!$A:$A,Master!$A:$A) -> 0010 | P7: =_xlfn.XLOOKUP(A7,Master!A:A,Master!A:A) -> 0010
A8: 0011 | B8: Badehandtuch 70x140 | C8: Badhandduk 70x140 | D8: Bath towel 70x140 | E8: Badehåndklæde 70x140 | F8: Badehåndklæde 70x140 | G8: Ręcznik kąpielowy 70x140 | N8: =_xlfn.XLOOKUP(A8,Master!$A:$A,Master!$A:$A) -> 0011 | P8: =_xlfn.XLOOKUP(A8,Master!A:A,Master!A:A) -> 0011
A9: 0036 | B9: Mütze | Stretch | C9: Mössa | stretch | D9: Hat | stretch | E9: Hue | stretch | F9: Hue | stretch | G9: Czapka | stretch | N9: =_xlfn.XLOOKUP(A9,Master!$A:$A,Master!$A:$A) -> 0036 | P9: =_xlfn.XLOOKUP(A9,Master!A:A,Master!A:A) -> 0036
A10: 0038 | B10: Halswärmer | Stretch | C10: Halsvärmare | stretch | D10: Neck warmer | stretch | E10: Halsedisse | stretch | F10: Halsedisse | stretch | G10: Komin | stretch | N10: =_xlfn.XLOOKUP(A10,Master!$A:$A,Master!$A:$A) -> 0038 | P10: =_xlfn.XLOOKUP(A10,Master!A:A,Master!A:A) -> 0038
A11: 0040 | B11: Weicher Halswärmer | C11: Mjuk halsvärmare | D11: Soft neck warmer | E11: Blød halsedisse | F11: Blød halsedisse | G11: Soft neck warmer | N11: =_xlfn.XLOOKUP(A11,Master!$A:$A,Master!$A:$A) -> 0040 | P11: =_xlfn.XLOOKUP(A11,Master!A:A,Master!A:A) -> 0040
A12: 0042 | B12: Strickmütze | C12: Stickad mössa | D12: Knitted hat | E12: Strikhue | F12: Strikhue | G12: Dzianinowa czapka | N12: =_xlfn.XLOOKUP(A12,Master!$A:$A,Master!$A:$A) -> 0042 | P12: =_xlfn.XLOOKUP(A12,Master!A:A,Master!A:A) -> 0042
A13: 0044 | B13: Strickmütze | Futter | C13: Stickad mössa | fodrad | D13: Knitted hat | lining | E13: Strikhue | for | F13: Strikhue | for | G13: Czapka wełniana | z podszewką | N13: =_xlfn.XLOOKUP(A13,Master!$A:$A,Master!$A:$A) -> 0044 | P13: =_xlfn.XLOOKUP(A13,Master!A:A,Master!A:A) -> 0044
A14: 0045 | B14: Stretchmütze | C14: Stretch mössa | D14: Stretch hat | E14: Stretch hat | F14: Stretch hat | G14: Stretch hat | N14: =_xlfn.XLOOKUP(A14,Master!$A:$A,Master!$A:$A) -> 0045 | P14: =_xlfn.XLOOKUP(A14,Master!A:A,Master!A:A) -> 0045
A15: 0050 | B15: Urban Cap | C15: Urban keps | D15: Urban cap | E15: Urban cap | F15: Urban kasket | G15: Urban cap | N15: =_xlfn.XLOOKUP(A15,Master!$A:$A,Master!$A:$A) -> 0050 | P15: =_xlfn.XLOOKUP(A15,Master!A:A,Master!A:A) -> 0050
A16: 0052 | B16: Golf Cap | C16: Golfkeps | D16: Golf cap | E16: Golf cap | F16: Golf cap | G16: Czapka z daszkiem | N16: =_xlfn.XLOOKUP(A16,Master!$A:$A,Master!$A:$A) -> 0052 | P16: =_xlfn.XLOOKUP(A16,Master!A:A,Master!A:A) -> 0052
A17: 0054 | B17: Twill Cap | C17: Twillkeps | D17: Twill cap | E17: Bomulds cap | F17: Bomulds cap | G17: Czapka z daszkiem | N17: =_xlfn.XLOOKUP(A17,Master!$A:$A,Master!$A:$A) -> 0054 | P17: =_xlfn.XLOOKUP(A17,Master!A:A,Master!A:A) -> 0054
A18: 0060 | B18: Klassischer Sonnenhut | C18: Klassisk solhat | D18: Classic canvas bucket hat | E18: Klassisk bøllehat | F18: Klassisk canvas bøllehat | G18: Classic canvas sunhat | N18: =_xlfn.XLOOKUP(A18,Master!$A:$A,Master!$A:$A) -> 0060 | P18: =_xlfn.XLOOKUP(A18,Master!A:A,Master!A:A) -> 0060
A19: 0068 | B19: Cap | Stretch | C19: Keps | stretch | D19: Cap | stretch | E19: Cap | stretch | F19: Cap | stretch | G19: Czapka | stretch | N19: =_xlfn.XLOOKUP(A19,Master!$A:$A,Master!$A:$A) -> 0068 | P19: =_xlfn.XLOOKUP(A19,Master!A:A,Master!A:A) -> 0068
A20: 0073 | B20: Schürze | C20: Förkläde | D20: Apron | E20: Forklæde | F20: Forklæde | G20: Fartuch | N20: =_xlfn.XLOOKUP(A20,Master!$A:$A,Master!$A:$A) -> 0073 | P20: =_xlfn.XLOOKUP(A20,Master!A:A,Master!A:A) -> 0073
A21: 0074 | B21: Servierschürze | C21: Serveringsförkläde | D21: Serving apron | E21: Serveringsforklæde | F21: Serveringsforklæde | G21: Fartuch kelnerski | N21: =_xlfn.XLOOKUP(A21,Master!$A:$A,Master!$A:$A) -> 0074 | P21: =_xlfn.XLOOKUP(A21,Master!A:A,Master!A:A) -> 0074
A22: 0170 | B22: Strapazierfähige Strumpfen | C22: Slitstarke strumpor | D22: Durable socks | E22: Slidstærke strømper | F22: Slidstærk strømpe | G22: Skarpety | N22: =_xlfn.XLOOKUP(A22,Master!$A:$A,Master!$A:$A) -> 0170 | P22: =_xlfn.XLOOKUP(A22,Master!A:A,Master!A:A) -> 0170
A23: 0204 | B23: Hemd Green Leaf | Druckknopf | C23: Green leaf-skjorta | tryckknapp | D23: Green leaf shirt | press stud | E23: Green leaf skjorte | trykknap | F23: Green leaf skjorte | trykknap | G23: Koszula green leaf | napy | N23: =_xlfn.XLOOKUP(A23,Master!$A:$A,Master!$A:$A) -> 0204 | P23: =_xlfn.XLOOKUP(A23,Master!A:A,Master!A:A) -> 0204
A24: 0300 | B24: PRO Wear T-Shirt | C24: PRO Wear T-shirt | D24: PRO Wear T-shirt | E24: PRO Wear T-shirt | F24: PRO Wear T-shirt | G24: T-shirt PRO Wear | N24: =_xlfn.XLOOKUP(A24,Master!$A:$A,Master!$A:$A) -> 0300 | P24: =_xlfn.XLOOKUP(A24,Master!A:A,Master!A:A) -> 0300
A25: 0302 | B25: PRO Wear T-Shirt | Kontrast | C25: PRO Wear T-shirt | kontrast | D25: PRO Wear T-shirt | contrast | E25: PRO Wear T-shirt | kontrast | F25: PRO Wear T-shirt | kontrast | G25: T-shirt PRO Wear | kontrast | N25: =_xlfn.XLOOKUP(A25,Master!$A:$A,Master!$A:$A) -> 0302 | P25: =_xlfn.XLOOKUP(A25,Master!A:A,Master!A:A) -> 0302
A26: 0310 | B26: PRO Wear T-Shirt | light | C26: PRO Wear T-shirt | light | D26: PRO Wear T-shirt | light | E26: PRO Wear T-shirt | light | F26: PRO Wear T-shirt | light | G26: T-shirt PRO Wear | light | N26: =_xlfn.XLOOKUP(A26,Master!$A:$A,Master!$A:$A) -> 0310 | P26: =_xlfn.XLOOKUP(A26,Master!A:A,Master!A:A) -> 0310
A27: 0311 | B27: PRO Wear T-Shirt | Langarm | C27: PRO Wear T-shirt | l/ä | D27: PRO Wear T-shirt | long-sleeved | E27: PRO Wear T-shirt | l/æ | F27: PRO Wear T-shirt | l/æ | G27: T-shirt PRO Wear | z długim rękawem | N27: =_xlfn.XLOOKUP(A27,Master!$A:$A,Master!$A:$A) -> 0311 | P27: =_xlfn.XLOOKUP(A27,Master!A:A,Master!A:A) -> 0311
A28: 0312 | B28: PRO Wear T-Shirt | Damen | C28: PRO Wear T-shirt | dam | D28: PRO Wear T-shirt | women | E28: PRO Wear T-shirt | dame | F28: PRO Wear T-shirt | dame | G28: T-shirt PRO Wear | damski | N28: =_xlfn.XLOOKUP(A28,Master!$A:$A,Master!$A:$A) -> 0312 | P28: =_xlfn.XLOOKUP(A28,Master!A:A,Master!A:A) -> 0312
A29: 0313 | B29: PRO Wear T-Shirt | ¾ Arm | Damen | C29: PRO Wear T-shirt | ¾ ärm | dam | D29: PRO Wear T-shirt | ¾ sleeve | women | E29: PRO Wear T-shirt |¾ ærmet | dame | F29: PRO Wear T-shirt |¾ ærmet | dame | G29: T-shirt PRO Wear | rękaw 3/4 | damski | N29: =_xlfn.XLOOKUP(A29,Master!$A:$A,Master!$A:$A) -> 0313 | P29: =_xlfn.XLOOKUP(A29,Master!A:A,Master!A:A) -> 0313
A30: 0315 | B30: PRO Wear T-Shirt | ½ Arm | Damen | C30: PRO Wear T-shirt | ½ ärm | dam | D30: PRO Wear T-shirt | ½ sleeve | women | E30: PRO Wear T-shirt | ½ ærmet | dame | F30: PRO Wear T-shirt | ½ ærmet | dame | G30: T-shirt PRO Wear | rękaw 1/2 | damski | N30: =_xlfn.XLOOKUP(A30,Master!$A:$A,Master!$A:$A) -> 0315 | P30: =_xlfn.XLOOKUP(A30,Master!A:A,Master!A:A) -> 0315
A31: 0317 | B31: PRO Wear T-Shirt | light | Damen | C31: PRO Wear T-shirt | light | dam | D31: PRO Wear T-shirt | light | women | E31: PRO Wear T-shirt | light | dame | F31: PRO Wear T-shirt | light | dame | G31: T-shirt PRO Wear | light | damski | N31: =_xlfn.XLOOKUP(A31,Master!$A:$A,Master!$A:$A) -> 0317 | P31: =_xlfn.XLOOKUP(A31,Master!A:A,Master!A:A) -> 0317
A32: 0320 | B32: PRO Wear Poloshirt | Tasche | C32: PRO Wear pikétröja | ficka | D32: PRO Wear polo shirt | pocket | E32: PRO Wear poloshirt | lomme | F32: PRO Wear poloshirt | lomme | G32: Koszulka polo PRO Wear | kieszonka | N32: =_xlfn.XLOOKUP(A32,Master!$A:$A,Master!$A:$A) -> 0320 | P32: =_xlfn.XLOOKUP(A32,Master!A:A,Master!A:A) -> 0320
A33: 0321 | B33: PRO Wear Poloshirt | Damen | C33: PRO Wear pikétröja | dam | D33: PRO Wear polo shirt | women | E33: PRO Wear poloshirt | dame | F33: PRO Wear poloshirt | dame | G33: Koszulka polo PRO Wear | damska | N33: =_xlfn.XLOOKUP(A33,Master!$A:$A,Master!$A:$A) -> 0321 | P33: =_xlfn.XLOOKUP(A33,Master!A:A,Master!A:A) -> 0321
A34: 0322 | B34: PRO Wear Poloshirt | Kontrast | C34: PRO Wear pikétröja | kontrast | D34: PRO Wear polo shirt | contrast | E34: PRO Wear poloshirt | kontrast | F34: PRO Wear poloshirt | kontrast | G34: Koszulka polo PRO Wear | kontrast | N34: =_xlfn.XLOOKUP(A34,Master!$A:$A,Master!$A:$A) -> 0322 | P34: =_xlfn.XLOOKUP(A34,Master!A:A,Master!A:A) -> 0322
A35: 0324 | B35: PRO Wear Poloshirt | o. Tasche | C35: PRO Wear pikétröja | u. ficka | D35: PRO Wear polo shirt | no pocket | E35: PRO Wear poloshirt | u. lomme | F35: PRO Wear poloshirt | u. lomme | G35: PRO Wear koszulka polo | bez kieszonki | N35: =_xlfn.XLOOKUP(A35,Master!$A:$A,Master!$A:$A) -> 0324 | P35: =_xlfn.XLOOKUP(A35,Master!A:A,Master!A:A) -> 0324
A36: 0326 | B36: PRO Wear Poloshirt | Langarm | C36: PRO Wear pikétröja | l/ä | D36: PRO Wear polo shirt | long-sleeve | E36: PRO Wear poloshirt | l/æ | F36: PRO Wear poloshirt | l/æ | G36: Bluza polo PRO Wear | kieszonka | N36: =_xlfn.XLOOKUP(A36,Master!$A:$A,Master!$A:$A) -> 0326 | P36: =_xlfn.XLOOKUP(A36,Master!A:A,Master!A:A) -> 0326
A37: 0330 | B37: PRO Wear Poloshirt | Druckknopf | C37: PRO Wear pikétröja | tryckknapp | D37: PRO Wear polo shirt | press stud | E37: PRO Wear poloshirt | trykknap | F37: PRO Wear poloshirt | trykknap | G37: Koszulka polo PRO Wear | napy | N37: =_xlfn.XLOOKUP(A37,Master!$A:$A,Master!$A:$A) -> 0330 | P37: =_xlfn.XLOOKUP(A37,Master!A:A,Master!A:A) -> 0330
A38: 0336 | B38: PRO Wear Langarm-Poloshirt | Druckknopf | C38: PRO Wear l/ä pikétröja | tryckknapp | D38: PRO Wear long-sleeve polo shirt | press stud | E38: PRO Wear l/æ poloshirt | trykknap | F38: PRO Wear l/æ poloshirt | trykknap | G38: Bluza polo PRO Wear | napy | N38: =_xlfn.XLOOKUP(A38,Master!$A:$A,Master!$A:$A) -> 0336 | P38: =_xlfn.XLOOKUP(A38,Master!A:A,Master!A:A) -> 0336
A39: 0360 | B39: PRO Wear Sweatshirt | klassisch | C39: PRO Wear sweatshirt | klassisk | D39: PRO Wear sweatshirt | classic | E39: PRO Wear sweatshirt | klassisk | F39: PRO Wear sweatshirt | klassisk | G39: Klasyczna bluza PRO Wear | N39: =_xlfn.XLOOKUP(A39,Master!$A:$A,Master!$A:$A) -> 0360 | P39: =_xlfn.XLOOKUP(A39,Master!A:A,Master!A:A) -> 0360
A40: 0362 | B40: PRO Wear Sweatshirt | Kontrast | C40: PRO Wear sweatshirt | kontrast | D40: PRO Wear sweatshirt | contrast | E40: PRO Wear sweatshirt | kontrast | F40: PRO Wear sweatshirt | kontrast | G40: Bluza PRO Wear | kontrast | N40: =_xlfn.XLOOKUP(A40,Master!$A:$A,Master!$A:$A) -> 0362 | P40: =_xlfn.XLOOKUP(A40,Master!A:A,Master!A:A) -> 0362
A41: 0366 | B41: PRO Wear Cardigan | Sweat | C41: PRO Wear cardigan | sweatshirt | D41: PRO Wear cardigan | sweat | E41: PRO Wear cardigan | sweat | F41: PRO Wear cardigan | sweat | G41: Rozpinana bluza PRO Wear | N41: =_xlfn.XLOOKUP(A41,Master!$A:$A,Master!$A:$A) -> 0366 | P41: =_xlfn.XLOOKUP(A41,Master!A:A,Master!A:A) -> 0366
A42: 0367 | B42: PRO Wear Cardigan | Sweat | Damen | C42: PRO Wear cardigan | sweatshirt | dam | D42: PRO Wear cardigan | sweat | women | E42: PRO Wear cardigan | sweat | dame | F42: PRO Wear cardigan | sweat | dame | G42: Rozpinana bluza PRO Wear | damski | N42: =_xlfn.XLOOKUP(A42,Master!$A:$A,Master!$A:$A) -> 0367 | P42: =_xlfn.XLOOKUP(A42,Master!A:A,Master!A:A) -> 0367
A43: 0370 | B43: PRO Wear CARE T-Shirt | C43: PRO Wear CARE T-shirt | D43: PRO Wear CARE T-shirt | E43: PRO Wear CARE T-shirt | F43: PRO Wear CARE T-shirt | G43: T-shirt PRO Wear CARE | N43: =_xlfn.XLOOKUP(A43,Master!$A:$A,Master!$A:$A) -> 0370 | P43: =_xlfn.XLOOKUP(A43,Master!A:A,Master!A:A) -> 0370
A44: 0371 | B44: PRO Wear CARE T-Shirt | Damen | C44: PRO Wear CARE T-shirt | dam | D44: PRO Wear CARE T-shirt | women | E44: PRO Wear CARE T-shirt | dame | F44: PRO Wear CARE T-shirt | dame | G44: T-shirt PRO Wear CARE | damski | N44: =_xlfn.XLOOKUP(A44,Master!$A:$A,Master!$A:$A) -> 0371 | P44: =_xlfn.XLOOKUP(A44,Master!A:A,Master!A:A) -> 0371
A45: 0372 | B45: PRO Wear CARE T-Shirt | V-Ausschnitt | C45: PRO Wear CARE T-shirt | v-ringad | D45: PRO Wear CARE T-shirt | v-neck | E45: PRO Wear CARE T-shirt | v-hals | F45: PRO Wear CARE T-shirt | v-hals | G45: T-shirt PRO Wear CARE | v-neck | N45: =_xlfn.XLOOKUP(A45,Master!$A:$A,Master!$A:$A) -> 0372 | P45: =_xlfn.XLOOKUP(A45,Master!A:A,Master!A:A) -> 0372
A46: 0373 | B46: PRO Wear CARE T-Shirt | V-Ausschnitt | Damen | C46: PRO Wear CARE T-shirt | v-ringad | dam | D46: PRO Wear CARE T-shirt | v-neck | women | E46: PRO Wear CARE T-shirt | v-hals | dame | F46: PRO Wear CARE T-shirt | v-hals | dame | G46: T-shirt PRO Wear CARE | v-neck | damski | N46: =_xlfn.XLOOKUP(A46,Master!$A:$A,Master!$A:$A) -> 0373 | P46: =_xlfn.XLOOKUP(A46,Master!A:A,Master!A:A) -> 0373
A47: 0374 | B47: PRO Wear CARE Poloshirt | C47: PRO Wear CARE pikétröja | D47: PRO Wear CARE polo shirt | E47: PRO Wear CARE poloshirt | F47: PRO Wear CARE poloshirt | G47: Koszulka polo PRO Wear CARE | N47: =_xlfn.XLOOKUP(A47,Master!$A:$A,Master!$A:$A) -> 0374 | P47: =_xlfn.XLOOKUP(A47,Master!A:A,Master!A:A) -> 0374
A48: 0375 | B48: PRO Wear CARE Poloshirt | Damen | C48: PRO Wear CARE pikétröja | dam | D48: PRO Wear CARE polo shirt | women | E48: PRO Wear CARE poloshirt | dame | F48: PRO Wear CARE poloshirt | dame | G48: Koszulka polo PRO Wear CARE | damska | N48: =_xlfn.XLOOKUP(A48,Master!$A:$A,Master!$A:$A) -> 0375 | P48: =_xlfn.XLOOKUP(A48,Master!A:A,Master!A:A) -> 0375
A49: 0376 | B49: PRO Wear CARE Poloshirt | klassisch | C49: PRO Wear CARE pikétröja | klassisk | D49: PRO Wear CARE polo shirt | classic | E49: PRO Wear CARE poloshirt | klassisk | F49: PRO Wear CARE poloshirt | klassisk | G49: Koszulka polo PRO Wear CARE | classic | N49: =_xlfn.XLOOKUP(A49,Master!$A:$A,Master!$A:$A) -> 0376 | P49: =_xlfn.XLOOKUP(A49,Master!A:A,Master!A:A) -> 0376
A50: 0377 | B50: PRO Wear CARE Poloshirt | klassisch | Damen | C50: PRO Wear CARE pikétröja | klassisk | dam | D50: PRO Wear CARE polo shirt | classic | women | E50: PRO Wear CARE poloshirt | klassisk | dame | F50: PRO Wear CARE poloshirt | klassisk | dame | G50: Koszulka polo PRO Wear CARE | classic | damska | N50: =_xlfn.XLOOKUP(A50,Master!$A:$A,Master!$A:$A) -> 0377 | P50: =_xlfn.XLOOKUP(A50,Master!A:A,Master!A:A) -> 0377
A51: 0380 | B51: PRO Wear CARE Sweatshirt | unangeraut | C51: PRO Wear CARE sweatshirt | oborstad | D51: PRO Wear CARE sweatshirt | unbrushed | E51: PRO Wear CARE sweatshirt | ubørstet | F51: PRO Wear CARE sweatshirt | ubørstet | G51: Bluza PRO Wear CARE | nieszczotkowana | N51: =_xlfn.XLOOKUP(A51,Master!$A:$A,Master!$A:$A) -> 0380 | P51: =_xlfn.XLOOKUP(A51,Master!A:A,Master!A:A) -> 0380
A52: 0381 | B52: PRO Wear CARE Sweatshirt | unangeraut | Damen | C52: PRO Wear CARE sweatshirt | oborstad | dam | D52: PRO Wear CARE sweatshirt | unbrushed | women | E52: PRO Wear CARE sweatshirt | ubørstet | dame | F52: PRO Wear CARE sweatshirt | ubørstet | dame | G52: Bluza PRO Wear CARE | nieszczotkowana | damski | N52: =_xlfn.XLOOKUP(A52,Master!$A:$A,Master!$A:$A) -> 0381 | P52: =_xlfn.XLOOKUP(A52,Master!A:A,Master!A:A) -> 0381
A53: 0382 | B53: PRO Wear CARE Cardigan | unangeraut | C53: PRO Wear CARE cardigan | oborstad | D53: PRO Wear CARE cardigan | unbrushed | E53: PRO Wear cardigan | ubørstet | F53: PRO Wear CARE cardigan | ubørstet | G53: PRO Wear CARE kardigan | nieszczotkowany | N53: =_xlfn.XLOOKUP(A53,Master!$A:$A,Master!$A:$A) -> 0382 | P53: =_xlfn.XLOOKUP(A53,Master!A:A,Master!A:A) -> 0382
A54: 0383 | B54: PRO Wear CARE Cardigan | unangeraut | Damen | C54: PRO Wear CARE cardigan | oborstad | dam | D54: PRO Wear CARE cardigan | unbrushed | women | E54: PRO Wear CARE cardigan | ubørstet | dame | F54: PRO Wear CARE cardigan | ubørstet | dame | G54: PRO Wear CARE kardigan | nieszczotkowany | damski | N54: =_xlfn.XLOOKUP(A54,Master!$A:$A,Master!$A:$A) -> 0383 | P54: =_xlfn.XLOOKUP(A54,Master!A:A,Master!A:A) -> 0383
A55: 0384 | B55: PRO Wear CARE Cardigan | unangeraut | ¼ Zip | C55: PRO Wear CARE cardigan | oborstad | ¼ zip | D55: PRO Wear CARE sweat | unbrushed | ¼ zip | E55: PRO Wear CARE sweat| ubørstet | ¼ zip | F55: PRO Wear CARE sweat| ubørstet | ¼ zip | G55: Bluza PRO Wear CARE | zamek ¼ | N55: =_xlfn.XLOOKUP(A55,Master!$A:$A,Master!$A:$A) -> 0384 | P55: =_xlfn.XLOOKUP(A55,Master!A:A,Master!A:A) -> 0384
A56: 0385 | B56: PRO Wear CARE Cardigan | unangeraut | ¼ Zip | Dam | C56: PRO Wear CARE cardigan | oborstad | ¼ zip | dam | D56: PRO Wear CARE sweat | unbrushed | ¼ zip | women | E56: PRO Wear CARE sweat| ubørstet | ¼ zip | dame | F56: PRO Wear CARE sweat | ubørstet | ¼ zip | dame | G56: Bluza PRO Wear CARE | zamek ¼ | damski | N56: =_xlfn.XLOOKUP(A56,Master!$A:$A,Master!$A:$A) -> 0385 | P56: =_xlfn.XLOOKUP(A56,Master!A:A,Master!A:A) -> 0385
A57: 0500 | B57: GAME® T-Shirt | C57: GAME® T-shirt | D57: GAME® T-shirt | E57: GAME® T-shirt | F57: GAME® T-shirt | G57: T-shirt GAME® | N57: =_xlfn.XLOOKUP(A57,Master!$A:$A,Master!$A:$A) -> 0500 | P57: =_xlfn.XLOOKUP(A57,Master!A:A,Master!A:A) -> 0500
A58: 0502 | B58: T-TIME® T-Shirt | körpernah | C58: T-TIME® T-shirt | tight | D58: T-TIME® T-shirt | tight | E58: T-TIME® T-shirt | tight | F58: T-TIME® T-shirt | tight | G58: T-shirt T-TIME® | tight | N58: =_xlfn.XLOOKUP(A58,Master!$A:$A,Master!$A:$A) -> 0502 | P58: =_xlfn.XLOOKUP(A58,Master!A:A,Master!A:A) -> 0502
A59: 0506 | B59: Interlock T-Shirt | V-Ausschnitt | Damen | C59: Interlock T-shirt | v-ringad | dam | D59: Interlock T-shirt | v-neck | women | E59: Interlock T-shirt | v-hals | dame | F59: Interlock T-shirt | v-hals | dame | G59: T-shirt Interlock | v-neck | damski | N59: =_xlfn.XLOOKUP(A59,Master!$A:$A,Master!$A:$A) -> 0506 | P59: =_xlfn.XLOOKUP(A59,Master!A:A,Master!A:A) -> 0506
A60: 0508 | B60: Interlock T-Shirt | Damen | C60: Interlock T-shirt | dam | D60: Interlock T-shirt | women | E60: Interlock T-shirt | dame | F60: Interlock T-shirt | dame | G60: T-shirt Interlock | damski | N60: =_xlfn.XLOOKUP(A60,Master!$A:$A,Master!$A:$A) -> 0508 | P60: =_xlfn.XLOOKUP(A60,Master!A:A,Master!A:A) -> 0508
A61: 0509 | B61: Interlock T-Shirt | Langarm | Damen | C61: Interlock T-shirt | l/ä | dam | D61: Interlock T-shirt | long-sleeved | women | E61: Interlock T-shirt | l/æ | dame | F61: Interlock T-shirt | l/æ | dame | G61: T-shirt Interlock | długi rękaw | damski | N61: =_xlfn.XLOOKUP(A61,Master!$A:$A,Master!$A:$A) -> 0509 | P61: =_xlfn.XLOOKUP(A61,Master!A:A,Master!A:A) -> 0509
A62: 0510 | B62: T-TIME® T-Shirt | C62: T-TIME® T-shirt | D62: T-TIME® T-shirt | E62: T-TIME® T-shirt | F62: T-TIME® T-shirt | G62: T-shirt T-TIME® | N62: =_xlfn.XLOOKUP(A62,Master!$A:$A,Master!$A:$A) -> 0510 | P62: =_xlfn.XLOOKUP(A62,Master!A:A,Master!A:A) -> 0510
A63: 0511 | B63: T-TIME® T-Shirt | Damen | C63: T-TIME® T-shirt | dam | D63: T-TIME® T-shirt | women | E63: T-TIME® T-shirt | dame | F63: T-TIME® T-shirt | dame | G63: T-shirt T-TIME®| damski | N63: =_xlfn.XLOOKUP(A63,Master!$A:$A,Master!$A:$A) -> 0511 | P63: =_xlfn.XLOOKUP(A63,Master!A:A,Master!A:A) -> 0511
A64: 0514 | B64: T-TIME® T-Shirt | V-Ausschnitt | C64: T-TIME® T-shirt | v-ringad | D64: T-TIME® T-shirt | v-neck | E64: T-TIME® T-shirt | v-hals | F64: T-TIME® T-shirt | v-hals | G64: T-shirt T-TIME® | v-neck | N64: =_xlfn.XLOOKUP(A64,Master!$A:$A,Master!$A:$A) -> 0514 | P64: =_xlfn.XLOOKUP(A64,Master!A:A,Master!A:A) -> 0514
A65: 0517 | B65: Interlock T-Shirt | C65: Interlock T-shirt | D65: Interlock T-shirt | E65: Interlock T-shirt | F65: Interlock T-shirt | G65: T-shirt Interlock | N65: =_xlfn.XLOOKUP(A65,Master!$A:$A,Master!$A:$A) -> 0517 | P65: =_xlfn.XLOOKUP(A65,Master!A:A,Master!A:A) -> 0517
A66: 0518 | B66: Interlock T-Shirt | Langarm | C66: Interlock T-shirt | l/ä | D66: Interlock T-shirt | long-sleeved | E66: Interlock T-shirt | l/æ | F66: Interlock T-shirt | l/æ | G66: T-shirt Interlock | długi rękaw | N66: =_xlfn.XLOOKUP(A66,Master!$A:$A,Master!$A:$A) -> 0518 | P66: =_xlfn.XLOOKUP(A66,Master!A:A,Master!A:A) -> 0518
A67: 0520 | B67: Poloshirt klassisch | C67: Pikétröja klassisk | D67: Polo shirt classic | E67: Poloshirt klassisk | F67: Poloshirt klassisk | G67: Klasyczna koszulka polo | kieszeń | N67: =_xlfn.XLOOKUP(A67,Master!$A:$A,Master!$A:$A) -> 0520 | P67: =_xlfn.XLOOKUP(A67,Master!A:A,Master!A:A) -> 0520
A68: 0521 | B68: Poloshirt klassisch | Damen | C68: Pikétröja klassisk | dam | D68: Polo shirt classic | women | E68: Poloshirt klassisk | dame | F68: Poloshirt klassisk | dame | G68: Klasyczna koszulka polo | damska | N68: =_xlfn.XLOOKUP(A68,Master!$A:$A,Master!$A:$A) -> 0521 | P68: =_xlfn.XLOOKUP(A68,Master!A:A,Master!A:A) -> 0521
A69: 0522 | B69: Kontrast Poloshirt | Stretch | C69: Kontrast pikétröja | stretch | D69: Contrast polo shirt | stretch | E69: Kontrast poloshirt | stretch | F69: Kontrast poloshirt | stretch | G69: Kontrastowa koszulka polo | stretch | N69: =_xlfn.XLOOKUP(A69,Master!$A:$A,Master!$A:$A) -> 0522 | P69: =_xlfn.XLOOKUP(A69,Master!A:A,Master!A:A) -> 0522
A70: 0523 | B70: Kontrast Poloshirt | Stretch | Damen | C70: Kontrast pikétröja | stretch | dam | D70: Contrast polo shirt | stretch | women | E70: Kontrast poloshirt | stretch | dame | F70: Kontrast poloshirt | stretch | dame | G70: Kontrastowa koszulka polo | stretch | damska | N70: =_xlfn.XLOOKUP(A70,Master!$A:$A,Master!$A:$A) -> 0523 | P70: =_xlfn.XLOOKUP(A70,Master!A:A,Master!A:A) -> 0523
A71: 0524 | B71: RE-CARE T-Shirt | unisex | C71: RE-CARE T-shirt | unisex | D71: RE-CARE T-shirt | unisex | E71: RE-CARE T-shirt | unisex | F71: RE-CARE T-shirt | unisex | G71: T-shirt RE-CARE | unisex | N71: =_xlfn.XLOOKUP(A71,Master!$A:$A,Master!$A:$A) -> 0524 | P71: =_xlfn.XLOOKUP(A71,Master!A:A,Master!A:A) -> 0524
A72: 0525 | B72: Poloshirt | Stretch | C72: Pikétröja | stretch | D72: Polo shirt | stretch | E72: Poloshirt | stretch | F72: Poloshirt | stretch | G72: Koszulka polo | stretch | N72: =_xlfn.XLOOKUP(A72,Master!$A:$A,Master!$A:$A) -> 0525 | P72: =_xlfn.XLOOKUP(A72,Master!A:A,Master!A:A) -> 0525
A73: 0527 | B73: Poloshirt | Stretch | Damen | C73: Pikétröja | stretch | dam | D73: Polo shirt | stretch | women | E73: Poloshirt | stretch | dame | F73: Poloshirt | stretch | dame | G73: Koszulka polo | stretch | damska | N73: =_xlfn.XLOOKUP(A73,Master!$A:$A,Master!$A:$A) -> 0527 | P73: =_xlfn.XLOOKUP(A73,Master!A:A,Master!A:A) -> 0527
A74: 0528 | B74: T-Shirt Lyocell | C74: T-shirt Lyocell | D74: T-shirt Lyocell | E74: T-shirt Lyocell | F74: T-shirt Lyocell | G74: T-shirt Lyocell | N74: =_xlfn.XLOOKUP(A74,Master!$A:$A,Master!$A:$A) -> 0528 | P74: =_xlfn.XLOOKUP(A74,Master!A:A,Master!A:A) -> 0528
A75: 0529 | B75: T-Shirt Lyocell | Damen | C75: T-shirt Lyocell | dam | D75: T-shirt Lyocell | women | E75: T-shirt Lyocell | dame | F75: T-shirt Lyocell | dame | G75: T-shirt Lyocell | damski | N75: =_xlfn.XLOOKUP(A75,Master!$A:$A,Master!$A:$A) -> 0529 | P75: =_xlfn.XLOOKUP(A75,Master!A:A,Master!A:A) -> 0529
A76: 0534 | B76: Business Poloshirt | Jersey | C76: Business pikétröja | Jersey | D76: Business polo shirt | jersey | E76: Business poloshirt | Jersey | F76: Business poloshirt | Jersey | G76: Koszulka polo biznes | Jersey | N76: =_xlfn.XLOOKUP(A76,Master!$A:$A,Master!$A:$A) -> 0534 | P76: =_xlfn.XLOOKUP(A76,Master!A:A,Master!A:A) -> 0534
A77: 0535 | B77: Business Poloshirt | Jersey | Damen | C77: Business pikétröja | Jersey | dam | D77: Business polo shirt | jersey | women | E77: Business poloshirt | Jersey | dame | F77: Business poloshirt | Jersey | dame | G77: Koszulka polo biznes | Jersey | damska | N77: =_xlfn.XLOOKUP(A77,Master!$A:$A,Master!$A:$A) -> 0535 | P77: =_xlfn.XLOOKUP(A77,Master!A:A,Master!A:A) -> 0535
A78: 0544 | B78: Langarm Poloshirt | Stretch | C78: Långärmad pikétröja | stretch | D78: Long-sleeved polo shirt | stretch | E78: Langærmet poloshirt | stretch | F78: Langærmet poloshirt | stretch | G78: Koszulka polo długi rękaw | stretch | N78: =_xlfn.XLOOKUP(A78,Master!$A:$A,Master!$A:$A) -> 0544 | P78: =_xlfn.XLOOKUP(A78,Master!A:A,Master!A:A) -> 0544
A79: 0545 | B79: Langarm Poloshirt | Stretch | Damen | C79: Långärmad pikétröja | stretch | dam | D79: Long-sleeved polo shirt | stretch | women | E79: Langærmet poloshirt | stretch | dame | F79: Langærmet poloshirt | stretch | dame | G79: Koszulka polo długi rękaw | stretch | damska | N79: =_xlfn.XLOOKUP(A79,Master!$A:$A,Master!$A:$A) -> 0545 | P79: =_xlfn.XLOOKUP(A79,Master!A:A,Master!A:A) -> 0545
A80: 0546 | B80: T-TIME® T-Shirt | Rollkragen | C80: T-TIME® T-shirt | polokrage | D80: T-TIME® T-shirt | turtleneck | E80: T-TIME® T-shirt | rullekrave | F80: T-TIME® T-shirt | rullekrave | G80: T-shirt T-TIME® | z golfem | N80: =_xlfn.XLOOKUP(A80,Master!$A:$A,Master!$A:$A) -> 0546 | P80: =_xlfn.XLOOKUP(A80,Master!A:A,Master!A:A) -> 0546
A81: 0550 | B81: T-TIME® T-Shirt | Brusttasche | C81: T-TIME® T-shirt | bröstficka | D81: T-TIME® T-shirt | chest pocket | E81: T-TIME® T-shirt | brystlomme | F81: T-TIME® T-shirt | brystlomme | G81: T-shirt T-TIME® | kieszeń | N81: =_xlfn.XLOOKUP(A81,Master!$A:$A,Master!$A:$A) -> 0550 | P81: =_xlfn.XLOOKUP(A81,Master!A:A,Master!A:A) -> 0550
A82: 0552 | B82: T-Shirt | ökologisch | C82: T-shirt | ekologisk | D82: T-shirt | organic | E82: T-shirt | økologisk | F82: T-shirt | økologisk | G82: T-shirt | ekologiczny | N82: =_xlfn.XLOOKUP(A82,Master!$A:$A,Master!$A:$A) -> 0552 | P82: =_xlfn.XLOOKUP(A82,Master!A:A,Master!A:A) -> 0552
A83: 0553 | B83: T-Shirt | ökologisch | Damen | C83: T-shirt | ekologisk | dam | D83: T-shirt | organic | women | E83: T-shirt | økologisk | dame | F83: T-shirt | økologisk | dame | G83: T-shirt | ekologiczny | damski | N83: =_xlfn.XLOOKUP(A83,Master!$A:$A,Master!$A:$A) -> 0553 | P83: =_xlfn.XLOOKUP(A83,Master!A:A,Master!A:A) -> 0553
A84: 0572 | B84: Poloshirt | Active | C84: Pikétröja | active | D84: Polo shirt I active | E84: Poloshirt | active | F84: Poloshirt | active | G84: Koszulka polo | active | N84: =_xlfn.XLOOKUP(A84,Master!$A:$A,Master!$A:$A) -> 0572 | P84: =_xlfn.XLOOKUP(A84,Master!A:A,Master!A:A) -> 0572
A85: 0573 | B85: Poloshirt | Active | Damen | C85: Pikétröja | active | dam | D85: Polo shirt | active | women | E85: Poloshirt | active | dame | F85: Poloshirt | active | dame | G85: Koszulka polo | active | damska | N85: =_xlfn.XLOOKUP(A85,Master!$A:$A,Master!$A:$A) -> 0573 | P85: =_xlfn.XLOOKUP(A85,Master!A:A,Master!A:A) -> 0573
A86: 0586 | B86: Poloshirt | ökologisch | C86: Pikétröja | ekologisk | D86: Polo shirt | organic | E86: Poloshirt | økologisk | F86: Poloshirt | økologisk | G86: Koszulka polo | ekologiczna | N86: =_xlfn.XLOOKUP(A86,Master!$A:$A,Master!$A:$A) -> 0586 | P86: =_xlfn.XLOOKUP(A86,Master!A:A,Master!A:A) -> 0586
A87: 0587 | B87: Poloshirt | ökologisch | Damen | C87: Pikétröja | ekologisk | dam | D87: Polo shirt | organic | women | E87: Poloshirt | økologisk | dame | F87: Poloshirt | økologisk | dame | G87: Koszulka polo | ekologiczna | damska | N87: =_xlfn.XLOOKUP(A87,Master!$A:$A,Master!$A:$A) -> 0587 | P87: =_xlfn.XLOOKUP(A87,Master!A:A,Master!A:A) -> 0587
A88: 0594 | B88: Stretch T-Shirt | Komfort | C88: Stretch T-shirt | komfort | D88: Stretch T-shirt | comfort | E88: Stretch T-shirt | komfort | F88: Stretch T-shirt | komfort | G88: T-shirt ze stretchem | komfort | N88: =_xlfn.XLOOKUP(A88,Master!$A:$A,Master!$A:$A) -> 0594 | P88: =_xlfn.XLOOKUP(A88,Master!A:A,Master!A:A) -> 0594
A89: 0595 | B89: Stretch T-Shirt | Komfort | Damen | C89: Stretch T-shirt | komfort | dam | D89: Stretch T-shirt | comfort | women | E89: Stretch T-shirt | komfort | dame | F89: Stretch T-shirt | komfort | dame | G89: T-shirt ze stretchem | komfort | damski | N89: =_xlfn.XLOOKUP(A89,Master!$A:$A,Master!$A:$A) -> 0595 | P89: =_xlfn.XLOOKUP(A89,Master!A:A,Master!A:A) -> 0595
A90: 0597 | B90: Stretch T-Shirt | ¾ Ärmel | Damen | C90: Stretch T-shirt | ¾ ärmad | dam | D90: Stretch T-shirt | ¾ sleeved | women | E90: Stretch T-shirt | ¾ ærmet | dame | F90: Stretch T-shirt | ¾ ærmet | dame | G90: T-shirt stretch | rękaw 3/4 | damski | N90: =_xlfn.XLOOKUP(A90,Master!$A:$A,Master!$A:$A) -> 0597 | P90: =_xlfn.XLOOKUP(A90,Master!A:A,Master!A:A) -> 0597
A91: 0598 | B91: Tanktop | Stretch | C91: Tanktop | stretch | D91: Tank top | stretch | E91: Tanktop | stretch | F91: Tanktop | stretch | G91: Tank top | stretch | N91: =_xlfn.XLOOKUP(A91,Master!$A:$A,Master!$A:$A) -> 0598 | P91: =_xlfn.XLOOKUP(A91,Master!A:A,Master!A:A) -> 0598
A92: 0599 | B92: Tanktop | Stretch | Damen | C92: Tanktop | stretch | dam | D92: Tank top | stretch | women | E92: Tanktop | stretch | dame | F92: Tanktop | stretch | dame | G92: Tank top | stretch | damski | N92: =_xlfn.XLOOKUP(A92,Master!$A:$A,Master!$A:$A) -> 0599 | P92: =_xlfn.XLOOKUP(A92,Master!A:A,Master!A:A) -> 0599
A93: 0600 | B93: Sweatshirt | klassisch | C93: Sweatshirt | klassisk | D93: Sweatshirt | classic | E93: Sweatshirt | klassisk | F93: Sweatshirt | klassisk | G93: Klasyczna bluza | N93: =_xlfn.XLOOKUP(A93,Master!$A:$A,Master!$A:$A) -> 0600 | P93: =_xlfn.XLOOKUP(A93,Master!A:A,Master!A:A) -> 0600
A94: 0601 | B94: Polo-Sweatshirt | klassisch | C94: Piké sweatshirt | klassisk | D94: Polo sweatshirt | classic | E94: Polosweatshirt | klassisk | F94: Polosweatshirt | klassisk | G94: Klasyczna bluza polo | N94: =_xlfn.XLOOKUP(A94,Master!$A:$A,Master!$A:$A) -> 0601 | P94: =_xlfn.XLOOKUP(A94,Master!A:A,Master!A:A) -> 0601
A95: 0603 | B95: Sweatshirt | Reißverschluss | C95: Sweatshirt | dragkedja | D95: Sweatshirt | zip | E95: Sweatshirt | zip | F95: Sweatshirt | zip | G95: Bluza z krótkim suwakiem | N95: =_xlfn.XLOOKUP(A95,Master!$A:$A,Master!$A:$A) -> 0603 | P95: =_xlfn.XLOOKUP(A95,Master!A:A,Master!A:A) -> 0603
A96: 0604 | B96: Klassisches Sweatshirt | Baumwolle | C96: Klassisk sweatshirt | bomull | D96: Classic sweatshirt | cotton | E96: Klassisk sweatshirt | bomuld | F96: Klassisk sweatshirt | bomuld | G96: Bluza klasyczna | bawełniana | N96: =_xlfn.XLOOKUP(A96,Master!$A:$A,Master!$A:$A) -> 0604 | P96: =_xlfn.XLOOKUP(A96,Master!A:A,Master!A:A) -> 0604
A97: 0613 | B97: Sweatshirt | Business | C97: Sweatshirt | business | D97: Sweatshirt | business | E97: Sweatshirt | business | F97: Sweatshirt | business | G97: Ekskluzywna bluza | N97: =_xlfn.XLOOKUP(A97,Master!$A:$A,Master!$A:$A) -> 0613 | P97: =_xlfn.XLOOKUP(A97,Master!A:A,Master!A:A) -> 0613
A98: 0622 | B98: Sweat-Cardigan | C98: Sweatshirt cardigan | D98: Sweat cardigan | E98: Sweat cardigan | F98: Sweat cardigan | G98: Bluza kardigan | N98: =_xlfn.XLOOKUP(A98,Master!$A:$A,Master!$A:$A) -> 0622 | P98: =_xlfn.XLOOKUP(A98,Master!A:A,Master!A:A) -> 0622
A99: 0624 | B99: Sweat-Cardigan | Damen | C99: Sweatshirt cardigan | dam | D99: Sweat cardigan | women | E99: Sweat cardigan | dame | F99: Sweat cardigan | dame | G99: Bluza kardigan | damska | N99: =_xlfn.XLOOKUP(A99,Master!$A:$A,Master!$A:$A) -> 0624 | P99: =_xlfn.XLOOKUP(A99,Master!A:A,Master!A:A) -> 0624
A100: 0626 | B100: Sweat-Cardigan | Kontrast | C100: Sweatshirt cardigan | kontrast | D100: Sweat cardigan | contrast | E100: Sweat cardigan | kontrast | F100: Sweat cardigan | kontrast | G100: Bluza kardigan | kontrastowa | N100: =_xlfn.XLOOKUP(A100,Master!$A:$A,Master!$A:$A) -> 0626 | P100: =_xlfn.XLOOKUP(A100,Master!A:A,Master!A:A) -> 0626
A101: 0627 | B101: Sweat-Cardigan | Kontrast | Damen | C101: Sweatshirt cardigan | kontrast | dam | D101: Sweat cardigan | contrast | women | E101: Sweat cardigan | kontrast | dame | F101: Sweat cardigan | kontrast | dame | G101: Bluza kardigan | kontrastowa | damska | N101: =_xlfn.XLOOKUP(A101,Master!$A:$A,Master!$A:$A) -> 0627 | P101: =_xlfn.XLOOKUP(A101,Master!A:A,Master!A:A) -> 0627
A102: 0628 | B102: Sweat-Cardigan | Reißverschluss | C102: Sweatshirt cardigan | dragkedja | D102: Sweat cardigan | zip | E102: Sweat cardigan | zip | F102: Sweat cardigan | zip | G102: Bluza dresowa | zip | N102: =_xlfn.XLOOKUP(A102,Master!$A:$A,Master!$A:$A) -> 0628 | P102: =_xlfn.XLOOKUP(A102,Master!A:A,Master!A:A) -> 0628
A103: 0629 | B103: Sweat-Cardigan | Reißverschluss | Damen | C103: Sweatshirt cardigan | dragkedja | dam | D103: Sweat cardigan | zip | women | E103: Sweat cardigan | zip | dame | F103: Sweat cardigan | zip | dame | G103: Bluza dresowa | zip | damska | N103: =_xlfn.XLOOKUP(A103,Master!$A:$A,Master!$A:$A) -> 0629 | P103: =_xlfn.XLOOKUP(A103,Master!A:A,Master!A:A) -> 0629
A104: 0630 | B104: Sweat-Cardigan | eingefasst | C104: Sweatshirt cardigan | bonded | D104: Sweat cardigan | bonded | E104: Sweat cardigan | bonded | F104: Sweat cardigan | bonded | G104: Bluza kardigan | bonded | N104: =_xlfn.XLOOKUP(A104,Master!$A:$A,Master!$A:$A) -> 0630 | P104: =_xlfn.XLOOKUP(A104,Master!A:A,Master!A:A) -> 0630
A105: 0636 | B105: CORE Hoodie | C105: CORE hoodie | D105: CORE hoodie | E105: CORE hoodie | F105: CORE hoodie | G105: Bluza z kapturem CORE | N105: =_xlfn.XLOOKUP(A105,Master!$A:$A,Master!$A:$A) -> 0636 | P105: =_xlfn.XLOOKUP(A105,Master!A:A,Master!A:A) -> 0636
A106: 0637 | B106: CORE Hoodie | Damen | C106: CORE hoodie| dam | D106: CORE hoodie | women | E106: CORE hoodie| dame | F106: CORE hoodie | dame | G106: Bluza z kapturem CORE | damska | N106: =_xlfn.XLOOKUP(A106,Master!$A:$A,Master!$A:$A) -> 0637 | P106: =_xlfn.XLOOKUP(A106,Master!A:A,Master!A:A) -> 0637
A107: 0638 | B107: CORE Hoodie | Reißverschluss | C107: CORE hoodie | dragkedja | D107: CORE hoodie | zip | E107: CORE hoodie | zip | F107: CORE hoodie | zip | G107: Bluza z kapturem CORE | zip | N107: =_xlfn.XLOOKUP(A107,Master!$A:$A,Master!$A:$A) -> 0638 | P107: =_xlfn.XLOOKUP(A107,Master!A:A,Master!A:A) -> 0638
A108: 0639 | B108: CORE Hoodie | Reißverschluss | Damen | C108: CORE hoodie | dragkedja | dam | D108: CORE hoodie | zip | women | E108: CORE hoodie | zip | dame | F108: CORE hoodie | zip | dame | G108: Bluza z kapturem CORE zip | damska | N108: =_xlfn.XLOOKUP(A108,Master!$A:$A,Master!$A:$A) -> 0639 | P108: =_xlfn.XLOOKUP(A108,Master!A:A,Master!A:A) -> 0639
A109: 0660 | B109: Hoodie | Kängurutasche | unisex | C109: Hoodie | känguruficka | unisex | D109: Soft hoodie | kangaroo pocket | unisex | E109: Hoodie | kængurulomme | unisex | F109: Soft hoodie | kængurulomme | unisex | G109: Bluza kangurka | unisex | N109: =_xlfn.XLOOKUP(A109,Master!$A:$A,Master!$A:$A) -> 0660 | P109: =_xlfn.XLOOKUP(A109,Master!A:A,Master!A:A) -> 0660
A110: 0661 | B110: Klassische Sweathose | unisex | C110: Klassiske sweatpants | unisex | D110: Classic sweatpants | unisex | E110: Klassiske sweatpants | unisex | F110: Klassiske sweatpants | unisex | G110: Klasyczne spodnie dresowe | unisex | N110: =_xlfn.XLOOKUP(A110,Master!$A:$A,Master!$A:$A) -> 0661 | P110: =_xlfn.XLOOKUP(A110,Master!A:A,Master!A:A) -> 0661
A111: 0682 | B111: Sweatshirt | ökologisch | C111: Sweatshirt | ekologisk | D111: Sweatshirt | organic | E111: Sweatshirt | økologisk | F111: Sweatshirt | økologisk | G111: Bluza | ekologiczna | N111: =_xlfn.XLOOKUP(A111,Master!$A:$A,Master!$A:$A) -> 0682 | P111: =_xlfn.XLOOKUP(A111,Master!A:A,Master!A:A) -> 0682
A112: 0683 | B112: Sweatshirt | ökologisch | Damen | C112: Sweatshirt | ekologisk | dam | D112: Sweatshirt | organic | women | E112: Sweatshirt | økologisk | dame | F112: Sweatshirt | økologisk | dame | G112: Bluza | ekologiczna | damska | N112: =_xlfn.XLOOKUP(A112,Master!$A:$A,Master!$A:$A) -> 0683 | P112: =_xlfn.XLOOKUP(A112,Master!A:A,Master!A:A) -> 0683
A113: 0712 | B113: Zip-n-Mix Shell-Jacke | C113: Zip-n-Mix skaljacka | D113: Zip-n-Mix shell Jacket | E113: Zip-n-Mix skaljakke | F113: Zip-n-Mix skaljakke | G113: Kurtka z membraną Zip-n-Mix | N113: =_xlfn.XLOOKUP(A113,Master!$A:$A,Master!$A:$A) -> 0712 | P113: =_xlfn.XLOOKUP(A113,Master!A:A,Master!A:A) -> 0712
A114: 0713 | B114: Zip-n-Mix Shell-Jacke | Damen | C114: Zip-n-Mix skaljacka | dam | D114: Zip-n-Mix shell jacket | women | E114: Zip-n-Mix skaljakke | dame | F114: Zip-n-Mix skaljakke | dame | G114: Kurtka z membraną Zip-n-Mix | damska | N114: =_xlfn.XLOOKUP(A114,Master!$A:$A,Master!$A:$A) -> 0713 | P114: =_xlfn.XLOOKUP(A114,Master!A:A,Master!A:A) -> 0713
A115: 0714 | B115: Zip-n-Mix Hose | unisex | C115: Zip-n-Mix byxor | unisex | D115: Zip-n-Mix pants | unisex | E115: Zip-n-Mix buks | unisex | F115: Zip-n-Mix buks | unisex | G115: Spodnie Zip-n-Mix | unisex | N115: =_xlfn.XLOOKUP(A115,Master!$A:$A,Master!$A:$A) -> 0714 | P115: =_xlfn.XLOOKUP(A115,Master!A:A,Master!A:A) -> 0714
A116: 0720 | B116: Hybrid Jacke | C116: Hybrid jacka | D116: Hybrid jacket | E116: Hybrid jakke | F116: Hybrid jakke | G116: Kurtka Hybrid | N116: =_xlfn.XLOOKUP(A116,Master!$A:$A,Master!$A:$A) -> 0720 | P116: =_xlfn.XLOOKUP(A116,Master!A:A,Master!A:A) -> 0720
A117: 0721 | B117: Hybrid Jacke | Damen | C117: Hybrid jacka | dam | D117: Hybrid jacket | women | E117: Hybrid jakke | dame | F117: Hybrid jakke | dame | G117: Kurtka Hybrid | damska | N117: =_xlfn.XLOOKUP(A117,Master!$A:$A,Master!$A:$A) -> 0721 | P117: =_xlfn.XLOOKUP(A117,Master!A:A,Master!A:A) -> 0721
A118: 0744 | B118: Fleecejacke | eingefasst | C118: Fleecejacka | bonded | D118: Bonded fleece jacket | E118: Bonded fleecejakke | F118: Bonded fleecejakke | G118: Kurtka bonded fleece | N118: =_xlfn.XLOOKUP(A118,Master!$A:$A,Master!$A:$A) -> 0744 | P118: =_xlfn.XLOOKUP(A118,Master!A:A,Master!A:A) -> 0744
A119: 0745 | B119: Fleecejacke | eingefasst | Damen | C119: Fleecejacka | bonded | dam | D119: Bonded fleece jacket | women | E119: Bonded fleecejakke | dame | F119: Bonded fleecejakke | dame | G119: Kurtka bonded fleece | damski | N119: =_xlfn.XLOOKUP(A119,Master!$A:$A,Master!$A:$A) -> 0745 | P119: =_xlfn.XLOOKUP(A119,Master!A:A,Master!A:A) -> 0745
A120: 0746 | B120: Fleeceweste | eingefasst | C120: Fleeceväst | bonded | D120: Bonded fleece vest | E120: Bonded fleecevest | F120: Bonded fleecevest | G120: Bezrękawnik bonded fleece | N120: =_xlfn.XLOOKUP(A120,Master!$A:$A,Master!$A:$A) -> 0746 | P120: =_xlfn.XLOOKUP(A120,Master!A:A,Master!A:A) -> 0746
A121: 0747 | B121: Fleeceweste | eingefasst | Damen | C121: Fleeceväst | bonded | dam | D121: Bonded fleece vest | women | E121: Bonded fleecevest | dame | F121: Bonded fleecevest | dame | G121: Bezrękawnik bonded fleece | damski | N121: =_xlfn.XLOOKUP(A121,Master!$A:$A,Master!$A:$A) -> 0747 | P121: =_xlfn.XLOOKUP(A121,Master!A:A,Master!A:A) -> 0747
A122: 0780 | B122: Zip-n-Mix Jacke | Hybrid | C122: Zip-n-Mix jacka | hybrid | D122: Zip-n-Mix jacket | hybrid | E122: Zip-n-Mix jakke | hybrid | F122: Zip-n-Mix jakke | hybrid | G122: Kurtka Zip-n-Mix | hybrid | N122: =_xlfn.XLOOKUP(A122,Master!$A:$A,Master!$A:$A) -> 0780 | P122: =_xlfn.XLOOKUP(A122,Master!A:A,Master!A:A) -> 0780
A123: 0781 | B123: Zip-n-Mix Jacke | Hybrid | Damen | C123: Zip-n-Mix jacka | hybrid | dam | D123: Zip-n-Mix jacket | hybrid | women | E123: Zip-n-Mix jakke | hybrid | dame | F123: Zip-n-Mix jakke | hybrid | dame | G123: Kurtka Zip-n-Mix | hybrid | damska | N123: =_xlfn.XLOOKUP(A123,Master!$A:$A,Master!$A:$A) -> 0781 | P123: =_xlfn.XLOOKUP(A123,Master!A:A,Master!A:A) -> 0781
A124: 0792 | B124: Zip-n-Mix Microfleece | Reflex | C124: Zip-n-Mix mikrofleece | reflex | D124: Zip-n-Mix microfleece | reflective | E124: Zip-n-Mix mikrofleece | refleks | F124: Zip-n-Mix mikrofleece | refleks | G124: Mikropolar Zip-n-Mix | elementy odblaskowe | N124: =_xlfn.XLOOKUP(A124,Master!$A:$A,Master!$A:$A) -> 0792 | P124: =_xlfn.XLOOKUP(A124,Master!A:A,Master!A:A) -> 0792
A125: 0793 | B125: Zip-n-Mix Microfleece | Reflex | Damen | C125: Zip-n-Mix mikrofleece | reflex | dam | D125: Zip-n-Mix microfleece | reflective | women | E125: Zip-n-Mix mikrofleece | refleks | dame | F125: Zip-n-Mix mikrofleece | refleks | dame | G125: Mikropolar Zip-n-Mix | elementy odblaskow | damska | N125: =_xlfn.XLOOKUP(A125,Master!$A:$A,Master!$A:$A) -> 0793 | P125: =_xlfn.XLOOKUP(A125,Master!A:A,Master!A:A) -> 0793
A126: 0803 | B126: Cardigan | Microfleece | C126: Cardigan | microfleece | D126: Cardigan | microfleece | E126: Cardigan | mikrofleece | F126: Cardigan | mikrofleece | G126: Bluza z mikropolaru | N126: =_xlfn.XLOOKUP(A126,Master!$A:$A,Master!$A:$A) -> 0803 | P126: =_xlfn.XLOOKUP(A126,Master!A:A,Master!A:A) -> 0803
A127: 0805 | B127: Cardigan | Microfleece | Damen | C127: Cardigan | mikrofleece | dam | D127: Cardigan | microfleece | women | E127: Cardigan | mikrofleece | dame | F127: Cardigan | mikrofleece | dame | G127: Bluza z mikropolaru | damski | N127: =_xlfn.XLOOKUP(A127,Master!$A:$A,Master!$A:$A) -> 0805 | P127: =_xlfn.XLOOKUP(A127,Master!A:A,Master!A:A) -> 0805
A128: 0806 | B128: Zip-n-Mix Microfleece | C128: Zip-n-Mix microfleece | D128: Zip-n-Mix microfleece | E128: Zip-n-Mix mikrofleece | F128: Zip-n-Mix mikrofleece | G128: Mikropolar Zip-n-Mix | N128: =_xlfn.XLOOKUP(A128,Master!$A:$A,Master!$A:$A) -> 0806 | P128: =_xlfn.XLOOKUP(A128,Master!A:A,Master!A:A) -> 0806
A129: 0807 | B129: Zip-n-Mix Microfleece | Damen | C129: Zip-n-Mix microfleece | dam | D129: Zip-n-Mix microfleece | women | E129: Zip-n-Mix mikrofleece | dame | F129: Zip-n-Mix mikrofleece | dame | G129: Mikropolar Zip-n-Mix | damski | N129: =_xlfn.XLOOKUP(A129,Master!$A:$A,Master!$A:$A) -> 0807 | P129: =_xlfn.XLOOKUP(A129,Master!A:A,Master!A:A) -> 0807
A130: 0808 | B130: Fleece Tunika | unisex | C130: Fleece tunika | unisex | D130: Fleece tunic | unisex | E130: Fleece tunika | unisex | F130: Fleece tunika | unisex | G130: Tunika polarowa | unisex | N130: =_xlfn.XLOOKUP(A130,Master!$A:$A,Master!$A:$A) -> 0808 | P130: =_xlfn.XLOOKUP(A130,Master!A:A,Master!A:A) -> 0808
A131: 0809 | B131: Fleece Bolerojacke | unisex | C131: Fleece bolero | unisex | D131: Fleece bolero | unisex | E131: Fleece bolero | unisex | F131: Fleece Bolero | unisex | G131: Fleece bolero | unisex | N131: =_xlfn.XLOOKUP(A131,Master!$A:$A,Master!$A:$A) -> 0809 | P131: =_xlfn.XLOOKUP(A131,Master!A:A,Master!A:A) -> 0809
A132: 0811 | B132: Active Weste | Microfleece | C132: Active väst | microfleece | D132: Active vest | microfleece | E132: Active vest | mikrofleece | F132: Active vest | mikrofleece | G132: Kamizelka z mikropolaru | active | N132: =_xlfn.XLOOKUP(A132,Master!$A:$A,Master!$A:$A) -> 0811 | P132: =_xlfn.XLOOKUP(A132,Master!A:A,Master!A:A) -> 0811
A133: 0812 | B133: Active Weste | Microfleece | Damen | C133: Active väst | microfleece | dam | D133: Active vest | microfleece | women | E133: Active vest | microfleece | dame | F133: Active vest | mikrofleece | dame | G133: Kamizelka z mikropolaru | active | damska | N133: =_xlfn.XLOOKUP(A133,Master!$A:$A,Master!$A:$A) -> 0812 | P133: =_xlfn.XLOOKUP(A133,Master!A:A,Master!A:A) -> 0812
A134: 0824 | B134: Soft Shell-Weste | funktional | C134: Soft shell-väst | funktionell | D134: Soft shell vest | functional | E134: Softshell vest | funktionel | F134: Softshell vest | funktionel | G134: Kamizelka soft shell | funkcjonalna | N134: =_xlfn.XLOOKUP(A134,Master!$A:$A,Master!$A:$A) -> 0824 | P134: =_xlfn.XLOOKUP(A134,Master!A:A,Master!A:A) -> 0824
A135: 0825 | B135: Soft Shell-Weste | funktional | Damen | C135: Soft shell-väst | funktionell | dam | D135: Soft shell vest | functional | women | E135: Softshell vest | funktionel | dame | F135: Softshell vest | funktionel | dame | G135: Kamizelka soft shell | funkcjonalna | damska | N135: =_xlfn.XLOOKUP(A135,Master!$A:$A,Master!$A:$A) -> 0825 | P135: =_xlfn.XLOOKUP(A135,Master!A:A,Master!A:A) -> 0825
A136: 0826 | B136: Fleecejacke | Gesteppt | C136: Fleecejacka | quiltad | D136: Fleece jacket | quilted | E136: Fleecejakke | quiltet | F136: Fleecejakke | quiltet | G136: Pikowana kurtka polarowa | N136: =_xlfn.XLOOKUP(A136,Master!$A:$A,Master!$A:$A) -> 0826 | P136: =_xlfn.XLOOKUP(A136,Master!A:A,Master!A:A) -> 0826
A137: 0827 | B137: Fleecejacke | Gesteppt | Damen | C137: Fleecejacka | quiltad | dam | D137: Fleece jacket | quilted | women | E137: Fleecejakke | quiltet | dame | F137: Fleecejakke | quiltet | dame | G137: Pikowana kurtka polarowa | damska | N137: =_xlfn.XLOOKUP(A137,Master!$A:$A,Master!$A:$A) -> 0827 | P137: =_xlfn.XLOOKUP(A137,Master!A:A,Master!A:A) -> 0827
A138: 0828 | B138: Pile Fleecejacke | C138: Pilefleece-jacka | D138: Pile fleece jacket | E138: Pile fleece jakke | F138: Pile fleece jakke | G138: Kurtka polarowa Pile | N138: =_xlfn.XLOOKUP(A138,Master!$A:$A,Master!$A:$A) -> 0828 | P138: =_xlfn.XLOOKUP(A138,Master!A:A,Master!A:A) -> 0828
A139: 0829 | B139: Pile Fleecejacke | Damen | C139: Pilefleece-jacka | dam | D139: Pile fleece jacket I women | E139: Pile fleece jakke | dame | F139: Pile fleece jakke | dame | G139: Kurtka polarowa Pile | damska | N139: =_xlfn.XLOOKUP(A139,Master!$A:$A,Master!$A:$A) -> 0829 | P139: =_xlfn.XLOOKUP(A139,Master!A:A,Master!A:A) -> 0829
A140: 0830 | B140: Regenjacke | Performance | C140: Regnjacka | performance | D140: Rain jacket | performance | E140: Regnjakke | performance | F140: Regnjakke | performance | G140: Kurtka przeciwdeszczowa | performance | N140: =_xlfn.XLOOKUP(A140,Master!$A:$A,Master!$A:$A) -> 0830 | P140: =_xlfn.XLOOKUP(A140,Master!A:A,Master!A:A) -> 0830
A141: 0831 | B141: Regenjacke | Performance | Damen | C141: Regnjacka | performance | dam | D141: Rain jacket | performance | women | E141: Regnjakke | performance | dame | F141: Regnjakke | performance | dame | G141: Kurtka przeciwdeszczowa | performance | damska | N141: =_xlfn.XLOOKUP(A141,Master!$A:$A,Master!$A:$A) -> 0831 | P141: =_xlfn.XLOOKUP(A141,Master!A:A,Master!A:A) -> 0831
A142: 0836 | B142: Soft Shell-Jacke | light | C142: Soft shell-jacka | light | D142: Soft shell jacket | light | E142: Softshell jakke | letvægts | F142: Softshell jakke | letvægt | G142: Kurtka soft shell z kapturem | lekka | N142: =_xlfn.XLOOKUP(A142,Master!$A:$A,Master!$A:$A) -> 0836 | P142: =_xlfn.XLOOKUP(A142,Master!A:A,Master!A:A) -> 0836
A143: 0837 | B143: Soft Shell-Jacke | light | Damen | C143: Soft shell-jacka | light | dam | D143: Soft shell jacket | light | women | E143: Softshell jakke | letvægts | dame | F143: Softshell jakke | letvægt | dame | G143: Kurtka soft shell z kapturem| lekka | damska | N143: =_xlfn.XLOOKUP(A143,Master!$A:$A,Master!$A:$A) -> 0837 | P143: =_xlfn.XLOOKUP(A143,Master!A:A,Master!A:A) -> 0837
A144: 0840 | B144: Cardigan | Stretch Komfort | C144: Cardigan | stretch komfort | D144: Cardigan | stretch comfort | E144: Cardigan | stretch komfort | F144: Cardigan | stretch komfort | G144: Bluza | stretch komfort | N144: =_xlfn.XLOOKUP(A144,Master!$A:$A,Master!$A:$A) -> 0840 | P144: =_xlfn.XLOOKUP(A144,Master!A:A,Master!A:A) -> 0840
A145: 0841 | B145: Cardigan | Stretch Komfort | Damen | C145: Cardigan | stretch komfort | dam | D145: Cardigan | stretch comfort | women | E145: Cardigan | stretch komfort | dame | F145: Cardigan | stretch komfort | dame | G145: Bluza | stretch komfort | damska | N145: =_xlfn.XLOOKUP(A145,Master!$A:$A,Master!$A:$A) -> 0841 | P145: =_xlfn.XLOOKUP(A145,Master!A:A,Master!A:A) -> 0841
A146: 0842 | B146: Kapuzen Winterjacke | C146: Hoddad vinterjacka | D146: Hooded winter jacket | E146: Hooded vinterjakke | F146: Hooded vinterjakke | G146: Kurtka zimowa z kapturem | N146: =_xlfn.XLOOKUP(A146,Master!$A:$A,Master!$A:$A) -> 0842 | P146: =_xlfn.XLOOKUP(A146,Master!A:A,Master!A:A) -> 0842
A147: 0843 | B147: Kapuzen Winterjacke | Damen | C147: Hoddad vinterjacka | dam | D147: Hooded winter jacket | women | E147: Hooded vinterjakke | dame | F147: Hooded vinterjakke | dame | G147: Kurtka zimowa z kapturem | damska | N147: =_xlfn.XLOOKUP(A147,Master!$A:$A,Master!$A:$A) -> 0843 | P147: =_xlfn.XLOOKUP(A147,Master!A:A,Master!A:A) -> 0843
A148: 0847 | B148: Zip-n-Mix Fleece | Melange | C148: Zip-n-Mix fleece | melange | D148: Zip-n-Mix fleece | melange | E148: Zip-n-Mix fleece | melange | F148: Zip-n-Mix fleece | melange | G148: Polar Zip-n-Mix | melange | N148: =_xlfn.XLOOKUP(A148,Master!$A:$A,Master!$A:$A) -> 0847 | P148: =_xlfn.XLOOKUP(A148,Master!A:A,Master!A:A) -> 0847
A149: 0848 | B149: Zip-n-Mix Fleece | Melange | Damen | C149: Zip-n-Mix fleece | melange | dam | D149: Zip-n-Mix fleece | melange | women | E149: Zip-n-Mix fleece | melange | dame | F149: Zip-n-Mix fleece | melange | dame | G149: Polar Zip-n-Mix | melange | damski | N149: =_xlfn.XLOOKUP(A149,Master!$A:$A,Master!$A:$A) -> 0848 | P149: =_xlfn.XLOOKUP(A149,Master!A:A,Master!A:A) -> 0848
A150: 0850 | B150: Cardigan | Strick-Fleece | C150: Cardigan | stickad fleece | D150: Cardigan | knit fleece | E150: Cardigan | strikfleece | F150: Cardigan | strikfleece | G150: Bluza z polaru | N150: =_xlfn.XLOOKUP(A150,Master!$A:$A,Master!$A:$A) -> 0850 | P150: =_xlfn.XLOOKUP(A150,Master!A:A,Master!A:A) -> 0850
A151: 0851 | B151: Cardigan | Strick-Fleece | Damen | C151: Cardigan | stickad fleece | dam | D151: Cardigan | knit fleece | women | E151: Cardigan | strikfleece | dame | F151: Cardigan | strikfleece | dame | G151: Bluza z polaru | damski | N151: =_xlfn.XLOOKUP(A151,Master!$A:$A,Master!$A:$A) -> 0851 | P151: =_xlfn.XLOOKUP(A151,Master!A:A,Master!A:A) -> 0851
A152: 0854 | B152: CORE Soft Shell-Jacke | C152: CORE soft shell-jacka | D152: CORE soft shell jacket | E152: CORE softshell jakke | F152: CORE softshell jakke | G152: Kurtka soft shell CORE | N152: =_xlfn.XLOOKUP(A152,Master!$A:$A,Master!$A:$A) -> 0854 | P152: =_xlfn.XLOOKUP(A152,Master!A:A,Master!A:A) -> 0854
A153: 0856 | B153: CORE Soft Shell-Jacke | Damen | C153: CORE soft shell-jacka | dam | D153: CORE soft shell jacket| women | E153: CORE softshell jakke | dame | F153: CORE softshell jakke| dame | G153: Kurtka soft shell CORE | damska | N153: =_xlfn.XLOOKUP(A153,Master!$A:$A,Master!$A:$A) -> 0856 | P153: =_xlfn.XLOOKUP(A153,Master!A:A,Master!A:A) -> 0856
A154: 0868 | B154: Soft Shell-Jacke | Performance | C154: Soft shell-jacka | performance | D154: Soft shell jacket | performance | E154: Softshell jakke | performance | F154: Softshell jakke | performance | G154: Kurtka soft shell | performance | N154: =_xlfn.XLOOKUP(A154,Master!$A:$A,Master!$A:$A) -> 0868 | P154: =_xlfn.XLOOKUP(A154,Master!A:A,Master!A:A) -> 0868
A155: 0869 | B155: Soft Shell-Jacke | Performance | Damen | C155: Soft shell-jacka | performance | dam | D155: Soft shell jacket | performance | women | E155: Softshell jakke | performance | dame | F155: Softshell jakke | performance | dame | G155: Kurtka soft shell | performance | damska | N155: =_xlfn.XLOOKUP(A155,Master!$A:$A,Master!$A:$A) -> 0869 | P155: =_xlfn.XLOOKUP(A155,Master!A:A,Master!A:A) -> 0869
A156: 0892 | B156: Bodywarmer | Stretch | C156: Bodywarmer | stretch | D156: Bodywarmer | stretch | E156: Bodywarmer | stretch | F156: Bodywarmer | stretch | G156: Kamizelka pikowana | stretch | N156: =_xlfn.XLOOKUP(A156,Master!$A:$A,Master!$A:$A) -> 0892 | P156: =_xlfn.XLOOKUP(A156,Master!A:A,Master!A:A) -> 0892
A157: 0893 | B157: Bodywarmer | Stretch | Damen | C157: Bodywarmer | stretch | dam | D157: Bodywarmer | stretch | women | E157: Bodywarmer | stretch | dame | F157: Bodywarmer | stretch | dame | G157: Kamizelka pikowana | stretch | damska | N157: =_xlfn.XLOOKUP(A157,Master!$A:$A,Master!$A:$A) -> 0893 | P157: =_xlfn.XLOOKUP(A157,Master!A:A,Master!A:A) -> 0893
A158: 0896 | B158: Gefütterte Jacke | Stretch | C158: Vadderad jacka | stretch | D158: Padded jacket | stretch | E158: Padded jakke | stretch | F158: Padded jakke | stretch | G158: Kurtka pikowana | stretch | N158: =_xlfn.XLOOKUP(A158,Master!$A:$A,Master!$A:$A) -> 0896 | P158: =_xlfn.XLOOKUP(A158,Master!A:A,Master!A:A) -> 0896
A159: 0897 | B159: Gefütterte Jacke | Stretch | Damen | C159: Vadderad jacka | stretch | dam | D159: Padded jacket | stretch | women | E159: Padded jakke | stretch | dame | F159: Padded jakke | stretch | dame | G159: Kurtka pikowana | stretch | damska | N159: =_xlfn.XLOOKUP(A159,Master!$A:$A,Master!$A:$A) -> 0897 | P159: =_xlfn.XLOOKUP(A159,Master!A:A,Master!A:A) -> 0897
A160: 0898 | B160: Soft Shell-Jacke | Winter | C160: Soft shell-jacka | vinter | D160: Soft shell jacket | winter | E160: Softshell jakke | vinter | F160: Softshell jakke | vinter | G160: Kurtka soft shell | zimowa | N160: =_xlfn.XLOOKUP(A160,Master!$A:$A,Master!$A:$A) -> 0898 | P160: =_xlfn.XLOOKUP(A160,Master!A:A,Master!A:A) -> 0898
A161: 0899 | B161: Soft Shell-Jacke | Winter | Damen | C161: Soft shell-jacka | vinter | dam | D161: Soft shell jacket | winter | women | E161: Softshell jakke | vinter | dame | F161: Softshell jakke | vinter | dame | G161: Kurtka soft shell | zimowa | damska | N161: =_xlfn.XLOOKUP(A161,Master!$A:$A,Master!$A:$A) -> 0899 | P161: =_xlfn.XLOOKUP(A161,Master!A:A,Master!A:A) -> 0899
A162: 0902 | B162: Hybrid Stretchhose | C162: Hybrid stretchbyxa | D162: Hybrid stretch pants | E162: Hybrid stretch buks | F162: Hybrid stretch buks | G162: Spodnie hybrid stretch | N162: =_xlfn.XLOOKUP(A162,Master!$A:$A,Master!$A:$A) -> 0902 | P162: =_xlfn.XLOOKUP(A162,Master!A:A,Master!A:A) -> 0902
A163: 0903 | B163: Hybrid Stretchhose | Damen | C163: Hybrid stretchbyxa | dam | D163: Hybrid stretch pants | women | E163: Hybrid stretch buks | dame | F163: Hybrid stretch buks | dame | G163: Spodnie hybrid stretch | damskie | N163: =_xlfn.XLOOKUP(A163,Master!$A:$A,Master!$A:$A) -> 0903 | P163: =_xlfn.XLOOKUP(A163,Master!A:A,Master!A:A) -> 0903
A164: 0907 | B164: Stretchhose | multifunktional | unisex | C164: Stretchbyxa | multifunktionell | unisex | D164: Stretch pants | multifunctional | unisex | E164: Stretch buks | multifunktionel | unisex | F164: Stretch buks | multifunktionel | unisex | G164: Spodnie stretch | wielofunkcyjne | unisex | N164: =_xlfn.XLOOKUP(A164,Master!$A:$A,Master!$A:$A) -> 0907 | P164: =_xlfn.XLOOKUP(A164,Master!A:A,Master!A:A) -> 0907
A165: 0910 | B165: CORE Stretchhose | C165: CORE stretch byxor | D165: CORE stretch pants | E165: CORE stretch buks | F165: CORE stretch buks | G165: Spodnie stretch CORE | N165: =_xlfn.XLOOKUP(A165,Master!$A:$A,Master!$A:$A) -> 0910 | P165: =_xlfn.XLOOKUP(A165,Master!A:A,Master!A:A) -> 0910
A166: 0911 | B166: CORE Stretchhose | Damen | C166: CORE stretch byxor | dam | D166: CORE stretch pants | women | E166: CORE stretch buks | dame | F166: CORE stretch buks | dame | G166: Spodnie stretch CORE | damskie | N166: =_xlfn.XLOOKUP(A166,Master!$A:$A,Master!$A:$A) -> 0911 | P166: =_xlfn.XLOOKUP(A166,Master!A:A,Master!A:A) -> 0911
A167: 0912 | B167: CORE Stretchshorts | C167: CORE stretch shorts | D167: CORE stretch shorts | E167: CORE stretch shorts | F167: CORE stretch shorts | G167: Szorty stretch CORE | N167: =_xlfn.XLOOKUP(A167,Master!$A:$A,Master!$A:$A) -> 0912 | P167: =_xlfn.XLOOKUP(A167,Master!A:A,Master!A:A) -> 0912
A168: 0913 | B168: CORE Stretchshorts | Damen | C168: CORE stretch shorts | dam | D168: CORE stretch shorts | women | E168: CORE stretch shorts | dame | F168: CORE stretch shorts | dame | G168: Szorty stretch CORE | damskie | N168: =_xlfn.XLOOKUP(A168,Master!$A:$A,Master!$A:$A) -> 0913 | P168: =_xlfn.XLOOKUP(A168,Master!A:A,Master!A:A) -> 0913
A169: 0914 | B169: Cargo Stretchhose | unisex | C169: Cargo stretchbyxor | unisex | D169: Cargo stretch pants | unisex | E169: Cargo stretch buks | unisex | F169: Cargo stretch buks | unisex | G169: Spodnie cargo stretch | unisex | N169: =_xlfn.XLOOKUP(A169,Master!$A:$A,Master!$A:$A) -> 0914 | P169: =_xlfn.XLOOKUP(A169,Master!A:A,Master!A:A) -> 0914
A170: 1510 | B170: Baumwolltasche | C170: Kasse i bomull | D170: Cotton bag | E170: Bomuldspose | F170: Bomuldspose | G170: Bawełniana torba | N170: =_xlfn.XLOOKUP(A170,Master!$A:$A,Master!$A:$A) -> 1510 | P170: =_xlfn.XLOOKUP(A170,Master!A:A,Master!A:A) -> 1510
A171: 1800 | B171: Sporttasche | C171: Sportväska | D171: Sports bag | E171: Sportstaske | F171: Sportstaske | G171: Torba sportowa | N171: =_xlfn.XLOOKUP(A171,Master!$A:$A,Master!$A:$A) -> 1800 | P171: =_xlfn.XLOOKUP(A171,Master!A:A,Master!A:A) -> 1800
A172: 1802 | B172: Große Sporttasche | Trolley | C172: Stor sportväska | hjul | D172: Large sports bag | trolley | E172: Stor sportstaske | trolley | F172: Stor sportstaske | trolley | G172: Duża torba na kółkach | N172: =_xlfn.XLOOKUP(A172,Master!$A:$A,Master!$A:$A) -> 1802 | P172: =_xlfn.XLOOKUP(A172,Master!A:A,Master!A:A) -> 1802
A173: 1805 | B173: Ripstop-Rucksack | C173: Ripstop ryggsäck | D173: Ripstop backpack | E173: Ripstop rygsæk | F173: Ripstop rygsæk | G173: Plecak Ripstop | N173: =_xlfn.XLOOKUP(A173,Master!$A:$A,Master!$A:$A) -> 1805 | P173: =_xlfn.XLOOKUP(A173,Master!A:A,Master!A:A) -> 1805
A174: 1810 | B174: Rucksack | C174: Ryggsäck | D174: Backpack | E174: Rygsæk | F174: Rygsæk | G174: Plecak | N174: =_xlfn.XLOOKUP(A174,Master!$A:$A,Master!$A:$A) -> 1810 | P174: =_xlfn.XLOOKUP(A174,Master!A:A,Master!A:A) -> 1810
A175: 1820 | B175: Rucksack | Canvas | C175: Backpack | canvas | D175: Backpack | canvas | E175: Backpack | canvas | F175: Backpack | canvas | G175: Plecak | bawelna z recyklingu | N175: =_xlfn.XLOOKUP(A175,Master!$A:$A,Master!$A:$A) -> 1820 | P175: =_xlfn.XLOOKUP(A175,Master!A:A,Master!A:A) -> 1820
A176: 1821 | B176: Einkaufstasche | Canvas | C176: Shopping bag | canvas | D176: Shopping bag | canvas | E176: Shopping bag | canvas | F176: Shopping bag | canvas | G176: Torba zakupowa | bawełna z recyklingu | N176: =_xlfn.XLOOKUP(A176,Master!$A:$A,Master!$A:$A) -> 1821 | P176: =_xlfn.XLOOKUP(A176,Master!A:A,Master!A:A) -> 1821
A177: 1825 | B177: Ripstop-Sporttasche | C177: Ripstop sportväska | D177: Ripstop sports bag | E177: Ripstop sportstaske | F177: Ripstop sportstaske | G177: Torba sportowa Ripstop | N177: =_xlfn.XLOOKUP(A177,Master!$A:$A,Master!$A:$A) -> 1825 | P177: =_xlfn.XLOOKUP(A177,Master!A:A,Master!A:A) -> 1825
A178: 1850 | B178: Turnbeutel | Rucksack | C178: Gymbag | ryggsäck | D178: Gym bag | backpack | E178: Gymbag | rygsæk | F178: Gymbag | rygsæk | G178: Worek sportowy | plecak | N178: =_xlfn.XLOOKUP(A178,Master!$A:$A,Master!$A:$A) -> 1850 | P178: =_xlfn.XLOOKUP(A178,Master!A:A,Master!A:A) -> 1850
A179: 1864 | B179: Computertasche | C179: Datorväska | D179: Computer bag | E179: Computertaske | F179: Computertaske | G179: Torba na laptopa | N179: =_xlfn.XLOOKUP(A179,Master!$A:$A,Master!$A:$A) -> 1864 | P179: =_xlfn.XLOOKUP(A179,Master!A:A,Master!A:A) -> 1864
A180: 1880 | B180: Einkaufskorb | C180: Inköpskorg | D180: Shopping basket | E180: Indkøbskurv | F180: Indkøbskurv | G180: Koszyk na zakupy | N180: =_xlfn.XLOOKUP(A180,Master!$A:$A,Master!$A:$A) -> 1880 | P180: =_xlfn.XLOOKUP(A180,Master!A:A,Master!A:A) -> 1880
A181: 1900 | B181: Arbeitsweste | EN 20471 | C181: Arbetsväst | EN 20471 | D181: Worker vest | EN 20471 | E181: Arbejdsvest | EN 20471 | F181: Arbejdsvest | EN 20471 | G181: Kamizelka robocza | EN 20471 | N181: =_xlfn.XLOOKUP(A181,Master!$A:$A,Master!$A:$A) -> 1900 | P181: =_xlfn.XLOOKUP(A181,Master!A:A,Master!A:A) -> 1900
A182: 1915 | B182: Laufweste | C182: Löparväst | D182: Runner’s vest | E182: Løbevest | F182: Løbevest | G182: Kamizelka do biegania | N182: =_xlfn.XLOOKUP(A182,Master!$A:$A,Master!$A:$A) -> 1915 | P182: =_xlfn.XLOOKUP(A182,Master!A:A,Master!A:A) -> 1915
A183: 2000 | B183: YES T-Shirt | C183: YES T-shirt | D183: YES T-shirt | E183: YES T-shirt | F183: YES T-shirt | G183: T-shirt YES | N183: =_xlfn.XLOOKUP(A183,Master!$A:$A,Master!$A:$A) -> 2000 | P183: =_xlfn.XLOOKUP(A183,Master!A:A,Master!A:A) -> 2000
A184: 2020 | B184: YES Poloshirt | C184: YES pikétröja | D184: YES polo shirt | E184: YES poloshirt | F184: YES poloshirt | G184: Koszulka polo YES | N184: =_xlfn.XLOOKUP(A184,Master!$A:$A,Master!$A:$A) -> 2020 | P184: =_xlfn.XLOOKUP(A184,Master!A:A,Master!A:A) -> 2020
A185: 2030 | B185: YES Active T-Shirt | C185: YES Active T-shirt | D185: YES Active T-shirt | E185: YES Active T-shirt | F185: YES Active T-shirt | G185: T-shirt YES Active | N185: =_xlfn.XLOOKUP(A185,Master!$A:$A,Master!$A:$A) -> 2030 | P185: =_xlfn.XLOOKUP(A185,Master!A:A,Master!A:A) -> 2030
A186: 2032 | B186: YES Active T-Shirt | Damen | C186: YES Active T-shirt | dam | D186: YES Active T-shirt | women | E186: YES Active T-shirt | dame | F186: YES Active T-shirt | dame | G186: T-shirt YES Active | damski | N186: =_xlfn.XLOOKUP(A186,Master!$A:$A,Master!$A:$A) -> 2032 | P186: =_xlfn.XLOOKUP(A186,Master!A:A,Master!A:A) -> 2032
A187: 40500 | B187: GAME® T-Shirt | Kinder | C187: GAME® T-shirt | barn | D187: GAME T-shirt | children | E187: GAME® T-shirt | børn | F187: GAME® T-shirt | børn | G187: T-shirt GAME® | dzieci | N187: =_xlfn.XLOOKUP(A187,Master!$A:$A,Master!$A:$A) -> 40500 | P187: =_xlfn.XLOOKUP(A187,Master!A:A,Master!A:A) -> 40500
A188: 40510 | B188: T-TIME® T-Shirt | Kinder | C188: T-TIME® T-shirt | barn | D188: T-TIME® T-shirt | children | E188: T-TIME® T-shirt | børn | F188: T-TIME® T-shirt | børn | G188: T-shirt T-TIME® | dzieci | N188: =_xlfn.XLOOKUP(A188,Master!$A:$A,Master!$A:$A) -> 40510 | P188: =_xlfn.XLOOKUP(A188,Master!A:A,Master!A:A) -> 40510
A189: 40552 | B189: T-Shirt | ökologisch | Kinder | C189: Ekologisk T-shirt | barn | D189: Organic T-shirt | children | E189: Økologisk T-shirt | børn | F189: Økologisk T-shirt | børn | G189: T-shirt | ekologiczny | dzieci | N189: =_xlfn.XLOOKUP(A189,Master!$A:$A,Master!$A:$A) -> 40552 | P189: =_xlfn.XLOOKUP(A189,Master!A:A,Master!A:A) -> 40552
